Workbook

Sheet 12 BB
A1: =D4 -> , , , | B1: FORM NO.12BB (See rule 26C)
A2: =B1 -> FORM NO.12BB (See rule 26C)
A4: 1. Name and address of the employee: | D4: =PERSONAL!H4&", "&PERSONAL!H6&", "&CUSTOMISE!H22&", "&CUSTOMISE!H23 -> , , ,
A5: 2. Permanent Account Number of the employee: | D5: =PERSONAL!H7 -> 0
A6: 3. Financial year: | D6: 2023-24
A8: Details of claims and evidence thereof | G8: ഈ ഫോമിന്റെ ഡാറ്റാ എന്‍ട്രി
A9: Sl No. | B9: Nature of claim | D9: Amount (Rs.) | E9: Evidence / particulars | G9: നടത്താനോ നടത്തിയത് തിരുത്താനോ
A10: 1 | B10: 2 | D10: 3 | E10: 4 | G10: മുകളിലെ ബട്ടണില്‍ ക്ലിക്ക് ചെയ്യുക
A11: 1 | B11: House Rent Allowance:
B12: (i) Rent paid to the landlord | D12: =PERSONAL!H9 -> 0 | E12: =IF(D12="NIL","",E93) -> 0
B13: (ii) Name of the landlord | E13: =IF(D12="NIL","",E94) -> 0
B14: (iii) Address of the landlord | E14: =IF(D12="NIL","",E95) -> 0
B15: (iv) PAN of the landlord | E15: =IF(D12="NIL","",E96) -> 0
B16: Note: Permanent Account Number shall be furnished if the aggregate rent paid during the previous year exceeds one lakh rupees
A17: 2 | B17: Leave travel concessions or assistance | D17: =D97 -> 0 | E17: =E97 -> 0
A18: 3 | B18: Deduction of interest on borrowing: (Housing loan)
B19: (i) Interest payable/paid to the lender | D19: =('new statement'!O23)*-1+'new statement'!O53 -> 0 | E19: =IF(D19=0,"","Certificate by the Authority/ Institution") -> 
B20: (ii) Name of the lender | E20: =IF(D19=0,"",E86) -> 
B21: (iii) Address of the lender | E21: =IF(D19=0,"",E87) ->  | G21: PDF facility available only for EXCEL 10 or above versions
B22: (iv) Permanent Account Number of the lender | E22: =IF(D19=0,"",E88) -> 
B23: Deduction of interest on borrowing: (Education loan) | D23: ='new statement'!O52 -> 0
B24: (i) Interest payable/paid to the lender | E24: =IF(D23=0,"","Certificate by the Authority/ Institution") -> 
B25: (ii) Name of the lender | E25: =IF(D23=0,"",E90) -> 
B26: (iii) Address of the lender | E26: =IF(D23=0,"",E91) -> 
B27: (iv) Permanent Account Number of the lender | E27: =IF(D23=0,"",E92) -> 
A28: 4 | B28: Deduction under Chapter VI-A (A) Section 80C,80CCC and 80CCD
B29: (i) Section 80C
B30: (a) | C30: PF,SLI, GI | D30: ='new statement'!M96+'new statement'!N96+'new statement'!O96 -> 0 | E30: Salary deduction only
B31: (b) | C31: Tax saving Fixed deposit | D31: =INVEST!F8 -> 0 | E31: Fixed deposit receipt
B32: (c) | C32: LIC/ PLI Salary deduction | D32: ='new statement'!P96 -> 0 | E32: Salary deduction only
B33: (d) | C33: LIC/PLI other than salary deduction | D33: ='new statement'!O35 -> 0 | E33: Premium paid Certificates
B34: (e) | C34: ='det.sal input'!R6&" + "&'det.sal input'!T6 -> ? + ? | D34: ='new statement'!R96 -> 0 | E34: Salary deduction only
B35: (f) | C35: NSC VIII th issue | D35: ='new statement'!O37 -> 0 | E35: NSC Certificate photo copy
B36: (g) | C36: Public Provident Fund (PPF) | D36: ='new statement'!O38 -> 0 | E36: Payment Slip copy
B37: (h) | C37: Ulip/ Tax saving mutual funds | D37: ='new statement'!O39 -> 0 | E37: Payment Slip copy
B38: (i) | C38: Tuition Fee | D38: ='new statement'!O40 -> 0 | E38: Receipts from the institution/College
B39: (j) | C39: Housing loan Principal repayment | D39: ='new statement'!O41 -> 0 | E39: Annual statement from bank
B40: (k) | C40: =INVEST!E13 -> 0 | D40: ='new statement'!O42 -> 0 | E40: Certificate by the Authority/ Institution
B41: (ii) Section 80CCC | D41: =INVEST!F6 -> 0 | E41: Premium payment slip copy
B42: (iii) Section 80CCD | D42: ='new statement'!T96+INVEST!F15 -> 0 | E42: Salary deduction/ Payment slip
B43: (B) Other sections (80E, 80G, 80TTA, etc.) under Chapter VI-A.
B44: (i) Investment in Rajiv Gandhi Equity Savings Scheme 80CCG | D44: ='new statement'!O48 -> 0 | E44: Copy of Certificate/Receipt issued
B45: (ii)Mediclaim 80 D | D45: ='new statement'!O49 -> 0 | E45: Certificate of Insurance Company
B46: (iii) Medical treatment of handicapped dependents 80 DD | D46: ='new statement'!O50 -> 0 | E46: Medical board 10 (IA) Certificate
B47: (iv) For medical treatment of specified diseases of self/dependent 80 DDB | D47: ='new statement'!O51 -> 0 | E47: 10 I Certificates and bills of exp.
B48: (v) Educational Loan Interest 80 E | D48: ='new statement'!O52 -> 0 | E48: Certificate of Bank
B49: (vi) Donation to special funds 80 G | D49: ='new statement'!O55 -> 0 | E49: Collected and remitted by DDO
B50: (vi) Dedution for differently abled Employees( 80U) | D50: ='new statement'!O56 -> 0 | E50: Medical board Certificate
A51: Verification
A52: ="I, "&PERSONAL!H4&" ,son/daughter of "&E84& " do hereby certify that the information given above is complete and correct." -> I, ,son/daughter of do hereby certify that the information given above is complete and correct.
A53: Place | B53: =CUSTOMISE!H23 -> 0
A54: Date | B54: ='new statement'!D75 -> 05/02/2024 | D54: ="Signature of "&PERSONAL!H4 -> Signature of
A55: ="Designation: "&PERSONAL!H6 -> Designation: | D55: =PERSONAL!H4 -> 0
B77: If you want to take printout of Form 12 BB, also fill the following details
B78: DDO ക്ക് സമര്‍പ്പിക്കേണ്ട ഫോം 12 BB ഈ സംവിധാനത്തിലൂടെ പ്രിന്‍റ് എടുക്കാന്‍ ഉദ്ദേശിക്കുന്നുവെങ്കില്‍ മാത്രം ചുവടെ കാണുന്ന
B79: ചോദ്യങ്ങള്‍ക്ക് ഉത്തരം നല്‍കുക - സാധാരണ ഫോമുകള്‍ക്കു പുറമേ ഇത്തവണ സമര്‍പ്പിക്കണമെന്ന് പറയുന്ന ഫോം ആണ് ഇത്
B80: FORM 12 BB DATA ENTRY FIELD (യഥാര്‍ത്ഥ print പിന്നീട് ലഭിക്കും )
B81: Sl No. | C81: Show answers to Questions to the following questions | D81: Amount | E81: Document submitted before DDO as Proof
B82: ക്രമനമ്പര്‍ | C82: ചുവടെ ചോദ്യങ്ങള്‍ കാണുന്നവക്ക് മാത്രം ഉത്തരം നല്‍കുക ഒഴിഞ്ഞു കിടക്കുന്ന ചോദ്യനമ്പറുകള്‍ അവഗണിക്കുക | D82: അടച്ച തുക | E82: ബന്ധപ്പെട്ട വിഷയത്തിന്‍റെ തെളിവിനായി സമര്‍പ്പിക്കാന്‍ ഉദ്ദേശിക്കുന്ന രേഖ
B83: 1 | C83: Your Name | E83: =PERSONAL!H4 -> 0
B84: 2 | C84: Your Father's Name
B85: 3 | C85: =IF(PERSONAL!H19="NO","","Housing Loan Interest + Principal payment Total") ->  | D85: =INVEST!F12+INVEST!F17 -> 0 | E85: =IF(C85="","","Certificate of Bank") -> 
B86: a | C86: =IF(PERSONAL!H19="NO","","Name of the bank") -> 
B87: b | C87: =IF(PERSONAL!H19="NO","","Address of the bank") -> 
B88: c | C88: =IF(PERSONAL!H19="NO","","Permanent Account Number of Bank") -> 
B89: 4 | C89: =IF($D$89=0,"","Education loan Interest payment") ->  | D89: ='new statement'!O52 -> 0 | E89: =IF(C89="","","Certificate of Bank") -> 
B90: a | C90: =IF($D$89=0,""," Name of the bank") -> 
B91: b | C91: =IF($D$89=0,"","Address of the bank") -> 
B92: c | C92: =IF($D$89=0,""," Permanent Account Number of Bank") -> 
B93: 5 | C93: =IF(D93=0,""," Rent paid to the House owner") ->  | D93: =D12 -> 0
B94: a | C94: =IF(D93=0,""," Name of the House owner") -> 
B95: b | C95: =IF(D93=0,""," Address of the House owner") -> 
B96: c | C96: =IF(D93=0,""," PAN of House owner") -> 
B97: 6 | C97: Leave Travelling allowance actually spent (if any) (Show proof that the amount is actually spent)
B99: Scroll mouse up to see the head of the table | D99: ഈ പട്ടികയുടെ തലക്കെട്ട്‌ കാണുന്നില്ലെങ്കില്‍ മൌസ് മുകളിലേക്ക് സ്ക്രോള്‍ ചെയ്യുക

Sheet TUTORIAL
Q1: click me to SAVE and CLOSE the app
H2: കേരള DA സ്കെയില്‍ വാങ്ങുന്നവരും UGC അല്ലാത്ത ജീവനക്കാരും വലതു icon ക്ലിക്ക് ചെയ്യുക
G3: 1 | H3: Kerala DA % or Employees other than UGC scale, click the right side icon
H4: UGC Scale ജീവനക്കാര്‍ വലതു icon ക്ലിക്ക് ചെയ്യുക
G5: 2 | H5: UGC Scale Emloyees , click the right side icon
H6: നികുതി സംബന്ധമായ കുറിപ്പ് ഡൌണ്‍ലോഡ് ( 2 മിനിറ്റ് ക്ഷമയോടെ കാക്കുക )
G7: 3 | H7: To download notes on Income tax calculation 2024 (may take 2 minute)
H8: ഈ സോഫ്റ്റ്‌വെയര്‍ ന്‍റെ ഏറ്റവും പുതിയ പതിപ്പ് ഡൌണ്‍ലോഡ് ചെയ്യാന്‍
G9: 4 | H9: To Visit blog to download latest version of the programme
B11: =FACE!B1&" of the programme "&FACE!D1 -> Date of release of the programme 2023 December 21
C32: ഈ പ്രോഗ്രാം കൂടുതല്‍ സാദ്ധ്യതകള്‍ നല്‍കി പരിഷരിച്ച തീയതി
C33: =FACE!D1 -> 2023 December 21 | F33: =FACE!F1 -> 00:00:00

Sheet FACE
A1: ` | B1: Date of release | D1: 2023 December 21
I2: Assessment Year 2024-25 [financial year 2023-24] | O2: click to close
C3: babu vadukkumchery's two in one income tax calculator
C4: ECTAX income tax calculator- 2024
I5: Income Tax statement, Form 12 BB
C6: for UGC scale College teachers and Kerala Govt/ Private employees (malayalm menu based)
F9: Babu V A, commerce teacher, KNMVHSS Vatanappally
G10: Only Windows support | I10: PDF Saving facility
M12: =IF(PERSONAL!H4="","","Dear friend "&PERSONAL!H4&", TO PRINT / VIEW YOUR CREATED FILE, DONOT CLICK ON START BUTTON, BUT JUST CLICK ON THESE LINES. ") -> 
I18: Email: babuvadukkumchery@gmail.com
I19: blog: babuvadukkumchery.blogspot.com
A102: =PERSONAL!$I$479 -> 0

Sheet ANTICIPATORY (hidden)
B1: സാങ്കേതിക കാരണങ്ങളാലും ഡാറ്റാ എന്ട്രി നടത്തുന്ന സന്ദര്‍ഭങ്ങളില്‍ തെറ്റുകള്‍ വരാനിടയുള്ളതിനാലും വസ്തുതകള്‍ ശരിയാണെന്ന് കണക്കു കൂട്ടി ഉറപ്പു വരുത്തുക. മൌസ് സ്ക്രോള്‍ ചെയ്ത് മുകള്‍ ഭാഗവും താഴ് ഭാഗവും കാണാനാകും | U1: =IF(PERSONAL!H9="","",IF(ANTICIPATORY!R16="nil","വാടക വീട്ടില്‍ താമസിക്കുന്നവര്‍ക്കുള്ള ഇളവ് ലഭിക്കാന്‍ നല്‍കുന്ന വാടക ശമ്പളത്തിന്റെ 10% നു മേലെയായിരിക്കണം, താങ്കള്‍ക്ക് ഈ ആനുകൂല്യം ലഭിക്കില്ല ","")) -> 
B2: =" ANTICIPATORY INCOME TAX STATEMENT-FINANCIAL YEAR 2018-19 (AY 19-20) "&CUSTOMISE!H22 -> ANTICIPATORY INCOME TAX STATEMENT-FINANCIAL YEAR 2018-19 (AY 19-20)
B3: =PERSONAL!H10 -> SALARY
B5: Name | F5: =PERSONAL!H4 -> 0 | O5: PAN : | Q5: =PERSONAL!H7 -> 0 | U5: =IF(PERSONAL!H8="no","",IF('det.sal input'!AC39>'det.sal input'!AB38,"You cannot claim for benifit of living in a rental home [HRA benifit], because rent paid amount is less than 10% of your salary","")) -> 
B6: Designation | F6: =PERSONAL!H6 -> 0 | L6: =PERSONAL!H5 -> Below 60 Years
B7: 1 | C7: a | D7: Gross Salary (EXCLUDES INTEREST ON ARREAR, Festival allowance, Bonus,Leave Surrender)(includes Salary, DA, HRA, CCA, Interim Relief, , DA Arrear, Pay Revision Arrear etc) | Q7: : | R7: =L95-L90-L93-'arrear det'!K13 -> 0 | Y7: ='det.sal input'!AF29 -> 1
C8: b | D8: Leave Surrender | Q8: : | R8: =L93 -> 0 | U8: medical reimb actual | V8: ='det.sal input'!W28 -> 0 | W8: 15000 | X8: excess= | Y8: =IF(Y7=1,0,IF((V8-W8)>0,(V8-W8),0)) -> 0
C9: c | D9: Festival Allowance / Bonus / Ex-gratia and incentive | Q9: : | R9: =L90 -> 0 | U9: =SUM(R7:S9) -> 0
C10: d | D10: Value of perquisites (Iincludes Employer's contribution to NPS, Medical reimb. Taxable portion) | Q10: : | S10: ='det.sal input'!W32+'det.sal input'!W33+V8 -> 0 | Y10: IF((V8-W8)>0,(V8-W8),0))
C11: e | D11: Profits in lieu of salary (S17-3) | Q11: : | S11: ='det.sal input'!W34 -> 0 | V11: =PERSONAL!H8 -> NO
C12: f | D12: Total Salary Income (a+b+c+d+e) | Q12: : | R12: =SUM(R7:S11) -> 0
B13: 2 | C13: Deduction towards rent paid | H13: =IF(PERSONAL!H8="no","(not available)","(Least amount gets excemption)") -> (not available)
C14: i) | D14: Actual HRA Received relating to the period | G14: : | N14: : | O14: =IF(V11="NO","",'det.sal input'!AB40) -> 
C15: ii) | D15: Actual Rent paid in excess 1/10th of the salary | M15: =IF(O15=0,"NIL","") ->  | N15: : | O15: =IF(V11="NO","",IF(W15>Y15,W15-Y15,0)) ->  | V15: rent paid = | W15: ='det.sal input'!AB38 -> 0 | X15: 1/10 of sal= | Y15: ='det.sal input'!AC39 -> 0 | Z15: =IF(W15>Y15,W15-Y15,0) -> 0
C16: iii) | D16: 40% Salary ( For this salary means Basic + DA) | G16: : | N16: : | O16: =IF(V11="NO","",Y16) ->  | R16: =IF(R17=0,"NIL",R17) -> NIL | X16: 40%sal = | Y16: =ROUND(('det.sal input'!AB39*0.4),0) -> 0
C17: =IF(PERSONAL!H8="no",""," (Here, Salary means Basic+DA+AGP only, but include arrear/ surrender values relating to this period.) That is "&'det.sal input'!R40&"+"&'det.sal input'!T40&"+"&'det.sal input'!W40&"") ->  | Q17: : | R17: =MIN(O14:P16) -> 0
B18: 3 | C18: Balance ( 1- 2) | Q18: : | R18: =R12-R17 -> 0
B19: 4 | C19: =" Less Allowance to the extent exempt u/s10 " -> Less Allowance to the extent exempt u/s10 | K19: =INVEST!D28&" + "&INVEST!D29&" + "&INVEST!D30&" + "&INVEST!D31 -> + + + | P19: =INVEST!F28+INVEST!F29+INVEST!F30+INVEST!F31 -> 0 | R19: =P19 -> 0
B20: 5 | C20: Less Profession tax paid, Enterteainment Allowance exempted | N20: ='det.sal input'!W31& " +"&'det.sal input'!W35 -> + | R20: ='det.sal input'!W31+'det.sal input'!W35 -> 0
B21: 6 | C21: Less Standard deduction ( maximum 40000) | R21: =IF((R18-R19-R20)>40000,40000,(R18-R19-R20)) -> 0
B22: 6a | C22: Net Salary Income [Income chargeble under the head salary] (3-4-5-6) | Q22: : | R22: =R18-R19-R20-R21 -> 0
B23: 7 | C23: 1. Income from house property (interst on Housing loan is a negative income) | O23: =0-MIN(U23:V23) -> 0 | R23: =IF(ISNUMBER(#REF!),#REF!,"Nil") -> Nil | U23: 200000 | V23: =INVEST!F17 -> 0 | W23: =V23-U23 -> -200000
C24: 2.Other sources Income INCLUDING PAY REVISION ARREAR INTEREST [ Interest on investment / Family pension__ (1/3 of family pension or 15000 whichever is less is exempted) For SB account interest Rs. 10000 is exempted U/S 80TTA . FD interest is fully taxable (senior citizen upto 50000 exempt) | O24: =IF(PERSONAL!H5="Below 60 Years",'tds det'!H13+Z24+'arrear det'!K13,'tds det'!H13+Z24+'arrear det'!K13-'tds det'!M12) -> 0 | R24: ="Pay revision interest "&'arrear det'!K13 -> Pay revision interest 0 | S24: ="Investment interest "&O24-Z24-'det.sal input'!W27 -> Investment interest 0 | T24: ="Family Pension "&Z24 -> Family Pension 0 | U24: 1/3 family pension | V24: =ROUND('det.sal input'!W30/3,0) -> 0 | W24: 15000 | X24: =MIN(V24:W24) -> 0 | Y24: taxable portion of family pen | Z24: ='det.sal input'!W30-ANTICIPATORY!X24 -> 0
C25: 3. Income from profession | O25: ='tds det'!E6 -> 0
C26: 4.Captal gain income | O26: ='tds det'!E5 -> ` | Q26: Total | R26: =SUM(O23:P26) -> 0
B27: 8 | C27: Gross Total Income (6+7) | Q27: : | R27: =R22+R26 -> 0
B28: 9 | C28: Deduction under chapter VI-A | O28: Amount spent | R28: Eligible amount
C29: A - Deduction under section 80C | R29: (See point 9 D)
C30: a) | D30: Providend fund contribution | N30: : | O30: =M95 -> 0
C31: c) | D31: State Life Insurance Policy (SLI) | N31: : | O31: =N95 -> 0
C32: c) | D32: Group Insurance Scheme (GIS) | N32: : | O32: =O95 -> 0
C33: d) | D33: Tax saving Fixed deposits (Available at all banks) /Sukanya samrudhi | N33: : | O33: =INVEST!F8 -> 0
C34: e) | D34: Life Insurence salary deduction | O34: =P95 -> 0
C35: f) | D35: Life Insurence other than salary deduction | N35: : | O35: =INVEST!F5 -> 0
C36: g) | D36: ='det.sal input'!R6&" + "&'det.sal input'!T6 -> ? + ? | O36: =R95 -> 0
C37: h) | D37: NSC VIII th issue (Nationional Savings certificate from post offices) | N37: : | O37: =INVEST!F7 -> 0
C38: i) | D38: Public Provident Fund (PPF) (Available at Post offfices) | N38: : | O38: =INVEST!F9 -> 0
D39: ULIP/ Tax saving mutual funds | O39: =INVEST!F10 -> 0 | U39: nps allowed amt
C40: j) | D40: Tuition Fees ( Paid for full time education to any two children -only the tuition fee portion-donations should be excluded) | N40: : | O40: =INVEST!F11 -> 0 | U40: =O44 -> 0 | V40: =IF(O44=0,"",(O45-O44-150000)*-1) -> 
C41: k) | D41: Housing Loan Repayment (PRINCIPAL PORTION ONLY) for construction loan only. Not for addition / repair loan etc. Stamp duty paid for purchase of property can be included | N41: : | O41: =INVEST!F12 -> 0 | U41: OVER 1.5 | V41: =IF(O45<=150000,0,(O45)-150000) -> 0 | W41: MAX 80CC-1B= | X41: 50000 | Y41: TOT NPS= | Z41: =V46 -> 0 | AA41: MIN AMT = | AB41: =MIN(V41,X41,Z41) -> 0
C42: l) | D42: =INVEST!E13 -> 0 | O42: =INVEST!F13 -> 0 | U42: Tot VIA excl nps= | V42: =SUM(O30:P43) -> 0 | W42: ALLOED VIA = | X42: 150000
C43: B- Contribution to Pension Fund (80CCC) | O43: =INVEST!F6 -> 0
C44: C-Contrubution to National Pension Scheme - NPS (80CCD) | N44: : | O44: =V46 -> 0 | R44: =MIN(U40:V40) -> 0 | U44: nps sal ded | V44: ='det.sal input'!U26 -> 0
C45: D- Total investment under Sec. 80C, 80CCC, 80CCD, eligible amt. limited to 1.5 lakh | O45: =SUM(O30:P44) -> 0 | R45: =IF(O45<=150000,O45,150000) -> 0 | U45: nps direct pay | V45: =INVEST!F15 -> 0
B46: 10 | C46: a. | D46: Contrubution to National Pension Scheme - NPS Section 80CCD(1B) Investment upto 50000 can be made additionally | N46: : | O46: =AB41 -> 0 | U46: total NPS | V46: =V44+V45 -> 0
C47: b. | D47: Employer's contribution to NPS [Up to 10% Pay+Da+AGPgets excemption u/s Section 80CCD(2)] | O47: =IF(X47<V47,X47,V47) -> 0 | U47: total pay+da+agp 10% = | V47: =ROUND(Y47*0.1,0) -> 0 | W47: Empr contri = | X47: ='det.sal input'!W32 -> 0 | Y47: ='det.sal input'!C26+'det.sal input'!D26+'det.sal input'!F26-'det.sal input'!C20 -> 0
C48: c. | D48: Investment in Rajiv Gandhi Equity Savings Scheme 80CCG (50% of investment gets exemption.Maximum 25000) | O48: =INVEST!F16/2 -> 0
C49: c) | D49: Mediclaim ( Maximum of Rs.25,000 for self, spouse, children and Rs.25000 for Parents. if Parents are senior citizens Rs. 30,000)(80 D) | N49: : | O49: =IF(X49<V49,X49,V49) -> 0 | U49: max 80 D= | V49: 55000 | W49: Actual 80d = | X49: =INVEST!F18 -> 0
C50: d) | D50: Expenditure on Medical treatment of mentally or physically handicapped dependents (including Specified investments there on). ( Max. Rs.75,000/- in case of severe disability max. Rs.1,25,000) (80DD) | N50: : | O50: =IF(X50<V50,X50,V50) -> 0 | U50: max 80dd= | V50: 125000 | W50: Actual 80dd = | X50: =INVEST!F21 -> 0
C51: e) | D51: For medical treatment of specified diseases of self/dependent . Actual exp. Or Rs. 40000/60000/ 80000 which ever is less gets excemption depending on age. Should submit Form-10-I. (80 DDB) | O51: =INVEST!F22 -> 0
C52: f) | D52: Any amount of interest paid for Educational Loan for higher education of the employee's dependent children [u/s 80E] | N52: : | O52: =INVEST!F20 -> 0
C53: g) | D53: Additional deduction on housing loan interest (maximum 50000) if the following conditions are satisfied. 1. loan amount is not above Rs. 35 lakhs, 2. Loan sanctioned in 2016-17, 3. He is a first time home buyer, 4. cost of house does not exceed Rs. 50 lakhs (80EE) | O53: =IF(U53<0,0,U53) -> 0 | U53: =IF(PERSONAL!H20="YES",ANTICIPATORY!V23-ANTICIPATORY!U23,0) -> 0
C54: h) | D54: SALARY CHALLENGE & Donation to special funds only PM's National Relief Fund, Earth quake fund Etc (80G) | N54: : | O54: ='new statement'!O55 -> 0
C55: i) | D55: Dedution for differently abled Employees( 80U)For blindness,Hearing impaired, Mental retradation, Mental illness, low vision, Locomotors disability. Fixed deduction of 75000 (For disability not less than 40%) / 1.25 Lakh, for severe disability over 80% | N55: : | O55: =INVEST!F19+'det.sal input'!Z26 -> 0
D56: Total of 10 | O56: =SUM(O46:P55) -> 0
B57: 11 | C57: Total Deduction (9+10) | R57: =R45+O56 -> 0
B58: 12 | C58: Total Income or Taxable Income (rounded off to the nearest multiple of ten (8-11) | O58: Before rounding | Q58: =R27-R57 -> 0 | R58: =IF(R27-R57>0,ROUND(((R27-R57)/10),0)*10,0) -> 0
B59: 13 | C59: Tax on Total Income (Up to 2.5 lakh Nil, between 250001and 5 lakh 5%, between 500001 and 10 lakh 20%, above 10 lakh 30%, (special rates to senior/ super senior citizens ) | Q59: : | R59: ='new form 16'!J81 -> 0
B60: 14 | C60: Less 87 A Rebate, upto a maximum of Rs.2500, available only if Taxable income is less than 350001 (Rebate u/s 87A) Rebate reduced from 5000 to 2500 in the financial year 2017-18 | R60: ='new form 16'!K82 -> 0
B61: 15 | C61: Balance of Tax after 87A rebate | R61: =R59-R60 -> 0
B62: 16 | C62: Education Cess @ 4% of tax | Q62: : | R62: ='new form 16'!J84 -> 0
B63: 17 | C63: Total Tax Payable (13-14+16) | Q63: : | R63: ='new form 16'!J85 -> 0 | U63: =R63 -> 0
B64: 18 | C64: Less : Relief for Arrears of Salary u/s 89(1) attach 10 E set of forms and previous years tax statements | Q64: : | R64: =IF('arrear det'!K100>0,'arrear det'!K100,U64) -> 0 | U64: =IF(INVEST!F24>R63,R63,'Form 10E'!H40) -> 0
B65: 19 | C65: Balance Tax Payable (17-18) rounded to 10 rupees. | L65: ="( before rounding "&R63-R64&") " -> ( before rounding 0) | Q65: : | R65: =ROUND('new form 16'!J87,-1) -> 0
B66: 20 | C66: Amount of Tax already deducted from salary (TDS) | Q66: : | R66: ='det.sal input'!Q26 -> 0
B67: 21 | C67: Amount of Tax deducted from interest on deposits (FD,RD,Time deposit, if any) (SB interest upto 10000 is not taxable ) Attach document issued by bank | R67: ='tds det'!G19 -> 0 | U67: =R65-R67-R68 -> 0 | V67: =ROUND(U67,-1) -> 0
B68: 22 | C68: Advance tax paid (Directly paid through bank challan) Challan details : | N68: ='tds det'!D18 -> 0 | R68: ='tds det'!E18 -> 0
B69: 23 | C69: Balance of Tax due in the future months (19-20-21-22) Before rounding | N69: =R63-R64-R66-R67-R68 -> 0 | R69: =R65-R66-R67-R68 -> 0 | U69: =ROUND(R69,-1) -> 0
B70: 24 | C70: ="Monthly TDS amount required in the next "&PERSONAL!H22&" months including this month" -> Monthly TDS amount required in the next 12 months including this month | R70: =IF(U69<1,0,U69/PERSONAL!H22) -> 0 | T70: ="Signature of "&F5 -> Signature of 0
B72: ="True copy, Counter signed by "&CUSTOMISE!H24&", "&CUSTOMISE!H26 -> True copy, Counter signed by , | T72: =PERSONAL!H4&", "&PERSONAL!H6 -> , | U72: 10 ലേക്ക് ROUND ചെയ്ത നികുതി സംഖ്യയാണ് ശരിയായ നികുതി.
B73: ="Place: "&PERSONAL!H11 -> Place: 0 | O73: http://babuvadukkumchery.blogspot.in | U73: ROUND ചെയ്യാത്ത തുക ഇവിടെ വെറുതെ അറിവിലേക്കായി നല്‍കീ എന്നേ കരുതേണ്ടൂ
B74: Date : | D74: =TEXT(TODAY(),"dd/mm/yyyy") -> 05/02/2024
B75: DETAILS OF EXPECTED SALARY AND DEDUCTIONS FOR THE FINANCIAL YEAR 2018-19
D76: =IF('det.sal input'!$B$6="pension","EXPECTED PENSION RECEIPTS","EXPECTED SALARY RECEIPTS") -> EXPECTED SALARY RECEIPTS | M76: EXPECTED DEDUCTIONS FROM OFFICE
B77: For the Month | D77: Pay /Pension | E77: AGP | F77: DA | G77: HRA | H77: =UPPER('det.sal input'!H6) -> ? | I77: =UPPER('det.sal input'!I6) -> ? | J77: =UPPER('det.sal input'!J6) -> ? | K77: =UPPER('det.sal input'!K6) -> ? | L77: Total | M77: ='det.sal input'!M6 -> PF | N77: ='det.sal input'!N6 -> SLI | O77: ='det.sal input'!O6 -> GI | P77: LIC/PLI | Q77: TDS | R77: =UPPER('det.sal input'!R6&"+ "&'det.sal input'!T6) -> ?+ ? | S77: ='det.sal input'!U6 -> (NPS) | T77: ='det.sal input'!W6 -> TOTAL DEDUCTIONS
B78: =IF('det.sal input'!$B$6="pension","April-18","March-18") -> March-18 | D78: ='det.sal input'!C8 -> 0 | E78: ='det.sal input'!D8 -> 0 | F78: ='det.sal input'!F8 -> 0 | G78: ='det.sal input'!G8 -> 0 | H78: ='det.sal input'!H8 -> 0 | I78: ='det.sal input'!I8 -> 0 | J78: ='det.sal input'!J8 -> 0 | K78: ='det.sal input'!K8 -> 0 | L78: ='det.sal input'!L8 -> 0 | M78: ='det.sal input'!M8 -> 0 | N78: ='det.sal input'!N8 -> 0 | O78: ='det.sal input'!O8 -> 0 | P78: ='det.sal input'!P8 -> 0 | Q78: ='det.sal input'!Q8 -> 0 | R78: ='det.sal input'!R8+'det.sal input'!T8 -> 0 | S78: ='det.sal input'!U8 -> 0 | T78: ='det.sal input'!W8 -> 0
B79: =IF('det.sal input'!$B$6="pension","May-17","April") -> April | D79: ='det.sal input'!C9 -> 0 | E79: ='det.sal input'!D9 -> 0 | F79: ='det.sal input'!F9 -> 0 | G79: ='det.sal input'!G9 -> 0 | H79: ='det.sal input'!H9 -> 0 | I79: ='det.sal input'!I9 -> 0 | J79: ='det.sal input'!J9 -> 0 | K79: ='det.sal input'!K9 -> 0 | L79: ='det.sal input'!L9 -> 0 | M79: ='det.sal input'!M9 -> 0 | N79: ='det.sal input'!N9 -> 0 | O79: ='det.sal input'!O9 -> 0 | P79: ='det.sal input'!P9 -> 0 | Q79: ='det.sal input'!Q9 -> 0 | R79: ='det.sal input'!R9+'det.sal input'!T9 -> 0 | S79: ='det.sal input'!U9 -> 0 | T79: ='det.sal input'!W9 -> 0
B80: ='det.sal input'!B10 -> May | D80: ='det.sal input'!C10 -> 0 | E80: ='det.sal input'!D10 -> 0 | F80: ='det.sal input'!F10 -> 0 | G80: ='det.sal input'!G10 -> 0 | H80: ='det.sal input'!H10 -> 0 | I80: ='det.sal input'!I10 -> 0 | J80: ='det.sal input'!J10 -> 0 | K80: ='det.sal input'!K10 -> 0 | L80: ='det.sal input'!L10 -> 0 | M80: ='det.sal input'!M10 -> 0 | N80: ='det.sal input'!N10 -> 0 | O80: ='det.sal input'!O10 -> 0 | P80: ='det.sal input'!P10 -> 0 | Q80: ='det.sal input'!Q10 -> 0 | R80: ='det.sal input'!R10+'det.sal input'!T10 -> 0 | S80: ='det.sal input'!U10 -> 0 | T80: ='det.sal input'!W10 -> 0
B81: ='det.sal input'!B11 -> June | D81: ='det.sal input'!C11 -> 0 | E81: ='det.sal input'!D11 -> 0 | F81: ='det.sal input'!F11 -> 0 | G81: ='det.sal input'!G11 -> 0 | H81: ='det.sal input'!H11 -> 0 | I81: ='det.sal input'!I11 -> 0 | J81: ='det.sal input'!J11 -> 0 | K81: ='det.sal input'!K11 -> 0 | L81: ='det.sal input'!L11 -> 0 | M81: ='det.sal input'!M11 -> 0 | N81: ='det.sal input'!N11 -> 0 | O81: ='det.sal input'!O11 -> 0 | P81: ='det.sal input'!P11 -> 0 | Q81: ='det.sal input'!Q11 -> 0 | R81: ='det.sal input'!R11+'det.sal input'!T11 -> 0 | S81: ='det.sal input'!U11 -> 0 | T81: ='det.sal input'!W11 -> 0
B82: ='det.sal input'!B12 -> July | D82: ='det.sal input'!C12 -> 0 | E82: ='det.sal input'!D12 -> 0 | F82: ='det.sal input'!F12 -> 0 | G82: ='det.sal input'!G12 -> 0 | H82: ='det.sal input'!H12 -> 0 | I82: ='det.sal input'!I12 -> 0 | J82: ='det.sal input'!J12 -> 0 | K82: ='det.sal input'!K12 -> 0 | L82: ='det.sal input'!L12 -> 0 | M82: ='det.sal input'!M12 -> 0 | N82: ='det.sal input'!N12 -> 0 | O82: ='det.sal input'!O12 -> 0 | P82: ='det.sal input'!P12 -> 0 | Q82: ='det.sal input'!Q12 -> 0 | R82: ='det.sal input'!R12+'det.sal input'!T12 -> 0 | S82: ='det.sal input'!U12 -> 0 | T82: ='det.sal input'!W12 -> 0
B83: ='det.sal input'!B13 -> August | D83: ='det.sal input'!C13 -> 0 | E83: ='det.sal input'!D13 -> 0 | F83: ='det.sal input'!F13 -> 0 | G83: ='det.sal input'!G13 -> 0 | H83: ='det.sal input'!H13 -> 0 | I83: ='det.sal input'!I13 -> 0 | J83: ='det.sal input'!J13 -> 0 | K83: ='det.sal input'!K13 -> 0 | L83: ='det.sal input'!L13 -> 0 | M83: ='det.sal input'!M13 -> 0 | N83: ='det.sal input'!N13 -> 0 | O83: ='det.sal input'!O13 -> 0 | P83: ='det.sal input'!P13 -> 0 | Q83: ='det.sal input'!Q13 -> 0 | R83: ='det.sal input'!R13+'det.sal input'!T13 -> 0 | S83: ='det.sal input'!U13 -> 0 | T83: ='det.sal input'!W13 -> 0
B84: ='det.sal input'!B14 -> September | D84: ='det.sal input'!C14 -> 0 | E84: ='det.sal input'!D14 -> 0 | F84: ='det.sal input'!F14 -> 0 | G84: ='det.sal input'!G14 -> 0 | H84: ='det.sal input'!H14 -> 0 | I84: ='det.sal input'!I14 -> 0 | J84: ='det.sal input'!J14 -> 0 | K84: ='det.sal input'!K14 -> 0 | L84: ='det.sal input'!L14 -> 0 | M84: ='det.sal input'!M14 -> 0 | N84: ='det.sal input'!N14 -> 0 | O84: ='det.sal input'!O14 -> 0 | P84: ='det.sal input'!P14 -> 0 | Q84: ='det.sal input'!Q14 -> 0 | R84: ='det.sal input'!R14+'det.sal input'!T14 -> 0 | S84: ='det.sal input'!U14 -> 0 | T84: ='det.sal input'!W14 -> 0
B85: ='det.sal input'!B15 -> October | D85: ='det.sal input'!C15 -> 0 | E85: ='det.sal input'!D15 -> 0 | F85: ='det.sal input'!F15 -> 0 | G85: ='det.sal input'!G15 -> 0 | H85: ='det.sal input'!H15 -> 0 | I85: ='det.sal input'!I15 -> 0 | J85: ='det.sal input'!J15 -> 0 | K85: ='det.sal input'!K15 -> 0 | L85: ='det.sal input'!L15 -> 0 | M85: ='det.sal input'!M15 -> 0 | N85: ='det.sal input'!N15 -> 0 | O85: ='det.sal input'!O15 -> 0 | P85: ='det.sal input'!P15 -> 0 | Q85: ='det.sal input'!Q15 -> 0 | R85: ='det.sal input'!R15+'det.sal input'!T15 -> 0 | S85: ='det.sal input'!U15 -> 0 | T85: ='det.sal input'!W15 -> 0
B86: ='det.sal input'!B16 -> November | D86: ='det.sal input'!C16 -> 0 | E86: ='det.sal input'!D16 -> 0 | F86: ='det.sal input'!F16 -> 0 | G86: ='det.sal input'!G16 -> 0 | H86: ='det.sal input'!H16 -> 0 | I86: ='det.sal input'!I16 -> 0 | J86: ='det.sal input'!J16 -> 0 | K86: ='det.sal input'!K16 -> 0 | L86: ='det.sal input'!L16 -> 0 | M86: ='det.sal input'!M16 -> 0 | N86: ='det.sal input'!N16 -> 0 | O86: ='det.sal input'!O16 -> 0 | P86: ='det.sal input'!P16 -> 0 | Q86: ='det.sal input'!Q16 -> 0 | R86: ='det.sal input'!R16+'det.sal input'!T16 -> 0 | S86: ='det.sal input'!U16 -> 0 | T86: ='det.sal input'!W16 -> 0
B87: ='det.sal input'!B17 -> December | D87: ='det.sal input'!C17 -> 0 | E87: ='det.sal input'!D17 -> 0 | F87: ='det.sal input'!F17 -> 0 | G87: ='det.sal input'!G17 -> 0 | H87: ='det.sal input'!H17 -> 0 | I87: ='det.sal input'!I17 -> 0 | J87: ='det.sal input'!J17 -> 0 | K87: ='det.sal input'!K17 -> 0 | L87: ='det.sal input'!L17 -> 0 | M87: ='det.sal input'!M17 -> 0 | N87: ='det.sal input'!N17 -> 0 | O87: ='det.sal input'!O17 -> 0 | P87: ='det.sal input'!P17 -> 0 | Q87: ='det.sal input'!Q17 -> 0 | R87: ='det.sal input'!R17+'det.sal input'!T17 -> 0 | S87: ='det.sal input'!U17 -> 0 | T87: ='det.sal input'!W17 -> 0
B88: ='det.sal input'!B18 -> Jan- 2024 | D88: ='det.sal input'!C18 -> 0 | E88: ='det.sal input'!D18 -> 0 | F88: ='det.sal input'!F18 -> 0 | G88: ='det.sal input'!G18 -> 0 | H88: ='det.sal input'!H18 -> 0 | I88: ='det.sal input'!I18 -> 0 | J88: ='det.sal input'!J18 -> 0 | K88: ='det.sal input'!K18 -> 0 | L88: ='det.sal input'!L18 -> 0 | M88: ='det.sal input'!M18 -> 0 | N88: ='det.sal input'!N18 -> 0 | O88: ='det.sal input'!O18 -> 0 | P88: ='det.sal input'!P18 -> 0 | Q88: ='det.sal input'!Q18 -> 0 | R88: ='det.sal input'!R18+'det.sal input'!T18 -> 0 | S88: ='det.sal input'!U18 -> 0 | T88: ='det.sal input'!W18 -> 0
B89: ='det.sal input'!B19 -> Feb-2024 | D89: ='det.sal input'!C19 -> 0 | E89: ='det.sal input'!D19 -> 0 | F89: ='det.sal input'!F19 -> 0 | G89: ='det.sal input'!G19 -> 0 | H89: ='det.sal input'!H19 -> 0 | I89: ='det.sal input'!I19 -> 0 | J89: ='det.sal input'!J19 -> 0 | K89: ='det.sal input'!K19 -> 0 | L89: ='det.sal input'!L19 -> 0 | M89: ='det.sal input'!M19 -> 0 | N89: ='det.sal input'!N19 -> 0 | O89: ='det.sal input'!O19 -> 0 | P89: ='det.sal input'!P19 -> 0 | Q89: ='det.sal input'!Q19+R69 -> 0 | R89: ='det.sal input'!R19+'det.sal input'!T19 -> 0 | S89: ='det.sal input'!U19 -> 0 | T89: =SUM(M89:S89) -> 0
B90: Fest. All | D90: ='det.sal input'!C20 -> 0 | L90: ='det.sal input'!L20 -> 0
B91: Arrear | C91: PF | D91: ='det.sal input'!C21 -> 0 | E91: ='det.sal input'!D21 -> 0 | F91: ='det.sal input'!F21 -> 0 | G91: ='det.sal input'!G21 -> 0 | H91: ='det.sal input'!H21 -> 0 | I91: ='det.sal input'!I21 -> 0 | J91: ='det.sal input'!J21 -> 0 | K91: ='det.sal input'!K21 -> 0 | L91: ='det.sal input'!L21 -> 0 | M91: ='det.sal input'!M21 -> 0 | N91: ='det.sal input'!N21 -> 0 | O91: ='det.sal input'!O21 -> 0 | P91: ='det.sal input'!P21 -> 0 | Q91: ='det.sal input'!Q21 -> 0 | R91: ='det.sal input'!R21+'det.sal input'!T21 -> 0 | S91: ='det.sal input'!U21 -> 0 | T91: ='det.sal input'!W21 -> 0
C92: CASH/NPS | D92: ='det.sal input'!C22 -> 0 | E92: ='det.sal input'!D22 -> 0 | F92: ='det.sal input'!F22 -> 0 | G92: ='det.sal input'!G22 -> 0 | H92: ='det.sal input'!H22 -> 0 | I92: ='det.sal input'!I22 -> 0 | J92: ='det.sal input'!J22 -> 0 | K92: ='det.sal input'!K22 -> 0 | L92: ='det.sal input'!L22 -> 0 | M92: ='det.sal input'!M22 -> 0 | N92: ='det.sal input'!N22 -> 0 | O92: ='det.sal input'!O22 -> 0 | P92: ='det.sal input'!P22 -> 0 | Q92: ='det.sal input'!Q22 -> 0 | R92: ='det.sal input'!R22+'det.sal input'!T22 -> 0 | S92: ='det.sal input'!U22 -> 0 | T92: ='det.sal input'!W22 -> 0
B93: Leave surrender | D93: ='det.sal input'!C23 -> 0 | E93: ='det.sal input'!D23 -> 0 | F93: ='det.sal input'!F23 -> 0 | G93: ='det.sal input'!G23 -> 0 | H93: ='det.sal input'!H23 -> 0 | I93: ='det.sal input'!I23 -> 0 | J93: ='det.sal input'!J23 -> 0 | K93: ='det.sal input'!K23 -> 0 | L93: ='det.sal input'!L23 -> 0 | M93: ='det.sal input'!M23 -> 0 | N93: ='det.sal input'!N23 -> 0 | O93: ='det.sal input'!O23 -> 0 | P93: ='det.sal input'!P23 -> 0 | Q93: ='det.sal input'!Q23 -> 0 | R93: ='det.sal input'!R23+'det.sal input'!T23 -> 0 | S93: ='det.sal input'!U23 -> 0 | T93: ='det.sal input'!W23 -> 0
B94: ='det.sal input'!B25 -> Deferred salary received total | D94: ='det.sal input'!C24 -> 0 | E94: ='det.sal input'!D24 -> 0 | F94: ='det.sal input'!F24 -> 0 | G94: ='det.sal input'!G24 -> 0 | H94: ='det.sal input'!H24 -> 0 | I94: ='det.sal input'!I24 -> 0 | J94: ='det.sal input'!J24 -> 0 | K94: ='det.sal input'!K24 -> 0 | L94: ='det.sal input'!L24 -> 0 | M94: ='det.sal input'!M24 -> 0 | N94: ='det.sal input'!N24 -> 0 | O94: ='det.sal input'!O24 -> 0 | P94: ='det.sal input'!P24 -> 0 | Q94: ='det.sal input'!Q24 -> 0 | R94: ='det.sal input'!R24+'det.sal input'!T24 -> 0 | S94: ='det.sal input'!U24 -> 0 | T94: ='det.sal input'!W24 -> 0
B95: Total | D95: ='det.sal input'!C26 -> 0 | E95: ='det.sal input'!D26 -> 0 | F95: ='det.sal input'!F26 -> 0 | G95: ='det.sal input'!G26 -> 0 | H95: ='det.sal input'!H26 -> 0 | I95: ='det.sal input'!I26 -> 0 | J95: ='det.sal input'!J26 -> 0 | K95: ='det.sal input'!K26 -> 0 | L95: ='det.sal input'!L26 -> 0 | M95: ='det.sal input'!M26 -> 0 | N95: ='det.sal input'!N26 -> 0 | O95: ='det.sal input'!O26 -> 0 | P95: ='det.sal input'!P26 -> 0 | Q95: =SUM(Q78:Q88) -> 0 | R95: ='det.sal input'!R26+'det.sal input'!T26 -> 0 | S95: ='det.sal input'!U26 -> 0 | T95: =SUM(T78:T94)-Q89 -> 0
D97: =IF(#REF!<0,"Refund of salary","Other receipts from office") ->  | R97: =ROUND(U68,-1) -> 0
AC221: Male | AD221: =IF(AND(R58>200000,R58<=500000),(R58-200000)*0.1,IF(AND(R58>500000,R58<=1000000),30000+(R58-500000)*0.2,IF(R58>1000000,130000+(R58-1000000)*0.3,"Nil"))) -> Nil
AC222: Female | AD222: =IF(AND(R58>200000,R58<=500000),(R58-200000)*0.1,IF(AND(R58>500000,R58<=1000000),30000+(R58-500000)*0.2,IF(R58>1000000,130000+(R58-1000000)*0.3,"Nil"))) -> Nil
AC223: Senior | AD223: =IF(AND(R58>250000,R58<=500000),(R58-250000)*0.1,IF(AND(R58>500000,R58<=1000000),25000+(R58-500000)*0.2,IF(R58>1000000,125000+(R58-1000000)*0.3,"Nil"))) -> Nil
AC224: Senior2 | AD224: =IF(AND(R58>500000,R58<=1000000),(R58-500000)*0.2,IF(R58>1000000,100000+(R58-1000000)*0.3,"Nil")) -> Nil
AC228: =IF(O30<>"Nil","Life Insurance Premum","") -> Life Insurance Premum | AD228: =IF(O30<>"Nil",O30,"") -> 0 | AE228: =IF(ROW()-ROW(two)+1>ROWS(one)-COUNTBLANK(one),"",INDIRECT(ADDRESS(SMALL((IF(one<>"",ROW(one),ROW()+ROWS(one))),ROW()-ROW(two)+1),COLUMN(one),4))) ->  | AF228: =IF(AE228<>"",VLOOKUP(AE228,AC228:AD241,2,FALSE),"") -> 
AC229: =IF(#REF!<>"Nil","Purchase of NSC","") ->  | AD229: =IF(#REF!<>"Nil",#REF!,"") ->  | AE229: =IF(ROW()-ROW(two)+1>ROWS(one)-COUNTBLANK(one),"",INDIRECT(ADDRESS(SMALL((IF(one<>"",ROW(one),ROW()+ROWS(one))),ROW()-ROW(two)+1),COLUMN(one),4))) ->  | AF229: =IF(AE229<>"",VLOOKUP(AE229,AC229:AD244,2,FALSE),"") -> 
AC230: =IF(O32<>"Nil","State Life Insurance (SLI)","") -> State Life Insurance (SLI) | AD230: =IF(O32<>"Nil",O32,"") -> 0 | AE230: =IF(ROW()-ROW(two)+1>ROWS(one)-COUNTBLANK(one),"",INDIRECT(ADDRESS(SMALL((IF(one<>"",ROW(one),ROW()+ROWS(one))),ROW()-ROW(two)+1),COLUMN(one),4))) ->  | AF230: =IF(AE230<>"",VLOOKUP(AE230,AC230:AD245,2,FALSE),"") -> 
AC231: =IF(O33<>"Nil","Group Insurance Scheme (GIS)","") -> Group Insurance Scheme (GIS) | AD231: =IF(O33<>"Nil",O33,"") -> 0 | AE231: =IF(ROW()-ROW(two)+1>ROWS(one)-COUNTBLANK(one),"",INDIRECT(ADDRESS(SMALL((IF(one<>"",ROW(one),ROW()+ROWS(one))),ROW()-ROW(two)+1),COLUMN(one),4))) ->  | AF231: =IF(AE231<>"",VLOOKUP(AE231,AC231:AD246,2,FALSE),"") -> 
AC232: =IF(#REF!<>"Nil","Group Personal Accident Insurance (GPAIS)","") ->  | AD232: =IF(#REF!<>"Nil",#REF!,"") ->  | AE232: =IF(ROW()-ROW(two)+1>ROWS(one)-COUNTBLANK(one),"",INDIRECT(ADDRESS(SMALL((IF(one<>"",ROW(one),ROW()+ROWS(one))),ROW()-ROW(two)+1),COLUMN(one),4))) ->  | AF232: =IF(AE232<>"",VLOOKUP(AE232,AC232:AD247,2,FALSE),"") -> 
AC233: =IF(O34<>"Nil",D34,"") -> Life Insurence salary deduction | AD233: =IF(O34<>"Nil",O34,"") -> 0 | AE233: =IF(ROW()-ROW(two)+1>ROWS(one)-COUNTBLANK(one),"",INDIRECT(ADDRESS(SMALL((IF(one<>"",ROW(one),ROW()+ROWS(one))),ROW()-ROW(two)+1),COLUMN(one),4))) ->  | AF233: =IF(AE233<>"",VLOOKUP(AE233,AC233:AD248,2,FALSE),"") -> 
AC234: =IF(O35<>"Nil","Provident Fund","") -> Provident Fund | AD234: =IF(O35<>"Nil",O35,"") -> 0 | AE234: =IF(ROW()-ROW(two)+1>ROWS(one)-COUNTBLANK(one),"",INDIRECT(ADDRESS(SMALL((IF(one<>"",ROW(one),ROW()+ROWS(one))),ROW()-ROW(two)+1),COLUMN(one),4))) ->  | AF234: =IF(AE234<>"",VLOOKUP(AE234,AC234:AD248,2,FALSE),"") -> 
AC235: =IF(O38<>"Nil","Unit Linked Insurance","") -> Unit Linked Insurance | AD235: =IF(O38<>"Nil",O38,"") -> 0 | AE235: =IF(ROW()-ROW(two)+1>ROWS(one)-COUNTBLANK(one),"",INDIRECT(ADDRESS(SMALL((IF(one<>"",ROW(one),ROW()+ROWS(one))),ROW()-ROW(two)+1),COLUMN(one),4))) ->  | AF235: =IF(AE235<>"",VLOOKUP(AE235,AC235:AD249,2,FALSE),"") -> 
AC236: =IF(#REF!<>"Nil","Tax Saving Mutual Fund","") ->  | AD236: =IF(#REF!<>"Nil",#REF!,"") ->  | AE236: =IF(ROW()-ROW(two)+1>ROWS(one)-COUNTBLANK(one),"",INDIRECT(ADDRESS(SMALL((IF(one<>"",ROW(one),ROW()+ROWS(one))),ROW()-ROW(two)+1),COLUMN(one),4))) ->  | AF236: =IF(AE236<>"",VLOOKUP(AE236,AC236:AD250,2,FALSE),"") -> 
AC237: =IF(O40<>"Nil","Tuition Fees","") -> Tuition Fees | AD237: =IF(O40<>"Nil",O40,"") -> 0 | AE237: =IF(ROW()-ROW(two)+1>ROWS(one)-COUNTBLANK(one),"",INDIRECT(ADDRESS(SMALL((IF(one<>"",ROW(one),ROW()+ROWS(one))),ROW()-ROW(two)+1),COLUMN(one),4))) ->  | AF237: =IF(AE237<>"",VLOOKUP(AE237,AC236:AD251,2,FALSE),"") -> 
AC238: =IF(O41<>"Nil","Housing Loan Repayment","") -> Housing Loan Repayment | AD238: =IF(O41<>"Nil",O41,"") -> 0 | AE238: =IF(ROW()-ROW(two)+1>ROWS(one)-COUNTBLANK(one),"",INDIRECT(ADDRESS(SMALL((IF(one<>"",ROW(one),ROW()+ROWS(one))),ROW()-ROW(two)+1),COLUMN(one),4))) ->  | AF238: =IF(AE238<>"",VLOOKUP(AE238,AC237:AD251,2,FALSE),"") -> 
AC239: =IF(#REF!<>"Nil","Eligibleshares & debentures","") ->  | AD239: =IF(#REF!<>"Nil",#REF!,"") ->  | AE239: =IF(ROW()-ROW(two)+1>ROWS(one)-COUNTBLANK(one),"",INDIRECT(ADDRESS(SMALL((IF(one<>"",ROW(one),ROW()+ROWS(one))),ROW()-ROW(two)+1),COLUMN(one),4))) ->  | AF239: =IF(AE239<>"",VLOOKUP(AE239,AC237:AD251,2,FALSE),"") -> 
AC240: =IF(#REF!<>"Nil","Mutual Fund","") ->  | AD240: =IF(#REF!<>"Nil",#REF!,"") ->  | AE240: =IF(ROW()-ROW(two)+1>ROWS(one)-COUNTBLANK(one),"",INDIRECT(ADDRESS(SMALL((IF(one<>"",ROW(one),ROW()+ROWS(one))),ROW()-ROW(two)+1),COLUMN(one),4))) ->  | AF240: =IF(AE240<>"",VLOOKUP(AE240,AC238:AD251,2,FALSE),"") -> 
AC241: =IF(#REF!<>"Nil",#REF!,"") ->  | AD241: =IF(#REF!<>"Nil",#REF!,"") ->  | AE241: =IF(ROW()-ROW(two)+1>ROWS(one)-COUNTBLANK(one),"",INDIRECT(ADDRESS(SMALL((IF(one<>"",ROW(one),ROW()+ROWS(one))),ROW()-ROW(two)+1),COLUMN(one),4))) ->  | AF241: =IF(AE241<>"",VLOOKUP(AE241,AC239:AD251,2,FALSE),"") -> 
AE242: =IF(ROW()-ROW(two)+1>ROWS(one)-COUNTBLANK(one),"",INDIRECT(ADDRESS(SMALL((IF(one<>"",ROW(one),ROW()+ROWS(one))),ROW()-ROW(two)+1),COLUMN(one),4))) ->  | AF242: =IF(AE242<>"",VLOOKUP(AE242,AC240:AD251,2,FALSE),"") -> 
AE243: =IF(ROW()-ROW(two)+1>ROWS(one)-COUNTBLANK(one),"",INDIRECT(ADDRESS(SMALL((IF(one<>"",ROW(one),ROW()+ROWS(one))),ROW()-ROW(two)+1),COLUMN(one),4))) ->  | AF243: =IF(AE243<>"",VLOOKUP(AE243,AC241:AD252,2,FALSE),"") -> 
AC246: =IF(ANTICIPATORY!O49<>"Nil","Mediclaim Policies (Sec 80D)","") -> Mediclaim Policies (Sec 80D) | AD246: =IF(AC246<>"",O49,"") -> 0 | AE246: =IF(ROW()-ROW(four)+1>ROWS(three)-COUNTBLANK(three),"",INDIRECT(ADDRESS(SMALL((IF(three<>"",ROW(three),ROW()+ROWS(three))),ROW()-ROW(four)+1),COLUMN(three),4))) ->  | AF246: =IF(ROW()-ROW(fouramt)+1>ROWS(threeamt)-COUNTBLANK(threeamt),"",INDIRECT(ADDRESS(SMALL((IF(threeamt<>"",ROW(threeamt),ROW()+ROWS(threeamt))),ROW()-ROW(fouramt)+1),COLUMN(threeamt),4))) -> 
AC247: =IF(ANTICIPATORY!O50<>"Nil","Medical Treatment Mentally or Physically handicapped (Sec-80DD)","") -> Medical Treatment Mentally or Physically handicapped (Sec-80DD) | AD247: =IF(AC247<>"",O50,"") -> 0 | AE247: =IF(ROW()-ROW(four)+1>ROWS(three)-COUNTBLANK(three),"",INDIRECT(ADDRESS(SMALL((IF(three<>"",ROW(three),ROW()+ROWS(three))),ROW()-ROW(four)+1),COLUMN(three),4))) ->  | AF247: =IF(ROW()-ROW(fouramt)+1>ROWS(threeamt)-COUNTBLANK(threeamt),"",INDIRECT(ADDRESS(SMALL((IF(threeamt<>"",ROW(threeamt),ROW()+ROWS(threeamt))),ROW()-ROW(fouramt)+1),COLUMN(threeamt),4))) -> 
AC248: =IF(ANTICIPATORY!#REF!<>"Nil","Expenditure on Medical Treatment(Sec-80DDB)","") ->  | AD248: =IF(AC248<>"",#REF!,"") ->  | AE248: =IF(ROW()-ROW(four)+1>ROWS(three)-COUNTBLANK(three),"",INDIRECT(ADDRESS(SMALL((IF(three<>"",ROW(three),ROW()+ROWS(three))),ROW()-ROW(four)+1),COLUMN(three),4))) ->  | AF248: =IF(ROW()-ROW(fouramt)+1>ROWS(threeamt)-COUNTBLANK(threeamt),"",INDIRECT(ADDRESS(SMALL((IF(threeamt<>"",ROW(threeamt),ROW()+ROWS(threeamt))),ROW()-ROW(fouramt)+1),COLUMN(threeamt),4))) -> 
AC249: =IF(ANTICIPATORY!O52<>"Nil","Interest on Educational Loan (Sec-80 E)","") -> Interest on Educational Loan (Sec-80 E) | AD249: =IF(AC249<>"",O52,"") -> 0 | AE249: =IF(ROW()-ROW(four)+1>ROWS(three)-COUNTBLANK(three),"",INDIRECT(ADDRESS(SMALL((IF(three<>"",ROW(three),ROW()+ROWS(three))),ROW()-ROW(four)+1),COLUMN(three),4))) ->  | AF249: =IF(ROW()-ROW(fouramt)+1>ROWS(threeamt)-COUNTBLANK(threeamt),"",INDIRECT(ADDRESS(SMALL((IF(threeamt<>"",ROW(threeamt),ROW()+ROWS(threeamt))),ROW()-ROW(fouramt)+1),COLUMN(threeamt),4))) -> 
AC250: =IF(ANTICIPATORY!O54<>"Nil","Donation to Charitable Institutions (Sec-80 G)","") -> Donation to Charitable Institutions (Sec-80 G) | AD250: =IF(AC250<>"",O54,"") -> 0 | AE250: =IF(ROW()-ROW(four)+1>ROWS(three)-COUNTBLANK(three),"",INDIRECT(ADDRESS(SMALL((IF(three<>"",ROW(three),ROW()+ROWS(three))),ROW()-ROW(four)+1),COLUMN(three),4))) ->  | AF250: =IF(ROW()-ROW(fouramt)+1>ROWS(threeamt)-COUNTBLANK(threeamt),"",INDIRECT(ADDRESS(SMALL((IF(threeamt<>"",ROW(threeamt),ROW()+ROWS(threeamt))),ROW()-ROW(fouramt)+1),COLUMN(threeamt),4))) -> 
AC251: =IF(ANTICIPATORY!#REF!<>"Nil","Contribution to Political Parties (Sec-80 GGC)","") ->  | AD251: =IF(AC251<>"",#REF!,"") ->  | AE251: =IF(ROW()-ROW(four)+1>ROWS(three)-COUNTBLANK(three),"",INDIRECT(ADDRESS(SMALL((IF(three<>"",ROW(three),ROW()+ROWS(three))),ROW()-ROW(four)+1),COLUMN(three),4))) ->  | AF251: =IF(ROW()-ROW(fouramt)+1>ROWS(threeamt)-COUNTBLANK(threeamt),"",INDIRECT(ADDRESS(SMALL((IF(threeamt<>"",ROW(threeamt),ROW()+ROWS(threeamt))),ROW()-ROW(fouramt)+1),COLUMN(threeamt),4))) -> 
AC252: =IF(ANTICIPATORY!O55<>"Nil","Deduction for Handicapped Employees (u/s 80U)","") -> Deduction for Handicapped Employees (u/s 80U) | AD252: =IF(AC252<>"",O55,"") -> 0 | AE252: =IF(ROW()-ROW(four)+1>ROWS(three)-COUNTBLANK(three),"",INDIRECT(ADDRESS(SMALL((IF(three<>"",ROW(three),ROW()+ROWS(three))),ROW()-ROW(four)+1),COLUMN(three),4))) ->  | AF252: =IF(ROW()-ROW(fouramt)+1>ROWS(threeamt)-COUNTBLANK(threeamt),"",INDIRECT(ADDRESS(SMALL((IF(threeamt<>"",ROW(threeamt),ROW()+ROWS(threeamt))),ROW()-ROW(fouramt)+1),COLUMN(threeamt),4))) -> 
AC254: =IF(ISNUMBER(#REF!),"Income From House Property","") ->  | AD254: =IF(AC254<>"",#REF!,"") ->  | AE254: =IF(ROW()-ROW(six)+1>ROWS(five)-COUNTBLANK(five),"",INDIRECT(ADDRESS(SMALL((IF(five<>"",ROW(five),ROW()+ROWS(five))),ROW()-ROW(six)+1),COLUMN(five),4))) ->  | AF254: =IF(ROW()-ROW(sixamt)+1>ROWS(fiveamt)-COUNTBLANK(fiveamt),"",INDIRECT(ADDRESS(SMALL((IF(fiveamt<>"",ROW(fiveamt),ROW()+ROWS(fiveamt))),ROW()-ROW(sixamt)+1),COLUMN(fiveamt),4))) -> 
AC255: =IF(#REF!>0,#REF!,"") ->  | AD255: =IF(AC255<>"",#REF!,"") ->  | AE255: =IF(ROW()-ROW(six)+1>ROWS(five)-COUNTBLANK(five),"",INDIRECT(ADDRESS(SMALL((IF(five<>"",ROW(five),ROW()+ROWS(five))),ROW()-ROW(six)+1),COLUMN(five),4))) ->  | AF255: =IF(ROW()-ROW(sixamt)+1>ROWS(fiveamt)-COUNTBLANK(fiveamt),"",INDIRECT(ADDRESS(SMALL((IF(fiveamt<>"",ROW(fiveamt),ROW()+ROWS(fiveamt))),ROW()-ROW(sixamt)+1),COLUMN(fiveamt),4))) -> 
AC256: =IF(#REF!>0,#REF!,"") ->  | AD256: =IF(AC256<>"",#REF!,"") ->  | AE256: =IF(ROW()-ROW(six)+1>ROWS(five)-COUNTBLANK(five),"",INDIRECT(ADDRESS(SMALL((IF(five<>"",ROW(five),ROW()+ROWS(five))),ROW()-ROW(six)+1),COLUMN(five),4))) ->  | AF256: =IF(ROW()-ROW(sixamt)+1>ROWS(fiveamt)-COUNTBLANK(fiveamt),"",INDIRECT(ADDRESS(SMALL((IF(fiveamt<>"",ROW(fiveamt),ROW()+ROWS(fiveamt))),ROW()-ROW(sixamt)+1),COLUMN(fiveamt),4))) -> 
AC257: =IF(#REF!>0,#REF!,"") ->  | AD257: =IF(AC257<>"",#REF!,"") ->  | AE257: =IF(ROW()-ROW(six)+1>ROWS(five)-COUNTBLANK(five),"",INDIRECT(ADDRESS(SMALL((IF(five<>"",ROW(five),ROW()+ROWS(five))),ROW()-ROW(six)+1),COLUMN(five),4))) ->  | AF257: =IF(ROW()-ROW(sixamt)+1>ROWS(fiveamt)-COUNTBLANK(fiveamt),"",INDIRECT(ADDRESS(SMALL((IF(fiveamt<>"",ROW(fiveamt),ROW()+ROWS(fiveamt))),ROW()-ROW(sixamt)+1),COLUMN(fiveamt),4))) -> 
AC260: =IF(AND(R65<>"Nil",R66<>"Nil"),R65-R66,IF(AND(R65>0,R66="Nil"),R65,IF(AND(R66>0,R65="Nil"),(0-R66),"Nil"))) -> 0

Sheet help
B2: In order to functions this programme properly, the following 10 initial steps are required. For that note the points in a paper and follow directions. ചുവടെ കാണുന്ന ലളിതമായ 10 നടപടികള്‍ ഒരിക്കല്‍ മാത്രം പൂര്‍ത്തീകരിച്ചാല്‍ മാത്രമേ ഈ പ്രോഗ്രാം പ്രവര്‍ത്തിക്കൂ. ഈ വരികള്‍ സ്ക്രീനില്‍ വായിക്കുന്നതോടൊപ്പം അത് ചെയ്യുക പ്രായോഗികമല്ല അതിനാല്‍ ഒരു കടലാസില്‍ കുറിച്ചെടുത്തു കടലാസ് പരിശോധിച്ച് ചെയ്യുകയാണ് വേണ്ടത്
B5: MS Office - 2007 or higher versions | C5: For Excel 2007 versions എക്സല്‍ 2007 പതിപ്പിന് | K5: For Excel 2010 versions എക്സല്‍ 2010 പതിപ്പിന്
B7: 1 | C7: Click the button (office button) on left top corner of screen (എക്സല്‍ 2007 പതിപ്പില്‍ ഇടതു മുകള്‍ ഭാഗത്ത് കാണുന്ന ബട്ടന്‍ ക്ലിക്ക് ) | J7: 1 | K7: Click the green FILE button on left top corner of screen (എക്സല്‍ 2010 പതിപ്പില്‍ ഇടതു മുകള്‍ ഭാഗത്ത് കാണുന്ന പച്ച FILE ബട്ടന്‍ ക്ലിക്ക് )
I9: ഇത് മാതൃകാ ചിത്രമാണ് ക്ലിക്ക് ചെയ്യേണ്ടത് ഇവിടെയല്ല
J36: 2 | K36: Click options button (തുടര്‍ന്ന് ചുവടെ കാണുന്ന options button ക്ലിക്ക് ചെയ്യുക )
B38: 2 | C38: Click 'Excel Options' button (ചുവടെ കാണുന്ന Excel Options ബട്ടന്‍ ക്ലിക്ക്)
B41: 3 | C41: Click on 'Trust Centre' in the next view (അടുത്ത ദൃശ്യത്തില്‍ കാണുന്ന Trust Centre ബട്ടണില്‍ ക്ലിക്ക് )
B65: 4 | C65: Click 'Trust Centre Settings' in the same view (അതെ ദൃശ്യത്തില്‍ കാണുന്ന Trust Centre Settings ല്‍ ക്ലിക്ക്
B68: 5 | C68: Click on 'Macro Settings' in the next view (അടുത്ത ദൃശ്യത്തില്‍ കാണുന്ന Macro Settings ല്‍ ക്ലിക്ക് )
B70: 6 | C70: Then Tick the 4th option- Eanbale all macros not reco…(നാലാം ഓപ്ഷന്‍ ആയ Eanbale all macros not reco.. ക്ലിക്ക് ചെയ്യുക )
B103: 7 | C103: Then Click 'OK' Button in the same field (അതെ ദൃശ്യത്തില്‍ ചുവടെ കാണുന്ന OK ബട്ടണില്‍ ക്ലിക്ക് )
B104: 8 | C104: Click OK button again in next view ( വീണ്ടും OK ബട്ടന്‍ കാണുന്ന പക്ഷം അതും ക്ലിക്ക് )
B107: 9 | C107: Then close the flle NEVER SAVE, and reopen the file (തുടര്‍ന്ന് ഫയല്‍ ക്ലോസ് ചെയ്യുക. സേവ് ചെയ്യണോ എന്ന ചോദ്യത്തിന് NO എന്ന് നല്‍കുക)
C108: അതായത് ഒരിക്കലും മേല്‍ പറഞ്ഞ നടപടികള്‍ക്ക് ശേഷം ഫയല്‍ സേവ് ചെയ്യരുത്, പക്ഷെ നിര്‍ബന്ധമായും ക്ലോസ് ചെയ്യണം എന്നര്‍ത്ഥം
B110: 10 | C110: Reopen the CLOSED file, Now the start button will function ( അതെ ഫയല്‍ വീണ്ടും തുറക്കുക, ഇപ്പോള്‍ അത് പ്രവര്ത്തനക്ഷമ മായിരിക്കും )
B114: For assistance Mob : 9947009559 | F114: T download video help file click on these lines

Sheet det.sal input
B1: Page 3 | W1: SCROLL MOUSE TO SEE NEXT BUTTON | Z1: CONTINUE BUTTON കാണാന്‍ mouse സ്ക്രോള്‍ ചെയ്യുക
B2: പൊതുവേ ഉണ്ടാകുന്ന സംശയങ്ങള്‍ ക്രമനമ്പര്‍ 28 നു താഴെ, ഏറ്റവും ചുവടെയുള്ള കുറിപ്പ് വായിച്ച് പരിഹരിക്കാം | AD2: PENSION
B3: എല്ലാ വിധ Arrear തുകകളും ക്രമനമ്പര്‍ 14,15 എന്നിവക്ക് നേരെ മാത്രം നല്‍കുക, സാധാരണ മാസ വേതനത്തോടൊപ്പം ചേര്‍ക്കരുത്. Type Deferred salary in 17 A column only | AD3: SALARY
B4: =" SALARY DETAILS AND OFFICE DEDUCTIONS FOR 2023-24 OF "& PERSONAL!H4 -> SALARY DETAILS AND OFFICE DEDUCTIONS FOR 2023-24 OF
B5: SALARY / PENSION DETAILS ( received/ expected during 1-4-2023 to 31-3-2024) | M5: DEDUCTIONS FROM SALARY(80C, 80CCD,80G ), TDS & Medisep
B6: =PERSONAL!H10 -> SALARY | C6: BASIC PAY / GROSS PENSION | E6: DA% | F6: DA | G6: HRA | H6: ? | I6: ? | J6: ? | K6: ? | L6: TOTAL | M6: PF | N6: SLI | O6: GI | P6: LIC-PLI SALARY DEDUCTION ONLY | Q6: Income tax TDS | R6: ? | S6: Donation - Office deduction only 80 G | T6: ? | U6: (NPS) | V6: MEDISEP (S-80 D) | W6: TOTAL DEDUCTIONS
A7: Serial No | B7: =IF(B6="SALARY","Are you Pensioner ? Go back and edit personal details ","If you are not a Pensioner, Go back and edit personal details") -> Are you Pensioner ? Go back and edit personal details | D7: AGP
A8: 1 | B8: =IF($B$6="salary","For the month March 2023, received in April","April- 2023") -> For the month March 2023, received in April | E8: =IF($B$6="PENSION",0,'DA ALTER'!E7) -> 0.07 | F8: =IF($B$6="pension",0,'DA ALTER'!F7) -> 0 | G8: =IF('det.sal input'!C8=0,0,IF('DA ALTER'!I7=0,'DA ALTER'!H7,'DA ALTER'!I7)) -> 0 | L8: =C8+D8+F8+G8+H8+I8+J8+K8 -> 0 | W8: =SUM(M8:V8) -> 0
A9: 2 | B9: =IF($B$6="salary","April 2023","May ") -> April 2023 | C9: =C8 -> 0 | D9: =D8 -> 0 | E9: =IF($B$6="PENSION",0,'DA ALTER'!E8) -> 0.07 | F9: =IF($B$6="pension",0,'DA ALTER'!F8) -> 0 | G9: =IF('det.sal input'!C9=0,0,IF('DA ALTER'!I8=0,'DA ALTER'!H8,'DA ALTER'!I8)) -> 0 | H9: =H8 -> 0 | I9: =I8 -> 0 | J9: =J8 -> 0 | K9: =K8 -> 0 | L9: 0 | M9: =M8 -> 0 | N9: =N8 -> 0 | O9: =O8 -> 0 | P9: =P8 -> 0 | Q9: =Q8 -> 0 | R9: =R8 -> 0 | S9: =S8 -> 0 | T9: =T8 -> 0 | U9: =U8 -> 0 | V9: =V8 -> 0 | W9: 0
A10: 3 | B10: =IF($B$6="salary","May","June ") -> May | C10: 0 | D10: 0 | E10: =IF($B$6="PENSION",0,'DA ALTER'!E9) -> 0.07 | F10: =IF($B$6="pension",0,'DA ALTER'!F9) -> 0 | G10: =IF('det.sal input'!C10=0,0,IF('DA ALTER'!I9=0,'DA ALTER'!H9,'DA ALTER'!I9)) -> 0 | H10: 0 | I10: 0 | J10: 0 | K10: 0 | L10: 0 | M10: 0 | N10: 0 | O10: 0 | P10: 0 | Q10: 0 | R10: 0 | S10: 0 | T10: 0 | U10: 0 | V10: 0 | W10: 0
A11: 4 | B11: =IF($B$6="salary","June","July ") -> June | C11: 0 | D11: 0 | E11: =IF($B$6="PENSION",0,'DA ALTER'!E10) -> 0.07 | F11: =IF($B$6="pension",0,'DA ALTER'!F10) -> 0 | G11: =IF('det.sal input'!C11=0,0,IF('DA ALTER'!I10=0,'DA ALTER'!H10,'DA ALTER'!I10)) -> 0 | H11: 0 | I11: 0 | J11: 0 | K11: 0 | L11: 0 | M11: 0 | N11: 0 | O11: 0 | P11: 0 | Q11: 0 | R11: 0 | S11: 0 | T11: 0 | U11: 0 | V11: 0 | W11: 0
A12: 5 | B12: =IF($B$6="salary","July","August ") -> July | C12: 0 | D12: 0 | E12: =IF($B$6="PENSION",0,'DA ALTER'!E11) -> 0.07 | F12: =IF($B$6="pension",0,'DA ALTER'!F11) -> 0 | G12: =IF('det.sal input'!C12=0,0,IF('DA ALTER'!I11=0,'DA ALTER'!H11,'DA ALTER'!I11)) -> 0 | H12: 0 | I12: 0 | J12: 0 | K12: 0 | L12: 0 | M12: 0 | N12: 0 | O12: 0 | P12: 0 | Q12: 0 | R12: 0 | S12: 0 | T12: 0 | U12: 0 | V12: 0 | W12: 0
A13: 6 | B13: =IF($B$6="salary","August","September") -> August | C13: 0 | D13: 0 | E13: =IF($B$6="PENSION",0,'DA ALTER'!E12) -> 0.07 | F13: =IF($B$6="pension",0,'DA ALTER'!F12) -> 0 | G13: =IF('det.sal input'!C13=0,0,IF('DA ALTER'!I12=0,'DA ALTER'!H12,'DA ALTER'!I12)) -> 0 | H13: 0 | I13: 0 | J13: 0 | K13: 0 | L13: 0 | M13: 0 | N13: 0 | O13: 0 | P13: 0 | Q13: 0 | R13: 0 | S13: 0 | T13: 0 | U13: 0 | V13: 0 | W13: 0
A14: 7 | B14: =IF($B$6="salary","September","October ") -> September | C14: 0 | D14: 0 | E14: =IF($B$6="PENSION",0,'DA ALTER'!E13) -> 0.07 | F14: =IF($B$6="pension",0,'DA ALTER'!F13) -> 0 | G14: =IF('det.sal input'!C14=0,0,IF('DA ALTER'!I13=0,'DA ALTER'!H13,'DA ALTER'!I13)) -> 0 | H14: 0 | I14: 0 | J14: 0 | K14: 0 | L14: 0 | M14: 0 | N14: 0 | O14: 0 | P14: 0 | Q14: 0 | R14: 0 | S14: 0 | T14: 0 | U14: 0 | V14: 0 | W14: 0
A15: 8 | B15: =IF($B$6="salary","October","November") -> October | C15: 0 | D15: 0 | E15: =IF($B$6="PENSION",0,'DA ALTER'!E14) -> 0.07 | F15: =IF($B$6="pension",0,'DA ALTER'!F14) -> 0 | G15: =IF('det.sal input'!C15=0,0,IF('DA ALTER'!I14=0,'DA ALTER'!H14,'DA ALTER'!I14)) -> 0 | H15: 0 | I15: 0 | J15: 0 | K15: 0 | L15: 0 | M15: 0 | N15: 0 | O15: 0 | P15: 0 | Q15: 0 | R15: 0 | S15: 0 | T15: 0 | U15: 0 | V15: 0 | W15: 0
A16: 9 | B16: =IF($B$6="salary","November","December") -> November | C16: 0 | D16: 0 | E16: =IF($B$6="PENSION",0,'DA ALTER'!E15) -> 0.07 | F16: =IF($B$6="pension",0,'DA ALTER'!F15) -> 0 | G16: =IF('det.sal input'!C16=0,0,IF('DA ALTER'!I15=0,'DA ALTER'!H15,'DA ALTER'!I15)) -> 0 | H16: 0 | I16: 0 | J16: 0 | K16: 0 | L16: 0 | M16: 0 | N16: 0 | O16: 0 | P16: 0 | Q16: 0 | R16: 0 | S16: 0 | T16: 0 | U16: 0 | V16: 0 | W16: 0
A17: 10 | B17: =IF($B$6="salary","December","Jan-2024") -> December | C17: 0 | D17: 0 | E17: =IF($B$6="PENSION",0,'DA ALTER'!E16) -> 0.07 | F17: =IF($B$6="pension",0,'DA ALTER'!F16) -> 0 | G17: =IF('det.sal input'!C17=0,0,IF('DA ALTER'!I16=0,'DA ALTER'!H16,'DA ALTER'!I16)) -> 0 | H17: 0 | I17: 0 | J17: 0 | K17: 0 | L17: 0 | M17: 0 | N17: 0 | O17: 0 | P17: 0 | Q17: 0 | R17: 0 | S17: 0 | T17: 0 | U17: 0 | V17: 0 | W17: 0
A18: 11 | B18: =IF($B$6="salary","Jan- 2024","Feb-2024") -> Jan- 2024 | C18: 0 | D18: 0 | E18: =IF($B$6="PENSION",0,'DA ALTER'!E17) -> 0.07 | F18: =IF($B$6="pension",0,'DA ALTER'!F17) -> 0 | G18: =IF('det.sal input'!C18=0,0,IF('DA ALTER'!I17=0,'DA ALTER'!H17,'DA ALTER'!I17)) -> 0 | H18: 0 | I18: 0 | J18: 0 | K18: 0 | L18: 0 | M18: 0 | N18: 0 | O18: 0 | P18: 0 | Q18: 0 | R18: 0 | S18: 0 | T18: 0 | U18: 0 | V18: 0 | W18: 0
A19: 12 | B19: =IF($B$6="salary","Feb-2024","March 2024") -> Feb-2024 | C19: 0 | D19: 0 | E19: =IF($B$6="PENSION",0,'DA ALTER'!E18) -> 0.07 | F19: =IF($B$6="pension",0,'DA ALTER'!F18) -> 0 | G19: =IF('det.sal input'!C19=0,0,IF('DA ALTER'!I18=0,'DA ALTER'!H18,'DA ALTER'!I18)) -> 0 | H19: 0 | I19: 0 | J19: 0 | K19: 0 | L19: 0 | M19: 0 | N19: 0 | O19: 0 | P19: 0 | R19: 0 | S19: 0 | T19: 0 | U19: 0 | V19: 0 | W19: 0
A20: 13 | B20: Festival Allowance/ Bonus | L20: =C20+D20+F20+G20+H20+I20+J20+K20 -> 0
A21: 14 | B21: ARREARS CREDITED TO PF. INCLUDING INTEREST (arrear include Leave salary/Salary Arrear/ DA arrear/ Pay revision arrear) | L21: =C21+D21+F21+G21+H21+I21+J21+K21 -> 0 | M21: =C21-N21-O21-P21-Q21-R21-T21-U21 -> 0 | W21: =SUM(M21:U21) -> 0
A22: 15 | B22: ARREARS RECEIVED IN CASH [INCLUDING INTEREST] or CREDITED TO NPS (arrear include Leave salary/Salary Arrear/ DA arrear/ Pay revision arrear, surrender arrear etc) | L22: =C22+D22+F22+G22+H22+I22+J22+K22 -> 0 | W22: =SUM(M22:U22) -> 0
A23: 16 | B23: LEAVE SURRENDER (Total of all surrenders, excluding arrears of surrender) | L23: =C23+D23+F23+G23+H23+I23+J23+K23 -> 0 | W23: =SUM(M23:U23) -> 0
A24: 17 | B24: Any other RECEIPTS or REFUNDS from office. Show refund as Negative figure | L24: =C24+D24+F24+G24+H24+I24+J24+K24 -> 0 | W24: =SUM(M24:U24) -> 0
A25: 17 A | B25: Deferred salary received total | L25: =C25 -> 0
A26: 18 | B26: TOTAL | C26: =SUM(C8:C25) -> 0 | D26: =SUM(D8:D25) -> 0 | F26: =SUM(F8:F25) -> 0 | G26: 0 | H26: 0 | I26: 0 | J26: 0 | K26: 0 | L26: 0 | M26: 0 | N26: 0 | O26: 0 | P26: 0 | Q26: 0 | R26: 0 | S26: 0 | T26: 0 | U26: 0 | V26: =SUM(V8:V25) -> 0 | W26: 0
A27: 18 a | B27: normal total excluding additions | C27: =C26-SUM(C20:C23) -> 0 | D27: =D26-SUM(D21:D23) -> 0 | F27: =F26-SUM(F21:F23) -> 0 | G27: =G26-SUM(G21:G23) -> 0 | L27: =SUM(L21:L22) -> 0 | M27: cash arrer+pf arrear + leave surrender+ other receipt | N27: ="മുകളില്‍ 14, 15 നമ്പറുകളില്‍ ഉള്‍പ്പെട്ടിട്ടുള്ള "&C21+C22&" arrear തുകയില്‍ പലിശ ഉണ്ടെങ്കില്‍, രണ്ടിലെയും പലിശ കൂട്ടി ഇവിടെ കാണിക്കുക " -> മുകളില്‍ 14, 15 നമ്പറുകളില്‍ ഉള്‍പ്പെട്ടിട്ടുള്ള 0 arrear തുകയില്‍ പലിശ ഉണ്ടെങ്കില്‍, രണ്ടിലെയും പലിശ കൂട്ടി ഇവിടെ കാണിക്കുക
A28: 19 | B28: MEDICAL REIMBURSEMENT received (related with treatment of Self or other members of family) [Show full amount of receipt]
A29: 20 | B29: =IF(W28>15000,"Specify the type of hospital where the treatment for the above case was made select from options (ഏതു തരത്തിലുള്ള ആശുപത്രിയിലായിരുന്നു ചികിത്സ ? ഓപ്ഷനില്‍നിന്നും തെരഞെടുക്കണം) ","Skip this field- ഇവിടെ പൂരിപ്പിക്കേണ്ടതില്ല") -> Skip this field- ഇവിടെ പൂരിപ്പിക്കേണ്ടതില്ല | AB29: PRIVATE HOSPITAL | AF29: =IF(W29="PRIVATE HOSPITAL",2,1) -> 1
A30: 20 | B30: Annual Family Pension recived ( if you are the legal heir of deceased employee. Show full amount) | AB30: GOVT / LOCAL BODY
A31: 21 | B31: Profession Tax Paid (Total ) paid during the year
A32: 22 | B32: =IF(U26>0,"EMPLOYER'S total annual contribution to NPS (PRAN) Section 80CCD(2) [NPS ലേക്കുള്ള Employer ടെ മൊത്തം വാര്‍ഷിക വിഹിതം]","Skip this field -ഇവിടെ പൂരിപ്പിക്കെണ്ടതില്ല ") -> Skip this field -ഇവിടെ പൂരിപ്പിക്കെണ്ടതില്ല
A33: 23 | B33: Annual Value of other Perquistes
A34: 24 | B34: Annual Profits in lieu of salary under section 17(3)
A35: 25 | B35: Annual Entertainment Allowance exempted portion (If any)
B36: =IF(L21+L22+L23=0,"You can skip the field below ചുവടെയുള്ള ഭാഗം താങ്കള്‍ക്ക് ബാധകമല്ല",IF(PERSONAL!H8="NO"," You can skip the field below ചുവടെയുള്ള ഭാഗം താങ്കള്‍ക്ക് ബാധകമല്ല","SINCE YOU ARE LIVING IN A RENTEL HOME, PLEASE FILL THE FOLLOWING DETAILS താങ്കള്‍ വാടക വീട്ടില്‍ താമസിക്കുന്നതിന്റെ ആനുകൂല്യങ്ങള്‍ നേടാനായി ചുവടെ വിവരങ്ങള്‍ ആവശ്യപ്പെടുന്നുണ്ടെങ്കില്‍ പൂരിപ്പിക്കുക ")) -> You can skip the field below ചുവടെയുള്ള ഭാഗം താങ്കള്‍ക്ക് ബാധകമല്ല | R36: =IF(L21+L22+L23=0,"SKIP THIS FIELD",IF(PERSONAL!H8="NO","SKIP THIS FIELD"," FY PERIOD-2023-24")) -> SKIP THIS FIELD
R37: Basic pay | T37: DA | U37: HRA | W37: AGP
A38: 26 | B38: =IF(L27=0,"",IF(AB38<AC39,"You are not required to fill anything here (താങ്കള്‍ ഇവിടെ ഒന്നും ചെയ്യേണ്ടാതായിട്ടില്ല)",IF(PERSONAL!H8="NO","","താങ്കള്‍ വാങ്ങിയ കുടിശ്ശികയില്‍ (Arrear received as cash+ Arrear credited in PF) 2023-24 സാമ്പത്തീക വര്‍ഷത്തേക്ക് ബാധകമായ തുകയുണ്ടെങ്കില്‍ ആ തുകയുടെ മാത്രം SPLIT UP കണ്ടു വലതു വശത്ത്‌ കാണിക്കുക, അല്ലാത്ത പക്ഷം ഒന്നും എഴുതേണ്ടതില്ല . "))) ->  | AA38: rent | AB38: =PERSONAL!H44 -> 0 | AC38: sal 1/10
A39: 27 | B39: =IF(L23=0,"",IF(AB38<AC39,"You are not required to fill anything here (താങ്കള്‍ ഇവിടെ ഒന്നും ചെയ്യേണ്ടാതായിട്ടില്ല)",IF(PERSONAL!H8="NO","","താങ്കള്‍ വാങ്ങിയ സറണ്ടറില്‍ 2023-24 സാമ്പത്തീക വര്‍ഷത്തേക്ക് ബാധകമായ തുകയുണ്ടെങ്കില്‍ അതുമാത്രം SPLIT UP ആക്കി വശത്ത്‌ കാണിക്കുക, അല്ലാത്ത പക്ഷം ഒന്നും എഴുതേണ്ടതില്ല . "))) ->  | AA39: pa+da+agp | AB39: =C27+D27+F27+SUM(R38:T39)+W38+W39-C25 -> 0 | AC39: =AB39*0.1 -> 0
Q40: TOTAL | R40: =R38+R39 -> 0 | T40: =T38+T39 -> 0 | U40: =U38+U39 -> 0 | W40: =W38+W39 -> 0 | AA40: HRA acrual | AB40: =G27+U40 -> 0
W41: ആദ്യ മാസത്തിലെ ശമ്പളമായി കാണിക്കേണ്ടത് 2023 April- 1നോ അതിനു ശേഷമോ കിട്ടിയ
W42: ശമ്പളത്തിന്‍റെ തുകയാണ്, പൊതുവേ അത് 2023- March ല്‍ ചെയ്ത ജോലിയുടേതായിരിക്കും
W43: DA,HRA എന്നിവക്ക് പുറമേ നേടിയ അലവന്‍സുകളില്‍ ചിലതിനു നികുതി ഇളവ് ഉണ്ടായേക്കാം. എങ്കിലും അത് ഇവിടെ മറ്റു അലവന്‍സുകള്‍
W44: ചേര്‍ക്കേണ്ടിടത്ത്(ചോദ്യചിഹ്നമിട്ട 4 തലക്കെട്ടിനു കീഴെ) ഉള്‍പ്പെടുത്തെണ്ടാതാണ്. നാലില്‍ കൂടുതല്‍ അലവന്‍സ് ഉണ്ടെങ്കില്‍,
W45: രണ്ടു അലവന്‍സുകള്‍ കൂട്ടി ഒരു തലക്കെട്ടിനു കീഴെ നല്‍കുക. അതിനു ലഭ്യമായ ഇളവുകള്‍ കാണിക്കേണ്ടത് അടുത്ത പേജിലാണ്
W46: (DA% തിരുത്തണമെങ്കില്‍ DA തലക്കെട്ടിനു സമീപമുള്ള മഞ്ഞ ബട്ടണില്‍ ക്ലിക്ക് ചെയ്തു തിരുത്തല്‍ വരുത്തുക)
W47: You can edit DA percentage by clicking the yellow button near DA heading
B48: If you are in need of more allowance columns, you cannot create it, but just total all allowances with tax exemption and put the value in first blank field with heading like Unif Allow+TA, Then total all other allowances without tax exemption and put the value in next blank field with heading like CCA+SP allow. For any doubt dial 9947009559
W49: GPAIS അടവ് ഏതെങ്കിലും Deduction column ല്‍ തലക്കെട്ട്‌ നല്‍കി ഉള്‍പ്പെടുത്തുക. ചുവടെ അനാവശ്യമായി വരുന്ന തുക ഡിലീറ്റ് ചെയ്യുക
W52: അഡ്വാന്‍സ് സാലറിയിലെക്കുള്ള തിരിച്ചടവ് ഉള്ളവര്‍ അടവ് മാസങ്ങളില്‍ ശമ്പളം കുറച്ച് കാണിക്കരുത്
W53: തിരിച്ചടവ് ഇല്ലായിരുന്നെങ്കില്‍ കിട്ടുമായിരുന്ന ശമ്പളമാണ് കാണിക്കേണ്ടത്
W54: PF ലേക്കുള്ള ലോണിന്റെ തിരിച്ചടവ് deduction കോളത്തില്‍ എഴുതാന്‍ പാടില്ല
W55: ലോണ്‍ തിരിച്ചടവ് ഇല്ലാത്ത സാഹചര്യത്തില്‍ എഴുതുന്ന നിക്ഷേപ സംഖ്യ മാത്രമേ എഴുതാവൂ
W56: PF ലോണ്‍ ഈ സാമ്പത്തീക വര്‍ഷത്തില്‍ വാങ്ങിയാല്‍ അത് വരുമാനമായി ഒരിടത്തും കാണിക്കരുത്
W57: ലോണ്‍ എടുക്കാത്ത വ്യക്തിയാണെന്ന രീതിയില്‍ വിവരങ്ങള്‍ നല്‍കുക
W58: Income from Profession (Eg. Doctors private Practice Income) should be shown in next page
W59: പെന്‍ഷന്‍ ജീവനക്കാര്‍ അത് ബേസിക് പേ കോളത്തില്‍ നല്‍കുക. തെറ്റായി കാണുന്ന DA തുക ഒഴിവാക്കാന്‍ DA തലക്കെട്ടിനു കീഴെ കാണുന്ന മഞ്ഞ
W60: എഡിറ്റ്‌ ബട്ടണില്‍ ക്ലിക്ക് ചെയ്ത് പുതിയ മേഖലയിലെത്തി പരിഷ്കരിക്കാം / ഡിലീറ്റ് ചെയ്യാം
W61: Loss of Pay ഉണ്ടെങ്കില്‍ 17 നമ്പറിനു നേരെ നെഗറ്റീവ് തുകയായി നല്‍കുക
W63: മിലിട്ടറിയിലോ മറ്റോ മുന്‍പ് ജോലി ചെയ്തു ഇപ്പോള്‍ പെന്‍ഷന്‍ വാങ്ങുന്നവര്‍, ആ പെന്‍ഷന്‍ ഒരു വര്‍ഷത്തെ മുഴുവന്‍ കൂട്ടി അതു 17 ആം റോയില്‍ നല്‍കുക
W64: അതോടൊപ്പം ഇപ്പോള്‍ മറ്റു ജോലി ചെയ്തു ശമ്പളം വാങ്ങുന്നുണ്ടെങ്കില്‍ അത് അതതു മാസങ്ങളില്‍ സാധാരണ ശമ്പളമായി കാണിക്കുക

Sheet taxplanning
C4: HOW TO REDUCE YOUR TAX (നികുതി കുറക്കാന്‍ മാര്‍ഗങ്ങള്‍) | P4: 80 c working | Q4: sorted
C5: ="Dear "&PERSONAL!H4&" ," -> Dear , | M5: GO BACK | O5: 1L-80c | P5: =150000-Q8 -> 150000
J6: =IF(#REF!<0,0,#REF!) ->  | N6: ECTAX | O6: ten multi | P6: =K7/103*1000 -> 0
C7: ഫെബ്രുവരി മാസത്തിലെ ശമ്പളത്തില്‍നിന്നും പിടിക്കേണ്ട നികുതി തുക | K7: =print!$N$3 -> 0 | M7: ആണ് | N7: =IF(K7<0,"(Minus figures shows over payment)","") -> 
C8: Amount to be deducted from February month's salary is shown above. Minus figure shows over payment of tax | P8: 80c invest ORIGINAL | Q8: ='new statement'!R45 -> 0
O9: medi clame
C10: Where you should invest (നികുതിഭാരം കുറക്കാന്‍ നിക്ഷേപിക്കേണ്ട മേഖല) | K10: Amount of Investment needed നികുതി കുറക്കാന്‍ നിക്ഷേപിക്കേണ്ട തുക ഏതാണ്ട് | M10: If invested, estimated decrease in TAX amount നിക്ഷേപിച്ചാല്‍ നികുതിയില്‍ വരുന്ന കുറവ് ഏതാണ്ട് (Apllicable for 10% Tax slab persons) | O10: maxi | P10: 15000
C11: =IF('new form 16'!N76>0,"You are included in 20% tax slab group. Please see instructions below in red colour താങ്കള്‍ 20% നികുതിയുള്ള വിഭാഗത്തില്‍ പെടുന്നതിനാല്‍ ഏറ്റവും ചുവടെയുള്ള ചുവന്ന അക്ഷരങ്ങളില്‍ കാണുന്ന നിര്‍ദ്ദേശങ്ങളാണ് ബാധകം","") ->  | K11: 10% Tax slab persons | L11: 20% Tax slab persons | O11: ten multi | P11: =P6 -> 0
C13: LIC,PLI NSC, PF, PPF, Tax saving FD, Tax saving Mutual fund etc. | J13: or | K13: =IF(K7=0,0,IF(Q8>=150000,0,IF(P5<=P6,P5,IF(P5>P6,P6)))) -> 0 | M13: =ROUND(K13*0.103,0) -> 0 | O13: 80d | P13: ORIGINAL D | Q13: =INVEST!F18 -> 0
C14: Mediclaim Policy എടുക്കല്‍ (New India Assurence, United India Assurence, Oriental Insurence എന്നിവിടങ്ങളില്‍ ലഭ്യം . ഇത് നിക്ഷേപമല്ല, മുടക്കിയ പണം തിരികെ ലഭിക്കില്ല | K14: =IF(K7=0,0,IF(Q13>=20000,0,IF(P11<P10,P11,IF(Q13<P10,P10-Q13)))) -> 0 | M14: =ROUND(K14*0.103,0) -> 0
C15: =IF(K14+INVEST!F18=15000,"An additional amount up to 15000 / 20000 can be spent for parent's medical policy","") -> 
P16: 80ccf working
C18: Rajiv Gandhi Equity Savings Scheme (RGESS) ല്‍ പെടുന്ന ഷെയറില്‍(നിക്ഷേപത്തിന്റെ 50% വരുമാനാത്തില്‍ കുറവായി കാണിക്കാം. 50000 രൂപ വരെ നിക്ഷേപിക്കാം. നിക്ഷേപമെന്ന നിലയില്‍ 1.5 ലക്ഷമെന്ന പരിധിക്കുമേല്‍ നടത്താവുന്ന ഒരേ ഒരു നിഷേപപദ്ധതി, ഷെയര്‍ വിപണന കേന്ദ്രങ്ങളില്‍ ലഭിക്കും. ആനുകൂല്യം ലഭിക്കാനായി നിബന്ധനകള്‍ പാലിക്കേണ്ടതുണ്ട് | K18: =IF(Q21<=0,0,IF(Q19>=Q22,Q22,Q19)) -> 0 | M18: =ROUND(K18*0.103,0)/2 -> 0 | O18: INVEST | Q18: =INVEST!#REF! -> 
C19: സാലറി അരിയര്‍ വാങ്ങിയിട്ടുണ്ടെങ്കില്‍ S 89 പ്രകാരം ഇളവിന് അര്‍ഹതയുണ്ടോ എന്ന് പിന്‍ പേജിലെ ഒന്നാം മെനുവില്‍ പരിശോധിക്കുക | K19: =IF('det.sal input'!#REF!+'det.sal input'!#REF!=0,"Not applicable","Pl. check your arrear") ->  | O19: DOUBLE OF TAX | Q19: =P6*2 -> 0
O20: INVEST MAX | Q20: 50000
O21: TAX | Q21: =K7 -> 0
C22: =IF('new form 16'!N76>0,"Your taxable income is more than 5 lakh, therefor the investment need to reduce tax will be less than that shown above","") ->  | O22: balance possible | Q22: =Q20-Q18 -> 
C276: താങ്കളുടെ നികുതി എങ്ങിനെയാണ് കണക്കാക്കിയതെന്ന്‍ അറിയുക
C277: HOW YOUR TAX IS CALCULATED …? (OLD REGIME Option 1 ) | K277: TAX FOR THE FIRST 2.5 LAKH TAXABLE INCOME | O277: HOW YOUR TAX IS CALCULATED (NEW REGIME Option 2)
C278: NAME | G278: =PERSONAL!H4 -> 0 | K278: TAX FOR THE FIRST 3 LAKH OF TAXABLE INCOME | O278: NAME | Q278: Not applicable to you | S278: Applicable to you
C279: AGE GROUP | G279: =PERSONAL!H5 -> Below 60 Years | K279: TAX FOR THE FIRST 5 LAKH OF TAXABLE INCOME | O279: =C279 -> AGE GROUP | Q279: Tx calculation before Marginal relief (see notes link below) | R279: Remaining amount | S279: Tax calculation after considering 115BAC(1A) amendment
C280: TAXABLE INCOME (after standard deduction 50000) | G280: ='new statement'!R59 -> 0 | K280: ABOVE 2.5 LAKH UP TO 5 LAKH 5% | O280: =C280 -> TAXABLE INCOME (after standard deduction 50000) | Q280: ='new statement (2)'!R59 -> 0 | S280: =Q280 -> 0
A281: 1 | C281: =IF(G279="BELOW 60 YEARS",K277,IF(G279="60 TO 79 YEARS",K278,K279)) -> TAX FOR THE FIRST 2.5 LAKH TAXABLE INCOME | G281: 0 | K281: ABOVE 3 LAKH UP TO 5 LAKH 5% | O281: For the first 3 Lakh Taxable income | Q281: Rs.0 | R281: =IF(Q280>300000,(Q280-300000),0) -> 0 | S281: =Q281 -> Rs.0
A282: 2 | C282: =IF(G279="BELOW 60 YEARS",K280,IF(G279="60 TO 79 YEARS",K281,"")) -> ABOVE 2.5 LAKH UP TO 5 LAKH 5% | G282: =IF(G279=M282,'new form 16'!N75,IF(taxplanning!G279=taxplanning!M284,'new form 16'!S75,"0")) -> 0 | M282: Below 60 Years | O282: Above 3 lakh, upto 6 Lakh, 5% | Q282: =IF(R281>300000,15000,R281*0.05) -> 0 | R282: =Q280-600000 -> -600000 | S282: =Q282 -> 0
C283: LESS TAX CREDIT 10% of Taxable income, maximum 2000 is available (Available only if Taxable income is less than 500001) | G283: ='new statement'!R61 -> 0
A284: 3 | C284: ABOVE 5 LAKH UP TO 10 LAKH 20% | G284: =IF(G279=M282,'new form 16'!N76,IF(taxplanning!G279=taxplanning!M284,'new form 16'!S76,'new form 16'!W75)) -> 0 | M284: 60 to 79 Years | O284: Above 6 lakh, upto 9 Lakh, 10% | Q284: =IF(Q280<600000,0,IF(R282>300000,30000,R282*0.1)) -> 0 | R284: =Q280-900000 -> -900000 | S284: =Q284 -> 0
A285: 4 | C285: ABOVE 10 LAKH 30% | G285: =IF(G279=M282,'new form 16'!N77,IF(taxplanning!G279=taxplanning!M284,'new form 16'!S77,'new form 16'!W76)) -> 0 | M285: 80 and above | O285: Above 9 lakh, upto 12 Lakh, 15% | Q285: =IF(R284<0,0,IF(R284>300000,45000,(R284)*0.15)) -> 0 | R285: =Q280-1200000 -> -1200000 | S285: =Q285 -> 0
A286: 5 | C286: TOTAL TAX AMOUNT (1+2+3+4) | G286: =G281+G282+G284+G285 -> 0 | O286: Above 12 lakh, upto 15 Lakh, 20% | Q286: =IF(R286<0,0,IF(R285>300000,60000,R285*0.2)) -> 0 | R286: =Q280-1500000 -> -1500000 | S286: =Q286 -> 0
A287: 6 | C287: Section 87-A Rebate, maximum 12500 is available (Available only if Taxable income is less than 500001) Section 87-A | G287: ='new statement'!R61 -> 0 | O287: Above 12.5 lakh, upto 15 Lakh, 25% | U287: 115bac(1A) calculation | V287: out put tax after 115bac 1A
A288: 7 | C288: EDUCATION CESS 4% OF | E288: =G286-G287 -> 0 | G288: ='new statement'!R63 -> 0 | O288: Above 15 lakh, 30% | Q288: =IF(R286<0,0,R286*0.3) -> 0 | S288: =Q288 -> 0 | T288: taxable inc | U288: =Q280 -> 0
A289: 8 | C289: Less 89(1) Relief for arrears of salary | G289: ='new statement'!R65 -> 0 | O289: Total Tax amount before 87 A relief | Q289: =(Q282+Q284+Q285+Q286+Q287+Q288) -> 0 | S289: =Q289 -> 0 | T289: 87a cutoff | U289: 700000
A290: 9 | C290: Total tax due in the year (5-6+7-8) | G290: ='new statement'!R66 -> 0 | O290: Section 87-A Rebate, maximum 25000 is available (Available only if Taxable income is less than 700001) Section 87-A (Marginal relief may be applicable, see notes below) * | Q290: ='new statement (2)'!R61 -> 0 | S290: =IF(S294=Q294,Q290,S289-(V293*96/100)) -> 0 | T290: difference | U290: =IF(U289>U288,0,U288-U289) -> 0
O291: Education cess 4% of tax after 87 A relief | Q291: ='new statement (2)'!R63 -> 0 | S291: =(S289-S290)*0.04 -> 0
T292: tax | U292: =Q294 -> 0
O293: Less 89(1) Relief for arrears of salary | Q293: ='new statement (2)'!R65 -> 0 | S293: =Q293 -> 0 | T293: modi tax | U293: =U290*1.04 -> 0 | V293: =MIN(U292,U293) -> 0
O294: Total Tax due for the year | Q294: ='new statement (2)'!R66 -> 0 | S294: =V293-Q293 -> 0 | T294: marginal relief | U294: =Q294-U293 -> 0
O300: =IF(U294>0,"* Marginal relief U/S 115 BAC(1A) - is applicable-clik the box below to read more","Not applicable to you") -> Not applicable to you
C301: INCOME TAX RATES - FINANCIAL YEAR 2023-24 (OLD REGIME)
C302: MALE & FEMALE (Below 60 years of age)
C303: Upto 2,50,000 | I303: NIL
C304: 2,50,001 To 5,00,000 | I304: 0.05
C305: 5,00,001 To 10,00,000 | I305: 0.2
C306: 10,00,001 and Above | I306: 0.3
C307: Special rebate (87-A)Upto a maximum of Rs. 12500/- is available if Taxable income is 5 lakh or less. Section 87-A
C315: INCOME TAX RATES - FY 2023-24 (SENIOR CITIZEN AND SUPER SENIOR CITIZEN) (OLD REGIME option 1 only)
C316: MALE & FEMALE (Above 60 years of age group) | J316: Age 60 Years or more but less than 80 | P316: Age 80 Years and above
C317: Upto 300,000 | J317: NIL | P317: NIL
C318: 3,00,001 To 5,00,000 | J318: 0.05 | P318: NIL
C319: 5,00,001 To 10,00,000 | J319: 0.2 | P319: 0.2
C320: 10,00,001 and Above | J320: 0.3 | P320: 0.3
C321: Special rebate (87-A)Upto a maximum of Rs. 12500/- is available if Taxable income is 5 lakh or less. Section 87-A

Sheet print
C1: ="Dear "&PERSONAL!H4 &", Your data entry is over " -> Dear , Your data entry is over | M1: SAVE | Q1: ='Form 10E'!H40 -> 0 | R1: ='Form 10E NEW REG'!H40 -> 0 | S1: =Q1+R1 -> 0
C3: ='new statement'!#REF! ->  | E3: MENU | N3: ='new statement'!R70 -> 0
C4: Click the following buttons to view or Print different documents | N4: Page 6
A6: 1 | C6: 10 E Form Preparation ( To check 89(1) relief if any കുടിശ്ശികയായി കിട്ടിയ ശമ്പളത്തിന് ഇളവുണ്ടോ എന്ന് പരിശോധിക്കുവാന്‍ ക്ലിക്ക് ) | N6: ANTICIPATORY TAX CALCULATOR
A7: 2 | C7: VIEW INCOME TAX STATEMENT
A8: 3 | C8: PRINT INCOME TAX STATEMENT (2 A4 sheets) (ആദ്യ ബട്ടണില്‍ ക്ലിക്ക് ചെയ്ത് Page 1 ഉം മറുവശത്ത് Page 2 ഉം)
A9: 2 | C9: VIEW / PRINT INCOME TAX STATEMENT (To choose the best option, Click the Green button. ) പച്ച ബട്ടൺ ക്ലിക് ചെയ്യുക- ANTICIPATORY CALCULATOR or TAX CALCULATOR എന്ന ഓപ്ഷനും മാറ്റിയിടാം | L9: =INVEST!$K$3 -> 0 | M9: =INVEST!$L$3 -> 0 | N9: TAX CALCULATOR | P9: ANTICIPATORY TAX CALCULATOR
A10: 3 | C10: PRINT INCOME TAX STATEMENT (2 A4 sheets) (ആദ്യ ബട്ടണില്‍ ക്ലിക്ക് ചെയ്ത് Page 1 ഉം മറുവശത്ത് Page 2 ഉം)
A11: 4 | C11: VIEW FORM 16- B PART ( FORM 16-B part കാണാന്‍ )
A12: 5 | C12: PRINT FORM 16- B PART (2 A4 sheets) ഫോം 16 പ്രിന്റ്‌ എടുക്കാന്‍
A13: 6 | C13: VIEW 10-E FORM set [ കുടിശ്ശിക ശമ്പളത്തിന്റെ ഇളവിനുള്ള ഫോം ] | N13: =IF('arrear det'!K100>0,"CAUTION ! Never take Form 10 E printouts from this utility. You have choosen the option to calculate it manually, otherwise click menu No. 1 and deactivate the option by editing the filed. ",IF('Form 10E'!H40>0,"Since you are benifited with rebate on arrear, you have to submit 10 E form, previous years's Tax statements with current years IT statement. Click the green button on the left side","")) -> 
A14: =IF(C14="","","2-(a)") -> 2-(a) | C14: =IF('ARREAR SPLIT'!N22=0,"Skip this menu- ഈ മെനു താങ്കൾക്ക് ബാധകമല്ല ",IF(S1>0,"Click Green button on right side to VIEW / PRINT 10 E form set വലതു വശത്ത് കാണുന്ന പച്ച ബട്ടൺ ക്ലിക് ചെയ്തു 10 E form set പ്രിൻറ് എടുക്കുക "," 89(1) relief is NOT available to you, No need to take 10 E print -89(1) relief റിലീഫ് ലഭ്യമല്ലാത്തതിനാൽ 10 E പ്രിൻറ് എടുക്കേണ്ടതില്ല")) -> Skip this menu- ഈ മെനു താങ്കൾക്ക് ബാധകമല്ല | L14: =IF(L9>=M9,"","10 E Form CLICK ME") ->  | M14: =IF(L9<=M9,""," 10 E Form CLICK ME") -> 
A15: 2 (b) | C15: =IF(L15>1,"VIEW or PRINT Monthly arrear split up details (കുടിശികയുടെ മാസം തിരിച്ചുള്ള പട്ടിക)","Skip this menu ഈ മെനു താങ്കൾക്ക് ബാധകമല്ല ") -> Skip this menu ഈ മെനു താങ്കൾക്ക് ബാധകമല്ല | L15: ='ARR MONH SPLIT'!AD63-'ARR MONH SPLIT'!AD26 -> 0 | M15: =L15 -> 0 | N15: ='Form 10E NEW REG'!Q1 -> 
A16: 3 | C16: VIEW/ FILL/ PRINT FORM 12 BB (ഫോം 12 BB പൂരിപ്പിക്കാന്‍)
A17: 4 | C17: KNOW HOW YOUR TAX AMOUNT IS CALCULATED താങ്കളുടെ നികുതി തിട്ടപ്പെടുത്തിയത്‌ എങ്ങിനെ ?
A18: 10
A19: 11
A20: 12
A21: 13
A22: 14
A23: 15
A24: 16
A25: 17
A26: 18
A27: 19 | C27: TIPS TO REDUCE TAX (നികുതി കുറക്കാന്‍ തന്ത്രങ്ങള്‍)
A28: 5 | C28: TAX RATES OF PREVIOUS YEARS (മുന്‍കാല നികുതി നിരക്കുകള്‍)
A29: 6 | C29: TO SAVE THIS FILE SAFELY, (ഈ ഫയല്‍ സുരക്ഷിതമായി സേവ് ചെയ്യേണ്ട സ്ഥലത്തെത്താന്‍ വലത്തുവശത്തു കാണുന്ന SAVING BUTTON ക്ലിക്ക് ചെയ്യുക
C32: ഈ ഫയല്‍ സേവ് ചെയ്യാന്‍ ഒരിക്കലും FILE SAVE/ FILE SAVE AS രീതികള്‍ ഉപയോഗിക്കരുത് മുകളിൽ കാണുന്ന saving button ഉപയോഗിക്കുക. തിരുത്തലുകള്‍ വേണമെങ്കില്‍ പിന്‍ പേജില്‍ പോയി തിരുത്താവുന്നതാണ്
E38: ="THIS FILE CAN BE USED JUST TO PRINT/EDIT THE DATA OF "&B2 -> THIS FILE CAN BE USED JUST TO PRINT/EDIT THE DATA OF
E39: If you are using this file to estimate tax of a different person, it may show wrong results.
E40: TO FIND TAX OF A DIFFERENT PERSON, USE THE MASTER FILE OF ECTAX 2013 DOWNLOADED
C41: If you cant see closing button of the programme please click here

Sheet INVEST
D1: =PERSONAL!H4&" Congratulations ! !, This is the last page for data entry. "&" Now, the balance of tax payable by you is Rs. "&N1&O1 -> Congratulations ! !, This is the last page for data entry. Now, the balance of tax payable by you is Rs. 0 (Refund) | H1: =taxplanning!N7 ->  | K1: ='new statement'!R70 -> 0 | L1: ='new statement for PRINT'!R70 -> 0 | N1: =MIN(K1,L1) -> 0 | O1: =IF(N1<1," (Refund)","") -> (Refund)
B2: ="TAX SAVING INVESTMENTS & PAYMENTS OTHER THAN SALARY CUTTING OF "& PERSONAL!H4 -> TAX SAVING INVESTMENTS & PAYMENTS OTHER THAN SALARY CUTTING OF | K2: OPTION 1- OLD RATE Rs. | L2: OPTION 2- NEW RATE Rs. | M2: =IF(K3>L3,"CLICK option 2 Green box as it is the best choice",IF(K3<L3,"CLICK option 1 Green box as it is the best choice","TAX IS SAME IN BOTH CASES. CLICK OPTION 1 OR OPTION 2 ")) -> TAX IS SAME IN BOTH CASES. CLICK OPTION 1 OR OPTION 2
B3: ഓരോ നിക്ഷേപങ്ങളുടെയും സാദ്ധ്യതകളെപ്പറ്റിയും ഇളവുകളെക്കുറിച്ചും അറിയാന്‍ അതതു നിക്ഷേപത്തിന്റെ തുകയെഴുതുന്ന സ്ഥാനത്ത് മൌസ് വച്ചു നോക്കുക | G3: Page 5 | H3: ="Now your total 80 C / CC / CCD investment is Rs "&'new statement'!O45 -> Now your total 80 C / CC / CCD investment is Rs 0 | K3: ='new statement'!R66 -> 0 | L3: ='new statement for PRINT'!R66 -> 0
B4: 15000 | C4: Section | D4: Investments/ Payments Maximum 1,50,000 allowed (പരമാവധി 1.5 ലക്ഷം വരെ ഇളവുള്ളവ) | F4: AMOUNT RS. | G4: ="Balance of tax "&'new statement'!R70&"" -> Balance of tax 0
B5: 1 | C5: 80 C | D5: ANNUAL LIFE INSURENCE PREMIUM (other than salary deduction) (വേതനത്തില്‍ നിന്നുള്ള പിടുത്തം അല്ലാത്ത എല്ലാ Life insurence ന്റെയും വാര്‍ഷിക അടവ് നിശ്ചയിച്ചിരിക്കുന്നത് കൂട്ടിച്ചേര്‍ത്ത് കാണിക്കുക ) Include all Post office PLI, Pvt. Life insurance premium taken in the name of self/ spouse/ children | G5: ="Now your total 80 C / CC / CCD investment is Rs "&'new statement'!O45 -> Now your total 80 C / CC / CCD investment is Rs 0
B6: 2 | C6: 80CCC | D6: LIFE INSURANCE PENSION SCHEMES premium annual total . Eg. LIC Pension Scheme | G6: =SUM(F6:F6) -> 0
B7: 3 | C7: 80 C | D7: NSC VIII th issue (Nationional Savings certificate from post offices)
B8: 4 | C8: 80 C | D8: TAX SAVING Fixed deposits (Available at all Banks)/ Sukanya Samrudhi Investment
B9: 5 | C9: 80 C | D9: PPF (Public provident fund accounts of Postoffice etc.)
B10: 6 | C10: 80C | D10: ULIP/ Tax saving mutual funds (Share trading firms) | G10: =IF('det.sal input'!U26>1,"",IF('new statement'!O45>149999,"Dear "&PERSONAL!H4&", Your 80-C 1.5 LAKH INVESTMENT LIMIT is over. Additional investment in NPS upto 50000 is possible","")) -> 
B11: 7 | C11: 80 C | D11: TUITION FEE PAID FOR CHILDREN (Only for 2 children, for full time courses only) 80C
B12: 8 | C12: 80 C | D12: HOUSING LOAN PRINCIPAL PORTION repayment (Not allowed for repair loan ) Pl. see point 12 to add interest
B13: 9 | C13: 80 C | D13: Any other 80 C deductions (specify name of such investment here) ----->
C14: Sec | D14: Investments/ Payments over 1,50,000 (1.5 ലക്ഷത്തിനു മേല്‍ ഇളവു ലഭിക്കുന്നവ) | F14: AMOUNT RS.
B15: 10 | C15: 80 CCD | D15: Contribution to NPS other than salary deduction. (ശമ്പളത്തില്‍ നിന്നുള്ള കിഴിവല്ലാതെ തൊഴിലാളി നേരിട്ടടക്കുന്ന നിക്ഷേപം ഉണ്ടെങ്കില്‍ മാത്രം ഇവിടെ എഴുതുക) Rs. 50000 Extra investement is possible (കൂടുതലായി Rs. 50000 വരെ നിക്ഷേപിക്കാം)
B16: 11 | C16: 80 EEB | D16: Electric Vehicle Loan Interest repayment (Maximum 1.5 lakh allowed)
B17: 11 | C17: 24b | D17: HOUSING LOAN INTEREST due Normally Up to 2 Lakh allowed. (For repair loan 30000)
B18: 12 | C18: 80D | D18: MEDICAL INSURANCE PREMIUM [For the group 'wife+husband+children, up to Rs.25000, another 25000(Senior citizen parent 50000) for parents] and PREVENTIVE HEALTH CHECK UP Exp UP TO Rs 5000 included in the above | F18: ='MEDI INS OTHER DED'!Q16 -> 0
B19: 13 | C19: 80 G | D19: DONATIONS/ FLOOD RELIEF FUND [ to specified institutions by consolidated cheque through DDO ( type only allowed portion) ] salary deduction ആയി നല്‍കിയ തുകകള്‍ ഇവിടെ കാണിക്കരുത്
B20: 14 | C20: 80E | D20: EDUCATION LOAN INTEREST (Interest repayment portion only)
B21: 15 | C21: 80DD | D21: Treatment of dependant with disability (വിശദാംശങ്ങള്‍ക്ക് തുക എഴുതുന്നിടത്ത് മൗസ് വക്കുക)
B22: 16 | C22: 80 DDB | D22: MEDICAL EXPENCE for specified diseases of Self / dependent (Only for chronic diseases)
B23: 17 | C23: 80 U | D23: BLIND & DIFFERENTLY ABLED persons' deduction
B24: 19 | C24: 89 (1) | D24: Relief for Arrears of salary if any
B25: =IF('det.sal input'!H26+'det.sal input'!I26+'det.sal input'!J26+'det.sal input'!K26=0,"YOU ARE NOT NEEDED TO FILL THE AREAS BELOW - ചുവടെ ഒന്നും പൂരിപ്പിക്കേണ്ടതില്ല", " CHECK ALLOWANCES EXEMPTED FROM TAX IF ANY - താങ്കള്‍ വാങ്ങിയ അലവന്‍സ് നു ഇളവിന് അര്‍ഹതയുണ്ടോ എന്ന് പരിശോധിക്കുക ") -> YOU ARE NOT NEEDED TO FILL THE AREAS BELOW - ചുവടെ ഒന്നും പൂരിപ്പിക്കേണ്ടതില്ല
D26: =IF('det.sal input'!H26+'det.sal input'!I26+'det.sal input'!J26+'det.sal input'!K26=0,"SKIP THIS FIELD- ചുവടെ വായിക്കേണ്ടതില്ല",D33) -> SKIP THIS FIELD- ചുവടെ വായിക്കേണ്ടതില്ല
D27: Name of allowance with excemption under section 10 | F27: Exempted amount Rs
B28: 18 | C28: S-10 | D28: =IF('det.sal input'!H6="?","",'det.sal input'!H6) ->  | K28: ='det.sal input'!H26 -> 0
B29: 19 | C29: S-10 | D29: =IF('det.sal input'!I6="?","",'det.sal input'!I6) ->  | K29: ='det.sal input'!I26 -> 0
B30: 20 | C30: S-10 | D30: =IF('det.sal input'!J6="?","",'det.sal input'!J6) ->  | K30: ='det.sal input'!J26 -> 0
B31: 21 | C31: S-10 | D31: =IF('det.sal input'!K6="?","",'det.sal input'!K6) ->  | K31: ='det.sal input'!K26 -> 0
D33: Certain allowances enjoy benefit of tax excemption. To read more about it, please point mouse near the right side GREEN BOX. FILL THE BELOW AREA, ONLY IF YOU ARE BENIFITED WITH THE EXEMPTION (താങ്കള്‍ ശമ്പളമായി വാങ്ങിയ ചിള അലവന്‍സുകള്‍ക്ക് section 10 പ്രകാരം ഇളവുണ്ടായേക്കാം. വിശദാംശങ്ങള്‍ അറിയാന്‍ വലത്തുവശത്തു കാണുന്ന പച്ച പ്രദേശത്ത് മൗസ് വച്ച് വായിക്കുക ഇളവിന് അര്‍ഹതയുണ്ടെങ്കില്‍ മാത്രം ചുവടെ കാണിക്കുക
B35: =IF(F28>0,D28,"") -> 
B36: =IF(F29>0,D29,"") -> 
B37: =IF(F28+F29:F310," + ","") -> 
B57: HOUSING LOAN AND INCOME TAX - FREQUENTLY ASKED QUESTIONS
B58: There are many instances where a residential plot/property has been acquired/owned by wife and later through bank finance,
B59: construction or further renovation starts. Some cases wife has no income, so husband makes all the repayment of principal and interest towards
B60: the borrowed capital. Now the question arise; is the husband eligible to get interest & principal deductions u/s 24b & 80C respectively
B61: even though he is not the owner of the property?
B62: To answer to the above question, first you need to understand how the property was actually acquired and
B63: what is the loan structure (like holder/holders of the loan)?
B64: Situation 1: The property might have been acquired by wife through gift from parents or inheritance property.
B65: In such case any loan taken jointly with husband or singly, husband will not be entitled to get any tax benefits of principal repayment u/s 80C
B66: and interest deduction u/s 24b even if he serve the loan repayment from his income. It doesn’t matter whether husband makes
B67: all (or part of) the repayments. It is even immaterial whether he is a first applicant or sole applicant or not an applicant at all. To claim tax benefits,
B68: husband needs to be the owner (or co-owner) of the property.
B69: The solution may be; if both the spouse enter into an agreement where wife declares to sell and transfer part of the ownership of the house property to husband,
B70: then husband will be able to claim the tax benefit. Such sell/transfer requires prior permission of the lender.
B71: Situation 2: The property has been acquired in the name of wife only, but source of fund is husband.
B72: Here the fact is that the property may have been purchased in wife’s name may not mean that the property belongs to her. If the said house property has been
B73: purchased out of husband’s own funds (but property in wife’s name) then husband becomes the actual owner of the property. To claim income tax deduction,
B74: husband needs to make a declaration with the Assessing Officer (AO) under Benami Transaction Act 1998, stating that he is the real owner of the property
B75: though registered in his wife’s name. Once it is done, he will entitled to all deductions available to an owner of the Property relating to
B76: repayment and interest on housing loan under the Act.
B77: B – Husband and wife are co-owners of house property and also co-applicants of Home Loan, but all the repayments are being done by husband alone:
B78: (or EMI is paid partially by husband and other part by wife)
B79: In this scenario, husband can very well claim income tax exemption as specified under the act. If the husband is the only person repaying the loan,
B80: then he can claim the entire tax benefit for himself (provided he is an owner or co-owner). Both the spouse should enter into a simple agreement
B81: where wife should be stating that husband will be repaying the entire loan. This applies vice-versa where husband and wife are co-owners of house
B82: property and also co-applicants of Home Loan, but all the repayments are done by wife alone. If you are paying part of the EMI, you will get tax benefits in the
B83: proportion to your share in the loan.
B84: It is immaterial what the repayment mode is with regards to avail deductions. EMIs can be served from a joint account, from two different accounts
B85: owned by each co-applicant respectively or from a single account either from husband or wife.
B105: NPS (NATIONAL PENSION SYSTEM) INVESTMENTS AND TAX EXEMPTION
B106: Normally one person can invest upto Rs. 1.5 Lakh in LIC, PF, Tax saving FD, NSC, PPF etc. to reduce Tax burden
B107: In the current Financial year (2019-20 additional 50000 investment opportunity is provided in NPS , there by the investment limit can be extended up to Rs. 2 lakh
B108: A person in 20% Tax slab can reduce his tax liability upto Rs. 10400 by choosing NPS as an investment option. The benifit is Rs. 15600 for one in 30% Tax slab !!
B109: Same time the investment is subject to certain limitations. To read more, switch on internet and click on the following link :
B111: RAJIV GANDHI EQUITY SCHEME
B112: The deduction under this section in accordance with RGESS 2013 is available if following conditions are satisfied:
C113: (a) The assessee is a resident individual
C114: (b) His gross total income does not exceed Rs. 12 lakhs
C115: (c) He has acquired listed shares in accordance with a notified scheme or listed units of an equity oriented fund as defined in section 10(38)
C116: (d) The assessee is a new retail investor
C117: (e) The investment is locked-in for a period of 3 years from the date of acquisition in accordance with the above scheme
C118: f) The assessee satisfies any other condition as may be prescribed
B119: Amount of deduction –The amount of deduction is at 50% of the amount invested in equity shares/units.
B120: However, the amount of deduction under this provision cannot exceed Rs. 25,000
B121: Withdrawal of deduction – If the assessee, after claiming the aforesaid deduction, fails to satisfy the above conditions,
B122: the deduction originally allowed shall be deemed to be the income of the assessee of the year in which default is committed.
B123: This deduction is allowed for three consecutive assessment years beginning with the AY
B124: in which the listed equity shares or units were first acquired. If any deduction is claimed by a taxpayer under this section in any year,
B125: he shall not be entitled to any deduction under this section for any other year.

Sheet CUSTOMISE
B9: PAGE NO. 1
B16: TYPE DETAILS OF YOUR OFFICE IN ENGLISH ( എല്ലാ വിവരങ്ങളും ഇംഗ്ലീഷില്‍ നല്‍കുക)
B22: 1 | C22: NAME OF YOUR OFFICE (Use capital letters) | R22: SELECT HRA CLASS
B23: 2 | C23: PLACE OF OFFICE | R23: CORPORATION
B24: 3 | C24: NAME OF YOUR DDO (Office chief) [Gazetted officers should type name of Treasury officer] DDO എന്നതുകൊണ്ട്‌ ഉദ്ദേശിക്കുന്നത് അതതു സ്ഥാപനങ്ങളിലെ ശമ്പളം വിതരണം ചെയ്യുന്ന മേധാവിയാണ്. വിദ്യാലയങ്ങളില്‍ HM or PRINCIPAL | R24: MUNICIPALITY DISTRICT HQ
B25: 4 | C25: SELECT HRA CLASS OF YOUR INSTITUTION (നിങ്ങളുടെ ഓഫീസ് സ്ഥിതി ചെയ്യുന്ന മേഖലയുടെ തരം തെരഞ്ഞെടുക്കുക. വിരമിച്ച ജീവനക്കാർ, സ്വകാര്യ ജീവനക്കാർ,. HRA ആനുകൂല്യം ഇല്ലാത്ത ജീവനക്കാർ എന്നിവർ 'SELECT HRA CLASS' എന്ന ഓപ്ഷൻ മാറ്റാതെ അതേ പടി തുടരുക ) | H25: SELECT HRA CLASS | R25: MUNICIPALITY
B26: 5 | C26: =H24 -> 0 | F26: DESIGNATION | R26: PANCHAYATH
B27: 5 | C27: =C26 -> 0 | F27: PAN (If not known, leave it blank)
B28: 6 | C28: =C27 -> 0 | F28: TAN (OFFICE TAN) (If not known, leave it blank)
L29: Thanks to Maths blog Team, HSS Live blog, Hari, Adheesh T V, Simon Kattore, Muhammad AP, Shameem C H
B31: =IF(H24="","",IF(H25=R22,"Caution ! Your have to select the HRA class of your institution, Please select the locality of your office in point 4","")) -> 
B36: =IF(H24="","",IF(H25=R22,"A retired staff, staff without HRA benefit or Private staff can ignore the above error message","")) -> 

Sheet PERSONAL
B1: PAGE 2 | D1: =G24 -> ECTAX - 2024, Version | P1: Below 60 Years | U1: 1
G2: Scroll mouse to see continue button | H2: Scroll mouse to see continue button | P2: 60 to 79 Years | S2: Email: babuvadukkumchery@gmail.com | U2: 2
B3: SHOW YOUR PERSONAL DETAILS HERE ( വ്യക്തിപരമായ വിവരങ്ങള്‍ ഇവിടെ ) | P3: 80 and above | Q3: March 2014 bill, Cash receipt in April 2014 | S3: Financial year 2023-24 | U3: 3
B4: 1 | D4: YOUR NAME in English language - [ To refresh, click blue button on the top - മുന്‍വ്യക്തിയുടെ വിവരങ്ങള്‍ മായ്ക്കാന്‍ മുകളിലെ നീല ബട്ടന്‍ (circle) ക്ലിക്ക്ചെയ്യുക. അത് ചെയ്യുമ്പോള്‍ മുന്‍പ് സേവ് ചെയ്തിരുന്ന വ്യക്തിയുടെ വിവരങ്ങള്‍ നഷ്ടപ്പെടുകയോ തിരുത്തുകയോ ചെയ്യുന്നില്ല] | N4: MALE | Q4: April 2014 bill, Cash receipt in May 2014 | S4: Click to close | U4: 4
B5: 2 | D5: AGE (1942 ഏപ്രില്‍ 1 നും 1962 മാര്‍ച്ച് 31 നും ഇടയില്‍ ജനിച്ചവര്‍ 60-79 വിഭാഗത്തില്‍പെടുന്നു. 1942 ഏപ്രില്‍ 1 നു മുന്‍പ് ജനിച്ചവര്‍ 80 AND ABOVE വിഭാഗത്തില്‍പെടുന്നു ) Select age from options | H5: Below 60 Years | Q5: May 2014 bill, Cash receipt in June 2014 | U5: 5
B6: 3 | D6: DESIGNATION | N6: SENIOR CITIZEN | Q6: June 2014 bill, Cash receipt in July 2014
B7: 4 | D7: PAN | U7: 7
B8: 5 | D8: ARE YOU LIVING IN A RENTAL HOME ? (വാടക വീട്ടിലാണോ താമസം?) | H8: NO | M8: YES | U8: 8
B9: 6 | D9: =IF(H8="NO","You can skip this field താങ്കള്‍ ഇവിടെ ഒന്നും എഴുതേണ്ടതില്ല","Amount of ANNUAL rent payable during 2022 April to 2023 March Rs. (2023 ഏപ്രില്‍ തുടങ്ങി 2024 മാര്‍ച്ച് വരെ നല്‍കേണ്ട 12 മാസ വീട്ടുവാടക എഴുതുക) ") -> You can skip this field താങ്കള്‍ ഇവിടെ ഒന്നും എഴുതേണ്ടതില്ല | M9: NO | U9: 9
B10: 1A | D10: ="Dear "&H4&" , Are you Retired ? - Salary ആണോ Pension ആണോ വാങ്ങുന്നതെന്ന് ഓപ്ഷനിൽ നിന്നും തെരഞ്ഞെടുക്കുക " -> Dear , Are you Retired ? - Salary ആണോ Pension ആണോ വാങ്ങുന്നതെന്ന് ഓപ്ഷനിൽ നിന്നും തെരഞ്ഞെടുക്കുക | H10: SALARY | O10: PENSION | P10: SALARY | U10: 10
B11: 7 | D11: PLACE OF OFFICE | H11: =CUSTOMISE!H23 -> 0 | U11: 11
B12: 8 | D12: NAME OF YOUR DDO | H12: =CUSTOMISE!H24 -> 0 | U12: 12
B13: 7 | D13: HRA CLASS OF YOUR OFFICE (It is already selected by you in the previous page- Go back to edit താങ്കൾ നേരത്തേ സെലക്ട് ചെയ്ത HRA ക്ലാസ് ഇതാണ്, മാറ്റം വരുത്താൻ പിൻ പേജിൽ പോകുക അവിടെ Number 4 കാണുക ) | H13: =CUSTOMISE!H25 -> SELECT HRA CLASS | O13: =IF(H13=CUSTOMISE!R22,"Error ! Please go back, refer Point 4 in back page, and select locality class of your office for HRA calculation. An individual with No HRA can ignore this message","Ensure that the HRA class of your institution is as shown in number 7. An individual with no HRA can ignore this message") -> Error ! Please go back, refer Point 4 in back page, and select locality class of your office for HRA calculation. An individual with No HRA can ignore this message
B14: 10 | C14: =H12 -> 0 | F14: DESIGNATION | H14: =CUSTOMISE!H26 -> 0
B15: 11 | C15: =C14 -> 0 | F15: PAN
B16: 12 | C16: =C15 -> 0 | F16: TAN (OFFICE TAN) | H16: =CUSTOMISE!H28 -> 0
B17: 8 | D17: YOUR INCOME TAX TDS CIRCLE (If not known leave it blank ) | U17: 10
B18: 8 | D18: ARE YOU A GOVT / AIDED. EMPLOYEE ? | H18: YES | O18: YES | U18: 11
B19: 8 | D19: DO YOU HAVE TAKEN HOUSING LOAN ? ഭവന വായ്പ്പ എടുത്തിട്ടുണ്ടോ ? | H19: NO | O19: NO | P19: =IF(H19="august 2014 bill, cash receipt in september 2014",7,IF(H19="September 2014 bill, Cash receipt in October 2014",6,IF(H19="October 2014 bill, Cash receipt in November 2014",5,IF(H19="November 2014 bill, Cash receipt in December 2014",4,IF(H19="December 2014 bill, Cash receipt in January 2015",3))))) -> FALSE | Q19: September 2014 bill, Cash receipt in October 2014 | U19: 12
B20: 9 | D20: =IF(H19="yes","Please select YES if ALL OF the following conditions are OK related with the housing loan: 1. loan amount is not above Rs. 35 lakhs, 2. Loan sanctioned in 2016-17, 3. You are a first time home buyer, 4. cost of house does not exceed Rs. 50 lakhs","You can skip this field by selecting No") -> You can skip this field by selecting No | H20: NO | O20: =IF(H19="YES","ഏറ്റവും ചുവടെ കാണുന്ന കുറിപ്പ് മൌസ് സ്ക്രോള്‍ ചെയ്ത് വായിക്കുക","") -> 
B21: 10 | D21: Number of months remaing in the current financial year including this month, upto Feb-2024 (select from options) (ഇപ്പോള്‍ ശമ്പള ബില്‍ തയ്യാറാക്കാന്‍ പോകുന്ന നടപ്പു മാസമടക്കം ഈ സാമ്പത്തീക വര്‍ഷത്തില്‍ ഇനി എത്ര മാസങ്ങള്‍ ഉണ്ട് വലത്തുവശത്തു കാണുന്ന ലിസ്റ്റില്‍നിന്നും തിരഞ്ഞെടുക്കുക) 2023 ഡിസംബർ മാസത്തെ ശമ്പള ബിൽ സമർപ്പിക്കുമ്പോൾ ഇവിടെ 3 എന്നാണ് നൽകേണ്ടത്. ഫെബ്രുവരി മാസ ബില്ലിൽ 1 എന്നു നൽകാം | H21: 3 | M21: =C21 -> 0 | O21: before clicking continue, please read point Ten carefully | Q21: October 2014 bill, Cash receipt in November 2014
B22: 11 | D22: Number of months remaing in the current financial year including this month, upto Feb-2021 (select from options) (ഇപ്പോള്‍ ശമ്പള ബില്‍ തയ്യാറാക്കാന്‍ പോകുന്ന നടപ്പുമാസമടക്കം ഈ സാമ്പത്തീക വര്‍ഷത്തില്‍ ഇനി എത്ര മാസങ്ങള്‍ ഉണ്ട് വലത്തുവശത്തു കാണുന്ന ലിസ്റ്റില്‍ നിന്നും തെരഞ്ഞെടുക്കുക [ഉദാ.വര്‍ഷത്തിലെ ആദ്യ മാസത്തിലെ ബില്‍ നല്‍കുമ്പോള്‍ 12 എന്നും രണ്ടാം മാസത്തിലെ ബില്ലില്‍ 11 എന്നുമാണ് നല്‍കേണ്ടത് ] | H22: 12 | K22: click to close the programme - പ്രോഗ്രാം ക്ലോസ് ചെയ്യാന്‍ | Q22: November 2014 bill, Cash receipt in December 2014
H23: http://babuvadukkumchery.blogspot.com | Q23: December 2014 bill, Cash receipt in January 2015
G24: ="ECTAX - 2024, "&" "&CUSTOMISE!H22&" Version" -> ECTAX - 2024, Version
G25: Babu V A, commerce teacher, KNMVHSS VATANAPPALLY Thrissur
B26: 9 | D26: =IF(H19="no","","മേല്‍ വിവരിക്കുന്ന നിബന്ധനകള്‍ മുഴുവന്‍ പാലിക്കുന്ന പക്ഷം മാത്രം YES എന്ന് നല്‍കുക. ഏതെങ്കിലും ഒരു നിബന്ധന പോലും ശരിയാകുന്നില്ലെങ്കില്‍ NO എന്ന് നല്‍കണം ") ->  | M26: please mail your comments to babuvadukkumchery@gmail.com or dial 9947009559 for help
D29: =IF(D26="","","ഈ നിബന്ധനകള്‍ പാലിക്കാത്ത [NO selected ] loan നും മറ്റ് housing loan കൾക്ക് ലഭിക്കുന്ന ആനുകൂല്യം ലഭിക്കും. എന്നാല്‍ ഈ നിബന്ധന പാലിക്കപ്പെട്ടാല്‍ 2 lakkh നു പുറമേ 50000 രൂപ, വരെ അത്രയും പലിശ അടവുണ്ടെങ്കില്‍, S 80 EE പ്രകാരം ഇളവു ലഭിക്കും" ) -> 
H43: ANNUAL RENT PAID AND DUE RS.
B44: 1 | H44: =H9 -> 0
Q59: 1
Q60: 2
Q61: 3
Q62: 4
Q63: 5
Q64: 6
Q65: 7
Q66: 8
Q67: 9
Q68: 10
Q69: 11
Q70: 12
A452: gg

Sheet MONH SPL print
E3: ="1. Total of arrears credited to PF [including interest]" -> 1. Total of arrears credited to PF [including interest] | T3: ='ARREAR SPLIT'!N3 -> 0
E4: 2. Total of arrears as Cash receipt / credited to NPS [fully or partially] including DEFERRED SALARY & arrear interest | T4: ='ARREAR SPLIT'!N4 -> 0
E5: ="Total arrears [excluding interest Rs. "&'det.sal input'!W27&"] 1+2 minus Interest" -> Total arrears [excluding interest Rs. ] 1+2 minus Interest | T5: ='ARREAR SPLIT'!N5 -> 0
E6: Caution : Before filling the following field, place mouse on this lines to read an important message
B7: ="Divide the above arrear amount Rs. "&$T$5&" in the following tables related with DA arrear, Salary & deferred salary arrear & Pay revision arrear. For that Due drawn statement from SPARK can be used as reference" -> Divide the above arrear amount Rs. 0 in the following tables related with DA arrear, Salary & deferred salary arrear & Pay revision arrear. For that Due drawn statement from SPARK can be used as reference
B8: =CUSTOMISE!H22&" "&CUSTOMISE!H23 ->  | AC8: =IF('ARR MONH SPLIT'!AD63='det.sal input'!C25+'det.sal input'!C22+'det.sal input'!C21,"","Caution ! It seems likely that this statement is incorrect, kindly check the monthly split up of arrear with total of arrears received") -> 
B9: ="Monthly Arrear split up details of "&PERSONAL!H4&" for the year ended 31 March 2022" -> Monthly Arrear split up details of for the year ended 31 March 2022
B10: 1. DA ARREAR MONTHLY SPLIT UP
B11: 2009-10 | D11: 2010-11 | F11: 2011-12 | H11: 2012-13 | J11: 2013-14 | L11: 2014-15 | N11: 2015-16 | P11: 2016-17 | R11: 2017-18 | T11: 2018-19 | V11: 2019-20 | X11: 2020-21 | Z11: 2021-22 | AB11: Total DA arrear
B12: MONTH | C12: ARREAR | D12: MONTH | E12: ARREAR | F12: MONTH | G12: ARREAR | H12: MONTH | I12: ARREAR | J12: MONTH | K12: ARREAR | L12: MONTH | M12: ARREAR | N12: MONTH | O12: ARREAR | P12: MONTH | Q12: ARREAR | R12: MONTH | S12: ARREAR | T12: MONTH | U12: ARREAR | V12: MONTH | W12: ARREAR | X12: MONTH | Y12: ARREAR | Z12: MONTH | AA12: ARREAR
B13: MAR | C13: ='ARR MONH SPLIT'!C13 -> 0 | D13: 3 | E13: ='ARR MONH SPLIT'!E13 -> 0 | F13: 3 | G13: ='ARR MONH SPLIT'!G13 -> 0 | H13: 3 | I13: ='ARR MONH SPLIT'!I13 -> 0 | J13: 3 | K13: ='ARR MONH SPLIT'!K13 -> 0 | L13: 3 | M13: ='ARR MONH SPLIT'!M13 -> 0 | N13: 3 | O13: ='ARR MONH SPLIT'!O13 -> 0 | P13: 3 | Q13: ='ARR MONH SPLIT'!Q13 -> 0 | R13: 3 | S13: ='ARR MONH SPLIT'!S13 -> 0 | T13: 3 | U13: ='ARR MONH SPLIT'!U13 -> 0 | V13: 3 | W13: ='ARR MONH SPLIT'!W13 -> 0 | X13: 3 | Y13: ='ARR MONH SPLIT'!Y13 -> 0 | Z13: 3 | AA13: ='ARR MONH SPLIT'!AA13 -> 0
B14: APR | C14: ='ARR MONH SPLIT'!C14 -> 0 | D14: 4 | E14: ='ARR MONH SPLIT'!E14 -> 0 | F14: 4 | G14: ='ARR MONH SPLIT'!G14 -> 0 | H14: 4 | I14: ='ARR MONH SPLIT'!I14 -> 0 | J14: 4 | K14: ='ARR MONH SPLIT'!K14 -> 0 | L14: 4 | M14: ='ARR MONH SPLIT'!M14 -> 0 | N14: 4 | O14: ='ARR MONH SPLIT'!O14 -> 0 | P14: 4 | Q14: ='ARR MONH SPLIT'!Q14 -> 0 | R14: 4 | S14: ='ARR MONH SPLIT'!S14 -> 0 | T14: 4 | U14: ='ARR MONH SPLIT'!U14 -> 0 | V14: 4 | W14: ='ARR MONH SPLIT'!W14 -> 0 | X14: 4 | Y14: ='ARR MONH SPLIT'!Y14 -> 0 | Z14: 4 | AA14: ='ARR MONH SPLIT'!AA14 -> 0
B15: MAY | C15: ='ARR MONH SPLIT'!C15 -> 0 | D15: 5 | E15: ='ARR MONH SPLIT'!E15 -> 0 | F15: 5 | G15: ='ARR MONH SPLIT'!G15 -> 0 | H15: 5 | I15: ='ARR MONH SPLIT'!I15 -> 0 | J15: 5 | K15: ='ARR MONH SPLIT'!K15 -> 0 | L15: 5 | M15: ='ARR MONH SPLIT'!M15 -> 0 | N15: 5 | O15: ='ARR MONH SPLIT'!O15 -> 0 | P15: 5 | Q15: ='ARR MONH SPLIT'!Q15 -> 0 | R15: 5 | S15: ='ARR MONH SPLIT'!S15 -> 0 | T15: 5 | U15: ='ARR MONH SPLIT'!U15 -> 0 | V15: 5 | W15: ='ARR MONH SPLIT'!W15 -> 0 | X15: 5 | Y15: ='ARR MONH SPLIT'!Y15 -> 0 | Z15: 5 | AA15: ='ARR MONH SPLIT'!AA15 -> 0
B16: JUN | C16: ='ARR MONH SPLIT'!C16 -> 0 | D16: 6 | E16: ='ARR MONH SPLIT'!E16 -> 0 | F16: 6 | G16: ='ARR MONH SPLIT'!G16 -> 0 | H16: 6 | I16: ='ARR MONH SPLIT'!I16 -> 0 | J16: 6 | K16: ='ARR MONH SPLIT'!K16 -> 0 | L16: 6 | M16: ='ARR MONH SPLIT'!M16 -> 0 | N16: 6 | O16: ='ARR MONH SPLIT'!O16 -> 0 | P16: 6 | Q16: ='ARR MONH SPLIT'!Q16 -> 0 | R16: 6 | S16: ='ARR MONH SPLIT'!S16 -> 0 | T16: 6 | U16: ='ARR MONH SPLIT'!U16 -> 0 | V16: 6 | W16: ='ARR MONH SPLIT'!W16 -> 0 | X16: 6 | Y16: ='ARR MONH SPLIT'!Y16 -> 0 | Z16: 6 | AA16: ='ARR MONH SPLIT'!AA16 -> 0
B17: JUL | C17: ='ARR MONH SPLIT'!C17 -> 0 | D17: 7 | E17: ='ARR MONH SPLIT'!E17 -> 0 | F17: 7 | G17: ='ARR MONH SPLIT'!G17 -> 0 | H17: 7 | I17: ='ARR MONH SPLIT'!I17 -> 0 | J17: 7 | K17: ='ARR MONH SPLIT'!K17 -> 0 | L17: 7 | M17: ='ARR MONH SPLIT'!M17 -> 0 | N17: 7 | O17: ='ARR MONH SPLIT'!O17 -> 0 | P17: 7 | Q17: ='ARR MONH SPLIT'!Q17 -> 0 | R17: 7 | S17: ='ARR MONH SPLIT'!S17 -> 0 | T17: 7 | U17: ='ARR MONH SPLIT'!U17 -> 0 | V17: 7 | W17: ='ARR MONH SPLIT'!W17 -> 0 | X17: 7 | Y17: ='ARR MONH SPLIT'!Y17 -> 0 | Z17: 7 | AA17: ='ARR MONH SPLIT'!AA17 -> 0
B18: AUG | C18: ='ARR MONH SPLIT'!C18 -> 0 | D18: 8 | E18: ='ARR MONH SPLIT'!E18 -> 0 | F18: 8 | G18: ='ARR MONH SPLIT'!G18 -> 0 | H18: 8 | I18: ='ARR MONH SPLIT'!I18 -> 0 | J18: 8 | K18: ='ARR MONH SPLIT'!K18 -> 0 | L18: 8 | M18: ='ARR MONH SPLIT'!M18 -> 0 | N18: 8 | O18: ='ARR MONH SPLIT'!O18 -> 0 | P18: 8 | Q18: ='ARR MONH SPLIT'!Q18 -> 0 | R18: 8 | S18: ='ARR MONH SPLIT'!S18 -> 0 | T18: 8 | U18: ='ARR MONH SPLIT'!U18 -> 0 | V18: 8 | W18: ='ARR MONH SPLIT'!W18 -> 0 | X18: 8 | Y18: ='ARR MONH SPLIT'!Y18 -> 0 | Z18: 8 | AA18: ='ARR MONH SPLIT'!AA18 -> 0
B19: SEP | C19: ='ARR MONH SPLIT'!C19 -> 0 | D19: 9 | E19: ='ARR MONH SPLIT'!E19 -> 0 | F19: 9 | G19: ='ARR MONH SPLIT'!G19 -> 0 | H19: 9 | I19: ='ARR MONH SPLIT'!I19 -> 0 | J19: 9 | K19: ='ARR MONH SPLIT'!K19 -> 0 | L19: 9 | M19: ='ARR MONH SPLIT'!M19 -> 0 | N19: 9 | O19: ='ARR MONH SPLIT'!O19 -> 0 | P19: 9 | Q19: ='ARR MONH SPLIT'!Q19 -> 0 | R19: 9 | S19: ='ARR MONH SPLIT'!S19 -> 0 | T19: 9 | U19: ='ARR MONH SPLIT'!U19 -> 0 | V19: 9 | W19: ='ARR MONH SPLIT'!W19 -> 0 | X19: 9 | Y19: ='ARR MONH SPLIT'!Y19 -> 0 | Z19: 9 | AA19: ='ARR MONH SPLIT'!AA19 -> 0
B20: OCT | C20: ='ARR MONH SPLIT'!C20 -> 0 | D20: 10 | E20: ='ARR MONH SPLIT'!E20 -> 0 | F20: 10 | G20: ='ARR MONH SPLIT'!G20 -> 0 | H20: 10 | I20: ='ARR MONH SPLIT'!I20 -> 0 | J20: 10 | K20: ='ARR MONH SPLIT'!K20 -> 0 | L20: 10 | M20: ='ARR MONH SPLIT'!M20 -> 0 | N20: 10 | O20: ='ARR MONH SPLIT'!O20 -> 0 | P20: 10 | Q20: ='ARR MONH SPLIT'!Q20 -> 0 | R20: 10 | S20: ='ARR MONH SPLIT'!S20 -> 0 | T20: 10 | U20: ='ARR MONH SPLIT'!U20 -> 0 | V20: 10 | W20: ='ARR MONH SPLIT'!W20 -> 0 | X20: 10 | Y20: ='ARR MONH SPLIT'!Y20 -> 0 | Z20: 10 | AA20: ='ARR MONH SPLIT'!AA20 -> 0
B21: NOV | C21: ='ARR MONH SPLIT'!C21 -> 0 | D21: 11 | E21: ='ARR MONH SPLIT'!E21 -> 0 | F21: 11 | G21: ='ARR MONH SPLIT'!G21 -> 0 | H21: 11 | I21: ='ARR MONH SPLIT'!I21 -> 0 | J21: 11 | K21: ='ARR MONH SPLIT'!K21 -> 0 | L21: 11 | M21: ='ARR MONH SPLIT'!M21 -> 0 | N21: 11 | O21: ='ARR MONH SPLIT'!O21 -> 0 | P21: 11 | Q21: ='ARR MONH SPLIT'!Q21 -> 0 | R21: 11 | S21: ='ARR MONH SPLIT'!S21 -> 0 | T21: 11 | U21: ='ARR MONH SPLIT'!U21 -> 0 | V21: 11 | W21: ='ARR MONH SPLIT'!W21 -> 0 | X21: 11 | Y21: ='ARR MONH SPLIT'!Y21 -> 0 | Z21: 11 | AA21: ='ARR MONH SPLIT'!AA21 -> 0
B22: DEC | C22: ='ARR MONH SPLIT'!C22 -> 0 | D22: 12 | E22: ='ARR MONH SPLIT'!E22 -> 0 | F22: 12 | G22: ='ARR MONH SPLIT'!G22 -> 0 | H22: 12 | I22: ='ARR MONH SPLIT'!I22 -> 0 | J22: 12 | K22: ='ARR MONH SPLIT'!K22 -> 0 | L22: 12 | M22: ='ARR MONH SPLIT'!M22 -> 0 | N22: 12 | O22: ='ARR MONH SPLIT'!O22 -> 0 | P22: 12 | Q22: ='ARR MONH SPLIT'!Q22 -> 0 | R22: 12 | S22: ='ARR MONH SPLIT'!S22 -> 0 | T22: 12 | U22: ='ARR MONH SPLIT'!U22 -> 0 | V22: 12 | W22: ='ARR MONH SPLIT'!W22 -> 0 | X22: 12 | Y22: ='ARR MONH SPLIT'!Y22 -> 0 | Z22: 12 | AA22: ='ARR MONH SPLIT'!AA22 -> 0
B23: JAN | C23: ='ARR MONH SPLIT'!C23 -> 0 | D23: 1 | E23: ='ARR MONH SPLIT'!E23 -> 0 | F23: 1 | G23: ='ARR MONH SPLIT'!G23 -> 0 | H23: 1 | I23: ='ARR MONH SPLIT'!I23 -> 0 | J23: 1 | K23: ='ARR MONH SPLIT'!K23 -> 0 | L23: 1 | M23: ='ARR MONH SPLIT'!M23 -> 0 | N23: 1 | O23: ='ARR MONH SPLIT'!O23 -> 0 | P23: 1 | Q23: ='ARR MONH SPLIT'!Q23 -> 0 | R23: 1 | S23: ='ARR MONH SPLIT'!S23 -> 0 | T23: 1 | U23: ='ARR MONH SPLIT'!U23 -> 0 | V23: 1 | W23: ='ARR MONH SPLIT'!W23 -> 0 | X23: 1 | Y23: ='ARR MONH SPLIT'!Y23 -> 0 | Z23: 1 | AA23: ='ARR MONH SPLIT'!AA23 -> 0
B24: FEB | C24: ='ARR MONH SPLIT'!C24 -> 0 | D24: 2 | E24: ='ARR MONH SPLIT'!E24 -> 0 | F24: 2 | G24: ='ARR MONH SPLIT'!G24 -> 0 | H24: 2 | I24: ='ARR MONH SPLIT'!I24 -> 0 | J24: 2 | K24: ='ARR MONH SPLIT'!K24 -> 0 | L24: 2 | M24: ='ARR MONH SPLIT'!M24 -> 0 | N24: 2 | O24: ='ARR MONH SPLIT'!O24 -> 0 | P24: 2 | Q24: ='ARR MONH SPLIT'!Q24 -> 0 | R24: 2 | S24: ='ARR MONH SPLIT'!S24 -> 0 | T24: 2 | U24: ='ARR MONH SPLIT'!U24 -> 0 | V24: 2 | W24: ='ARR MONH SPLIT'!W24 -> 0 | X24: 2 | Y24: ='ARR MONH SPLIT'!Y24 -> 0 | Z24: 2 | AA24: ='ARR MONH SPLIT'!AA24 -> 0
B25: Total | C25: =SUM(C13:C24) -> 0 | E25: =SUM(E13:E24) -> 0 | G25: =SUM(G13:G24) -> 0 | I25: =SUM(I13:I24) -> 0 | K25: =SUM(K13:K24) -> 0 | M25: =SUM(M13:M24) -> 0 | O25: =SUM(O13:O24) -> 0 | Q25: =SUM(Q13:Q24) -> 0 | S25: =SUM(S13:S24) -> 0 | U25: =SUM(U13:U24) -> 0 | W25: =SUM(W13:W24) -> 0 | Y25: =SUM(Y13:Y24) -> 0 | AA25: =SUM(AA13:AA24) -> 0 | AB25: =SUM(C25:AA25) -> 0
W26: 2. Deferred salary | X26: Deferred salary | Y26: ='ARR MONH SPLIT'!Y26 -> 0 | AB26: =Y26 -> 0
B27: 3. SALARY ARREAR MONTHLY SPLIT UP
B28: 2009-10 | D28: 2010-11 | F28: 2011-12 | H28: 2012-13 | J28: 2013-14 | L28: 2014-15 | N28: 2015-16 | P28: 2016-17 | R28: 2017-18 | T28: 2018-19 | V28: 2019-20 | X28: 2020-21 | Z28: 2021-22 | AB28: Total Salary Arrear
B29: MONTH | C29: ARREAR | D29: MONTH | E29: ARREAR | F29: MONTH | G29: ARREAR | H29: MONTH | I29: ARREAR | J29: MONTH | K29: ARREAR | L29: MONTH | M29: ARREAR | N29: MONTH | O29: ARREAR | P29: MONTH | Q29: ARREAR | R29: MONTH | S29: ARREAR | T29: MONTH | U29: ARREAR | V29: MONTH | W29: ARREAR | X29: MONTH | Y29: ARREAR | Z29: MONTH | AA29: ARREAR | AB29: Arrear
B30: MAR | C30: ='ARR MONH SPLIT'!C30 -> 0 | D30: 3 | E30: ='ARR MONH SPLIT'!E30 -> 0 | F30: 3 | G30: ='ARR MONH SPLIT'!G30 -> 0 | H30: 3 | I30: ='ARR MONH SPLIT'!I30 -> 0 | J30: 3 | K30: ='ARR MONH SPLIT'!K30 -> 0 | L30: 3 | M30: ='ARR MONH SPLIT'!M30 -> 0 | N30: 3 | O30: ='ARR MONH SPLIT'!O30 -> 0 | P30: 3 | Q30: ='ARR MONH SPLIT'!Q30 -> 0 | R30: 3 | S30: ='ARR MONH SPLIT'!S30 -> 0 | T30: 3 | U30: ='ARR MONH SPLIT'!U30 -> 0 | V30: 3 | W30: ='ARR MONH SPLIT'!W30 -> 0 | X30: 3 | Y30: ='ARR MONH SPLIT'!Y30 -> 0 | Z30: 3 | AA30: ='ARR MONH SPLIT'!AA30 -> 0
B31: APR | C31: ='ARR MONH SPLIT'!C31 -> 0 | D31: 4 | E31: ='ARR MONH SPLIT'!E31 -> 0 | F31: 4 | G31: ='ARR MONH SPLIT'!G31 -> 0 | H31: 4 | I31: ='ARR MONH SPLIT'!I31 -> 0 | J31: 4 | K31: ='ARR MONH SPLIT'!K31 -> 0 | L31: 4 | M31: ='ARR MONH SPLIT'!M31 -> 0 | N31: 4 | O31: ='ARR MONH SPLIT'!O31 -> 0 | P31: 4 | Q31: ='ARR MONH SPLIT'!Q31 -> 0 | R31: 4 | S31: ='ARR MONH SPLIT'!S31 -> 0 | T31: 4 | U31: ='ARR MONH SPLIT'!U31 -> 0 | V31: 4 | W31: ='ARR MONH SPLIT'!W31 -> 0 | X31: 4 | Y31: ='ARR MONH SPLIT'!Y31 -> 0 | Z31: 4 | AA31: ='ARR MONH SPLIT'!AA31 -> 0
B32: MAY | C32: ='ARR MONH SPLIT'!C32 -> 0 | D32: 5 | E32: ='ARR MONH SPLIT'!E32 -> 0 | F32: 5 | G32: ='ARR MONH SPLIT'!G32 -> 0 | H32: 5 | I32: ='ARR MONH SPLIT'!I32 -> 0 | J32: 5 | K32: ='ARR MONH SPLIT'!K32 -> 0 | L32: 5 | M32: ='ARR MONH SPLIT'!M32 -> 0 | N32: 5 | O32: ='ARR MONH SPLIT'!O32 -> 0 | P32: 5 | Q32: ='ARR MONH SPLIT'!Q32 -> 0 | R32: 5 | S32: ='ARR MONH SPLIT'!S32 -> 0 | T32: 5 | U32: ='ARR MONH SPLIT'!U32 -> 0 | V32: 5 | W32: ='ARR MONH SPLIT'!W32 -> 0 | X32: 5 | Y32: ='ARR MONH SPLIT'!Y32 -> 0 | Z32: 5 | AA32: ='ARR MONH SPLIT'!AA32 -> 0
B33: JUN | C33: ='ARR MONH SPLIT'!C33 -> 0 | D33: 6 | E33: ='ARR MONH SPLIT'!E33 -> 0 | F33: 6 | G33: ='ARR MONH SPLIT'!G33 -> 0 | H33: 6 | I33: ='ARR MONH SPLIT'!I33 -> 0 | J33: 6 | K33: ='ARR MONH SPLIT'!K33 -> 0 | L33: 6 | M33: ='ARR MONH SPLIT'!M33 -> 0 | N33: 6 | O33: ='ARR MONH SPLIT'!O33 -> 0 | P33: 6 | Q33: ='ARR MONH SPLIT'!Q33 -> 0 | R33: 6 | S33: ='ARR MONH SPLIT'!S33 -> 0 | T33: 6 | U33: ='ARR MONH SPLIT'!U33 -> 0 | V33: 6 | W33: ='ARR MONH SPLIT'!W33 -> 0 | X33: 6 | Y33: ='ARR MONH SPLIT'!Y33 -> 0 | Z33: 6 | AA33: ='ARR MONH SPLIT'!AA33 -> 0
B34: JUL | C34: ='ARR MONH SPLIT'!C34 -> 0 | D34: 7 | E34: ='ARR MONH SPLIT'!E34 -> 0 | F34: 7 | G34: ='ARR MONH SPLIT'!G34 -> 0 | H34: 7 | I34: ='ARR MONH SPLIT'!I34 -> 0 | J34: 7 | K34: ='ARR MONH SPLIT'!K34 -> 0 | L34: 7 | M34: ='ARR MONH SPLIT'!M34 -> 0 | N34: 7 | O34: ='ARR MONH SPLIT'!O34 -> 0 | P34: 7 | Q34: ='ARR MONH SPLIT'!Q34 -> 0 | R34: 7 | S34: ='ARR MONH SPLIT'!S34 -> 0 | T34: 7 | U34: ='ARR MONH SPLIT'!U34 -> 0 | V34: 7 | W34: ='ARR MONH SPLIT'!W34 -> 0 | X34: 7 | Y34: ='ARR MONH SPLIT'!Y34 -> 0 | Z34: 7 | AA34: ='ARR MONH SPLIT'!AA34 -> 0
B35: AUG | C35: ='ARR MONH SPLIT'!C35 -> 0 | D35: 8 | E35: ='ARR MONH SPLIT'!E35 -> 0 | F35: 8 | G35: ='ARR MONH SPLIT'!G35 -> 0 | H35: 8 | I35: ='ARR MONH SPLIT'!I35 -> 0 | J35: 8 | K35: ='ARR MONH SPLIT'!K35 -> 0 | L35: 8 | M35: ='ARR MONH SPLIT'!M35 -> 0 | N35: 8 | O35: ='ARR MONH SPLIT'!O35 -> 0 | P35: 8 | Q35: ='ARR MONH SPLIT'!Q35 -> 0 | R35: 8 | S35: ='ARR MONH SPLIT'!S35 -> 0 | T35: 8 | U35: ='ARR MONH SPLIT'!U35 -> 0 | V35: 8 | W35: ='ARR MONH SPLIT'!W35 -> 0 | X35: 8 | Y35: ='ARR MONH SPLIT'!Y35 -> 0 | Z35: 8 | AA35: ='ARR MONH SPLIT'!AA35 -> 0
B36: SEP | C36: ='ARR MONH SPLIT'!C36 -> 0 | D36: 9 | E36: ='ARR MONH SPLIT'!E36 -> 0 | F36: 9 | G36: ='ARR MONH SPLIT'!G36 -> 0 | H36: 9 | I36: ='ARR MONH SPLIT'!I36 -> 0 | J36: 9 | K36: ='ARR MONH SPLIT'!K36 -> 0 | L36: 9 | M36: ='ARR MONH SPLIT'!M36 -> 0 | N36: 9 | O36: ='ARR MONH SPLIT'!O36 -> 0 | P36: 9 | Q36: ='ARR MONH SPLIT'!Q36 -> 0 | R36: 9 | S36: ='ARR MONH SPLIT'!S36 -> 0 | T36: 9 | U36: ='ARR MONH SPLIT'!U36 -> 0 | V36: 9 | W36: ='ARR MONH SPLIT'!W36 -> 0 | X36: 9 | Y36: ='ARR MONH SPLIT'!Y36 -> 0 | Z36: 9 | AA36: ='ARR MONH SPLIT'!AA36 -> 0
B37: OCT | C37: ='ARR MONH SPLIT'!C37 -> 0 | D37: 10 | E37: ='ARR MONH SPLIT'!E37 -> 0 | F37: 10 | G37: ='ARR MONH SPLIT'!G37 -> 0 | H37: 10 | I37: ='ARR MONH SPLIT'!I37 -> 0 | J37: 10 | K37: ='ARR MONH SPLIT'!K37 -> 0 | L37: 10 | M37: ='ARR MONH SPLIT'!M37 -> 0 | N37: 10 | O37: ='ARR MONH SPLIT'!O37 -> 0 | P37: 10 | Q37: ='ARR MONH SPLIT'!Q37 -> 0 | R37: 10 | S37: ='ARR MONH SPLIT'!S37 -> 0 | T37: 10 | U37: ='ARR MONH SPLIT'!U37 -> 0 | V37: 10 | W37: ='ARR MONH SPLIT'!W37 -> 0 | X37: 10 | Y37: ='ARR MONH SPLIT'!Y37 -> 0 | Z37: 10 | AA37: ='ARR MONH SPLIT'!AA37 -> 0
B38: NOV | C38: ='ARR MONH SPLIT'!C38 -> 0 | D38: 11 | E38: ='ARR MONH SPLIT'!E38 -> 0 | F38: 11 | G38: ='ARR MONH SPLIT'!G38 -> 0 | H38: 11 | I38: ='ARR MONH SPLIT'!I38 -> 0 | J38: 11 | K38: ='ARR MONH SPLIT'!K38 -> 0 | L38: 11 | M38: ='ARR MONH SPLIT'!M38 -> 0 | N38: 11 | O38: ='ARR MONH SPLIT'!O38 -> 0 | P38: 11 | Q38: ='ARR MONH SPLIT'!Q38 -> 0 | R38: 11 | S38: ='ARR MONH SPLIT'!S38 -> 0 | T38: 11 | U38: ='ARR MONH SPLIT'!U38 -> 0 | V38: 11 | W38: ='ARR MONH SPLIT'!W38 -> 0 | X38: 11 | Y38: ='ARR MONH SPLIT'!Y38 -> 0 | Z38: 11 | AA38: ='ARR MONH SPLIT'!AA38 -> 0
B39: DEC | C39: ='ARR MONH SPLIT'!C39 -> 0 | D39: 12 | E39: ='ARR MONH SPLIT'!E39 -> 0 | F39: 12 | G39: ='ARR MONH SPLIT'!G39 -> 0 | H39: 12 | I39: ='ARR MONH SPLIT'!I39 -> 0 | J39: 12 | K39: ='ARR MONH SPLIT'!K39 -> 0 | L39: 12 | M39: ='ARR MONH SPLIT'!M39 -> 0 | N39: 12 | O39: ='ARR MONH SPLIT'!O39 -> 0 | P39: 12 | Q39: ='ARR MONH SPLIT'!Q39 -> 0 | R39: 12 | S39: ='ARR MONH SPLIT'!S39 -> 0 | T39: 12 | U39: ='ARR MONH SPLIT'!U39 -> 0 | V39: 12 | W39: ='ARR MONH SPLIT'!W39 -> 0 | X39: 12 | Y39: ='ARR MONH SPLIT'!Y39 -> 0 | Z39: 12 | AA39: ='ARR MONH SPLIT'!AA39 -> 0
B40: JAN | C40: ='ARR MONH SPLIT'!C40 -> 0 | D40: 1 | E40: ='ARR MONH SPLIT'!E40 -> 0 | F40: 1 | G40: ='ARR MONH SPLIT'!G40 -> 0 | H40: 1 | I40: ='ARR MONH SPLIT'!I40 -> 0 | J40: 1 | K40: ='ARR MONH SPLIT'!K40 -> 0 | L40: 1 | M40: ='ARR MONH SPLIT'!M40 -> 0 | N40: 1 | O40: ='ARR MONH SPLIT'!O40 -> 0 | P40: 1 | Q40: ='ARR MONH SPLIT'!Q40 -> 0 | R40: 1 | S40: ='ARR MONH SPLIT'!S40 -> 0 | T40: 1 | U40: ='ARR MONH SPLIT'!U40 -> 0 | V40: 1 | W40: ='ARR MONH SPLIT'!W40 -> 0 | X40: 1 | Y40: ='ARR MONH SPLIT'!Y40 -> 0 | Z40: 1 | AA40: ='ARR MONH SPLIT'!AA40 -> 0
B41: FEB | C41: ='ARR MONH SPLIT'!C41 -> 0 | D41: 2 | E41: ='ARR MONH SPLIT'!E41 -> 0 | F41: 2 | G41: ='ARR MONH SPLIT'!G41 -> 0 | H41: 2 | I41: ='ARR MONH SPLIT'!I41 -> 0 | J41: 2 | K41: ='ARR MONH SPLIT'!K41 -> 0 | L41: 2 | M41: ='ARR MONH SPLIT'!M41 -> 0 | N41: 2 | O41: ='ARR MONH SPLIT'!O41 -> 0 | P41: 2 | Q41: ='ARR MONH SPLIT'!Q41 -> 0 | R41: 2 | S41: ='ARR MONH SPLIT'!S41 -> 0 | T41: 2 | U41: ='ARR MONH SPLIT'!U41 -> 0 | V41: 2 | W41: ='ARR MONH SPLIT'!W41 -> 0 | X41: 2 | Y41: ='ARR MONH SPLIT'!Y41 -> 0 | Z41: 2 | AA41: ='ARR MONH SPLIT'!AA41 -> 0
B42: Total | C42: =SUM(C30:C41) -> 0 | E42: =SUM(E30:E41) -> 0 | G42: =SUM(G30:G41) -> 0 | I42: =SUM(I30:I41) -> 0 | K42: =SUM(K30:K41) -> 0 | M42: =SUM(M30:M41) -> 0 | O42: =SUM(O30:O41) -> 0 | Q42: =SUM(Q30:Q41) -> 0 | S42: =SUM(S30:S41) -> 0 | U42: =SUM(U30:U41) -> 0 | W42: =SUM(W30:W41) -> 0 | Y42: =SUM(Y30:Y41) -> 0 | AA42: =SUM(AA30:AA41) -> 0 | AB42: =SUM(C42:AA42) -> 0
B44: ="4. PAY REVISION ARREAR or any other arrear MONTHLY SPLIT UP OF "&PERSONAL!H4 -> 4. PAY REVISION ARREAR or any other arrear MONTHLY SPLIT UP OF
B45: 2009-10 | D45: 2010-11 | F45: 2011-12 | H45: 2012-13 | J45: 2013-14 | L45: 2014-15 | N45: 2015-16 | P45: 2016-17 | R45: 2017-18 | T45: 2018-19 | V45: 2019-20 | X45: 2020-21 | Z45: 2021-22 | AB45: Total Pay revision arrear
B46: MONTH | C46: ARREAR | D46: MONTH | E46: ARREAR | F46: MONTH | G46: ARREAR | H46: MONTH | I46: ARREAR | J46: MONTH | K46: ARREAR | L46: MONTH | M46: ARREAR | N46: MONTH | O46: ARREAR | P46: MONTH | Q46: ARREAR | R46: MONTH | S46: ARREAR | T46: MONTH | U46: ARREAR | V46: MONTH | W46: ARREAR | X46: MONTH | Y46: ARREAR | Z46: MONTH | AA46: ARREAR | AB46: Arrear
B47: MAR | C47: ='ARR MONH SPLIT'!C47 -> 0 | D47: 3 | E47: ='ARR MONH SPLIT'!E47 -> 0 | F47: 3 | G47: ='ARR MONH SPLIT'!G47 -> 0 | H47: 3 | I47: ='ARR MONH SPLIT'!I47 -> 0 | J47: 3 | K47: ='ARR MONH SPLIT'!K47 -> 0 | L47: 3 | M47: ='ARR MONH SPLIT'!M47 -> 0 | N47: 3 | O47: ='ARR MONH SPLIT'!O47 -> 0 | P47: 3 | Q47: ='ARR MONH SPLIT'!Q47 -> 0 | R47: 3 | S47: ='ARR MONH SPLIT'!S47 -> 0 | T47: 3 | U47: ='ARR MONH SPLIT'!U47 -> 0 | V47: 3 | W47: ='ARR MONH SPLIT'!W47 -> 0 | X47: 3 | Y47: ='ARR MONH SPLIT'!Y47 -> 0 | Z47: 3 | AA47: ='ARR MONH SPLIT'!AA47 -> 0
B48: APR | C48: ='ARR MONH SPLIT'!C48 -> 0 | D48: 4 | E48: ='ARR MONH SPLIT'!E48 -> 0 | F48: 4 | G48: ='ARR MONH SPLIT'!G48 -> 0 | H48: 4 | I48: ='ARR MONH SPLIT'!I48 -> 0 | J48: 4 | K48: ='ARR MONH SPLIT'!K48 -> 0 | L48: 4 | M48: ='ARR MONH SPLIT'!M48 -> 0 | N48: 4 | O48: ='ARR MONH SPLIT'!O48 -> 0 | P48: 4 | Q48: ='ARR MONH SPLIT'!Q48 -> 0 | R48: 4 | S48: ='ARR MONH SPLIT'!S48 -> 0 | T48: 4 | U48: ='ARR MONH SPLIT'!U48 -> 0 | V48: 4 | W48: ='ARR MONH SPLIT'!W48 -> 0 | X48: 4 | Y48: ='ARR MONH SPLIT'!Y48 -> 0 | Z48: 4 | AA48: ='ARR MONH SPLIT'!AA48 -> 0
B49: MAY | C49: ='ARR MONH SPLIT'!C49 -> 0 | D49: 5 | E49: ='ARR MONH SPLIT'!E49 -> 0 | F49: 5 | G49: ='ARR MONH SPLIT'!G49 -> 0 | H49: 5 | I49: ='ARR MONH SPLIT'!I49 -> 0 | J49: 5 | K49: ='ARR MONH SPLIT'!K49 -> 0 | L49: 5 | M49: ='ARR MONH SPLIT'!M49 -> 0 | N49: 5 | O49: ='ARR MONH SPLIT'!O49 -> 0 | P49: 5 | Q49: ='ARR MONH SPLIT'!Q49 -> 0 | R49: 5 | S49: ='ARR MONH SPLIT'!S49 -> 0 | T49: 5 | U49: ='ARR MONH SPLIT'!U49 -> 0 | V49: 5 | W49: ='ARR MONH SPLIT'!W49 -> 0 | X49: 5 | Y49: ='ARR MONH SPLIT'!Y49 -> 0 | Z49: 5 | AA49: ='ARR MONH SPLIT'!AA49 -> 0
B50: JUN | C50: ='ARR MONH SPLIT'!C50 -> 0 | D50: 6 | E50: ='ARR MONH SPLIT'!E50 -> 0 | F50: 6 | G50: ='ARR MONH SPLIT'!G50 -> 0 | H50: 6 | I50: ='ARR MONH SPLIT'!I50 -> 0 | J50: 6 | K50: ='ARR MONH SPLIT'!K50 -> 0 | L50: 6 | M50: ='ARR MONH SPLIT'!M50 -> 0 | N50: 6 | O50: ='ARR MONH SPLIT'!O50 -> 0 | P50: 6 | Q50: ='ARR MONH SPLIT'!Q50 -> 0 | R50: 6 | S50: ='ARR MONH SPLIT'!S50 -> 0 | T50: 6 | U50: ='ARR MONH SPLIT'!U50 -> 0 | V50: 6 | W50: ='ARR MONH SPLIT'!W50 -> 0 | X50: 6 | Y50: ='ARR MONH SPLIT'!Y50 -> 0 | Z50: 6 | AA50: ='ARR MONH SPLIT'!AA50 -> 0
B51: JUL | C51: ='ARR MONH SPLIT'!C51 -> 0 | D51: 7 | E51: ='ARR MONH SPLIT'!E51 -> 0 | F51: 7 | G51: ='ARR MONH SPLIT'!G51 -> 0 | H51: 7 | I51: ='ARR MONH SPLIT'!I51 -> 0 | J51: 7 | K51: ='ARR MONH SPLIT'!K51 -> 0 | L51: 7 | M51: ='ARR MONH SPLIT'!M51 -> 0 | N51: 7 | O51: ='ARR MONH SPLIT'!O51 -> 0 | P51: 7 | Q51: ='ARR MONH SPLIT'!Q51 -> 0 | R51: 7 | S51: ='ARR MONH SPLIT'!S51 -> 0 | T51: 7 | U51: ='ARR MONH SPLIT'!U51 -> 0 | V51: 7 | W51: ='ARR MONH SPLIT'!W51 -> 0 | X51: 7 | Y51: ='ARR MONH SPLIT'!Y51 -> 0 | Z51: 7 | AA51: ='ARR MONH SPLIT'!AA51 -> 0
B52: AUG | C52: ='ARR MONH SPLIT'!C52 -> 0 | D52: 8 | E52: ='ARR MONH SPLIT'!E52 -> 0 | F52: 8 | G52: ='ARR MONH SPLIT'!G52 -> 0 | H52: 8 | I52: ='ARR MONH SPLIT'!I52 -> 0 | J52: 8 | K52: ='ARR MONH SPLIT'!K52 -> 0 | L52: 8 | M52: ='ARR MONH SPLIT'!M52 -> 0 | N52: 8 | O52: ='ARR MONH SPLIT'!O52 -> 0 | P52: 8 | Q52: ='ARR MONH SPLIT'!Q52 -> 0 | R52: 8 | S52: ='ARR MONH SPLIT'!S52 -> 0 | T52: 8 | U52: ='ARR MONH SPLIT'!U52 -> 0 | V52: 8 | W52: ='ARR MONH SPLIT'!W52 -> 0 | X52: 8 | Y52: ='ARR MONH SPLIT'!Y52 -> 0 | Z52: 8 | AA52: ='ARR MONH SPLIT'!AA52 -> 0
B53: SEP | C53: ='ARR MONH SPLIT'!C53 -> 0 | D53: 9 | E53: ='ARR MONH SPLIT'!E53 -> 0 | F53: 9 | G53: ='ARR MONH SPLIT'!G53 -> 0 | H53: 9 | I53: ='ARR MONH SPLIT'!I53 -> 0 | J53: 9 | K53: ='ARR MONH SPLIT'!K53 -> 0 | L53: 9 | M53: ='ARR MONH SPLIT'!M53 -> 0 | N53: 9 | O53: ='ARR MONH SPLIT'!O53 -> 0 | P53: 9 | Q53: ='ARR MONH SPLIT'!Q53 -> 0 | R53: 9 | S53: ='ARR MONH SPLIT'!S53 -> 0 | T53: 9 | U53: ='ARR MONH SPLIT'!U53 -> 0 | V53: 9 | W53: ='ARR MONH SPLIT'!W53 -> 0 | X53: 9 | Y53: ='ARR MONH SPLIT'!Y53 -> 0 | Z53: 9 | AA53: ='ARR MONH SPLIT'!AA53 -> 0
B54: OCT | C54: ='ARR MONH SPLIT'!C54 -> 0 | D54: 10 | E54: ='ARR MONH SPLIT'!E54 -> 0 | F54: 10 | G54: ='ARR MONH SPLIT'!G54 -> 0 | H54: 10 | I54: ='ARR MONH SPLIT'!I54 -> 0 | J54: 10 | K54: ='ARR MONH SPLIT'!K54 -> 0 | L54: 10 | M54: ='ARR MONH SPLIT'!M54 -> 0 | N54: 10 | O54: ='ARR MONH SPLIT'!O54 -> 0 | P54: 10 | Q54: ='ARR MONH SPLIT'!Q54 -> 0 | R54: 10 | S54: ='ARR MONH SPLIT'!S54 -> 0 | T54: 10 | U54: ='ARR MONH SPLIT'!U54 -> 0 | V54: 10 | W54: ='ARR MONH SPLIT'!W54 -> 0 | X54: 10 | Y54: ='ARR MONH SPLIT'!Y54 -> 0 | Z54: 10 | AA54: ='ARR MONH SPLIT'!AA54 -> 0
B55: NOV | C55: ='ARR MONH SPLIT'!C55 -> 0 | D55: 11 | E55: ='ARR MONH SPLIT'!E55 -> 0 | F55: 11 | G55: ='ARR MONH SPLIT'!G55 -> 0 | H55: 11 | I55: ='ARR MONH SPLIT'!I55 -> 0 | J55: 11 | K55: ='ARR MONH SPLIT'!K55 -> 0 | L55: 11 | M55: ='ARR MONH SPLIT'!M55 -> 0 | N55: 11 | O55: ='ARR MONH SPLIT'!O55 -> 0 | P55: 11 | Q55: ='ARR MONH SPLIT'!Q55 -> 0 | R55: 11 | S55: ='ARR MONH SPLIT'!S55 -> 0 | T55: 11 | U55: ='ARR MONH SPLIT'!U55 -> 0 | V55: 11 | W55: ='ARR MONH SPLIT'!W55 -> 0 | X55: 11 | Y55: ='ARR MONH SPLIT'!Y55 -> 0 | Z55: 11 | AA55: ='ARR MONH SPLIT'!AA55 -> 0
B56: DEC | C56: ='ARR MONH SPLIT'!C56 -> 0 | D56: 12 | E56: ='ARR MONH SPLIT'!E56 -> 0 | F56: 12 | G56: ='ARR MONH SPLIT'!G56 -> 0 | H56: 12 | I56: ='ARR MONH SPLIT'!I56 -> 0 | J56: 12 | K56: ='ARR MONH SPLIT'!K56 -> 0 | L56: 12 | M56: ='ARR MONH SPLIT'!M56 -> 0 | N56: 12 | O56: ='ARR MONH SPLIT'!O56 -> 0 | P56: 12 | Q56: ='ARR MONH SPLIT'!Q56 -> 0 | R56: 12 | S56: ='ARR MONH SPLIT'!S56 -> 0 | T56: 12 | U56: ='ARR MONH SPLIT'!U56 -> 0 | V56: 12 | W56: ='ARR MONH SPLIT'!W56 -> 0 | X56: 12 | Y56: ='ARR MONH SPLIT'!Y56 -> 0 | Z56: 12 | AA56: ='ARR MONH SPLIT'!AA56 -> 0
B57: JAN | C57: ='ARR MONH SPLIT'!C57 -> 0 | D57: 1 | E57: ='ARR MONH SPLIT'!E57 -> 0 | F57: 1 | G57: ='ARR MONH SPLIT'!G57 -> 0 | H57: 1 | I57: ='ARR MONH SPLIT'!I57 -> 0 | J57: 1 | K57: ='ARR MONH SPLIT'!K57 -> 0 | L57: 1 | M57: ='ARR MONH SPLIT'!M57 -> 0 | N57: 1 | O57: ='ARR MONH SPLIT'!O57 -> 0 | P57: 1 | Q57: ='ARR MONH SPLIT'!Q57 -> 0 | R57: 1 | S57: ='ARR MONH SPLIT'!S57 -> 0 | T57: 1 | U57: ='ARR MONH SPLIT'!U57 -> 0 | V57: 1 | W57: ='ARR MONH SPLIT'!W57 -> 0 | X57: 1 | Y57: ='ARR MONH SPLIT'!Y57 -> 0 | Z57: 1 | AA57: ='ARR MONH SPLIT'!AA57 -> 0
B58: FEB | C58: ='ARR MONH SPLIT'!C58 -> 0 | D58: 2 | E58: ='ARR MONH SPLIT'!E58 -> 0 | F58: 2 | G58: ='ARR MONH SPLIT'!G58 -> 0 | H58: 2 | I58: ='ARR MONH SPLIT'!I58 -> 0 | J58: 2 | K58: ='ARR MONH SPLIT'!K58 -> 0 | L58: 2 | M58: ='ARR MONH SPLIT'!M58 -> 0 | N58: 2 | O58: ='ARR MONH SPLIT'!O58 -> 0 | P58: 2 | Q58: ='ARR MONH SPLIT'!Q58 -> 0 | R58: 2 | S58: ='ARR MONH SPLIT'!S58 -> 0 | T58: 2 | U58: ='ARR MONH SPLIT'!U58 -> 0 | V58: 2 | W58: ='ARR MONH SPLIT'!W58 -> 0 | X58: 2 | Y58: ='ARR MONH SPLIT'!Y58 -> 0 | Z58: 2 | AA58: ='ARR MONH SPLIT'!AA58 -> 0
B59: Total | C59: =SUM(C47:C58) -> 0 | E59: =SUM(E47:E58) -> 0 | G59: =SUM(G47:G58) -> 0 | I59: =SUM(I47:I58) -> 0 | K59: =SUM(K47:K58) -> 0 | M59: =SUM(M47:M58) -> 0 | O59: =SUM(O47:O58) -> 0 | Q59: =SUM(Q47:Q58) -> 0 | S59: =SUM(S47:S58) -> 0 | U59: =SUM(U47:U58) -> 0 | W59: =SUM(W47:W58) -> 0 | Y59: =SUM(Y47:Y58) -> 0 | AA59: =SUM(AA47:AA58) -> 0 | AB59: =SUM(C59:AA59) -> 0
B61: Annual split up of Total arrears inculded in salary including DA, Salary, Pay revision, Deferred salary and other arrears
B62: Total 2009-10 | D62: Total 2010-11 | F62: Total 2011-12 | H62: Total 2012-13 | J62: Total 2013-14 | L62: Total 2014-15 | N62: Total 2015-16 | P62: Total 2016-17 | R62: Total 2017-18 | T62: Total 2018-19 | V62: Total 2019-20 | X62: Total 2020-21 | Z62: Total 2021-22 | AB62: Grant Total
B63: Amount Rs | C63: =C59+C42+C25 -> 0 | E63: =E59+E42+E25 -> 0 | G63: =G59+G42+G25 -> 0 | I63: =I59+I42+I25 -> 0 | K63: =K59+K42+K25 -> 0 | M63: =M59+M42+M25 -> 0 | O63: =O59+O42+O25 -> 0 | Q63: =Q59+Q42+Q25 -> 0 | S63: =S59+S42+S25 -> 0 | U63: =U59+U42+U25 -> 0 | W63: =W59+W42+W25 -> 0 | Y63: =Y59+Y42+Y25+Y26 -> 0 | AA63: =AA59+AA42+AA25 -> 0 | AB63: =SUM(C63:AA63) -> 0 | AC63: =T5-AB63 -> 0
Z68: =IF(AA68<1,"Error ! Arrear splitted to different years should not be more than arrears received",IF(AA66=AA67,"",IF(AB63=0,"",IF(AB63>0,"Balance arrear amount, still pending to apportion is Rs. ")))) ->  | AA68: =IF(AA66=AA67,"",IF($AA$66="","",AC63)) -> 

Sheet ARR MONH SPLIT
E3: ="1. Total of arrears credited to PF [including interest]" -> 1. Total of arrears credited to PF [including interest] | T3: ='ARREAR SPLIT'!N3 -> 0
E4: 2. Total of arrears as Cash receipt / credited to NPS [fully or partially] including DEFERRED SALARY & arrear interest | T4: ='ARREAR SPLIT'!N4 -> 0 | V4: ="(Deferred salary is "&'det.sal input'!C25&", Cash arrear is "&'det.sal input'!C22&")" -> (Deferred salary is , Cash arrear is )
E5: ="Total arrears [excluding interest Rs. "&'det.sal input'!W27&"] 1+2 minus Interest" -> Total arrears [excluding interest Rs. ] 1+2 minus Interest | T5: ='ARREAR SPLIT'!N5 -> 0
E6: Caution : Before filling the following field, place mouse on this lines to read an important message
B7: ="Divide the above arrear amount Rs. "&$T$5&" in the following tables related with DA arrear, Salary & deferred salary arrear & Pay revision arrear. For that Due drawn statement from SPARK can be used as reference" -> Divide the above arrear amount Rs. 0 in the following tables related with DA arrear, Salary & deferred salary arrear & Pay revision arrear. For that Due drawn statement from SPARK can be used as reference
B8: മുകളിൽ കാണുന്ന മൊത്തം കുടിശിക തുകയെ, ചുവടെ കാണുന്ന മൂന്നോ നാലോ പട്ടികകളിൽ മാസം തിരിച്ചു ഭാഗിച്ച് എഴുതുക. Deferred salary രണ്ടാം പട്ടികയിൽ നൽകുക
B10: ="1. DA ARREAR MONTHLY SPLIT UP OF "&PERSONAL!H4 -> 1. DA ARREAR MONTHLY SPLIT UP OF
B11: 2009-10 | D11: 2010-11 | F11: 2011-12 | H11: 2012-13 | J11: 2013-14 | L11: 2014-15 | N11: 2015-16 | P11: 2016-17 | R11: 2017-18 | T11: 2018-19 | V11: 2019-20 | X11: 2020-21 | Z11: 2021-22 | AB11: 2022-23 | AD11: Total
B12: MONTH | C12: ARREAR | D12: MONTH | E12: ARREAR | F12: MONTH | G12: ARREAR | H12: MONTH | I12: ARREAR | J12: MONTH | K12: ARREAR | L12: MONTH | M12: ARREAR | N12: MONTH | O12: ARREAR | P12: MONTH | Q12: ARREAR | R12: MONTH | S12: ARREAR | T12: MONTH | U12: ARREAR | V12: MONTH | W12: ARREAR | X12: MONTH | Y12: ARREAR | Z12: MONTH | AA12: ARREAR | AB12: MONTH | AC12: ARREAR | AD12: Arrear
B13: MAR | D13: 3 | F13: 3 | H13: 3 | J13: 3 | L13: 3 | N13: 3 | P13: 3 | R13: 3 | T13: 3 | V13: 3 | X13: 3 | Z13: 3 | AB13: 3
B14: APR | D14: 4 | F14: 4 | H14: 4 | J14: 4 | L14: 4 | N14: 4 | P14: 4 | R14: 4 | T14: 4 | V14: 4 | X14: 4 | Z14: 4 | AB14: 4
B15: MAY | D15: 5 | F15: 5 | H15: 5 | J15: 5 | L15: 5 | N15: 5 | P15: 5 | R15: 5 | T15: 5 | V15: 5 | X15: 5 | Z15: 5 | AB15: 5
B16: JUN | D16: 6 | F16: 6 | H16: 6 | J16: 6 | L16: 6 | N16: 6 | P16: 6 | R16: 6 | T16: 6 | V16: 6 | X16: 6 | Z16: 6 | AB16: 6
B17: JUL | D17: 7 | F17: 7 | H17: 7 | J17: 7 | L17: 7 | N17: 7 | P17: 7 | R17: 7 | T17: 7 | V17: 7 | X17: 7 | Z17: 7 | AB17: 7
B18: AUG | D18: 8 | F18: 8 | H18: 8 | J18: 8 | L18: 8 | N18: 8 | P18: 8 | R18: 8 | T18: 8 | V18: 8 | X18: 8 | Z18: 8 | AB18: 8
B19: SEP | D19: 9 | F19: 9 | H19: 9 | J19: 9 | L19: 9 | N19: 9 | P19: 9 | R19: 9 | T19: 9 | V19: 9 | X19: 9 | Z19: 9 | AB19: 9
B20: OCT | D20: 10 | F20: 10 | H20: 10 | J20: 10 | L20: 10 | N20: 10 | P20: 10 | R20: 10 | T20: 10 | V20: 10 | X20: 10 | Z20: 10 | AB20: 10
B21: NOV | D21: 11 | F21: 11 | H21: 11 | J21: 11 | L21: 11 | N21: 11 | P21: 11 | R21: 11 | T21: 11 | V21: 11 | X21: 11 | Z21: 11 | AB21: 11
B22: DEC | D22: 12 | F22: 12 | H22: 12 | J22: 12 | L22: 12 | N22: 12 | P22: 12 | R22: 12 | T22: 12 | V22: 12 | X22: 12 | Z22: 12 | AB22: 12
B23: JAN | D23: 1 | F23: 1 | H23: 1 | J23: 1 | L23: 1 | N23: 1 | P23: 1 | R23: 1 | T23: 1 | V23: 1 | X23: 1 | Z23: 1
B24: FEB | D24: 2 | F24: 2 | H24: 2 | J24: 2 | L24: 2 | N24: 2 | P24: 2 | R24: 2 | T24: 2 | V24: 2 | X24: 2 | Z24: 2 | AB24: 2
B25: Total | C25: =SUM(C13:C24) -> 0 | E25: =SUM(E13:E24) -> 0 | G25: =SUM(G13:G24) -> 0 | I25: =SUM(I13:I24) -> 0 | K25: =SUM(K13:K24) -> 0 | M25: =SUM(M13:M24) -> 0 | O25: =SUM(O13:O24) -> 0 | Q25: =SUM(Q13:Q24) -> 0 | S25: =SUM(S13:S24) -> 0 | U25: =SUM(U13:U24) -> 0 | W25: =SUM(W13:W24) -> 0 | Y25: =SUM(Y13:Y24) -> 0 | AA25: =SUM(AA13:AA24) -> 0 | AC25: =SUM(AC13:AC24) -> 0 | AD25: =SUM(C25:AC25) -> 0
X26: ="2. DEFERRED SALARY to be included in 2020-21 Financial year column (Deferred salary തുകയായ "&'det.sal input'!C25&" രൂപ വലതുവശത്ത് ടയിപ്പ് ചെയ്യുക)" -> 2. DEFERRED SALARY to be included in 2020-21 Financial year column (Deferred salary തുകയായ രൂപ വലതുവശത്ത് ടയിപ്പ് ചെയ്യുക) | AD26: =Y26 -> 0
B27: 3. SALARY ARREAR MONTHLY SPLIT UP
B28: 2009-10 | D28: 2010-11 | F28: 2011-12 | H28: 2012-13 | J28: 2013-14 | L28: 2014-15 | N28: 2015-16 | P28: 2016-17 | R28: 2017-18 | T28: 2018-19 | V28: 2019-20 | X28: 2020-21 | Z28: 2021-22 | AB28: 2022-23 | AD28: Total
B29: MONTH | C29: ARREAR | D29: MONTH | E29: ARREAR | F29: MONTH | G29: ARREAR | H29: MONTH | I29: ARREAR | J29: MONTH | K29: ARREAR | L29: MONTH | M29: ARREAR | N29: MONTH | O29: ARREAR | P29: MONTH | Q29: ARREAR | R29: MONTH | S29: ARREAR | T29: MONTH | U29: ARREAR | V29: MONTH | W29: ARREAR | X29: MONTH | Y29: ARREAR | Z29: MONTH | AA29: ARREAR | AB29: MONTH | AC29: ARREAR | AD29: Arrear
B30: MAR | D30: 3 | F30: 3 | H30: 3 | J30: 3 | L30: 3 | N30: 3 | P30: 3 | R30: 3 | T30: 3 | V30: 3 | X30: 3 | Z30: 3 | AB30: 3
B31: APR | D31: 4 | F31: 4 | H31: 4 | J31: 4 | L31: 4 | N31: 4 | P31: 4 | R31: 4 | T31: 4 | V31: 4 | X31: 4 | Z31: 4 | AB31: 4
B32: MAY | D32: 5 | F32: 5 | H32: 5 | J32: 5 | L32: 5 | N32: 5 | P32: 5 | R32: 5 | T32: 5 | V32: 5 | X32: 5 | Z32: 5 | AB32: 5
B33: JUN | D33: 6 | F33: 6 | H33: 6 | J33: 6 | L33: 6 | N33: 6 | P33: 6 | R33: 6 | T33: 6 | V33: 6 | X33: 6 | Z33: 6 | AB33: 6
B34: JUL | D34: 7 | F34: 7 | H34: 7 | J34: 7 | L34: 7 | N34: 7 | P34: 7 | R34: 7 | T34: 7 | V34: 7 | X34: 7 | Z34: 7 | AB34: 7
B35: AUG | D35: 8 | F35: 8 | H35: 8 | J35: 8 | L35: 8 | N35: 8 | P35: 8 | R35: 8 | T35: 8 | V35: 8 | X35: 8 | Z35: 8 | AB35: 8
B36: SEP | D36: 9 | F36: 9 | H36: 9 | J36: 9 | L36: 9 | N36: 9 | P36: 9 | R36: 9 | T36: 9 | V36: 9 | X36: 9 | Z36: 9 | AB36: 9
B37: OCT | D37: 10 | F37: 10 | H37: 10 | J37: 10 | L37: 10 | N37: 10 | P37: 10 | R37: 10 | T37: 10 | V37: 10 | X37: 10 | Z37: 10 | AB37: 10
B38: NOV | D38: 11 | F38: 11 | H38: 11 | J38: 11 | L38: 11 | N38: 11 | P38: 11 | R38: 11 | T38: 11 | V38: 11 | X38: 11 | Z38: 11 | AB38: 11
B39: DEC | D39: 12 | F39: 12 | H39: 12 | J39: 12 | L39: 12 | N39: 12 | P39: 12 | R39: 12 | T39: 12 | V39: 12 | X39: 12 | Z39: 12 | AB39: 12
B40: JAN | D40: 1 | F40: 1 | H40: 1 | J40: 1 | L40: 1 | N40: 1 | P40: 1 | R40: 1 | T40: 1 | V40: 1 | X40: 1 | Z40: 1
B41: FEB | D41: 2 | F41: 2 | H41: 2 | J41: 2 | L41: 2 | N41: 2 | P41: 2 | R41: 2 | T41: 2 | V41: 2 | X41: 2 | Z41: 2 | AB41: 2
B42: Total | C42: =SUM(C30:C41) -> 0 | E42: =SUM(E30:E41) -> 0 | G42: =SUM(G30:G41) -> 0 | I42: =SUM(I30:I41) -> 0 | K42: =SUM(K30:K41) -> 0 | M42: =SUM(M30:M41) -> 0 | O42: =SUM(O30:O41) -> 0 | Q42: =SUM(Q30:Q41) -> 0 | S42: =SUM(S30:S41) -> 0 | U42: =SUM(U30:U41) -> 0 | W42: =SUM(W30:W41) -> 0 | Y42: =SUM(Y30:Y41) -> 0 | AA42: =SUM(AA30:AA41) -> 0 | AC42: =SUM(AC30:AC41) -> 0 | AD42: =SUM(C42:AC42) -> 0
B44: ="4. PAY REVISION ARREAR or any other arrear MONTHLY SPLIT UP OF "&PERSONAL!H4 -> 4. PAY REVISION ARREAR or any other arrear MONTHLY SPLIT UP OF
B45: 2009-10 | D45: 2010-11 | F45: 2011-12 | H45: 2012-13 | J45: 2013-14 | L45: 2014-15 | N45: 2015-16 | P45: 2016-17 | R45: 2017-18 | T45: 2018-19 | V45: 2019-20 | X45: 2020-21 | Z45: 2021-22 | AB45: 2022-23 | AD45: Total
B46: MONTH | C46: ARREAR | D46: MONTH | E46: ARREAR | F46: MONTH | G46: ARREAR | H46: MONTH | I46: ARREAR | J46: MONTH | K46: ARREAR | L46: MONTH | M46: ARREAR | N46: MONTH | O46: ARREAR | P46: MONTH | Q46: ARREAR | R46: MONTH | S46: ARREAR | T46: MONTH | U46: ARREAR | V46: MONTH | W46: ARREAR | X46: MONTH | Y46: ARREAR | Z46: MONTH | AA46: ARREAR | AB46: MONTH | AC46: ARREAR | AD46: Arrear
B47: MAR | D47: 3 | F47: 3 | H47: 3 | J47: 3 | L47: 3 | N47: 3 | P47: 3 | R47: 3 | T47: 3 | V47: 3 | X47: 3 | Z47: 3 | AB47: 3
B48: APR | D48: 4 | F48: 4 | H48: 4 | J48: 4 | L48: 4 | N48: 4 | P48: 4 | R48: 4 | T48: 4 | V48: 4 | X48: 4 | Z48: 4 | AB48: 4
B49: MAY | D49: 5 | F49: 5 | H49: 5 | J49: 5 | L49: 5 | N49: 5 | P49: 5 | R49: 5 | T49: 5 | V49: 5 | X49: 5 | Z49: 5 | AB49: 5
B50: JUN | D50: 6 | F50: 6 | H50: 6 | J50: 6 | L50: 6 | N50: 6 | P50: 6 | R50: 6 | T50: 6 | V50: 6 | X50: 6 | Z50: 6 | AB50: 6
B51: JUL | D51: 7 | F51: 7 | H51: 7 | J51: 7 | L51: 7 | N51: 7 | P51: 7 | R51: 7 | T51: 7 | V51: 7 | X51: 7 | Z51: 7 | AB51: 7
B52: AUG | D52: 8 | F52: 8 | H52: 8 | J52: 8 | L52: 8 | N52: 8 | P52: 8 | R52: 8 | T52: 8 | V52: 8 | X52: 8 | Z52: 8 | AB52: 8
B53: SEP | D53: 9 | F53: 9 | H53: 9 | J53: 9 | L53: 9 | N53: 9 | P53: 9 | R53: 9 | T53: 9 | V53: 9 | X53: 9 | Z53: 9 | AB53: 9
B54: OCT | D54: 10 | F54: 10 | H54: 10 | J54: 10 | L54: 10 | N54: 10 | P54: 10 | R54: 10 | T54: 10 | V54: 10 | X54: 10 | Z54: 10 | AB54: 10
B55: NOV | D55: 11 | F55: 11 | H55: 11 | J55: 11 | L55: 11 | N55: 11 | P55: 11 | R55: 11 | T55: 11 | V55: 11 | X55: 11 | Z55: 11 | AB55: 11
B56: DEC | D56: 12 | F56: 12 | H56: 12 | J56: 12 | L56: 12 | N56: 12 | P56: 12 | R56: 12 | T56: 12 | V56: 12 | X56: 12 | Z56: 12 | AB56: 12
B57: JAN | D57: 1 | F57: 1 | H57: 1 | J57: 1 | L57: 1 | N57: 1 | P57: 1 | R57: 1 | T57: 1 | V57: 1 | X57: 1 | Z57: 1
B58: FEB | D58: 2 | F58: 2 | H58: 2 | J58: 2 | L58: 2 | N58: 2 | P58: 2 | R58: 2 | T58: 2 | V58: 2 | X58: 2 | Z58: 2 | AB58: 2
B59: Total | C59: =SUM(C47:C58) -> 0 | E59: =SUM(E47:E58) -> 0 | G59: =SUM(G47:G58) -> 0 | I59: =SUM(I47:I58) -> 0 | K59: =SUM(K47:K58) -> 0 | M59: =SUM(M47:M58) -> 0 | O59: =SUM(O47:O58) -> 0 | Q59: =SUM(Q47:Q58) -> 0 | S59: =SUM(S47:S58) -> 0 | U59: =SUM(U47:U58) -> 0 | W59: =SUM(W47:W58) -> 0 | Y59: =SUM(Y47:Y58) -> 0 | AA59: =SUM(AA47:AA58) -> 0 | AC59: =SUM(AC47:AC58) -> 0 | AD59: =SUM(C59:AC59) -> 0
B62: Total 2009-10 | D62: Total 2010-11 | F62: Total 2011-12 | H62: Total 2012-13 | J62: Total 2013-14 | L62: Total 2014-15 | N62: Total 2015-16 | P62: Total 2016-17 | R62: Total 2017-18 | T62: Total 2018-19 | V62: Total 2019-20 | X62: Total 2020-21 | Z62: Total 2021-22 | AB62: Total 2022-23 | AD62: Grant Total
C63: =C59+C42+C25 -> 0 | E63: =E59+E42+E25 -> 0 | G63: =G59+G42+G25 -> 0 | I63: =I59+I42+I25 -> 0 | K63: =K59+K42+K25 -> 0 | M63: =M59+M42+M25 -> 0 | O63: =O59+O42+O25 -> 0 | Q63: =Q59+Q42+Q25 -> 0 | S63: =S59+S42+S25 -> 0 | U63: =U59+U42+U25 -> 0 | W63: =W59+W42+W25 -> 0 | Y63: =Y59+Y42+Y25+Y26 -> 0 | AA63: =AA59+AA42+AA25 -> 0 | AC63: =AC59+AC42+AC25 -> 0 | AD63: =AD25+Y26+AD42+AD59 -> 0 | AE63: =T5-AD63 -> 0
AA65: =IF(AD63=0,"",IF(T5-AD63=0," Congratulations ! You have completed data entry in this fileld successfully","Caution ! Your data entry process in this field not completed or there may be errors in typing. Don't click CONTINUE BUTTON below, please check")) -> 
Z66: =IF(AD63=0,"","Total arrear amount included in your salary is Rs. ") ->  | AA66: =IF(Z66="","",T5) -> 
Z67: =IF(AD63=0,"","Total arrear amount already apportioned by you now to different years, including deferred salary is Rs. ") ->  | AA67: =IF($Z$66="","",AD63) -> 
L68: =IF(AA68<1,"Error ! Arrear splitted to different years should not be more than arrears received",IF(AA66=AA67,"",IF(AD63=0,"",IF(AD63>0,"Balance arrear amount, still pending to apportion is Rs. ")))) ->  | AA68: =IF(AA66=AA67,"",IF($AA$66="","",AE63)) -> 
AA71: 6
C103: Sorry, at present, the facility is not provided in this system. 10E preparation field will be provided during updation
C104: If you have already calculated the 89 (1) relief amount mannually or using any other alternative system, that relief amount (10E deduction amount)
C105: can be typed in the box shown below to take the final print
C106: നിർഭാഗ്യവശാൽ 10 E കണക്ക് കൂട്ടൽ സംവിധാനം ഈ സംവിധാനത്തിൽ
H107: Rs

Sheet new form 16 (hidden)
A1: =G7 -> 0 | B1: Click the red button to save the statement in PDF Format. This option is available only if you are using Excel 10 or above versions ഈ സൗകര്യം Excel 10 ഓ അതിനു മുകളിലുള്ളതോ ആയ Excel പതിപ്പാണ്‌ താങ്കള്‍ ഉപയോഗിക്കുന്നത് എങ്കില്‍ മാത്രം-- താങ്കള്‍ പഴയ excel പതിപ്പാണ്‌ ഉപയോഗിക്കുന്നതെങ്കില്‍ ഈ സോഫ്റ്റ്‌വെയര്‍ നോടൊപ്പം ലഭിച്ചിരിക്കുന്ന PDF ഫയല്‍ വായിക്കുന്നതിലൂടെയും പരിഹാര മാര്‍ഗ്ഗം ലഭിക്കും --ഫയല്‍ എവിടെയാണ് save ആകുന്നതെന്ന് ക്ലിക്ക് ചെയ്യുമ്പോള്‍ ലഭിക്കുന്ന സന്ദേശത്തില്‍ ലഭിക്കും . | N1: 1 | O1: PRINT P 1 | P1: PRINT P 2
A2: =B2 -> FORM NO. 16 | B2: FORM NO. 16
A3: =I5 -> OLD REGIME RATE | B3: [See rule 31(1)(a)]
B5: PART B (Annexure) | I5: OLD REGIME RATE
B6: Name and address of the Employer | G6: Name and Designation of the Employee
B7: =IF(PERSONAL!H18="Yes","Government of Kerala","") -> Government of Kerala | G7: =PERSONAL!H4 -> 0
B8: =PERSONAL!H10 -> SALARY | G8: =PERSONAL!H6 -> 0
G9: ='new statement'!L6 -> Below 60 Years
B10: PAN of the Deductor | E10: TAN of the Deductor | H10: PAN of the Employee
B11: =CUSTOMISE!H27 -> 0 | E11: =PERSONAL!H16 -> 0 | H11: =PERSONAL!H7 -> 0
B12: CIT (TDS) | F12: Assessment Year | H12: Period
H13: From | J13: To
B14: =PERSONAL!H17 -> 0 | F14: 2021-2022 | H14: April-2020 | J14: March-2021
B15: Summary of tax deducted at source
B16: Quarter | D16: Receipt Numbers of original statements of TDS under sub-section (3) of section 200 | H16: Amount of tax deducted in respect of the employee | J16: Amount of tax deposited remitted in respect of the employee
B17: Quarter 1 | D17: ='tds det'!#REF! ->  | H17: ='tds det'!#REF! ->  | J17: =H17 -> 
B18: Quarter 2 | D18: ='tds det'!#REF! ->  | H18: ='tds det'!#REF! ->  | J18: =H18 -> 
B19: Quarter 3 | D19: ='tds det'!#REF! ->  | H19: ='tds det'!#REF! ->  | J19: =H19 -> 
B20: Quarter 4 | D20: ='tds det'!#REF! ->  | H20: ='tds det'!#REF! ->  | J20: ="due "&H20 -> 
B21: Total (including due ) | H21: ='tds det'!G3 ->  | J21: =H21 -> 
B22: PART B (Refer Note 1) Details of Salary paid and any other income and tax deducted
B23: 1. Gross Salary Rs. | D23: before standard deduction Rs 50000 | J23: =J27+50000 -> 
B24: (a) Salary as per provisions contained in sec.17(1) EXCLUDES PAY REVISION INTEREST | J24: ='new statement'!W9-'new statement'!R21 -> 0
B25: (b) Value of perquisites u/s 17(2) (as per Form No.12BB, wherever applicable) | J25: ='new statement'!T10 -> 0
B26: (c) Profits in lieu of salary under section 17(3) (as per Form No.12BB, wherever applicable) | J26: ='new statement'!T11 -> 0
B27: Total salary income after deductiing Standard deduction Rs. 50000 Rs. | J27: =IF(SUM(J24:K26)>0,SUM(J24:K26),"Nil") -> Nil
B28: 2. Less Allowance to the extent exempt u/s 10 | L28: ='new statement'!W5 -> 
B29: a. House Rent Allowance (HRA) | H29: ='new statement'!R17 -> 0
B30: b | C30: =INVEST!D28 ->  | G30: =IF(O30>0,"","NIL") -> NIL | H30: =INVEST!F28 -> 0 | O30: =INVEST!F28 -> 0
B31: c | C31: =INVEST!D29 ->  | G31: =IF(O31>0,"","NIL") -> NIL | H31: =INVEST!F29 -> 0 | O31: =INVEST!F29 -> 0
B32: d | C32: =INVEST!D30 ->  | G32: =IF(O32>0,"","NIL") -> NIL | H32: =INVEST!F30 -> 0 | O32: =INVEST!F30 -> 0
B33: e | C33: =INVEST!D31 ->  | G33: =IF(O33>0,"","NIL") -> NIL | H33: =INVEST!F31 -> 0 | O33: =INVEST!F31 -> 0
B34: 3. Total allowances exempted u/s 10 | H34: =SUM(H29:I33) -> 0 | O34: =INVEST!F32 -> 0
B35: 4. Deductions :
B36: (a) Entertainment allowance Rs. | H36: ='det.sal input'!W35 -> 0
B37: (b) Tax on employment Rs. | H37: ='det.sal input'!W31 -> 0
B38: 5. Aggregate of 3 and 4 Rs. | H38: =H34+H36+H37 -> 0
B39: 6. Income chargeable under the head 'salaries' (3-5) Rs. | J39: =IF(N1=2,J27,J27-H38) ->  | AA39: new tax inc | AB39: tax
B40: 7. Add: Any other income reported by the employee | AA40: =J80 -> 0 | AB40: =IF(AA40<250001,0,IF(AA40<500001,(AA40-250000)/20,IF(AA40<750001,(12500+(AA40-500000)/10),IF(AA40<1000001,(37500+(AA40-750000)*15/100),IF(AA40<1250001,75000+(AA40-1000000)/5,IF(AA40<1500001,125000+(AA40-1250000)/4,187500+(AA40-1500000)*30/100)))))) -> 0
B41: Income | H41: Rs.
B42: Income from House property | H42: ='new statement'!O23 -> 0
B43: Income from other sources INTEREST ON PAY REVISION ARREAR (Interest/ Family pension) | H43: ='new statement (2)'!O24 -> 0
B44: Income from business or profession | H44: ='new statement'!O25 -> 0
B45: Capital gain income | H45: ='new statement'!O26 -> 0
B46: Total | H46: ='new statement'!AH258 ->  | J46: ='new statement'!R26 -> 0
B47: 8. Gross total income (6+7) Rs. | J47: =SUM(J39,J46) -> 
B48: 9. Deductions under Chapter VIA
B49: Sections 80C, 80CCC and 80CCD | H49: Gross Amount | J49: Deductible Amount
B50: (i) Section 80C
B51: Providend fund contribution | H51: ='new statement'!O30 -> 0
B52: State Life Insurance Policy (SLI) | H52: ='new statement'!O31 -> 0
B53: Group Insurance Scheme (GIS) | H53: ='new statement'!O32 -> 0
B54: Tax saving Fixed deposits | H54: ='new statement'!O33 -> 0
B55: Life Insurence salary deduction | H55: ='new statement'!O34 -> 0
B56: Life Insurence other than salary deduction | H56: ='new statement'!O35 -> 0
B57: ='det.sal input'!R6&" + "&'det.sal input'!T6 -> ? + ? | H57: ='new statement'!O36 -> 0
B58: NSC VIII th issue (Nationional Savings certificate) | H58: ='new statement'!O37 -> 0
B59: Public Provident Fund (PPF) | H59: ='new statement'!O38 -> 0
B60: ULIP/ Tax saving mutual funds | H60: ='new statement'!O39 -> 0
B61: Tuition Fees | H61: ='new statement'!O40 -> 0
B62: Housing Loan Repayment (PRINCIPAL PORTION ONLY) | H62: ='new statement'!O41 -> 0
B63: ='new statement'!D42 -> 0 | H63: ='new statement'!O42 -> 0
B64: (ii) Section 80CCC | H64: ='new statement'!O43 -> 0
B65: Employee Contrubution to National Pension Scheme - NPS (80CCD) | H65: ='new statement'!O44 -> 0
B66: Total investment under Sec. 80C, 80CCC, 80CCD | H66: ='new statement'!O45 -> 0 | J66: =IF(N1=2,0,'new statement'!R45) -> 0
B67: Employee Contrubution to National Pension Scheme - NPS 80CCD(1B) investment over 1.5 lakh | H67: ='new statement'!O46 -> 0 | J67: =IF(N1=2,0,H67) -> 0
B68: Employer's contribution to NPS [Up to 10% Pay+Da+AGPgets excemption u/s Section 80CCD(2)] | H68: ='new statement'!O47 -> 0 | J68: =H68 -> 0 | N68: OLD RATE tax calculating table actual basis | Y68: OLD RATE TAX WITHOUT DEDUCTIONS
B69: Investment in Rajiv Gandhi Equity Savings Scheme 80CCG (50% of investment gets excemption.Maximum 25000) | H69: ='new statement'!O48 -> 0 | J69: =H69 -> 0
B70: Other sections (e.g. 80E, 80G etc.) under Chapter VI-A | H70: Qualifying Amount | J70: Deductible Amount | M70: tax calculation-men | N70: below 60 | S70: cenior citizen | W70: cenior above 80 | Y70: 60 LESS | Z70: SENIOR | AA70: SUP SENI
B71: Mediclame 80 D | H71: ='new statement'!O49 -> 0 | M71: aggragate income | N71: =J80 -> 0 | S71: =J80 -> 0 | W71: =J80 -> 0 | Y71: ='new statement'!R59 -> 0 | Z71: =Y71 -> 0 | AA71: =Z71 -> 0
B72: Handicaped dependent medical treatment 80 DD | H72: ='new statement'!O50 -> 0 | M72: basic deduction | N72: 250000 | S72: 300000 | W72: 500000 | Y72: 250000 | Z72: 300000 | AA72: 500000
B73: Treatment of chronic diseases 80 DDB | H73: ='new statement'!O51 -> 0
B74: Education Loan Interest repayment 80 E | H74: ='new statement'!O52 -> 0 | M74: balance | N74: =IF(N72>N71,0,N71-N72) -> 0 | S74: =IF(S72>S71,0,S71-S72) -> 0 | T74: =IF(T72>T71,0,T71-T72) -> 0 | U74: =IF(U72>U71,0,U71-U72) -> 0 | V74: =IF(V72>V71,0,V71-V72) -> 0 | W74: =IF(W72>W71,0,W71-W72) -> 0 | Y74: =Y71-Y72 -> -250000 | Z74: =Z71-Z72 -> -300000 | AA74: =AA71-AA72 -> -500000
B75: Donation to special funds 80 G including FLOOD RELIEF FUND | H75: ='new statement'!O55 -> 0 | M75: stage 1 tax | N75: =IF(N71>=500000,12500,N74*0.05) -> 0 | O75: =IF(O71>=500000,30000,O74*0.1) -> 0 | P75: =IF(P71>=500000,30000,P74*0.1) -> 0 | Q75: =IF(Q71>=500000,30000,Q74*0.1) -> 0 | R75: =IF(R71>=500000,30000,R74*0.1) -> 0 | S75: =IF(S71>=500000,10000,S74*0.05) -> 0 | W75: =IF(W74<=500000,W74*0.2,100000) -> 0 | Y75: =IF(Y71>=500000,12500,Y74*0.05) -> -12500 | Z75: =IF(Z71>=500000,10000,Z74*0.05) -> -15000 | AA75: =IF(AA74<=500000,AA74*0.2,100000) -> -100000
B76: Deduction for handicaped employees 80 U | H76: ='new statement'!O56 -> 0 | M76: stage 2 tax | N76: =IF(N71<=500000,0,IF(N71<=1000000,(N71-500000)*0.2,IF(N71>1000000,100000))) -> 0 | O76: 0 | P76: 0 | Q76: 0 | R76: 0 | S76: 0 | W76: =IF(W74>500000,(W74-500000)*0.3) -> FALSE | Y76: =IF(Y71<=500000,0,IF(Y71<=1000000,(Y71-500000)*0.2,IF(Y71>1000000,100000))) -> 0 | Z76: =IF(Z71<=500000,0,IF(Z71<=1000000,(Z71-500000)*0.2,IF(Z71>1000000,100000))) -> 0 | AA76: =IF(AA74>500000,(AA74-500000)*0.3) -> FALSE
M77: stage 3 tax | N77: =IF(N71<=1000000,0,(N71-1000000)*0.3) -> 0 | O77: 0 | P77: 0 | Q77: 0 | R77: 0 | S77: 0 | T77: 0 | U77: 0 | V77: 0 | Y77: =IF(Y71<=1000000,0,(Y71-1000000)*0.3) -> 0 | Z77: =IF(Z71<=1000000,0,(Z71-1000000)*0.3) -> 0
H78: ='new statement'!O58 -> 0 | M78: total | N78: =N75+N76+N77 -> 0 | S78: =S76+S77+S75 -> 0 | T78: =T76+T77+T75 -> 0 | U78: =U76+U77+U75 -> 0 | V78: =V76+V77+V75 -> 0 | W78: =W76+W77+W75 -> 0 | Y78: =Y75+Y76+Y77 -> -12500 | Z78: =Z76+Z77+Z75 -> -15000 | AA78: =AA76+AA77+AA75 -> -100000
B79: 10. Aggregate of deductible amount | J79: =IF(N1=2,H68,SUM(J66:K69)+SUM(H71:I78)) -> 0 | M79: stage 3 tax | N79: =IF(N71<=1000000,0,(N71-1000000)*0.3) -> 0 | Y79: =IF(Y71<=1000000,0,(Y71-1000000)*0.3) -> 0 | Z79: =IF(Z71<=1000000,0,(Z71-1000000)*0.3) -> 0
B80: 11. Total Income or Taxable income (8-10) | G80: ="( Rs."&J47-J79 & " Rounded to Ten)" ->  | J80: ='new statement'!R59 -> 0 | M80: tax= | N80: =IF(PERSONAL!H5="BELOW 60 YEARS",'new form 16'!N78,IF(PERSONAL!H5="60 to 79 Years",'new form 16'!S78,'new form 16'!W78)) -> 0 | Y80: =IF(PERSONAL!H5="BELOW 60 YEARS",'new form 16'!Y78,IF(PERSONAL!H5="60 to 79 Years",'new form 16'!Z78,'new form 16'!AA78)) -> -12500
B81: 12. Income Tax | J81: =IF(N1=2,AB40,ROUND(N80,0)) -> 0 | M81: less tax credit
B82: 13. Less Rebate 87A (Maximum of Rs. 12500) available if Point 11 is <500001 | J82: =ROUND(N86,0) -> 0 | K82: =N86 -> 0 | M82: Actual tax | N82: =ROUND(N80,0) -> 0 | S82: =S78 -> 0 | W82: =W78 -> 0
B83: 14. Tax after 87A rebate | J83: =J81-J82 -> 0
B84: 15. Education cess @ 4% of income tax | J84: =ROUND((J81-K82)*0.04,0) -> 0 | M84: 10% of taxable inc: | N84: =N71*0.1 -> 0
B85: 16. Total Tax Payable including cess | J85: =J81-K82+J84 -> 0 | M85: maximum tax credit: | N85: =IF(J81<=0,0,IF(N71<=500000,12500,0)) -> 0
B86: 17. Less: Relief under section 89 (attach details) | J86: =ROUND(('new statement'!R65),0) -> 0 | L86: =ROUND(J87,-1) -> 0 | M86: Actual 87a amt | N86: =MIN(N82:N85) -> 0
B87: 18. Tax payable/ refundable | E87: ="[Rounded value to ten is Rs "&L86&"]" -> [Rounded value to ten is Rs 0] | J87: =L87 -> 0 | L87: =IF(J85>J86,J85-J86,0) -> 0
B90: Verification | M90: Form 16 ഇന്‍കംടാക്സ് വകുപ്പ് തയ്യാറാക്കുന്ന പ്രത്യേക ഫോര്‍മാറ്റിലുള്ള
B91: ="I, "&PERSONAL!H12&" ,son/daughter of "&PERSONAL!H13&" working in the capacity of "& PERSONAL!H14&" do hereby certify that" -> I, 0 ,son/daughter of SELECT HRA CLASS working in the capacity of 0 do hereby certify that | M91: രേഖയാണ്. അതില്‍ മൊത്തത്തില്‍ ഒരു വര്‍ഷത്തില്‍ അടക്കേണ്ട നികുതി
B92: the information given above is true, complete and correct and is based on the books of | M92: മാത്രമേ കാണിക്കുകയുള്ളൂ. അല്ലാതെ ഇതിനകം അടച്ച നികുതിയും
B93: account, documents, TDS statements, and other available records | M93: ബാക്കി അടക്കാനുള്ള നികുതിയും പ്രത്യേകം കാണിക്കുകയില്ല.
B94: =PERSONAL!H11 -> 0 | G94: ="Signature of "&PERSONAL!H12 -> Signature of 0 | M94: 10 ലേക്ക് ROUND ചെയ്ത നികുതി സംഖ്യയാണ് ശരിയായ നികുതി.
B95: =TEXT(TODAY(),"dd/mm/yyyy") -> 05/02/2024 | D95: http://babuvadukkumchery.blogspot.com | M95: ROUND ചെയ്യാത്ത തുക ഇവിടെ വെറുതെ
K96: =PERSONAL!H14 -> 0 | M96: അറിവിലേക്കായി നല്‍കീ എന്നേ കരുതേണ്ടൂ
N99: tax calculating table accrual basis
M100: tax calculation-men | N100: below 60 | S100: cenior citizen | W100: cenior above 80
M101: aggragate income | N101: =Data!E36-Data!R35 -> 2 | S101: =N101 -> 2 | W101: =N101 -> 2
M102: basic deduction | N102: 250000 | S102: 300000 | W102: 500000
M104: balance | N104: =IF(N102>N101,0,N101-N102) -> 0 | S104: =IF(S102>S101,0,S101-S102) -> 0 | T104: =IF(T102>T101,0,T101-T102) -> 0 | U104: =IF(U102>U101,0,U101-U102) -> 0 | V104: =IF(V102>V101,0,V101-V102) -> 0 | W104: =IF(W102>W101,0,W101-W102) -> 0
M106: stage 1 tax | N106: =IF(N101>=500000,12500,N104*0.05) -> 0 | O106: =IF(O101>=500000,30000,O104*0.1) -> 0 | P106: =IF(P101>=500000,30000,P104*0.1) -> 0 | Q106: =IF(Q101>=500000,30000,Q104*0.1) -> 0 | R106: =IF(R101>=500000,30000,R104*0.1) -> 0 | S106: =IF(S101>=500000,10000,S104*0.05) -> 0 | W106: =IF(W104<=500000,W104*0.2,100000) -> 0
M107: stage 2 tax | N107: =IF(N101<=500000,0,IF(N101<=1000000,(N101-500000)*0.2,IF(N101>1000000,100000))) -> 0 | O107: 0 | P107: 0 | Q107: 0 | R107: 0 | S107: 0 | W107: =IF(W104>500000,(W104-500000)*0.3) -> FALSE
M108: stage 3 tax | N108: =IF(N101<=1000000,0,(N101-1000000)*0.3) -> 0 | O108: 0 | P108: 0 | Q108: 0 | R108: 0 | S108: 0 | T108: 0 | U108: 0 | V108: 0
M109: total | N109: =N106+N107+N108 -> 0 | S109: =S107+S108+S106 -> 0 | T109: =T107+T108+T106 -> 0 | U109: =U107+U108+U106 -> 0 | V109: =V107+V108+V106 -> 0 | W109: =W107+W108+W106 -> 0
M111: tax= | N111: =IF(PERSONAL!H5="BELOW 60 YEARS",'new form 16'!N109,IF(PERSONAL!H5="60 to 79 Years",'new form 16'!S109,'new form 16'!W109)) -> 0
J112: =N111 -> 0 | M112: less tax credit
M113: Actual tax | N113: =N111 -> 0 | S113: =S109 -> 0 | W113: =W109 -> 0
M115: 10% of taxable inc: | N115: =N101*0.1 -> 0.2
M116: maximum tax credit: | N116: =IF(J112<=0,0,IF(N101<=500000,12500,0)) -> 0
M117: Actual 87a amt | N117: =MIN(N113,N115,N116) -> 0
M118: Tax due | N118: =N111-N117 -> 0

Sheet Form 16 NEW REGIME (hidden)
A1: =G7 -> 0 | B1: Click the red button to save the statement in PDF Format. This option is available only if you are using Excel 10 or above versions ഈ സൗകര്യം Excel 10 ഓ അതിനു മുകളിലുള്ളതോ ആയ Excel പതിപ്പാണ്‌ താങ്കള്‍ ഉപയോഗിക്കുന്നത് എങ്കില്‍ മാത്രം-- താങ്കള്‍ പഴയ excel പതിപ്പാണ്‌ ഉപയോഗിക്കുന്നതെങ്കില്‍ ഈ സോഫ്റ്റ്‌വെയര്‍ നോടൊപ്പം ലഭിച്ചിരിക്കുന്ന PDF ഫയല്‍ വായിക്കുന്നതിലൂടെയും പരിഹാര മാര്‍ഗ്ഗം ലഭിക്കും --ഫയല്‍ എവിടെയാണ് save ആകുന്നതെന്ന് ക്ലിക്ക് ചെയ്യുമ്പോള്‍ ലഭിക്കുന്ന സന്ദേശത്തില്‍ ലഭിക്കും . | N1: 1 | O1: PRINT P 1 | P1: PRINT P 2
A2: =B2 -> FORM NO. 16 | B2: FORM NO. 16
A3: =I5 -> NEW REGIME RATE | B3: [See rule 31(1)(a)]
B5: PART B (Annexure) | I5: NEW REGIME RATE
B6: Name and address of the Employer | G6: Name and Designation of the Employee
B7: =IF(PERSONAL!H18="Yes","Government of Kerala","") -> Government of Kerala | G7: =PERSONAL!H4 -> 0
B8: =PERSONAL!H10 -> SALARY | G8: =PERSONAL!H6 -> 0
G9: ='new statement'!L6 -> Below 60 Years
B10: PAN of the Deductor | E10: TAN of the Deductor | H10: PAN of the Employee
B11: =CUSTOMISE!H27 -> 0 | E11: =PERSONAL!H16 -> 0 | H11: =PERSONAL!H7 -> 0
B12: CIT (TDS) | F12: Assessment Year | H12: Period
H13: From | J13: To
B14: =PERSONAL!H17 -> 0 | F14: 2021-2022 | H14: April-2020 | J14: March-2021
B15: Summary of tax deducted at source
B16: Quarter | D16: Receipt Numbers of original statements of TDS under sub-section (3) of section 200 | H16: Amount of tax deducted in respect of the employee | J16: Amount of tax deposited remitted in respect of the employee
B17: Quarter 1 | D17: ='tds det'!#REF! ->  | H17: ='tds det'!#REF! ->  | J17: =H17 -> 
B18: Quarter 2 | D18: ='tds det'!#REF! ->  | H18: ='tds det'!#REF! ->  | J18: =H18 -> 
B19: Quarter 3 | D19: ='tds det'!#REF! ->  | H19: ='tds det'!#REF! ->  | J19: =H19 -> 
B20: Quarter 4 | D20: ='tds det'!#REF! ->  | H20: ='tds det'!#REF! ->  | J20: ="due "&H20 -> 
B21: Total (including due ) | H21: ='tds det'!G3 ->  | J21: =H21 -> 
B22: PART B (Refer Note 1) Details of Salary paid and any other income and tax deducted
B23: 1. Gross Salary Rs. | D23: No standard deduction is allowed in New regime | J23: =J27 -> Nil
B24: (a) Salary as per provisions contained in sec.17(1) EXCLUDES PAY REVISION INTEREST | J24: ='new statement (2)'!R22 -> 0
B25: (b) Value of perquisites u/s 17(2) (as per Form No.12BB, wherever applicable) | J25: ='new statement'!T10 -> 0
B26: (c) Profits in lieu of salary under section 17(3) (as per Form No.12BB, wherever applicable) | J26: ='new statement'!T11 -> 0
B27: Total salary income | J27: =IF(SUM(J24:K26)>0,SUM(J24:K26),"Nil") -> Nil
B28: 2. Less Allowance to the extent exempt u/s 10 | L28: ='new statement'!W5 -> 
B29: a. House Rent Allowance (HRA) | H29: ='new statement'!R17 -> 0
B30: b | C30: =INVEST!D28 ->  | G30: =IF(O30>0,"","NIL") -> NIL | H30: =INVEST!F28 -> 0 | O30: =INVEST!F28 -> 0
B31: c | C31: =INVEST!D29 ->  | G31: =IF(O31>0,"","NIL") -> NIL | H31: =INVEST!F29 -> 0 | O31: =INVEST!F29 -> 0
B32: d | C32: =INVEST!D30 ->  | G32: =IF(O32>0,"","NIL") -> NIL | H32: =INVEST!F30 -> 0 | O32: =INVEST!F30 -> 0
B33: e | C33: =INVEST!D31 ->  | G33: =IF(O33>0,"","NIL") -> NIL | H33: =INVEST!F31 -> 0 | O33: =INVEST!F31 -> 0
B34: 3. Total allowances exempted u/s 10 | H34: =SUM(H30:I33) -> 0 | O34: =INVEST!F32 -> 0
B35: 4. Deductions :
B36: (a) Entertainment allowance Rs. | H36: ='det.sal input'!W35 -> 0
B37: (b) Tax on employment Rs. | H37: ='det.sal input'!W31 -> 0
B38: 5. Aggregate of 3 and 4 Rs. | H38: =H34+H36+H37 -> 0
B39: 6. Income chargeable under the head 'salaries' (3-5) Rs. | J39: =IF(N1=2,J27,J27-H38) ->  | AA39: new tax inc | AB39: tax
B40: 7. Add: Any other income reported by the employee | AA40: =J80 -> 0 | AB40: =IF(AA40<250001,0,IF(AA40<500001,(AA40-250000)/20,IF(AA40<750001,(12500+(AA40-500000)/10),IF(AA40<1000001,(37500+(AA40-750000)*15/100),IF(AA40<1250001,75000+(AA40-1000000)/5,IF(AA40<1500001,125000+(AA40-1250000)/4,187500+(AA40-1500000)*30/100)))))) -> 0
B41: Income | H41: Rs.
B42: Income from House property | H42: ='new statement'!O23 -> 0
B43: Income from other sources INTEREST ON PAY REVISION ARREAR (Interest/ Family pension) | H43: ='new statement (2)'!O24 -> 0
B44: Income from business or profession | H44: ='new statement'!O25 -> 0
B45: Capital gain income | H45: ='new statement'!O26 -> 0
B46: Total | H46: ='new statement'!AH258 ->  | J46: ='new statement (2)'!R26 -> 0
B47: 8. Gross total income (6+7) Rs. | J47: ='new statement (2)'!R27 -> 0
B48: 9. Deductions under Chapter VIA
B49: Sections 80C, 80CCC and 80CCD | H49: Gross Amount | J49: Deductible Amount
B50: (i) Section 80C
B51: Providend fund contribution | H51: ='new statement'!O30 -> 0
B52: State Life Insurance Policy (SLI) | H52: ='new statement'!O31 -> 0
B53: Group Insurance Scheme (GIS) | H53: ='new statement'!O32 -> 0
B54: Tax saving Fixed deposits | H54: ='new statement'!O33 -> 0
B55: Life Insurence salary deduction | H55: ='new statement'!O34 -> 0
B56: Life Insurence other than salary deduction | H56: ='new statement'!O35 -> 0
B57: ='det.sal input'!R6&" + "&'det.sal input'!T6 -> ? + ? | H57: ='new statement'!O36 -> 0
B58: NSC VIII th issue (Nationional Savings certificate) | H58: ='new statement'!O37 -> 0
B59: Public Provident Fund (PPF) | H59: ='new statement'!O38 -> 0
B60: ULIP/ Tax saving mutual funds | H60: ='new statement'!O39 -> 0
B61: Tuition Fees | H61: ='new statement'!O40 -> 0
B62: Housing Loan Repayment (PRINCIPAL PORTION ONLY) | H62: ='new statement'!O41 -> 0
B63: ='new statement'!D42 -> 0 | H63: ='new statement'!O42 -> 0
B64: (ii) Section 80CCC | H64: ='new statement'!O43 -> 0
B65: Employee Contrubution to National Pension Scheme - NPS (80CCD) | H65: ='new statement'!O44 -> 0
B66: Total investment under Sec. 80C, 80CCC, 80CCD | H66: ='new statement'!O45 -> 0 | J66: =IF(N1=2,0,'new statement (2)'!R45) -> 0
B67: Employee Contrubution to National Pension Scheme - NPS 80CCD(1B) investment over 1.5 lakh | H67: ='new statement'!O46 -> 0 | J67: =IF(N1=2,0,H67) -> 0
B68: Employer's contribution to NPS [Up to 10% Pay+Da+AGPgets excemption u/s Section 80CCD(2)] | H68: ='new statement'!O47 -> 0 | J68: =H68 -> 0 | N68: NEW RATE tax calculating table actual basis | Y68: OLD RATE TAX WITHOUT DEDUCTIONS
B69: Investment in Rajiv Gandhi Equity Savings Scheme 80CCG (50% of investment gets excemption.Maximum 25000) | H69: ='new statement'!O48 -> 0 | J69: =H69 -> 0
B70: Other sections (e.g. 80E, 80G etc.) under Chapter VI-A | H70: Qualifying Amount | J70: Deductible Amount | M70: tax calculation-men | N70: below 60 | S70: cenior citizen | W70: cenior above 80 | Y70: 60 LESS | Z70: SENIOR | AA70: SUP SENI
B71: Mediclame 80 D | H71: ='new statement'!O49 -> 0 | M71: aggragate income | N71: =J80 -> 0 | S71: =J80 -> 0 | W71: =J80 -> 0 | Y71: ='new statement'!R59 -> 0 | Z71: =Y71 -> 0 | AA71: =Z71 -> 0
B72: Handicaped dependent medical treatment 80 DD | H72: ='new statement'!O50 -> 0 | M72: basic deduction | N72: 250000 | S72: 300000 | W72: 500000 | Y72: 250000 | Z72: 300000 | AA72: 500000
B73: Treatment of chronic diseases 80 DDB | H73: ='new statement'!O51 -> 0
B74: Education Loan Interest repayment 80 E | H74: ='new statement'!O52 -> 0 | M74: balance | N74: =IF(N72>N71,0,N71-N72) -> 0 | S74: =IF(S72>S71,0,S71-S72) -> 0 | T74: =IF(T72>T71,0,T71-T72) -> 0 | U74: =IF(U72>U71,0,U71-U72) -> 0 | V74: =IF(V72>V71,0,V71-V72) -> 0 | W74: =IF(W72>W71,0,W71-W72) -> 0 | Y74: =Y71-Y72 -> -250000 | Z74: =Z71-Z72 -> -300000 | AA74: =AA71-AA72 -> -500000
B75: Donation to special funds 80 G including FLOOD RELIEF FUND | H75: ='new statement'!O55 -> 0 | M75: stage 1 tax | N75: =IF(N71>=500000,12500,N74*0.05) -> 0 | O75: =IF(O71>=500000,30000,O74*0.1) -> 0 | P75: =IF(P71>=500000,30000,P74*0.1) -> 0 | Q75: =IF(Q71>=500000,30000,Q74*0.1) -> 0 | R75: =IF(R71>=500000,30000,R74*0.1) -> 0 | S75: =IF(S71>=500000,10000,S74*0.05) -> 0 | W75: =IF(W74<=500000,W74*0.2,100000) -> 0 | Y75: =IF(Y71>=500000,12500,Y74*0.05) -> -12500 | Z75: =IF(Z71>=500000,10000,Z74*0.05) -> -15000 | AA75: =IF(AA74<=500000,AA74*0.2,100000) -> -100000
B76: Deduction for handicaped employees 80 U | H76: ='new statement'!O56 -> 0 | M76: stage 2 tax | N76: =IF(N71<=500000,0,IF(N71<=1000000,(N71-500000)*0.2,IF(N71>1000000,100000))) -> 0 | O76: 0 | P76: 0 | Q76: 0 | R76: 0 | S76: 0 | W76: =IF(W74>500000,(W74-500000)*0.3) -> FALSE | Y76: =IF(Y71<=500000,0,IF(Y71<=1000000,(Y71-500000)*0.2,IF(Y71>1000000,100000))) -> 0 | Z76: =IF(Z71<=500000,0,IF(Z71<=1000000,(Z71-500000)*0.2,IF(Z71>1000000,100000))) -> 0 | AA76: =IF(AA74>500000,(AA74-500000)*0.3) -> FALSE
M77: stage 3 tax | N77: =IF(N71<=1000000,0,(N71-1000000)*0.3) -> 0 | O77: 0 | P77: 0 | Q77: 0 | R77: 0 | S77: 0 | T77: 0 | U77: 0 | V77: 0 | Y77: =IF(Y71<=1000000,0,(Y71-1000000)*0.3) -> 0 | Z77: =IF(Z71<=1000000,0,(Z71-1000000)*0.3) -> 0
H78: ='new statement'!O58 -> 0 | M78: total | N78: =N75+N76+N77 -> 0 | S78: =S76+S77+S75 -> 0 | T78: =T76+T77+T75 -> 0 | U78: =U76+U77+U75 -> 0 | V78: =V76+V77+V75 -> 0 | W78: =W76+W77+W75 -> 0 | Y78: =Y75+Y76+Y77 -> -12500 | Z78: =Z76+Z77+Z75 -> -15000 | AA78: =AA76+AA77+AA75 -> -100000
B79: 10. Aggregate of deductible amount (Chapter VI A deduction not allowed in New Regim) | J79: 0 | M79: stage 3 tax | N79: =IF(N71<=1000000,0,(N71-1000000)*0.3) -> 0 | Y79: =IF(Y71<=1000000,0,(Y71-1000000)*0.3) -> 0 | Z79: =IF(Z71<=1000000,0,(Z71-1000000)*0.3) -> 0
B80: 11. Total Income or Taxable income (8-10) | G80: ="( Rs."&J47-J79 & " Rounded to Ten)" -> ( Rs.0 Rounded to Ten) | J80: ='new statement (2)'!R59 -> 0 | M80: tax= | N80: =IF(PERSONAL!H5="BELOW 60 YEARS",' Form 16 NEW REGIME'!N78,IF(PERSONAL!H5="60 to 79 Years",' Form 16 NEW REGIME'!S78,' Form 16 NEW REGIME'!W78)) -> 0 | Y80: =IF(PERSONAL!H5="BELOW 60 YEARS",' Form 16 NEW REGIME'!Y78,IF(PERSONAL!H5="60 to 79 Years",' Form 16 NEW REGIME'!Z78,' Form 16 NEW REGIME'!AA78)) -> -12500
B81: 12. Income Tax (New Regime rate applicable) | J81: ='new statement (2)'!R60 -> 0 | M81: less tax credit
B82: 13. Less Rebate 87A (Maximum of Rs. 12500) available if Point 11 is <500001 | J82: =ROUND(N86,0) -> 0 | K82: =N86 -> 0 | M82: Actual tax | N82: =ROUND(N80,0) -> 0 | S82: =S78 -> 0 | W82: =W78 -> 0
B83: 14. Tax after 87A rebate | J83: =J81-J82 -> 0
B84: 15. Education cess @ 4% of income tax | J84: =ROUND((J81-K82)*0.04,0) -> 0 | M84: 10% of taxable inc: | N84: =N71*0.1 -> 0
B85: 16. Total Tax Payable including cess | J85: =J81-K82+J84 -> 0 | M85: maximum tax credit: | N85: =IF(J81<=0,0,IF(N71<=500000,12500,0)) -> 0
B86: 17. Less: Relief under section 89 (attach details) | J86: =ROUND(('new statement (2)'!R65),0) -> 0 | L86: =ROUND(J87,-1) -> 0 | M86: Actual 87a amt | N86: =MIN(N82:N85) -> 0
B87: 18. Tax payable/ refundable | E87: ="[Rounded value to ten is Rs "&L86&"]" -> [Rounded value to ten is Rs 0] | J87: =L87 -> 0 | L87: =IF(J85>J86,J85-J86,0) -> 0
B90: Verification | M90: Form 16 ഇന്‍കംടാക്സ് വകുപ്പ് തയ്യാറാക്കുന്ന പ്രത്യേക ഫോര്‍മാറ്റിലുള്ള
B91: ="I, "&PERSONAL!H12&" ,son/daughter of "&PERSONAL!H13&" working in the capacity of "& PERSONAL!H14&" do hereby certify that" -> I, 0 ,son/daughter of SELECT HRA CLASS working in the capacity of 0 do hereby certify that | M91: രേഖയാണ്. അതില്‍ മൊത്തത്തില്‍ ഒരു വര്‍ഷത്തില്‍ അടക്കേണ്ട നികുതി
B92: the information given above is true, complete and correct and is based on the books of | M92: മാത്രമേ കാണിക്കുകയുള്ളൂ. അല്ലാതെ ഇതിനകം അടച്ച നികുതിയും
B93: account, documents, TDS statements, and other available records | M93: ബാക്കി അടക്കാനുള്ള നികുതിയും പ്രത്യേകം കാണിക്കുകയില്ല.
B94: =PERSONAL!H11 -> 0 | G94: ="Signature of "&PERSONAL!H12 -> Signature of 0 | M94: 10 ലേക്ക് ROUND ചെയ്ത നികുതി സംഖ്യയാണ് ശരിയായ നികുതി.
B95: =TEXT(TODAY(),"dd/mm/yyyy") -> 05/02/2024 | D95: http://babuvadukkumchery.blogspot..com | M95: ROUND ചെയ്യാത്ത തുക ഇവിടെ വെറുതെ
K96: =PERSONAL!H14 -> 0 | M96: അറിവിലേക്കായി നല്‍കീ എന്നേ കരുതേണ്ടൂ
N99: tax calculating table accrual basis NEW REGIME
M100: tax calculation-men | N100: below 60 | S100: cenior citizen | W100: cenior above 80
M101: aggragate income | N101: ='Form 10E NEW REG'!H33 -> 0 | S101: =N101 -> 0 | W101: =N101 -> 0
M103: TAX NEW REGIME | N103: =IF(N101<250001,0,IF(N101<500001,( N101-250000)/20,IF(N101<750001,(12500+(N101-500000)/10),IF(N101<1000001,(37500+(N101-750000)*15/100),IF(N101<1250001,75000+(N101-1000000)/5,IF(N101<1500001,125000+(N101-1250000)/4,187500+(N101-1500000)*30/100)))))) -> 0 | S103: NOT APPLI | W103: NOT APPLI
N109: =N106+N107+N108 -> 0 | S109: =S107+S108+S106 -> 0 | T109: =T107+T108+T106 -> 0 | U109: =U107+U108+U106 -> 0 | V109: =V107+V108+V106 -> 0 | W109: =W107+W108+W106 -> 0
J112: =N111 -> 0 | M112: less tax credit 87 A | N112: =IF(N103<=0,0,IF(N101<=500000,12500,0)) -> 0
M113: Mini of tax/ rebate 87 A | N113: =MIN(N112,N103) -> 0 | S113: =S109 -> 0 | W113: =W109 -> 0
M115: TAX AFTER 87 A = | N115: =N103-N113 -> 0
M116: Tax inclu. Edu cess 4% | N116: =ROUND((N115*104%),0) -> 0
M117: Actual 87a amt | N117: =MIN(N113:N116) -> 0

Sheet ARREAR SPLIT (hidden)
B1: ="10 -E CALCULATION of "&PERSONAL!H4 -> 10 -E CALCULATION of | R1: Now Relief amount is | S1: ='Form 10E'!H40 -> 0 | T1: ='Form 10E NEW REG'!H40 -> 0 | X1: YES
A2: 1 | B2: Caution...! Just place mouse pointer on this lines to read an important warning. തുടരുന്നതിന് മുന്‍പായി ഈ വരികളില്‍ മൗസ് പൊയിന്‍റെര്‍ വച്ച് നിര്‍ദ്ദേശങ്ങള്‍ വായിക്കുക
C3: ="1. Total of arrears credited to PF [including interest]" -> 1. Total of arrears credited to PF [including interest] | K3: ='det.sal input'!C21 -> 0 | N3: ='det.sal input'!C21 -> 0 | U3: Male
C4: 2. Total of arrears as Cash receipt / credited to NPS [fully or partially] including DEFERRED SALARY & arrear interest | K4: ='det.sal input'!C22+'det.sal input'!C25 -> 0 | N4: =K4 -> 0 | U4: Female
C5: ="Total arrears [excluding interest Rs. "&'det.sal input'!W27&"] 1+2 minus Interest" -> Total arrears [excluding interest Rs. ] 1+2 minus Interest | I5: പലിശ കിഴിച്ച ശേഷം | K5: =K3+K4-'det.sal input'!W27 -> 0 | L5: =K5-SUM(D39:K39) -> -3000 | N5: =K3+K4-'det.sal input'!W27 -> 0 | U5: Senior Citizen (65-79)
B6: ="show split up of the above arrear Rs. "&N5&" in the following tables 1,2,3"&" [മുകളില്‍ കാണുന്ന കുടിശ്ശിക സംഖ്യ ചുവടെ കാണുന്ന 1,2,3 പട്ടികകളില്‍ വര്ഷം തിരിച്ചു നല്‍കുക. കൂടിശികയിൽ ഉൾപ്പെട്ട 2021-22 വർഷത്തെ തുകകൾ എഴുതേണ്ടതില്ല. അവ തനിയെ പരിഗണിക്കപ്പെടും ] " -> show split up of the above arrear Rs. 0 in the following tables 1,2,3 [മുകളില്‍ കാണുന്ന കുടിശ്ശിക സംഖ്യ ചുവടെ കാണുന്ന 1,2,3 പട്ടികകളില്‍ വര്ഷം തിരിച്ചു നല്‍കുക. കൂടിശികയിൽ ഉൾപ്പെട്ട 2021-22 വർഷത്തെ തുകകൾ എഴുതേണ്ടതില്ല. അവ തനിയെ പരിഗണിക്കപ്പെടും ] | U6: Senior Citizen (above 80)
B7: PAY REVISION ARREAR DETAILS ORIGINALLY RECEIVED ONLY [IF ANY] (Excluding Interest) [Table 1]
B8: Show yearly split up of amounts of different FINANCIAL YEARS (ഇവിടെ പേ റിവിഷന്‍ കുടിശികയുടെ വാര്‍ഷീക തുക ഈ വര്‍ഷത്തില്‍ യഥാര്‍ത്ഥത്തില്‍ കിട്ടിയത് മാത്രം സാമ്പത്തീക വര്ഷം തിരിച്ചു എഴുതുക)
B9: 2009-10 | C9: 2010-11 | D9: 2011-12 | E9: 2012-13 | F9: 2013-14 | G9: 2014-15 | H9: 2015-16 | I9: 2016-17 | J9: 2017-18 | K9: 2018-19 | L9: 2019-20 | M9: 2020-21 | N9: TOTAL
N10: =SUM(B10:M10) -> 0
B11: =IF(N10>1,"Warning - Fill the Table 4, other wise calculations will be false- Table 4 നിര്‍ബന്ധമായും പൂരിപ്പിക്കുക, അല്ലാത്തപക്ഷം തെറ്റായ വിവരം നല്‍കും ","") -> 
B12: DA ARREAR DETAILS [Table 2]
B13: Show yearly split up of amounts of different FINANCIAL YEARS (ഇവിടെ DA കുടിശികയുടെ വാര്‍ഷീക തുക ഈ വര്‍ഷത്തില്‍ യഥാര്‍ത്ഥത്തില്‍ കിട്ടിയത് മാത്രം സാമ്പത്തീക വര്ഷം തിരിച്ചു എഴുതുക)
B14: 2009-10 | C14: 2010-11 | D14: 2011-12 | E14: 2012-13 | F14: 2013-14 | G14: 2014-15 | H14: 2015-16 | I14: 2016-17 | J14: 2017-18 | K14: 2018-19 | L14: 2019-20 | M14: 2020-21 | N14: TOTAL
N15: =SUM(B15:M15) -> 0
B16: =IF(N15>1,"Warning - Fill the Table 4, other wise calculations will be false- Table 4 നിര്‍ബന്ധമായും പൂരിപ്പിക്കുക, അല്ലാത്തപക്ഷം തെറ്റായ വിവരം നല്‍കും ","") -> 
B17: TOTAL ARREAR DETAILS
B18: Show yearly split up of amounts of different FINANCIAL YEARS (ശമ്പള കുടിശികയുടെ വാര്‍ഷീക തുക ഈ വര്‍ഷത്തില്‍ യഥാര്‍ത്ഥത്തില്‍ കിട്ടിയത് മാത്രം സാമ്പത്തീക വര്ഷം തിരിച്ചു എഴുതുക)
B19: 2009-10 | C19: 2010-11 | D19: 2011-12 | E19: 2012-13 | F19: 2013-14 | G19: 2014-15 | H19: 2015-16 | I19: 2016-17 | J19: 2017-18 | K19: 2018-19 | L19: 2019-20 | M19: 2020-21 | N19: TOTAL
B20: ='ARR MONH SPLIT'!C63 -> 0 | C20: ='ARR MONH SPLIT'!E63 -> 0 | D20: ='ARR MONH SPLIT'!G63 -> 0 | E20: ='ARR MONH SPLIT'!I63 -> 0 | F20: ='ARR MONH SPLIT'!K63 -> 0 | G20: ='ARR MONH SPLIT'!M63 -> 0 | H20: ='ARR MONH SPLIT'!O63 -> 0 | I20: ='ARR MONH SPLIT'!Q63 -> 0 | J20: ='ARR MONH SPLIT'!S63 -> 0 | K20: ='ARR MONH SPLIT'!U63 -> 0 | L20: ='ARR MONH SPLIT'!W63 -> 0 | M20: ='ARR MONH SPLIT'!Y63 -> 0 | N20: =SUM(B20:M20) -> 0
B21: Total arrear details (Pay Revision + DA+Salary) | L21: =IF((N10+N15+N20)>N5,"Caution- Error, Split amount should not be more than total arrear. Please check","") -> 
B22: =B10+B15+B20 -> 0 | C22: =C10+C15+C20 -> 0 | D22: 0 | E22: 0 | F22: 0 | G22: 0 | H22: 0 | I22: 0 | J22: 0 | K22: 0 | L22: 0 | M22: 0 | N22: ='ARR MONH SPLIT'!AA63 -> 0 | R22: =N5-N22 -> 0
B23: ="Out of the total amount of arrear Rs. "&K5&", an amount of Rs."&R22&" is related with the current financial year" -> Out of the total amount of arrear Rs. 0, an amount of Rs.0 is related with the current financial year | N23: =K5-N22 -> 0
B24: TAXABLE INCOME OF DIFFERENT FINANCIAL YEARS | P24: Male
B25: Show yealy taxable income details below the cells coloured RED. If no income, write 0 - CAUTION ഇവിടെ മൌസ് വച്ച് വിശദാംശങ്ങള്‍ വായിക്കുക__ചുവന്ന നിറത്തില്‍ പിൻ വർഷങ്ങൾ രേഖപ്പെടുത്തി കാണുന്ന ബോക്സിനുതാഴെ വിവരം നിര്‍ബന്ധമായും നല്‍കണം. ഒരു കാരണവശാലും കുടിശിക ലഭിച്ചിട്ടുള്ള ഒരു വർഷവും ഒഴിവാക്കരുത് വരുമാനമില്ലാത്തവര്‍ 0 (zero) നല്‍കാം | N25: =N105 -> Male | P25: Female
B26: =IF(B22>0,"2009-10","Skip this year") -> Skip this year | C26: =IF(C22>0,"2010-11","Skip this year") -> Skip this year | D26: =IF(D22>0,"2011-12","Skip this year") -> Skip this year | E26: =IF(E22>0,"2012-13","Skip this year") -> Skip this year | F26: =IF(F22>0,"2013-14","Skip this year") -> Skip this year | G26: =IF(G22>0,"2014-15","Skip this year") -> Skip this year | H26: =IF(H22>0,"2015-16","Skip this year") -> Skip this year | I26: =IF(I22>0,"2016-17","Skip this year") -> Skip this year | J26: =IF(J22>0,"2017-18","Skip this year") -> Skip this year | K26: =IF(K22>0,"2018-19","Skip this year") -> Skip this year | L26: =IF(L22>0,"2019-20","Skip this year") -> Skip this year | M26: 2020-21 | N26: 2021-22 | P26: Senior Citizen (65-79) | V26: OLD REGIME
N27: 2 | P27: Senior Citizen (above 80) | R27: =SUM(B27:N27) -> 2 | V27: NEW REGIME
B29: Please check your 2020-21, 2021-22 FY year's tax statement, The tax rate option selected may be OLD REGIME or NEW REGIME. Choose the correct option on the right side by clicking the COFFEE coloured കഴിഞ്ഞ രണ്ടു Financial year വർഷത്തെ നികുതി സ്റ്റേറ്റ്മെൻറ് പരിശോധിച്ച് താങ്കൾ OLD REGIME/ NEW REGIME എന്നിവയിൽ ഏത് നിരക്കിലാണ് നികുതി കണ്ടതെന്ന് നോക്കി വലതു വശത്ത് കാണുന്ന ഓപ്ഷനിൽ ക്ലിക് ചെയ്തു ശരിയായത് സെലെക്റ്റ് ചെയ്യുക | M29: OLD REGIME | N29: OLD REGIME
B30: =IF(AND(N27<1,B22>1),"Fill the above Table 4. If income relating to the respective financial years is NIL, put zero (0)","") -> 
C32: ="To prepare 10 E form, yearly split up of the Rs. "&K5&" is required. Type the arrear monthly split up in the tables shown below 1a/1b/1c" -> To prepare 10 E form, yearly split up of the Rs. 0 is required. Type the arrear monthly split up in the tables shown below 1a/1b/1c | O32: Category | Q32: (Female & senior citizen should change category)
A34: If you have mannualy calculated yearly split up of the amount, select YES, otherwise select NO | N34: YES | O34: Senior Citizen (65-79)
C35: Select the category you belongs to (പുരുഷനോ സ്ത്രീയോ, തിരഞ്ഞെടുക്കുക) | O35: =N25 -> Male
C36: =IF(N34="YES","CLICK BUTTON 1 TO CONTINUE","CLICK BUTTON 2 TO CONTINUE") -> CLICK BUTTON 1 TO CONTINUE
A37: 1 | C37: ="Mannually calculated yearly split up of ALL arrear Rs. "&K5&" is to be shown below" -> Mannually calculated yearly split up of ALL arrear Rs. 0 is to be shown below
A38: Year | B38: 2018-19 | C38: 2017-18 | D38: 2016-17 | E38: 2015-16 | F38: 2014-15 | G38: 2013-14 | H38: 2012-13 | I38: 2011-12 | J38: 2010-11 | K38: 2009-10 | L38: Year | N38: =IF(SUM(D39:K39)<=K5,"","ERROR ! Total of arrear split up should not be more than "&K5) -> ERROR ! Total of arrear split up should not be more than 0
A39: Arrear Rs. | B39: 1500 | C39: 1000 | D39: 3000 | L39: Arrear Rs. | S39: =SUM(B39:K39) -> 5500
A42: [1a] | D42: TOTAL PAY REVISION ARREARS DRAWN THIS YEAR- MONTHLY SPLIT UP (Excluding interest) - Rupees (ഈ വര്ഷം വാങ്ങിയത് മാത്രം) | R42: Surrender | S42: Yearly total Rs.
E43: MARCH | F43: APRIL | G43: MAY | H43: JUNE | I43: JULY | J43: AUG | K43: SEPT | L43: OCT | N43: NOV | O43: DEC | P43: JAN | Q43: FEB
D44: 2014-15 | S44: =SUM(I44:R44) -> 0 | T44: =S44+S45 -> 0
D45: 2015-16 | S45: =SUM(E45:R45) -> 0 | T45: ="Total Rs. "&S44+S45 -> Total Rs. 0
A47: [1b] | D47: DA ARREAR MONTHLY SPLIT UP - Rupees | R47: Surrender | S47: Yearly total Rs.
D48: Year | E48: MARCH | F48: APRIL | G48: MAY | H48: JUNE | I48: JULY | J48: AUG | K48: SEPT | L48: OCT | N48: NOV | O48: DEC | P48: JAN | Q48: FEB
D49: 2009-10 | S49: =SUM(E49:R49) -> 0
D50: 2010-11 | S50: =SUM(E50:R50) -> 0
D51: 2011-12 | S51: 0
D52: 2012-13 | S52: 0
D53: 2013-14 | S53: 0
D54: 2014-15 | S54: 0
D55: 2015-16 | S55: 0 | T55: =SUM(S49:S56) -> 0
D56: 2016-17 | S56: 0 | T56: ="Total Rs. "&SUM(S49:S57) -> Total Rs. 0
D57: 2017-18 | S57: 0
D58: 2018-19
A60: [1c] | D60: PAY [salary] ARREAR (OR ANY OTHER ARREAR) MONTHLY SPLIT UP - Rupees | R60: Surrender | S60: Yearly total Rs.
D61: Year | E61: MARCH | F61: APRIL | G61: MAY | H61: JUNE | I61: JULY | J61: AUG | K61: SEPT | L61: OCT | N61: NOV | O61: DEC | P61: JAN | Q61: FEB
D62: 2009-10 | S62: =SUM(E62:R62) -> 0
D63: 2010-11 | S63: =SUM(E63:R63) -> 0
D64: 2011-12 | S64: 0
D65: 2012-13 | S65: 0
D66: 2013-14 | S66: 0
D67: 2014-15 | S67: 0
D68: 2015-16 | S68: 0 | T68: =SUM(S62:S69) -> 0
D69: 2016-17 | S69: 0 | T69: ="Total Rs. "&SUM(S62:S70) -> Total Rs. 0
D70: 2017-18 | S70: 0
D71: 2018-19
D72: monthly cosolidated values
A73: Year | B73: 2018-19 | C73: 2017-18 | D73: 2016-17 | E73: 2015-16 | F73: 2014-15 | G73: 2013-14 | H73: 2012-13 | I73: 2011-12 | J73: 2010-11 | K73: 2009-10
A74: Arrear Rs. | B74: =S71+S58 -> 0 | C74: =S70+S57 -> 0 | D74: =S69+S56 -> 0 | E74: =S68+S55+S45 -> 0 | F74: =S67+S54+S44 -> 0 | G74: =S66+S53 -> 0 | H74: =S65+S52 -> 0 | I74: =S64+S51 -> 0 | J74: =S63+S50 -> 0 | K74: =S62+S49 -> 0
D75: applicable values for calculation according to option yes or no
A76: Year | B76: 2018-19 | C76: 2017-18 | D76: 2016-17 | E76: 2015-16 | F76: 2014-15 | G76: 2013-14 | H76: 2012-13 | I76: 2011-12 | J76: 2010-11 | K76: 2009-10
A77: Arrear Rs. | B77: =IF($N$34="yes",B39,B74) -> 1500 | C77: 1000 | D77: 3000 | E77: 0 | F77: 0 | G77: 0 | H77: 0 | I77: 0 | J77: 0 | K77: 0
A79: Show TAXABLE INCOME (TOTAL INCOME) of previous years in respective fields (പിന്‍ വര്‍ഷങ്ങളിലെ TAXABLE വരുമാനം കാണിക്കുക)
A80: What is Taxable Income of previous year..? You must read it. Just place mouse pointer on this lines and read. പിന്‍കാല ടാക്സബിള്‍ ഇന്‍കം എന്നാല്‍ എന്ത്...? ഈ വരികളില്‍ മൗസ് പൊയിന്റര്‍ വച്ച് നിര്‍ബന്ധമായും വായിക്കുക
A83: 2 | C83: Taxable Income of Financial Years before this arrear (may be zero for a new salary recipient) | N83: =IF((S39+T44+T55+T68)<=K5,"","ERROR ! Arrear split up total should not be more than "&K5) -> ERROR ! Arrear split up total should not be more than 0
A84: Year | B84: =IF(B77=0,"Not needed","2018-19") -> 2018-19 | C84: =IF(C77=0,"Not needed","2017-18") -> 2017-18 | D84: =IF(D77+S69+S56=0,"Not needed","2016-17") -> 2016-17 | E84: =IF(E77+S55+S68+S45=0,"Not needed","2015-16 ") -> Not needed | F84: =IF(F77+S67+S54+S44=0,"Not needed","2014-15 ") -> Not needed | G84: =IF(G77+S53+S66=0,"Not needed","2013-14 ") -> Not needed | H84: =IF(H77+S52+S65=0,"Not needed","2012-13") -> Not needed | I84: =IF(I77+S51+S64=0,"Not needed","2011-12 ") -> Not needed | J84: =IF(J77+S50+S63=0,"Not needed","2010-11") -> Not needed | K84: =IF(K77+S49+S62=0,"Not needed","2009-10") -> Not needed | L84: Year
A85: Income Rs. | B85: 1 | C85: 2 | D85: 3 | E85: 4 | F85: 5 | G85: 6 | H85: 7 | I85: 8 | J85: 9 | K85: 10 | L85: Income Rs.
A87: 3 | D87: =IF(SUM(D77:K77)=0,"You have to skip this field","Show chapter VI A deductions of concerned years [if any] only if it is demanded by the software") -> Show chapter VI A deductions of concerned years [if any] only if it is demanded by the software
A88: Year | B88: =IF(B85=0,B84,"Never show") -> Never show | C88: =IF(C85=0,C84,"Never show") -> Never show | D88: =IF(D85=0,D84,"Never show") -> Never show | E88: Never show | F88: Never show | G88: Never show | H88: Never show | I88: Never show | J88: Never show | K88: Never show | L88: Year
A89: Income Rs. | L89: Income Rs.
S90: Relief Rs.
C91: =IF(K5="","",IF('arrear det'!K100>1,"താങ്കള്‍ 10 E ഫോം മാനുവല്‍ ആയി തയ്യാറാക്കുന്നതിനുള്ള ഓപ്ഷന്‍ സ്വീകരിച്ചതിനാല്‍ മുകളിലുള്ള തുകകള്‍ പരിഗണിക്കാതെ താങ്കള്‍ എഴുതിച്ചേര്‍ത്ത തുക പരിഗണിച്ചിരിക്കുന്നു Click Continue 2",IF(D85+E85+F85+G85+H85+I85+J85+K85=0,"Fill details of second row. If you are receiving salary income first time during this year, values in fifth row will be zero താങ്കള്‍ രണ്ടാം റോ പൂരിപ്പിചിട്ടില്ല, ഇപ്പോള്‍ ആദ്യമായി വരുമാനം നേടുന്നവര്‍ അവിടെ പൂജ്യം നല്‍കാം ","1,2 ചോദ്യങ്ങള്‍ക്ക് വിവരങ്ങള്‍ പൂര്‍ണ്ണമായി നല്‍കിയാല്‍ താങ്കളുടെ ഇളവു വലത്തുവശത്തു കാണുംവിധമാണ്. ‍If your data entry is over, your relief amount is shown in right side. Click Continue 1 "))) -> 1,2 ചോദ്യങ്ങള്‍ക്ക് വിവരങ്ങള്‍ പൂര്‍ണ്ണമായി നല്‍കിയാല്‍ താങ്കളുടെ ഇളവു വലത്തുവശത്തു കാണുംവിധമാണ്. ‍If your data entry is over, your relief amount is shown in right side. Click Continue 1 | S91: =IF('arrear det'!K100>1,'arrear det'!K100,'Form 10E'!H40) -> 0
C93: =IF('arrear det'!K100>1,"താങ്കള്‍ 10 E ഫോം മാനുവല്‍ ആയി തയ്യാറാക്കുന്നതിനുള്ള ഓപ്ഷന്‍ സ്വീകരിച്ചതിനാല്‍ ഈ സംവിധാനത്തില്‍ നിന്നും ലഭിക്കുന്ന ഫോം 10 E സെറ്റ് ഉപയോഗിക്കരുത് എന്നാല്‍ Incometax Statement, Form 16 പ്രിന്റുകള്‍ പരിഗണിക്കാവുന്നതാണ്",IF(S91=0,"Sorry, you cannot claim for Relief, You are not needed to take printouts of Form 10E"," If you filled row number 2, you are benifited with following relief. Nothing more to do, Click GO BACK button, and print meunu 8. If you are benifited, then only you have to submit tax satements of previous years, Form 10 E set additionally")) -> Sorry, you cannot claim for Relief, You are not needed to take printouts of Form 10E
C99: Sorry , 10 E Calculation facility will be provided in this software during Dec 2019
C100: Kindly download the revised version during December
C101: To download the revised version, visit: babuvadukkumchery.blogspot.in
M105: Now select whether you are MALE or FEMALE from the list - പുരുഷനാണോ സ്ത്രീയാണോ എന്നു തെരഞ്ഞെടുക്കുക | N105: Male
J107: If your data entry is over, click the green button on the right side to view / Print 10 E form sets - | K107: =print!L9 -> 0 | N107: =INVEST!L3 -> 0
M108: ="Dear "&PERSONAL!H4&", "&"balacne of tax payable after deducting the relief for arrear if any, is" -> Dear , balacne of tax payable after deducting the relief for arrear if any, is | N108: =" Rs. "&INVEST!N1&INVEST!O1 -> Rs. 0 (Refund)
N109: =IF(R27=0,"Caution ! You must fill the taxable income below the ALL red coloured previous financial years shown above","") -> 
C159: Sorry,
C160: At present the facility is not provided in the software. If the mannually calculated 89(1) Relief amount is available,
C161: You can type the value in box provided below this line. The facility will be provided later while updating the App
C162: നിലവിൽ ഈ സൌകര്യം ലഭ്യമാക്കിയിട്ടില്ല. മാന്വൽ ആയി കണക്കാക്കിയ റിലീഫ് തുക അറിയാമെങ്കിൽ
C163: ചുവടെ നല്കാം. 1 0 E സൌകര്യം ഭാവിയിൽ ലഭ്യമാക്കും
C165: 89 (1) Relief amount manually calculated by me is Rs.

Sheet MEDI INS OTHER DED
C1: Page 5
C2: ="MEDICAL INSURANCE/ EXPENSE "&"details of "&PERSONAL!H4 -> MEDICAL INSURANCE/ EXPENSE details of | R2: =PERSONAL!H5 -> Below 60 Years
C3: Fill all the details very carefully-മുഴുവൻ വിവരങ്ങളും നിർബന്ധമായും പൂരിപ്പിക്കുക | P3: Details | Q3: Eligible amount
C4: 1 | D4: Have you / family (excluding parents) taken a medical insurance policy other than Medicep (താങ്കളോ, കുടുംബമോ (രക്ഷിതാക്കൾ ഒഴികെ) മെഡിസെപിനു പുറമെ medical insurance policy എടുത്തിട്ടുണ്ടോ)
C5: 1 | D5: മാതാ പിതാക്കളുടെ പേരിൽ medical Insurance policy കൾ ഏടുത്തിട്ടുണ്ടോ | R5: =IF($P$5="","Caution : Kindly answer questions 1; otherwise the statemet may show wrong result",IF($P$6="","Caution : Kindly answer questions 1; otherwise the statemet may show wrong result","")) -> Caution : Kindly answer questions 1; otherwise the statemet may show wrong result
C6: 2 | D6: മാതാപിതാക്കൾ senior Citizen വിഭാഗത്തിൽപെടുന്നുവോ | R6: =IF(P6="yes",50000,25000) -> 25000
C7: Medical insurance details of your family EXCLUDING PARENTS
C8: 3 | D8: Medisep അല്ലാതെ, സ്വന്തം / ഇണ / മക്കൾ എന്നിവരുടെ പേരിൽ എടുത്ത medical insurance policy യുടെ പ്രീമിയം തുക (excluding expenditure for parents) | Q8: =IF(R2="below 60 years",MIN(R8,25000),MIN(R8,50000)) -> 0 | R8: =P8+P9+P10 -> 0
C9: 4 | D9: Preventive medical checkup നായി self / ഇണ/മക്കൾ എന്നിവരുടെ പേരിൽ തുക ചെലവാക്കിയെങ്കിൽ ആ തുക എത്ര- Maximum 5000 is allowed- (Type expenditure excluding parents) | S9: =IF(R2="below 60 years",25000,50000) -> 25000
C10: 5 * | D10: Salary details ൽ നൽകിയ വിവരപ്രകാരം Medisep ൽ അടച്ച തുക (Already entered by you in salary deduction field) | P10: ='det.sal input'!V26 -> 0
C11: Medical Insurance details of PARENTS
C12: 6 | D12: =IF(P5="No","You can skip this question ഈ ചോദ്യം അവഗണിക്കുക","Medisep അല്ലാതെ, മാതാപിതാക്കളുടെ പേരിൽ എടുത്ത medical insurance പോളിസിയുടെ മാത്രം പ്രീമിയം തുക " ) -> Medisep അല്ലാതെ, മാതാപിതാക്കളുടെ പേരിൽ എടുത്ത medical insurance പോളിസിയുടെ മാത്രം പ്രീമിയം തുക | Q12: =MIN(P12+P13+P14,R12) -> 0 | R12: =IF(P6="",25000,IF(P6="no",25000,IF(P6="yes",50000,25000))) -> 25000
C13: 7 | D13: Preventive medical checkup നായി മാതാ പിതാക്കളുടെ പേരിൽ തുക ചെലവാക്കിയെങ്കിൽ ആ തുക എത്ര- Maximum 5000 is allowed
C14: 8 | D14: Medical expense incurred for SENIOR CITIZEN PARENTS, paid other than by CASH, with all bills [ costs like medical consultations, impairment aids, medicines, hospitalisation etc.]
C15: 9 | D15: Total amount for Medical insurance | P15: =SUM(P8,P9,P10,P12,P13,P14) -> 0 | Q15: =SUM(Q8:Q12) -> 0 | R15: =IF(R2="Below 60 years",50000,100000) -> 50000
C16: 10 | D16: Total Eligible amount under Section 80 D - Medical insurance, by considering all Medical insurances | Q16: =MIN(Q15,R16) -> 0 | R16: =IF(P5="no",50000,IF(P5="",50000,IF(P6="no",50000,IF(P6="yes",100000,IF(P6="",50000))))) -> 50000
C17: * You can't type medisep value in sl no 5 row, for that click go back, and enter values in monthly salary/ deduction typing field- medisep column

Sheet DA ALTER
B5: Months Receipts | C5: BASIC PAY | D5: AGP * | E5: DA% | F5: DA | H5: HRA auto generated | I5: To change HRA value, Type your Original HRA
B7: ='new statement'!B79:C79 -> March-2023 | C7: ='det.sal input'!C8 -> 0 | D7: ='det.sal input'!D8 -> 0 | E7: 0.07 | F7: =B21 -> 0 | H7: =W21 -> 0
B8: ='new statement'!B80:C80 -> April | C8: ='det.sal input'!C9 -> 0 | D8: ='det.sal input'!D9 -> 0 | E8: 0.07 | F8: =B22 -> 0 | H8: =W22 -> 0
B9: ='new statement'!B81:C81 -> May | C9: ='det.sal input'!C10 -> 0 | D9: ='det.sal input'!D10 -> 0 | E9: 0.07 | F9: 0 | H9: 0
B10: ='new statement'!B82:C82 -> June | C10: ='det.sal input'!C11 -> 0 | D10: ='det.sal input'!D11 -> 0 | E10: 0.07 | F10: 0 | H10: 0
B11: ='new statement'!B83:C83 -> July | C11: ='det.sal input'!C12 -> 0 | D11: ='det.sal input'!D12 -> 0 | E11: 0.07 | F11: 0 | H11: 0
B12: ='new statement'!B84:C84 -> August | C12: ='det.sal input'!C13 -> 0 | D12: ='det.sal input'!D13 -> 0 | E12: 0.07 | F12: 0 | H12: 0
B13: ='new statement'!B85:C85 -> September | C13: ='det.sal input'!C14 -> 0 | D13: ='det.sal input'!D14 -> 0 | E13: 0.07 | F13: 0 | H13: 0
B14: ='new statement'!B86:C86 -> October | C14: ='det.sal input'!C15 -> 0 | D14: ='det.sal input'!D15 -> 0 | E14: 0.07 | F14: 0 | H14: 0
B15: ='new statement'!B87:C87 -> November | C15: ='det.sal input'!C16 -> 0 | D15: ='det.sal input'!D16 -> 0 | E15: 0.07 | F15: 0 | H15: 0
B16: ='new statement'!B88:C88 -> December | C16: ='det.sal input'!C17 -> 0 | D16: ='det.sal input'!D17 -> 0 | E16: 0.07 | F16: 0 | H16: 0
B17: ='new statement'!B89:C89 -> Jan- 2024 | C17: ='det.sal input'!C18 -> 0 | D17: ='det.sal input'!D18 -> 0 | E17: 0.07 | F17: 0 | H17: 0
B18: ='new statement'!B90:C90 -> Feb-2024 | C18: ='det.sal input'!C19 -> 0 | D18: ='det.sal input'!D19 -> 0 | E18: 0.07 | F18: 0 | H18: 0
B19: * AGP applicable only for UGC scale officers | H19: CORPORATION | K19: MUNICIPALITY DISTRICT HQ | N19: MUNICIPALITY | Q19: PANCHAYATH | S19: SEL CORP | T19: SEL MU HQ | U19: SEL MUN | V19: SSEL PAN
G20: % | H20: MIN | I20: MAX | J20: % | K20: MIN | L20: MAX | M20: % | N20: MIN | O20: MAX | P20: % | Q20: MIN | R20: MAX | W20: SELECTED
B21: =ROUND((C7+D7)*E7,0) -> 0 | G21: =ROUND((C7+D7)*0.1,1) -> 0 | H21: 2300 | I21: 10000 | J21: =ROUND((C7+D7)*0.08,1) -> 0 | K21: 2000 | L21: 8000 | M21: =ROUND((C7+D7)*0.06,1) -> 0 | N21: 1500 | O21: 6000 | P21: =ROUND((C7+D7)*0.04,1) -> 0 | Q21: 1200 | R21: 4000 | S21: =IF(G21>=I21,I21,IF(H21>=G21,H21,G21)) -> 2300 | T21: =IF(J21>=L21,L21,IF(K21>=J21,K21,J21)) -> 2000 | U21: =IF(M21>=O21,O21,IF(N21>=M21,N21,M21)) -> 1500 | V21: =IF(P21>=R21,R21,IF(Q21>=P21,Q21,P21)) -> 1200 | W21: =IF(PERSONAL!$H$18="NO",0,IF('det.sal input'!$B$6="PENSION",0,IF(PERSONAL!$H$13='DA ALTER'!$H$19,'DA ALTER'!S21,IF(PERSONAL!$H$13='DA ALTER'!$K$19,'DA ALTER'!T21,IF(PERSONAL!$H$13='DA ALTER'!$N$19,'DA ALTER'!U21,IF(PERSONAL!$H$13='DA ALTER'!$Q$19,'DA ALTER'!V21,0)))))) -> 0
B22: =ROUND((C8+D8)*E8,0) -> 0 | G22: =ROUND((C8+D8)*0.1,1) -> 0 | H22: 2300 | I22: 10000 | J22: =ROUND((C8+D8)*0.08,1) -> 0 | K22: 2000 | L22: 8000 | M22: =ROUND((C8+D8)*0.06,1) -> 0 | N22: 1500 | O22: 6000 | P22: =ROUND((C8+D8)*0.04,1) -> 0 | Q22: 1200 | R22: 4000 | S22: =IF(G22>=I22,I22,IF(H22>=G22,H22,G22)) -> 2300 | T22: =IF(J22>=L22,L22,IF(K22>=J22,K22,J22)) -> 2000 | U22: =IF(M22>=O22,O22,IF(N22>=M22,N22,M22)) -> 1500 | V22: =IF(P22>=R22,R22,IF(Q22>=P22,Q22,P22)) -> 1200 | W22: =IF(PERSONAL!$H$18="NO",0,IF('det.sal input'!$B$6="PENSION",0,IF(PERSONAL!$H$13='DA ALTER'!$H$19,'DA ALTER'!S22,IF(PERSONAL!$H$13='DA ALTER'!$K$19,'DA ALTER'!T22,IF(PERSONAL!$H$13='DA ALTER'!$N$19,'DA ALTER'!U22,IF(PERSONAL!$H$13='DA ALTER'!$Q$19,'DA ALTER'!V22,0)))))) -> 0
B23: 0 | G23: 0 | H23: 2300 | I23: 10000 | J23: 0 | K23: 2000 | L23: 8000 | M23: 0 | N23: 1500 | O23: 6000 | P23: 0 | Q23: 1200 | R23: 4000 | S23: 2300 | T23: 2000 | U23: 1500 | V23: 1200 | W23: =IF(PERSONAL!$H$18="NO",0,IF('det.sal input'!$B$6="PENSION",0,IF(PERSONAL!$H$13='DA ALTER'!$H$19,'DA ALTER'!S23,IF(PERSONAL!$H$13='DA ALTER'!$K$19,'DA ALTER'!T23,IF(PERSONAL!$H$13='DA ALTER'!$N$19,'DA ALTER'!U23,IF(PERSONAL!$H$13='DA ALTER'!$Q$19,'DA ALTER'!V23,0)))))) -> 0
B24: 0 | G24: 0 | H24: 2300 | I24: 10000 | J24: 0 | K24: 2000 | L24: 8000 | M24: 0 | N24: 1500 | O24: 6000 | P24: 0 | Q24: 1200 | R24: 4000 | S24: 2300 | T24: 2000 | U24: 1500 | V24: 1200 | W24: =IF(PERSONAL!$H$18="NO",0,IF('det.sal input'!$B$6="PENSION",0,IF(PERSONAL!$H$13='DA ALTER'!$H$19,'DA ALTER'!S24,IF(PERSONAL!$H$13='DA ALTER'!$K$19,'DA ALTER'!T24,IF(PERSONAL!$H$13='DA ALTER'!$N$19,'DA ALTER'!U24,IF(PERSONAL!$H$13='DA ALTER'!$Q$19,'DA ALTER'!V24,0)))))) -> 0
B25: 0 | G25: 0 | H25: 2300 | I25: 10000 | J25: 0 | K25: 2000 | L25: 8000 | M25: 0 | N25: 1500 | O25: 6000 | P25: 0 | Q25: 1200 | R25: 4000 | S25: 2300 | T25: 2000 | U25: 1500 | V25: 1200 | W25: =IF(PERSONAL!$H$18="NO",0,IF('det.sal input'!$B$6="PENSION",0,IF(PERSONAL!$H$13='DA ALTER'!$H$19,'DA ALTER'!S25,IF(PERSONAL!$H$13='DA ALTER'!$K$19,'DA ALTER'!T25,IF(PERSONAL!$H$13='DA ALTER'!$N$19,'DA ALTER'!U25,IF(PERSONAL!$H$13='DA ALTER'!$Q$19,'DA ALTER'!V25,0)))))) -> 0
B26: 0 | G26: 0 | H26: 2300 | I26: 10000 | J26: 0 | K26: 2000 | L26: 8000 | M26: 0 | N26: 1500 | O26: 6000 | P26: 0 | Q26: 1200 | R26: 4000 | S26: 2300 | T26: 2000 | U26: 1500 | V26: 1200 | W26: =IF(PERSONAL!$H$18="NO",0,IF('det.sal input'!$B$6="PENSION",0,IF(PERSONAL!$H$13='DA ALTER'!$H$19,'DA ALTER'!S26,IF(PERSONAL!$H$13='DA ALTER'!$K$19,'DA ALTER'!T26,IF(PERSONAL!$H$13='DA ALTER'!$N$19,'DA ALTER'!U26,IF(PERSONAL!$H$13='DA ALTER'!$Q$19,'DA ALTER'!V26,0)))))) -> 0
B27: 0 | G27: 0 | H27: 2300 | I27: 10000 | J27: 0 | K27: 2000 | L27: 8000 | M27: 0 | N27: 1500 | O27: 6000 | P27: 0 | Q27: 1200 | R27: 4000 | S27: 2300 | T27: 2000 | U27: 1500 | V27: 1200 | W27: =IF(PERSONAL!$H$18="NO",0,IF('det.sal input'!$B$6="PENSION",0,IF(PERSONAL!$H$13='DA ALTER'!$H$19,'DA ALTER'!S27,IF(PERSONAL!$H$13='DA ALTER'!$K$19,'DA ALTER'!T27,IF(PERSONAL!$H$13='DA ALTER'!$N$19,'DA ALTER'!U27,IF(PERSONAL!$H$13='DA ALTER'!$Q$19,'DA ALTER'!V27,0)))))) -> 0
B28: 0 | G28: 0 | H28: 2300 | I28: 10000 | J28: 0 | K28: 2000 | L28: 8000 | M28: 0 | N28: 1500 | O28: 6000 | P28: 0 | Q28: 1200 | R28: 4000 | S28: 2300 | T28: 2000 | U28: 1500 | V28: 1200 | W28: =IF(PERSONAL!$H$18="NO",0,IF('det.sal input'!$B$6="PENSION",0,IF(PERSONAL!$H$13='DA ALTER'!$H$19,'DA ALTER'!S28,IF(PERSONAL!$H$13='DA ALTER'!$K$19,'DA ALTER'!T28,IF(PERSONAL!$H$13='DA ALTER'!$N$19,'DA ALTER'!U28,IF(PERSONAL!$H$13='DA ALTER'!$Q$19,'DA ALTER'!V28,0)))))) -> 0
B29: 0 | G29: 0 | H29: 2300 | I29: 10000 | J29: 0 | K29: 2000 | L29: 8000 | M29: 0 | N29: 1500 | O29: 6000 | P29: 0 | Q29: 1200 | R29: 4000 | S29: 2300 | T29: 2000 | U29: 1500 | V29: 1200 | W29: =IF(PERSONAL!$H$18="NO",0,IF('det.sal input'!$B$6="PENSION",0,IF(PERSONAL!$H$13='DA ALTER'!$H$19,'DA ALTER'!S29,IF(PERSONAL!$H$13='DA ALTER'!$K$19,'DA ALTER'!T29,IF(PERSONAL!$H$13='DA ALTER'!$N$19,'DA ALTER'!U29,IF(PERSONAL!$H$13='DA ALTER'!$Q$19,'DA ALTER'!V29,0)))))) -> 0
B30: 0 | G30: 0 | H30: 2300 | I30: 10000 | J30: 0 | K30: 2000 | L30: 8000 | M30: 0 | N30: 1500 | O30: 6000 | P30: 0 | Q30: 1200 | R30: 4000 | S30: 2300 | T30: 2000 | U30: 1500 | V30: 1200 | W30: =IF(PERSONAL!$H$18="NO",0,IF('det.sal input'!$B$6="PENSION",0,IF(PERSONAL!$H$13='DA ALTER'!$H$19,'DA ALTER'!S30,IF(PERSONAL!$H$13='DA ALTER'!$K$19,'DA ALTER'!T30,IF(PERSONAL!$H$13='DA ALTER'!$N$19,'DA ALTER'!U30,IF(PERSONAL!$H$13='DA ALTER'!$Q$19,'DA ALTER'!V30,0)))))) -> 0
B31: 0 | G31: 0 | H31: 2300 | I31: 10000 | J31: 0 | K31: 2000 | L31: 8000 | M31: 0 | N31: 1500 | O31: 6000 | P31: 0 | Q31: 1200 | R31: 4000 | S31: 2300 | T31: 2000 | U31: 1500 | V31: 1200 | W31: =IF(PERSONAL!$H$18="NO",0,IF('det.sal input'!$B$6="PENSION",0,IF(PERSONAL!$H$13='DA ALTER'!$H$19,'DA ALTER'!S31,IF(PERSONAL!$H$13='DA ALTER'!$K$19,'DA ALTER'!T31,IF(PERSONAL!$H$13='DA ALTER'!$N$19,'DA ALTER'!U31,IF(PERSONAL!$H$13='DA ALTER'!$Q$19,'DA ALTER'!V31,0)))))) -> 0
B32: 0 | G32: 0 | H32: 2300 | I32: 10000 | J32: 0 | K32: 2000 | L32: 8000 | M32: 0 | N32: 1500 | O32: 6000 | P32: 0 | Q32: 1200 | R32: 4000 | S32: 2300 | T32: 2000 | U32: 1500 | V32: 1200 | W32: =IF(PERSONAL!$H$18="NO",0,IF('det.sal input'!$B$6="PENSION",0,IF(PERSONAL!$H$13='DA ALTER'!$H$19,'DA ALTER'!S32,IF(PERSONAL!$H$13='DA ALTER'!$K$19,'DA ALTER'!T32,IF(PERSONAL!$H$13='DA ALTER'!$N$19,'DA ALTER'!U32,IF(PERSONAL!$H$13='DA ALTER'!$Q$19,'DA ALTER'!V32,0)))))) -> 0

Sheet tds det
B1: ="File of "& PERSONAL!H4 -> File of | C1: Page 4 | F1: Scrole mouse up & down
B3: INTEREST INCOME / CAPITAL GAIN INCOME / INCOME FROM PROFESSION (Table 1,2,3), Advance Tax, Other TDS payments (Table 4) | G3: =SUM(#REF!) -> 
B4: INTEREST INCOME | F4: മൗസ് സ്ക്രോള്‍ ചെയ്യുക
A5: 1 | B5: Income from CAPITAL GAIN if any [ കാപ്പിറ്റല്‍ ഗെയിന്‍ വരുമാനം ] | E5: `
B6: Income from PROFESSION [പ്രൊഫെഷന്‍ വരുമാനം Eg. Doctor's Pvt practice earnings ‍] | E6: =E15 -> 0
A7: 2 | B7: 1) INTERST FROM BANKS, POST OFFICE DEPOSITS, Taxable dividents, SB A/C, Etc. (പലിശ വരുമാനം ചുവടെ) Place the mouse on this lines to read more
F8: HOME
B10: NAME OF DEPOSIT | D10: INTEREST RECEIVED (AFTER DEDUCTING TDS IF ANY ) നേടിയ പലിശ (പലിശയില്‍ നികുതി പിടിച്ചിട്ടുണ്ടെങ്കില്‍ നികുതി കിഴിച്ചതിനു ശേഷമുള്ളത്_(ഒന്നില്‍ കൂടുതല്‍ DEPOSIT കള്‍ ഉണ്ടെങ്കില്‍ അവയുടെ പലിശ കൂട്ടി മൊത്തം തുക കാണിക്കുക) Amount RS. | E10: TAX (TDS) DEDUCTED FROM DEPOST IF ANY ( പലിശയില്‍ നികുതി പിടിച്ചിട്ടുണ്ടെങ്കില്‍ പിടിച്ച നികുതി (TDS) ) Amount RS. | J10: actual | M10: =D11+D12+D13+E11+E12+E13 -> 0
B11: Fixed deposits / RD/ TIME DEPOSIT interest | J11: maximum | M11: 50000
B12: Any other Interests or Taxable dividents received | H12: TOT | J12: minimum | M12: =MIN(M10:M11) -> 0
B13: Total of Interest earned from different SB ACCOUNTS (വ്യത്യസ്ത സേവിംഗ്സ് ബാങ്കുകളിലെ മൊത്തം പലിശ ഇവിടെ നല്‍കുക വകുപ്പ് 80TTA പ്രകാരമുള്ള 10000 രൂപയുടെ ഇളവ് automatic ആയി പ്രിന്‍റ് ഔട്ട്‌ ല്‍കുറച്ചുകൊള്ളും) | H13: =F13+G13 -> 0
B14: 2) Income from CAPITAL GAIN if any [ കാപ്പിറ്റല്‍ ഗെയിന്‍ വരുമാനം ] | D14: =D38 -> 0 | E14: =E38 -> 0 | F14: =IF((D13+E13-10000)<=0,0,(D13-10000)) -> 0
B15: 3) Income from PROFESSION [പ്രൊഫെഷന്‍ വരുമാനം Eg. Doctor's Pvt practice earnings ‍] | D15: =D42 -> 0 | E15: =E42 -> 0
B16: INCOME TAX PAYMENT OTHER THAN AS SALARY DEDUCTION (ശമ്പളക്കിഴിവ് അല്ലാതെ അടച്ച നികുതി )
B17: Name of payment | D17: Details of payment (Challan/ Receipt No./ Date) | E17: Amount Rs.
A18: 3 | B18: 1) Advance tax total (Tax directly paid thorough Bank Challan)(കൂടുതല്‍ വിവരങ്ങള്‍ അറിയാന്‍ മൌസ് തുക എഴുതുന്ന സ്ഥലത്ത് വക്കുക) | D18: =E46 -> 0 | E18: =D46 -> 0
A19: 4 | B19: 2) Any other TDS payments made | D19: =E47 -> 0 | E19: =D47 -> 0 | F19: total other tds | G19: =G13+E19 -> 0
B20: ശമ്പളത്തിന് ഉപരിയായി ലഭിച്ച പലിശ വരുമാനം, capital gain വരുമാനം എന്നിവ പട്ടിക 1,2,3 ൽ നൽകുക. For more details, place mouse on this lines
B21: അഡ്വാൻസ് ടാക്സ്, മറ്റ് TDS അടവുകൾ എന്നിവ പട്ടിക 4 ൽ നൽകുക
B22: INTEREST INCOME | G22: Age category | H22: =PERSONAL!H5 -> Below 60 Years
B23: Sl No | C23: DEPOSIT DETAILS | D23: Net interest received after deducting TDS if any RS | E23: TDS deducted from the Bank if any RS
I24: TAXABLE AMOUNT
B25: FIXED DEPOSITS INTEREST INCOME | F25: =IF(F26=0,"","Taxable amount Old regime Rs") ->  | I25: SB INTEREST INCL POST | J25: INVEST INT
B26: 1-a | C26: Total Interest received from different Fixed deposit (Post office/ Banks/ Co- op societies, KSFE, Pvt banks etc) Show net interest received by you after deductiong TDS if any | F26: =D26+E26 -> 0 | I26: =IF(H22="BELOW 60 YEARS",F30+F29,0) -> 0 | J26: =IF(H22="BELOW 60 YEARS",L30+D33+E33+D34+E34,H36-J36+D33+E33+D34+E34) -> 0
B28: SAVINGS BANK DEPOSIT INTEREST INCOME | F28: =IF(F29+F30=0,"","Taxable amount Old regime Rs") ->  | I28: TAX FOR SENIOR CITIZEN FD
B29: 1-b | C29: Post office SB Account interest received [section 10(15)(i)] | F29: =IF(D29+E29<3501,0,(D29+E29)-3500) -> 0 | G29: case | H29: INVESTMENT | I29: TDS | J29: TOTAL | K29: DEDUCT | L29: NET TAX
B30: 1-c | C30: SB Accout interest from other banks including Co op society, banks, KSFE Pvt banks etc | F30: =IF(D30+E30<10001,0,(D30+E30)-10000) -> 0 | G30: Below 60 | H30: =D26 -> 0 | I30: =E26 -> 0 | J30: =H30+I30 -> 0 | K30: 0 | L30: =J30-K30 -> 0
B32: KURI PROFIT EARNINGS, TAXABLE DIVIDENDS ETC | F32: =IF(F33+F34=0,"","Taxable amount Old regime Rs") ->  | G32: case | H32: ivest | I32: TDS | J32: TOTAL | K32: DEDUCT | L32: NET TAX | M32: MAX LIMIT
B33: 1-d | C33: Taxable Dividends | F33: =D33+E33 -> 0 | G33: ABOVE 60 | H33: =H30 -> 0 | I33: =I30 -> 0 | J33: =J30 -> 0 | K33: 50000 | L33: =IF(J33>=K33,J33-K33,0) -> 0 | M33: 50000
B34: 1-e | C34: Earnings from Kuri or similar earnings | F34: =D34+E34 -> 0 | G34: SB AC INTEREST | H34: =D30 -> 0 | J34: =H34 -> 0 | K34: 10000 | L34: =J34-K34 -> -10000
I35: MAX | J35: LESS
B36: CAPITAL GAIN INCOME | G36: above 60 SB+ INVEST LIMIT 50000 | H36: =IF(H22="below 60 years",J33+H34+D29,J33+H34+F29) -> 0 | I36: 50000 | J36: =MIN(H36:I36) -> 0
C37: INCOME DETAILS | D37: NET Income after deducting TDS if any | E37: Amount of TDS deducted if any | F37: =IF(F38=0,"","Taxable amount Old regime Rs") ->  | G37: Total TDS including cap gain profession | I37: =E26+E33+E34+E38+E42 -> 0
C38: Show Capital Gain Income details after deducting TDS if any in the next cell and TDS on the cell right side | F38: =D38+E38 -> 0 | G38: Adv tax + other TDS | I38: =D46+D47 -> 0
B40: INCOME FROM PROFESSION
C41: INCOME DETAILS | D41: NET Income after deducting TDS if any | E41: Amount of TDS deducted if any | F41: =IF(F42=0,"","Taxable amount Old regime Rs") -> 
C42: Show incomes like Doctors private practice, Insurance agents and other professionals | F42: =D42+E42 -> 0
B44: INCOME TAX PAYMENT OTHER THAN AS SALARY DEDUCTION
C45: Details | D45: Amount of Payment RS | E45: BSR Code or other challan details
B46: 1 | C46: Advance tax total (Tax directly paid thorough Bank Challan)
B47: 2 | C47: Any other TDS payments made other than Salary deduction

Sheet new statement
A1: =F5&" "&B2 -> 0 ANTICIPATORY INCOME TAX STATEMENT(OLD RATE OPTION)-FINANCIAL YEAR 2023-24 (AY 24-25) | B1: ='new statement (2)'!B1 -> 0 | C1: ='new statement (2)'!C1 -> 0 | D1: =IF(C1<B1,"Warning ! Your are in the wrong field. The Old Regime option is not suitable for you. To choose the economical option, click the green button on the right side","") ->  | P1: =IF(D1="",0,1) -> 0 | W1: =IF(PERSONAL!H9="","",IF('new statement'!R16="nil","വാടക വീട്ടില്‍ താമസിക്കുന്നവര്‍ക്കുള്ള ഇളവ് ലഭിക്കാന്‍ നല്‍കുന്ന വാടക, ശമ്പളത്തിന്റെ 10% നു മേലെയായിരിക്കണം, താങ്കള്‍ക്ക് ഈ ആനുകൂല്യം ലഭിക്കില്ല ","")) -> 
B2: =IF(print!P9="ANTICIPATORY TAX CALCULATOR","ANTICIPATORY INCOME TAX STATEMENT(OLD RATE OPTION)-FINANCIAL YEAR 2023-24 (AY 24-25) ","INCOME TAX STATEMENT(OLD RATE OPTION)-FINANCIAL YEAR 2023-24 (AY 24-25)") -> ANTICIPATORY INCOME TAX STATEMENT(OLD RATE OPTION)-FINANCIAL YEAR 2023-24 (AY 24-25) | S2: =CUSTOMISE!H22 -> 0
B3: =PERSONAL!H10 -> SALARY
A5: =R6 -> OLD REGIME RATE | B5: Name | F5: =PERSONAL!H4 -> 0 | O5: PAN : | Q5: =PERSONAL!H7 -> 0 | W5: =IF(PERSONAL!H8="no","",IF('det.sal input'!AC39>'det.sal input'!AB38,"You cannot claim for benifit of living in a rental home [HRA benifit], because rent paid amount is less than 10% of your salary","")) -> 
B6: Designation | F6: =PERSONAL!H6 -> 0 | L6: =PERSONAL!H5 -> Below 60 Years | R6: OLD REGIME RATE
B7: 1 | C7: a | D7: Gross Salary (Excluding interest on arrear salary), Festival allowance, Bonus,Leave Surrender (includes Salary, DA, HRA, CCA, Interim Relief, , DA Arrear, Pay Revision Arrear etc) | Q7: : | R7: =L96-L91-L94-'arrear det'!K13 -> 0 | AA7: ='det.sal input'!AF29 -> 1
C8: b | D8: Leave Surrender | Q8: : | R8: =L94 -> 0 | W8: medical reimb actual | X8: ='det.sal input'!W28 -> 0 | Y8: 15000 | Z8: excess= | AA8: =IF(AA7=1,0,IF((X8-Y8)>0,(X8-Y8),0)) -> 0
C9: c | D9: Festival Allowance / Bonus / Ex-gratia and incentive | Q9: : | R9: =L91 -> 0 | W9: =SUM(R7:T9) -> 0
C10: d | D10: Value of perquisites (Iincludes Employer's contribution to NPS, Medical reimb. Taxable portion) | Q10: : | T10: ='det.sal input'!W32+'det.sal input'!W33+X8 -> 0 | AA10: IF((V8-W8)>0,(V8-W8),0))
C11: e | D11: Profits in lieu of salary (S17-3) | Q11: : | T11: ='det.sal input'!W34 -> 0 | X11: =PERSONAL!H8 -> NO
C12: f | D12: Total Salary Income (a+b+c+d+e) | Q12: : | R12: =SUM(R7:T11) -> 0
B13: 2 | C13: Deduction towards rent paid | H13: =IF(PERSONAL!H8="no","(not available)","(Least amount gets excemption)") -> (not available)
C14: i) | D14: Actual HRA Received relating to the period | G14: : | N14: : | O14: =IF(X11="NO","",'det.sal input'!AB40) -> 
C15: ii) | D15: Actual Rent paid in excess 1/10th of the salary | M15: =IF(O15=0,"NIL","") ->  | N15: : | O15: =IF(X11="NO","",IF(Y15>AA15,Y15-AA15,0)) ->  | X15: rent paid = | Y15: ='det.sal input'!AB38 -> 0 | Z15: 1/10 of sal= | AA15: ='det.sal input'!AC39 -> 0 | AB15: =IF(Y15>AA15,Y15-AA15,0) -> 0
C16: iii) | D16: 40% Salary ( For this salary means Basic + DA) | G16: : | N16: : | O16: =IF(X11="NO","",AA16) ->  | R16: =IF(R17=0,"NIL",R17) -> NIL | Z16: 40%sal = | AA16: =ROUND(('det.sal input'!AB39*0.4),0) -> 0
C17: =IF(PERSONAL!H8="no",""," (Here, Salary means Basic+DA+AGP only, but include arrear/ surrender values relating to this period.) That is "&'det.sal input'!R40&"+"&'det.sal input'!T40&"+"&'det.sal input'!W40&"") ->  | Q17: : | R17: =MIN(O14:P16) -> 0
B18: 3 | C18: Balance ( 1- 2) | Q18: : | R18: =R12-R17 -> 0
B19: 4 | C19: =" Less Allowance to the extent exempt u/s10 " -> Less Allowance to the extent exempt u/s10 | K19: =INVEST!D28&" + "&INVEST!D29&" + "&INVEST!D30&" + "&INVEST!D31 -> + + + | P19: =INVEST!F28+INVEST!F29+INVEST!F30+INVEST!F31 -> 0 | R19: =P19 -> 0
B20: 5 | C20: Less Profession tax paid, Enterteainment Allowance exempted | N20: ='det.sal input'!W31& " +"&'det.sal input'!W35 -> + | R20: ='det.sal input'!W31+'det.sal input'!W35 -> 0
B21: 6 | C21: Less Standard deduction ( maximum 50000) | R21: =IF((R18-R19-R20)>50000,50000,(R18-R19-R20)) -> 0
B22: 6a | C22: Net Salary Income [Income chargeble under the head salary] (3-4-5-6) | Q22: : | R22: =R18-R19-R20-R21 -> 0
B23: 7 | C23: 1. Income from house property (interst on Housing loan is a negative income) | O23: =0-MIN(W23:X23) -> 0 | R23: =IF(ISNUMBER(#REF!),#REF!,"Nil") -> Nil | W23: 200000 | X23: =INVEST!F17 -> 0 | Y23: =X23-W23 -> -200000
C24: 2.Other sources Income INCLUDING PAY REVISION ARREAR INTEREST [ Interest on investment / Family pension__ (1/3 of family pension or 15000 whichever is less is exempted) For SB account interest Rs. 10000 is exempted U/S 80TTA .Post office SB interest 3500 get exemption. FD interest is fully taxable (senior citizen upto 50000 exempt, Post off SB Rs. 3500 exemption extra) | O24: ='det.sal input'!W27+'tds det'!I26+'tds det'!J26+AB24 -> 0 | R24: ="Pay revision interest "&'arrear det'!K13 -> Pay revision interest 0 | S24: ="Post off SB+ Other SB "&'tds det'!I26 -> Post off SB+ Other SB 0 | T24: ="Investment Interest "&'tds det'!J26 -> Investment Interest 0 | V24: ="Family Pension "&AB24 -> Family Pension 0 | W24: 1/3 family pension | X24: =ROUND('det.sal input'!W30/3,0) -> 0 | Y24: 15000 | Z24: =MIN(X24:Y24) -> 0 | AA24: taxable portion of family pen | AB24: ='det.sal input'!W30-'new statement'!Z24 -> 0
C25: 3. Income from profession | O25: ='tds det'!F42 -> 0
C26: 4.Captal gain income | O26: ='tds det'!F38 -> 0 | Q26: Total | R26: =SUM(O23:P26) -> 0
B27: 8 | C27: Gross Total Income (6+7) | Q27: : | R27: =R22+R26 -> 0
B28: 9 | C28: Deduction under chapter VI-A | O28: Amount spent | R28: Eligible amount
C29: A - Deduction under section 80C | R29: (See point 9 D)
C30: a) | D30: Providend fund contribution | N30: : | O30: =M96 -> 0
C31: c) | D31: State Life Insurance Policy (SLI) | N31: : | O31: =N96 -> 0
C32: c) | D32: Group Insurance Scheme (GIS) | N32: : | O32: =O96 -> 0
C33: d) | D33: Tax saving Fixed deposits (Available at all banks) /Sukanya samrudhi | N33: : | O33: =INVEST!F8 -> 0
C34: e) | D34: Life Insurence salary deduction | O34: =P96 -> 0
C35: f) | D35: Life Insurence other than salary deduction | N35: : | O35: =INVEST!F5 -> 0
C36: g) | D36: ='det.sal input'!R6&" + "&'det.sal input'!T6 -> ? + ? | O36: =R96 -> 0
C37: h) | D37: NSC VIII th issue (Nationional Savings certificate from post offices) | N37: : | O37: =INVEST!F7 -> 0
C38: i) | D38: Public Provident Fund (PPF) (Available at Post offfices) | N38: : | O38: =INVEST!F9 -> 0
D39: ULIP/ Tax saving mutual funds | O39: =INVEST!F10 -> 0 | W39: nps allowed amt
C40: j) | D40: Tuition Fees ( Paid for full time education to any two children -only the tuition fee portion-donations should be excluded) | N40: : | O40: =INVEST!F11 -> 0 | W40: =O44 -> 0 | X40: =IF(O44=0,"",(O45-O44-150000)*-1) -> 
C41: k) | D41: Housing Loan Repayment (PRINCIPAL PORTION ONLY) for construction loan only. Not for addition / repair loan etc. Stamp duty paid for purchase of property can be included | N41: : | O41: =INVEST!F12 -> 0 | W41: OVER 1.5 | X41: =IF(O45<=150000,0,(O45)-150000) -> 0 | Y41: MAX 80CC-1B= | Z41: 50000 | AA41: TOT NPS= | AB41: =X46 -> 0 | AC41: MIN AMT = | AD41: =MIN(X41,Z41,AB41) -> 0
C42: l) | D42: =INVEST!E13 -> 0 | O42: =INVEST!F13 -> 0 | W42: Tot VIA excl nps= | X42: =SUM(O30:P43) -> 0 | Y42: ALLOED VIA = | Z42: 150000
C43: B- Contribution to Pension Fund (80CCC) | O43: =INVEST!F6 -> 0
C44: C-Contrubution to National Pension Scheme - NPS (80CCD) | N44: : | O44: =X46 -> 0 | R44: =MIN(W40:X40) -> 0 | W44: nps sal ded | X44: ='det.sal input'!U26 -> 0
C45: D- Total investment under Sec. 80C, 80CCC, 80CCD, eligible amt. limited to 1.5 lakh | O45: =SUM(O30:P44) -> 0 | R45: =IF(O45<=150000,O45,150000) -> 0 | W45: nps direct pay | X45: =INVEST!F15 -> 0
B46: 10 | C46: a. | D46: Contrubution to National Pension Scheme - NPS Section 80CCD(1B) Investment upto 50000 can be made additionally | N46: : | O46: =AD41 -> 0 | W46: total NPS | X46: =X44+X45 -> 0
C47: b. | D47: Employer's contribution to NPS [Up to 10% Pay+Da+AGPgets excemption u/s Section 80CCD(2)] | O47: =IF(Z47<X47,Z47,X47) -> 0 | W47: total pay+da+agp 10% = | X47: =ROUND(AA47*0.1,0) -> 0 | Y47: Empr contri = | Z47: ='det.sal input'!W32 -> 0 | AA47: ='det.sal input'!C26+'det.sal input'!D26+'det.sal input'!F26-'det.sal input'!C20 -> 0
C48: c. | D48: Investment in Rajiv Gandhi Equity Savings Scheme 80CCG (50% of investment gets exemption.Maximum 25000)
C49: c) | D49: Mediclaim ( Maximum of Rs.25,000 for self, spouse, children and Rs.25000 for Parents. if Parents are senior citizens Rs. 50,000)(80 D) | N49: : | O49: ='MEDI INS OTHER DED'!Q16 -> 0 | W49: max 80 D= | X49: 55000 | Y49: Actual 80d = | Z49: =INVEST!F18 -> 0
C50: d) | D50: Expenditure on Medical treatment of mentally or physically handicapped dependents (including Specified investments there on). ( Max. Rs.75,000/- in case of severe disability max. Rs.1,25,000) (80DD) | N50: : | O50: =IF(Z50<X50,Z50,X50) -> 0 | W50: max 80dd= | X50: 125000 | Y50: Actual 80dd = | Z50: =INVEST!F21 -> 0
C51: e) | D51: For medical treatment of specified diseases of self/dependent . Actual exp. Or Rs. 40000/60000/ 80000 which ever is less gets excemption depending on age. Should submit Form-10-I. (80 DDB) | O51: =INVEST!F22 -> 0
C52: f) | D52: Any amount of interest paid for Educational Loan for higher education of the employee's dependent children [80E] | N52: : | O52: =INVEST!F20 -> 0
C53: g) | D53: Additional deduction on housing loan interest (Max 50000) if conditions are satisfied. 1. loan amount is not above Rs. 35 lakhs, 2. Loan sanctioned in 2016-17, 3. He is a first time home buyer, 4. cost of house does not exceed Rs. 50 lakhs (80EE) | O53: =IF(W53<0,0,W53) -> 0 | W53: =IF(PERSONAL!H20="YES",'new statement'!X23-'new statement'!W23,0) -> 0
C54: h) | D54: Electric vehicle loan interest repayment (up to 1.5 Lakh) (80EEB) | O54: =INVEST!F16 -> 0
C55: i) | D55: Donation to special funds only PM's/ CM's Relief Funds, Earth quake fund Etc (80G) | N55: : | O55: =INVEST!F19+S96 -> 0
C56: j) | D56: Dedution for differently abled Employees( 80U)For blindness,Hearing impaired, Mental retradation, Mental illness, low vision, Locomotors disability. Fixed deduction of 75000 (For disability not less than 40%) / 1.25 Lakh, for severe disability over 80% | N56: : | O56: =INVEST!F23 -> 0
D57: Total of 10 | O57: =SUM(O46:P56) -> 0
B58: 11 | C58: Total Deduction (9+10) | R58: =R45+O57 -> 0
B59: 12 | C59: Total Income or Taxable Income (rounded off to the nearest multiple of ten (8-11) | O59: Before rounding | Q59: =R27-R58 -> 0 | R59: =IF(R27-R58>0,ROUND(((R27-R58)/10),0)*10,0) -> 0
B60: 13 | C60: Tax on Total Income (Up to 2.5 lakh Nil, between 250001and 5 lakh 5%, between 500001 and 10 lakh 20%, above 10 lakh 30%, (special rates to senior/ super senior citizens ) | Q60: : | R60: =IF(ROUND('new form 16'!Y80,0)<1,0,(ROUND('new form 16'!Y80,0))) -> 0
B61: 14 | C61: Less 87 A Rebate, upto a maximum of Rs.12500, available only if Taxable income is less than 500001 (Rebate u/s 87A) | R61: =IF(R60=0,0,IF(R59>500000,0,IF(12500>R60,R60,12500))) -> 0
B62: 15 | C62: Balance of Tax after 87A rebate | R62: =R60-R61 -> 0
B63: 16 | C63: Education Cess @ 4% of tax | Q63: : | R63: =ROUND(R62*0.04,0) -> 0
B64: 17 | C64: Total Tax Payable (13-14+16) | Q64: : | R64: =R62+R63 -> 0 | W64: =R64 -> 0
B65: 18 | C65: Less : Relief for Arrears of Salary u/s 89(1) attach 10 E set of forms and previous years tax statements | Q65: : | R65: ='ARR MONH SPLIT'!I107 -> 0 | V65: =IF('Form 10E NEW REG'!B2="","","ERROR") ->  | W65: =IF(INVEST!F24>R64,R64,'Form 10E'!H40) -> 0
B66: 19 | C66: Balance Tax Payable (17-18) rounded to 10 rupees. | L66: ="( before rounding "&ROUND(R64-R65,0)&") " -> ( before rounding 0) | Q66: : | R66: =ROUND((R64-R65),-1) -> 0
B67: 20 | C67: Amount of Tax already deducted from salary (TDS) | Q67: : | R67: ='det.sal input'!Q26 -> 0
B68: 21 | C68: Amount of Tax deducted from interest on deposits (FD,RD etc ), Capital Gain, Profession Income | R68: ='tds det'!I37 -> 0 | W68: =R66-R68-R69 -> 0 | X68: =ROUND(W68,-1) -> 0
B69: 22 | C69: Advance tax/ other TDS paid (Challan pay) details : | N69: ='tds det'!D18&", "&'tds det'!E47 -> 0, | R69: ='tds det'!I38 -> 0
B70: 23 | C70: =IF(R70>=0,"Balance of Tax to be deducted now (19-20-21-22) ","Excess TDS payment made, can apply for refund during e-filing") -> Balance of Tax to be deducted now (19-20-21-22) | N70: ="Before rounding "&R64-R65-R67-R68-R69 -> Before rounding 0 | R70: =ROUND((R66-R67-R68-R69),0) -> 0 | W70: =ROUND(R70,-1) -> 0
B71: 24 | C71: ="Monthly TDS amount required in the next "&PERSONAL!H21&" month(s)" -> Monthly TDS amount required in the next 3 month(s) | T71: =IF(R70<1,0,R70/PERSONAL!H21) -> 0
B72: =FACE!D1&" version" -> 2023 December 21 version
B73: ="True copy, Counter signed by "&CUSTOMISE!H24&", "&CUSTOMISE!H26 -> True copy, Counter signed by , | V73: =PERSONAL!H4&", "&PERSONAL!H6 -> , | W73: 10 ലേക്ക് ROUND ചെയ്ത നികുതി സംഖ്യയാണ് ശരിയായ നികുതി.
B74: ="Place: "&PERSONAL!H11 -> Place: 0 | O74: http://babuvadukkumchery.blogspot.com | W74: ROUND ചെയ്യാത്ത തുക ഇവിടെ വെറുതെ അറിവിലേക്കായി നല്‍കീ എന്നേ കരുതേണ്ടൂ
B75: Date : | D75: =TEXT(TODAY(),"dd/mm/yyyy") -> 05/02/2024
B76: =IF(print!P9="ANTICIPATORY TAX CALCULATOR","DETAILS OF EXPECTED SALARY AND DEDUCTIONS FOR THE FINANCIAL YEAR 2023-24","DETAILS OF SALARY AND DEDUCTIONS FOR THE FINANCIAL YEAR 2023-24") -> DETAILS OF EXPECTED SALARY AND DEDUCTIONS FOR THE FINANCIAL YEAR 2023-24
D77: =IF('det.sal input'!$B$6="pension","PENSION RECEIPTS","SALARY RECEIPTS") -> SALARY RECEIPTS | M77: DEDUCTIONS FROM OFFICE
B78: For the Month | D78: Pay /Pension | E78: AGP | F78: DA | G78: HRA | H78: =UPPER('det.sal input'!H6) -> ? | I78: =UPPER('det.sal input'!I6) -> ? | J78: =UPPER('det.sal input'!J6) -> ? | K78: =UPPER('det.sal input'!K6) -> ? | L78: Total | M78: ='det.sal input'!M6 -> PF | N78: ='det.sal input'!N6 -> SLI | O78: ='det.sal input'!O6 -> GI | P78: LIC/PLI | Q78: TDS | R78: =UPPER('det.sal input'!R6&"+ "&'det.sal input'!T6) -> ?+ ? | S78: ='det.sal input'!S6 -> Donation - Office deduction only 80 G | T78: ='det.sal input'!U6 -> (NPS) | U78: ='det.sal input'!V6 -> MEDISEP (S-80 D) | V78: ='det.sal input'!W6 -> TOTAL DEDUCTIONS
B79: =IF('det.sal input'!$B$6="pension","April-23","March-2023") -> March-2023 | D79: ='det.sal input'!C8 -> 0 | E79: ='det.sal input'!D8 -> 0 | F79: ='det.sal input'!F8 -> 0 | G79: ='det.sal input'!G8 -> 0 | H79: ='det.sal input'!H8 -> 0 | I79: ='det.sal input'!I8 -> 0 | J79: ='det.sal input'!J8 -> 0 | K79: ='det.sal input'!K8 -> 0 | L79: ='det.sal input'!L8 -> 0 | M79: ='det.sal input'!M8 -> 0 | N79: ='det.sal input'!N8 -> 0 | O79: ='det.sal input'!O8 -> 0 | P79: ='det.sal input'!P8 -> 0 | Q79: ='det.sal input'!Q8 -> 0 | R79: ='det.sal input'!R8+'det.sal input'!T8 -> 0 | S79: ='det.sal input'!S8 -> 0 | T79: ='det.sal input'!U8 -> 0 | U79: ='det.sal input'!V8 -> 0 | V79: ='det.sal input'!W8 -> 0
B80: =IF('det.sal input'!$B$6="pension","May","April") -> April | D80: ='det.sal input'!C9 -> 0 | E80: ='det.sal input'!D9 -> 0 | F80: ='det.sal input'!F9 -> 0 | G80: ='det.sal input'!G9 -> 0 | H80: ='det.sal input'!H9 -> 0 | I80: ='det.sal input'!I9 -> 0 | J80: ='det.sal input'!J9 -> 0 | K80: ='det.sal input'!K9 -> 0 | L80: ='det.sal input'!L9 -> 0 | M80: ='det.sal input'!M9 -> 0 | N80: ='det.sal input'!N9 -> 0 | O80: ='det.sal input'!O9 -> 0 | P80: ='det.sal input'!P9 -> 0 | Q80: ='det.sal input'!Q9 -> 0 | R80: ='det.sal input'!R9+'det.sal input'!T9 -> 0 | S80: ='det.sal input'!S9 -> 0 | T80: ='det.sal input'!U9 -> 0 | U80: ='det.sal input'!V9 -> 0 | V80: ='det.sal input'!W9 -> 0
B81: ='det.sal input'!B10 -> May | D81: ='det.sal input'!C10 -> 0 | E81: ='det.sal input'!D10 -> 0 | F81: ='det.sal input'!F10 -> 0 | G81: ='det.sal input'!G10 -> 0 | H81: ='det.sal input'!H10 -> 0 | I81: ='det.sal input'!I10 -> 0 | J81: ='det.sal input'!J10 -> 0 | K81: ='det.sal input'!K10 -> 0 | L81: ='det.sal input'!L10 -> 0 | M81: ='det.sal input'!M10 -> 0 | N81: ='det.sal input'!N10 -> 0 | O81: ='det.sal input'!O10 -> 0 | P81: ='det.sal input'!P10 -> 0 | Q81: ='det.sal input'!Q10 -> 0 | R81: ='det.sal input'!R10+'det.sal input'!T10 -> 0 | S81: ='det.sal input'!S10 -> 0 | T81: ='det.sal input'!U10 -> 0 | U81: ='det.sal input'!V10 -> 0 | V81: ='det.sal input'!W10 -> 0
B82: ='det.sal input'!B11 -> June | D82: ='det.sal input'!C11 -> 0 | E82: ='det.sal input'!D11 -> 0 | F82: ='det.sal input'!F11 -> 0 | G82: ='det.sal input'!G11 -> 0 | H82: ='det.sal input'!H11 -> 0 | I82: ='det.sal input'!I11 -> 0 | J82: ='det.sal input'!J11 -> 0 | K82: ='det.sal input'!K11 -> 0 | L82: ='det.sal input'!L11 -> 0 | M82: ='det.sal input'!M11 -> 0 | N82: ='det.sal input'!N11 -> 0 | O82: ='det.sal input'!O11 -> 0 | P82: ='det.sal input'!P11 -> 0 | Q82: ='det.sal input'!Q11 -> 0 | R82: ='det.sal input'!R11+'det.sal input'!T11 -> 0 | S82: ='det.sal input'!S11 -> 0 | T82: ='det.sal input'!U11 -> 0 | U82: ='det.sal input'!V11 -> 0 | V82: ='det.sal input'!W11 -> 0
B83: ='det.sal input'!B12 -> July | D83: ='det.sal input'!C12 -> 0 | E83: ='det.sal input'!D12 -> 0 | F83: ='det.sal input'!F12 -> 0 | G83: ='det.sal input'!G12 -> 0 | H83: ='det.sal input'!H12 -> 0 | I83: ='det.sal input'!I12 -> 0 | J83: ='det.sal input'!J12 -> 0 | K83: ='det.sal input'!K12 -> 0 | L83: ='det.sal input'!L12 -> 0 | M83: ='det.sal input'!M12 -> 0 | N83: ='det.sal input'!N12 -> 0 | O83: ='det.sal input'!O12 -> 0 | P83: ='det.sal input'!P12 -> 0 | Q83: ='det.sal input'!Q12 -> 0 | R83: ='det.sal input'!R12+'det.sal input'!T12 -> 0 | S83: ='det.sal input'!S12 -> 0 | T83: ='det.sal input'!U12 -> 0 | U83: ='det.sal input'!V12 -> 0 | V83: ='det.sal input'!W12 -> 0
B84: ='det.sal input'!B13 -> August | D84: ='det.sal input'!C13 -> 0 | E84: ='det.sal input'!D13 -> 0 | F84: ='det.sal input'!F13 -> 0 | G84: ='det.sal input'!G13 -> 0 | H84: ='det.sal input'!H13 -> 0 | I84: ='det.sal input'!I13 -> 0 | J84: ='det.sal input'!J13 -> 0 | K84: ='det.sal input'!K13 -> 0 | L84: ='det.sal input'!L13 -> 0 | M84: ='det.sal input'!M13 -> 0 | N84: ='det.sal input'!N13 -> 0 | O84: ='det.sal input'!O13 -> 0 | P84: ='det.sal input'!P13 -> 0 | Q84: ='det.sal input'!Q13 -> 0 | R84: ='det.sal input'!R13+'det.sal input'!T13 -> 0 | S84: ='det.sal input'!S13 -> 0 | T84: ='det.sal input'!U13 -> 0 | U84: ='det.sal input'!V13 -> 0 | V84: ='det.sal input'!W13 -> 0
B85: ='det.sal input'!B14 -> September | D85: ='det.sal input'!C14 -> 0 | E85: ='det.sal input'!D14 -> 0 | F85: ='det.sal input'!F14 -> 0 | G85: ='det.sal input'!G14 -> 0 | H85: ='det.sal input'!H14 -> 0 | I85: ='det.sal input'!I14 -> 0 | J85: ='det.sal input'!J14 -> 0 | K85: ='det.sal input'!K14 -> 0 | L85: ='det.sal input'!L14 -> 0 | M85: ='det.sal input'!M14 -> 0 | N85: ='det.sal input'!N14 -> 0 | O85: ='det.sal input'!O14 -> 0 | P85: ='det.sal input'!P14 -> 0 | Q85: ='det.sal input'!Q14 -> 0 | R85: ='det.sal input'!R14+'det.sal input'!T14 -> 0 | S85: ='det.sal input'!S14 -> 0 | T85: ='det.sal input'!U14 -> 0 | U85: ='det.sal input'!V14 -> 0 | V85: ='det.sal input'!W14 -> 0
A86: =FACE!D1 -> 2023 December 21 | B86: ='det.sal input'!B15 -> October | D86: ='det.sal input'!C15 -> 0 | E86: ='det.sal input'!D15 -> 0 | F86: ='det.sal input'!F15 -> 0 | G86: ='det.sal input'!G15 -> 0 | H86: ='det.sal input'!H15 -> 0 | I86: ='det.sal input'!I15 -> 0 | J86: ='det.sal input'!J15 -> 0 | K86: ='det.sal input'!K15 -> 0 | L86: ='det.sal input'!L15 -> 0 | M86: ='det.sal input'!M15 -> 0 | N86: ='det.sal input'!N15 -> 0 | O86: ='det.sal input'!O15 -> 0 | P86: ='det.sal input'!P15 -> 0 | Q86: ='det.sal input'!Q15 -> 0 | R86: ='det.sal input'!R15+'det.sal input'!T15 -> 0 | S86: ='det.sal input'!S15 -> 0 | T86: ='det.sal input'!U15 -> 0 | U86: ='det.sal input'!V15 -> 0 | V86: ='det.sal input'!W15 -> 0
B87: ='det.sal input'!B16 -> November | D87: ='det.sal input'!C16 -> 0 | E87: ='det.sal input'!D16 -> 0 | F87: ='det.sal input'!F16 -> 0 | G87: ='det.sal input'!G16 -> 0 | H87: ='det.sal input'!H16 -> 0 | I87: ='det.sal input'!I16 -> 0 | J87: ='det.sal input'!J16 -> 0 | K87: ='det.sal input'!K16 -> 0 | L87: ='det.sal input'!L16 -> 0 | M87: ='det.sal input'!M16 -> 0 | N87: ='det.sal input'!N16 -> 0 | O87: ='det.sal input'!O16 -> 0 | P87: ='det.sal input'!P16 -> 0 | Q87: ='det.sal input'!Q16 -> 0 | R87: ='det.sal input'!R16+'det.sal input'!T16 -> 0 | S87: ='det.sal input'!S16 -> 0 | T87: ='det.sal input'!U16 -> 0 | U87: ='det.sal input'!V16 -> 0 | V87: ='det.sal input'!W16 -> 0
B88: ='det.sal input'!B17 -> December | D88: ='det.sal input'!C17 -> 0 | E88: ='det.sal input'!D17 -> 0 | F88: ='det.sal input'!F17 -> 0 | G88: ='det.sal input'!G17 -> 0 | H88: ='det.sal input'!H17 -> 0 | I88: ='det.sal input'!I17 -> 0 | J88: ='det.sal input'!J17 -> 0 | K88: ='det.sal input'!K17 -> 0 | L88: ='det.sal input'!L17 -> 0 | M88: ='det.sal input'!M17 -> 0 | N88: ='det.sal input'!N17 -> 0 | O88: ='det.sal input'!O17 -> 0 | P88: ='det.sal input'!P17 -> 0 | Q88: ='det.sal input'!Q17 -> 0 | R88: ='det.sal input'!R17+'det.sal input'!T17 -> 0 | S88: ='det.sal input'!S17 -> 0 | T88: ='det.sal input'!U17 -> 0 | U88: ='det.sal input'!V17 -> 0 | V88: ='det.sal input'!W17 -> 0
B89: ='det.sal input'!B18 -> Jan- 2024 | D89: ='det.sal input'!C18 -> 0 | E89: ='det.sal input'!D18 -> 0 | F89: ='det.sal input'!F18 -> 0 | G89: ='det.sal input'!G18 -> 0 | H89: ='det.sal input'!H18 -> 0 | I89: ='det.sal input'!I18 -> 0 | J89: ='det.sal input'!J18 -> 0 | K89: ='det.sal input'!K18 -> 0 | L89: ='det.sal input'!L18 -> 0 | M89: ='det.sal input'!M18 -> 0 | N89: ='det.sal input'!N18 -> 0 | O89: ='det.sal input'!O18 -> 0 | P89: ='det.sal input'!P18 -> 0 | Q89: ='det.sal input'!Q18 -> 0 | R89: ='det.sal input'!R18+'det.sal input'!T18 -> 0 | S89: ='det.sal input'!S18 -> 0 | T89: ='det.sal input'!U18 -> 0 | U89: ='det.sal input'!V18 -> 0 | V89: ='det.sal input'!W18 -> 0
B90: ='det.sal input'!B19 -> Feb-2024 | D90: ='det.sal input'!C19 -> 0 | E90: ='det.sal input'!D19 -> 0 | F90: ='det.sal input'!F19 -> 0 | G90: ='det.sal input'!G19 -> 0 | H90: ='det.sal input'!H19 -> 0 | I90: ='det.sal input'!I19 -> 0 | J90: ='det.sal input'!J19 -> 0 | K90: ='det.sal input'!K19 -> 0 | L90: ='det.sal input'!L19 -> 0 | M90: ='det.sal input'!M19 -> 0 | N90: ='det.sal input'!N19 -> 0 | O90: ='det.sal input'!O19 -> 0 | P90: ='det.sal input'!P19 -> 0 | Q90: ='det.sal input'!Q19+R70 -> 0 | R90: ='det.sal input'!R19+'det.sal input'!T19 -> 0 | S90: ='det.sal input'!S19 -> 0 | T90: ='det.sal input'!U19 -> 0 | U90: ='det.sal input'!V19 -> 0 | V90: ='det.sal input'!W19 -> 0
B91: Fest. All | D91: ='det.sal input'!C20 -> 0 | L91: ='det.sal input'!L20 -> 0 | S91: ='det.sal input'!S20 -> 0
B92: Arrear | C92: PF | D92: ='det.sal input'!C21 -> 0 | E92: ='det.sal input'!D21 -> 0 | F92: ='det.sal input'!F21 -> 0 | G92: ='det.sal input'!G21 -> 0 | H92: ='det.sal input'!H21 -> 0 | I92: ='det.sal input'!I21 -> 0 | J92: ='det.sal input'!J21 -> 0 | K92: ='det.sal input'!K21 -> 0 | L92: ='det.sal input'!L21 -> 0 | M92: ='det.sal input'!M21 -> 0 | N92: ='det.sal input'!N21 -> 0 | O92: ='det.sal input'!O21 -> 0 | P92: ='det.sal input'!P21 -> 0 | Q92: ='det.sal input'!Q21 -> 0 | R92: ='det.sal input'!R21+'det.sal input'!T21 -> 0 | S92: ='det.sal input'!S21 -> 0 | T92: ='det.sal input'!U21 -> 0 | V92: ='det.sal input'!W21 -> 0
C93: CASH/NPS | D93: ='det.sal input'!C22 -> 0 | E93: ='det.sal input'!D22 -> 0 | F93: ='det.sal input'!F22 -> 0 | G93: ='det.sal input'!G22 -> 0 | H93: ='det.sal input'!H22 -> 0 | I93: ='det.sal input'!I22 -> 0 | J93: ='det.sal input'!J22 -> 0 | K93: ='det.sal input'!K22 -> 0 | L93: ='det.sal input'!L22 -> 0 | M93: ='det.sal input'!M22 -> 0 | N93: ='det.sal input'!N22 -> 0 | O93: ='det.sal input'!O22 -> 0 | P93: ='det.sal input'!P22 -> 0 | Q93: ='det.sal input'!Q22 -> 0 | R93: ='det.sal input'!R22+'det.sal input'!T22 -> 0 | S93: ='det.sal input'!S22 -> 0 | T93: ='det.sal input'!U22 -> 0 | V93: ='det.sal input'!W22 -> 0
B94: Leave surrender | D94: ='det.sal input'!C23 -> 0 | E94: ='det.sal input'!D23 -> 0 | F94: ='det.sal input'!F23 -> 0 | G94: ='det.sal input'!G23 -> 0 | H94: ='det.sal input'!H23 -> 0 | I94: ='det.sal input'!I23 -> 0 | J94: ='det.sal input'!J23 -> 0 | K94: ='det.sal input'!K23 -> 0 | L94: ='det.sal input'!L23 -> 0 | M94: ='det.sal input'!M23 -> 0 | N94: ='det.sal input'!N23 -> 0 | O94: ='det.sal input'!O23 -> 0 | P94: ='det.sal input'!P23 -> 0 | Q94: ='det.sal input'!Q23 -> 0 | R94: ='det.sal input'!R23+'det.sal input'!T23 -> 0 | S94: ='det.sal input'!S23 -> 0 | T94: ='det.sal input'!U23 -> 0 | V94: ='det.sal input'!W23 -> 0
B95: Deferred salary Arrear | D95: ='det.sal input'!C25 -> 0 | E95: ='det.sal input'!D24 -> 0 | F95: ='det.sal input'!F24 -> 0 | G95: ='det.sal input'!G24 -> 0 | H95: ='det.sal input'!H24 -> 0 | I95: ='det.sal input'!I24 -> 0 | J95: ='det.sal input'!J24 -> 0 | K95: ='det.sal input'!K24 -> 0 | L95: ='det.sal input'!L25 -> 0 | M95: ='det.sal input'!M24 -> 0 | N95: ='det.sal input'!N24 -> 0 | O95: ='det.sal input'!O24 -> 0 | P95: ='det.sal input'!P24 -> 0 | Q95: ='det.sal input'!Q24 -> 0 | R95: ='det.sal input'!R24+'det.sal input'!T24 -> 0 | S95: ='det.sal input'!S24 -> 0 | T95: ='det.sal input'!U24 -> 0 | V95: ='det.sal input'!W24 -> 0
B96: Total * | D96: ='det.sal input'!C26 -> 0 | E96: ='det.sal input'!D26 -> 0 | F96: ='det.sal input'!F26 -> 0 | G96: ='det.sal input'!G26 -> 0 | H96: ='det.sal input'!H26 -> 0 | I96: ='det.sal input'!I26 -> 0 | J96: ='det.sal input'!J26 -> 0 | K96: ='det.sal input'!K26 -> 0 | L96: ='det.sal input'!L26 -> 0 | M96: ='det.sal input'!M26 -> 0 | N96: ='det.sal input'!N26 -> 0 | O96: ='det.sal input'!O26 -> 0 | P96: ='det.sal input'!P26 -> 0 | Q96: =SUM(Q79:Q89)+SUM(Q91:Q95)+Q90 -> 0 | R96: ='det.sal input'!R26+'det.sal input'!T26 -> 0 | S96: ='det.sal input'!S26 -> 0 | T96: ='det.sal input'!U26 -> 0 | U96: =SUM(U79:U95) -> 0 | V96: =SUM(V79:V95) -> 0
B97: =IF('det.sal input'!C24="","","* Total includes other office receipts or refunds") -> 
D98: =IF(#REF!<0,"Refund of salary","Other receipts from office") ->  | R98: =ROUND(W69,-1) -> 0
AE222: Male | AF222: =IF(AND(R59>200000,R59<=500000),(R59-200000)*0.1,IF(AND(R59>500000,R59<=1000000),30000+(R59-500000)*0.2,IF(R59>1000000,130000+(R59-1000000)*0.3,"Nil"))) -> Nil
AE223: Female | AF223: =IF(AND(R59>200000,R59<=500000),(R59-200000)*0.1,IF(AND(R59>500000,R59<=1000000),30000+(R59-500000)*0.2,IF(R59>1000000,130000+(R59-1000000)*0.3,"Nil"))) -> Nil
AE224: Senior | AF224: =IF(AND(R59>250000,R59<=500000),(R59-250000)*0.1,IF(AND(R59>500000,R59<=1000000),25000+(R59-500000)*0.2,IF(R59>1000000,125000+(R59-1000000)*0.3,"Nil"))) -> Nil
AE225: Senior2 | AF225: =IF(AND(R59>500000,R59<=1000000),(R59-500000)*0.2,IF(R59>1000000,100000+(R59-1000000)*0.3,"Nil")) -> Nil
AE229: =IF(O30<>"Nil","Life Insurance Premum","") -> Life Insurance Premum | AF229: =IF(O30<>"Nil",O30,"") -> 0 | AG229: =IF(ROW()-ROW(two)+1>ROWS(one)-COUNTBLANK(one),"",INDIRECT(ADDRESS(SMALL((IF(one<>"",ROW(one),ROW()+ROWS(one))),ROW()-ROW(two)+1),COLUMN(one),4))) ->  | AH229: =IF(AG229<>"",VLOOKUP(AG229,AE229:AF242,2,FALSE),"") -> 
AE230: =IF(#REF!<>"Nil","Purchase of NSC","") ->  | AF230: =IF(#REF!<>"Nil",#REF!,"") ->  | AG230: =IF(ROW()-ROW(two)+1>ROWS(one)-COUNTBLANK(one),"",INDIRECT(ADDRESS(SMALL((IF(one<>"",ROW(one),ROW()+ROWS(one))),ROW()-ROW(two)+1),COLUMN(one),4))) ->  | AH230: =IF(AG230<>"",VLOOKUP(AG230,AE230:AF245,2,FALSE),"") -> 
AE231: =IF(O32<>"Nil","State Life Insurance (SLI)","") -> State Life Insurance (SLI) | AF231: =IF(O32<>"Nil",O32,"") -> 0 | AG231: =IF(ROW()-ROW(two)+1>ROWS(one)-COUNTBLANK(one),"",INDIRECT(ADDRESS(SMALL((IF(one<>"",ROW(one),ROW()+ROWS(one))),ROW()-ROW(two)+1),COLUMN(one),4))) ->  | AH231: =IF(AG231<>"",VLOOKUP(AG231,AE231:AF246,2,FALSE),"") -> 
AE232: =IF(O33<>"Nil","Group Insurance Scheme (GIS)","") -> Group Insurance Scheme (GIS) | AF232: =IF(O33<>"Nil",O33,"") -> 0 | AG232: =IF(ROW()-ROW(two)+1>ROWS(one)-COUNTBLANK(one),"",INDIRECT(ADDRESS(SMALL((IF(one<>"",ROW(one),ROW()+ROWS(one))),ROW()-ROW(two)+1),COLUMN(one),4))) ->  | AH232: =IF(AG232<>"",VLOOKUP(AG232,AE232:AF247,2,FALSE),"") -> 
AE233: =IF(#REF!<>"Nil","Group Personal Accident Insurance (GPAIS)","") ->  | AF233: =IF(#REF!<>"Nil",#REF!,"") ->  | AG233: =IF(ROW()-ROW(two)+1>ROWS(one)-COUNTBLANK(one),"",INDIRECT(ADDRESS(SMALL((IF(one<>"",ROW(one),ROW()+ROWS(one))),ROW()-ROW(two)+1),COLUMN(one),4))) ->  | AH233: =IF(AG233<>"",VLOOKUP(AG233,AE233:AF248,2,FALSE),"") -> 
AE234: =IF(O34<>"Nil",D34,"") -> Life Insurence salary deduction | AF234: =IF(O34<>"Nil",O34,"") -> 0 | AG234: =IF(ROW()-ROW(two)+1>ROWS(one)-COUNTBLANK(one),"",INDIRECT(ADDRESS(SMALL((IF(one<>"",ROW(one),ROW()+ROWS(one))),ROW()-ROW(two)+1),COLUMN(one),4))) ->  | AH234: =IF(AG234<>"",VLOOKUP(AG234,AE234:AF249,2,FALSE),"") -> 
AE235: =IF(O35<>"Nil","Provident Fund","") -> Provident Fund | AF235: =IF(O35<>"Nil",O35,"") -> 0 | AG235: =IF(ROW()-ROW(two)+1>ROWS(one)-COUNTBLANK(one),"",INDIRECT(ADDRESS(SMALL((IF(one<>"",ROW(one),ROW()+ROWS(one))),ROW()-ROW(two)+1),COLUMN(one),4))) ->  | AH235: =IF(AG235<>"",VLOOKUP(AG235,AE235:AF249,2,FALSE),"") -> 
AE236: =IF(O38<>"Nil","Unit Linked Insurance","") -> Unit Linked Insurance | AF236: =IF(O38<>"Nil",O38,"") -> 0 | AG236: =IF(ROW()-ROW(two)+1>ROWS(one)-COUNTBLANK(one),"",INDIRECT(ADDRESS(SMALL((IF(one<>"",ROW(one),ROW()+ROWS(one))),ROW()-ROW(two)+1),COLUMN(one),4))) ->  | AH236: =IF(AG236<>"",VLOOKUP(AG236,AE236:AF250,2,FALSE),"") -> 
AE237: =IF(#REF!<>"Nil","Tax Saving Mutual Fund","") ->  | AF237: =IF(#REF!<>"Nil",#REF!,"") ->  | AG237: =IF(ROW()-ROW(two)+1>ROWS(one)-COUNTBLANK(one),"",INDIRECT(ADDRESS(SMALL((IF(one<>"",ROW(one),ROW()+ROWS(one))),ROW()-ROW(two)+1),COLUMN(one),4))) ->  | AH237: =IF(AG237<>"",VLOOKUP(AG237,AE237:AF251,2,FALSE),"") -> 
AE238: =IF(O40<>"Nil","Tuition Fees","") -> Tuition Fees | AF238: =IF(O40<>"Nil",O40,"") -> 0 | AG238: =IF(ROW()-ROW(two)+1>ROWS(one)-COUNTBLANK(one),"",INDIRECT(ADDRESS(SMALL((IF(one<>"",ROW(one),ROW()+ROWS(one))),ROW()-ROW(two)+1),COLUMN(one),4))) ->  | AH238: =IF(AG238<>"",VLOOKUP(AG238,AE237:AF252,2,FALSE),"") -> 
AE239: =IF(O41<>"Nil","Housing Loan Repayment","") -> Housing Loan Repayment | AF239: =IF(O41<>"Nil",O41,"") -> 0 | AG239: =IF(ROW()-ROW(two)+1>ROWS(one)-COUNTBLANK(one),"",INDIRECT(ADDRESS(SMALL((IF(one<>"",ROW(one),ROW()+ROWS(one))),ROW()-ROW(two)+1),COLUMN(one),4))) ->  | AH239: =IF(AG239<>"",VLOOKUP(AG239,AE238:AF252,2,FALSE),"") -> 
AE240: =IF(#REF!<>"Nil","Eligibleshares & debentures","") ->  | AF240: =IF(#REF!<>"Nil",#REF!,"") ->  | AG240: =IF(ROW()-ROW(two)+1>ROWS(one)-COUNTBLANK(one),"",INDIRECT(ADDRESS(SMALL((IF(one<>"",ROW(one),ROW()+ROWS(one))),ROW()-ROW(two)+1),COLUMN(one),4))) ->  | AH240: =IF(AG240<>"",VLOOKUP(AG240,AE238:AF252,2,FALSE),"") -> 
AE241: =IF(#REF!<>"Nil","Mutual Fund","") ->  | AF241: =IF(#REF!<>"Nil",#REF!,"") ->  | AG241: =IF(ROW()-ROW(two)+1>ROWS(one)-COUNTBLANK(one),"",INDIRECT(ADDRESS(SMALL((IF(one<>"",ROW(one),ROW()+ROWS(one))),ROW()-ROW(two)+1),COLUMN(one),4))) ->  | AH241: =IF(AG241<>"",VLOOKUP(AG241,AE239:AF252,2,FALSE),"") -> 
AE242: =IF(#REF!<>"Nil",#REF!,"") ->  | AF242: =IF(#REF!<>"Nil",#REF!,"") ->  | AG242: =IF(ROW()-ROW(two)+1>ROWS(one)-COUNTBLANK(one),"",INDIRECT(ADDRESS(SMALL((IF(one<>"",ROW(one),ROW()+ROWS(one))),ROW()-ROW(two)+1),COLUMN(one),4))) ->  | AH242: =IF(AG242<>"",VLOOKUP(AG242,AE240:AF252,2,FALSE),"") -> 
AG243: =IF(ROW()-ROW(two)+1>ROWS(one)-COUNTBLANK(one),"",INDIRECT(ADDRESS(SMALL((IF(one<>"",ROW(one),ROW()+ROWS(one))),ROW()-ROW(two)+1),COLUMN(one),4))) ->  | AH243: =IF(AG243<>"",VLOOKUP(AG243,AE241:AF252,2,FALSE),"") -> 
AG244: =IF(ROW()-ROW(two)+1>ROWS(one)-COUNTBLANK(one),"",INDIRECT(ADDRESS(SMALL((IF(one<>"",ROW(one),ROW()+ROWS(one))),ROW()-ROW(two)+1),COLUMN(one),4))) ->  | AH244: =IF(AG244<>"",VLOOKUP(AG244,AE242:AF253,2,FALSE),"") -> 
AE247: =IF('new statement'!O49<>"Nil","Mediclaim Policies (Sec 80D)","") -> Mediclaim Policies (Sec 80D) | AF247: =IF(AE247<>"",O49,"") -> 0 | AG247: =IF(ROW()-ROW(four)+1>ROWS(three)-COUNTBLANK(three),"",INDIRECT(ADDRESS(SMALL((IF(three<>"",ROW(three),ROW()+ROWS(three))),ROW()-ROW(four)+1),COLUMN(three),4))) ->  | AH247: =IF(ROW()-ROW(fouramt)+1>ROWS(threeamt)-COUNTBLANK(threeamt),"",INDIRECT(ADDRESS(SMALL((IF(threeamt<>"",ROW(threeamt),ROW()+ROWS(threeamt))),ROW()-ROW(fouramt)+1),COLUMN(threeamt),4))) -> 
AE248: =IF('new statement'!O50<>"Nil","Medical Treatment Mentally or Physically handicapped (Sec-80DD)","") -> Medical Treatment Mentally or Physically handicapped (Sec-80DD) | AF248: =IF(AE248<>"",O50,"") -> 0 | AG248: =IF(ROW()-ROW(four)+1>ROWS(three)-COUNTBLANK(three),"",INDIRECT(ADDRESS(SMALL((IF(three<>"",ROW(three),ROW()+ROWS(three))),ROW()-ROW(four)+1),COLUMN(three),4))) ->  | AH248: =IF(ROW()-ROW(fouramt)+1>ROWS(threeamt)-COUNTBLANK(threeamt),"",INDIRECT(ADDRESS(SMALL((IF(threeamt<>"",ROW(threeamt),ROW()+ROWS(threeamt))),ROW()-ROW(fouramt)+1),COLUMN(threeamt),4))) -> 
AE249: =IF('new statement'!#REF!<>"Nil","Expenditure on Medical Treatment(Sec-80DDB)","") ->  | AF249: =IF(AE249<>"",#REF!,"") ->  | AG249: =IF(ROW()-ROW(four)+1>ROWS(three)-COUNTBLANK(three),"",INDIRECT(ADDRESS(SMALL((IF(three<>"",ROW(three),ROW()+ROWS(three))),ROW()-ROW(four)+1),COLUMN(three),4))) ->  | AH249: =IF(ROW()-ROW(fouramt)+1>ROWS(threeamt)-COUNTBLANK(threeamt),"",INDIRECT(ADDRESS(SMALL((IF(threeamt<>"",ROW(threeamt),ROW()+ROWS(threeamt))),ROW()-ROW(fouramt)+1),COLUMN(threeamt),4))) -> 
AE250: =IF('new statement'!O52<>"Nil","Interest on Educational Loan (Sec-80 E)","") -> Interest on Educational Loan (Sec-80 E) | AF250: =IF(AE250<>"",O52,"") -> 0 | AG250: =IF(ROW()-ROW(four)+1>ROWS(three)-COUNTBLANK(three),"",INDIRECT(ADDRESS(SMALL((IF(three<>"",ROW(three),ROW()+ROWS(three))),ROW()-ROW(four)+1),COLUMN(three),4))) ->  | AH250: =IF(ROW()-ROW(fouramt)+1>ROWS(threeamt)-COUNTBLANK(threeamt),"",INDIRECT(ADDRESS(SMALL((IF(threeamt<>"",ROW(threeamt),ROW()+ROWS(threeamt))),ROW()-ROW(fouramt)+1),COLUMN(threeamt),4))) -> 
AE251: =IF('new statement'!O55<>"Nil","Donation to Charitable Institutions (Sec-80 G)","") -> Donation to Charitable Institutions (Sec-80 G) | AF251: =IF(AE251<>"",O55,"") -> 0 | AG251: =IF(ROW()-ROW(four)+1>ROWS(three)-COUNTBLANK(three),"",INDIRECT(ADDRESS(SMALL((IF(three<>"",ROW(three),ROW()+ROWS(three))),ROW()-ROW(four)+1),COLUMN(three),4))) ->  | AH251: =IF(ROW()-ROW(fouramt)+1>ROWS(threeamt)-COUNTBLANK(threeamt),"",INDIRECT(ADDRESS(SMALL((IF(threeamt<>"",ROW(threeamt),ROW()+ROWS(threeamt))),ROW()-ROW(fouramt)+1),COLUMN(threeamt),4))) -> 
AE252: =IF('new statement'!#REF!<>"Nil","Contribution to Political Parties (Sec-80 GGC)","") ->  | AF252: =IF(AE252<>"",#REF!,"") ->  | AG252: =IF(ROW()-ROW(four)+1>ROWS(three)-COUNTBLANK(three),"",INDIRECT(ADDRESS(SMALL((IF(three<>"",ROW(three),ROW()+ROWS(three))),ROW()-ROW(four)+1),COLUMN(three),4))) ->  | AH252: =IF(ROW()-ROW(fouramt)+1>ROWS(threeamt)-COUNTBLANK(threeamt),"",INDIRECT(ADDRESS(SMALL((IF(threeamt<>"",ROW(threeamt),ROW()+ROWS(threeamt))),ROW()-ROW(fouramt)+1),COLUMN(threeamt),4))) -> 
AE253: =IF('new statement'!O56<>"Nil","Deduction for Handicapped Employees (u/s 80U)","") -> Deduction for Handicapped Employees (u/s 80U) | AF253: =IF(AE253<>"",O56,"") -> 0 | AG253: =IF(ROW()-ROW(four)+1>ROWS(three)-COUNTBLANK(three),"",INDIRECT(ADDRESS(SMALL((IF(three<>"",ROW(three),ROW()+ROWS(three))),ROW()-ROW(four)+1),COLUMN(three),4))) ->  | AH253: =IF(ROW()-ROW(fouramt)+1>ROWS(threeamt)-COUNTBLANK(threeamt),"",INDIRECT(ADDRESS(SMALL((IF(threeamt<>"",ROW(threeamt),ROW()+ROWS(threeamt))),ROW()-ROW(fouramt)+1),COLUMN(threeamt),4))) -> 
AE255: =IF(ISNUMBER(#REF!),"Income From House Property","") ->  | AF255: =IF(AE255<>"",#REF!,"") ->  | AG255: =IF(ROW()-ROW(six)+1>ROWS(five)-COUNTBLANK(five),"",INDIRECT(ADDRESS(SMALL((IF(five<>"",ROW(five),ROW()+ROWS(five))),ROW()-ROW(six)+1),COLUMN(five),4))) ->  | AH255: =IF(ROW()-ROW(sixamt)+1>ROWS(fiveamt)-COUNTBLANK(fiveamt),"",INDIRECT(ADDRESS(SMALL((IF(fiveamt<>"",ROW(fiveamt),ROW()+ROWS(fiveamt))),ROW()-ROW(sixamt)+1),COLUMN(fiveamt),4))) -> 
AE256: =IF(#REF!>0,#REF!,"") ->  | AF256: =IF(AE256<>"",#REF!,"") ->  | AG256: =IF(ROW()-ROW(six)+1>ROWS(five)-COUNTBLANK(five),"",INDIRECT(ADDRESS(SMALL((IF(five<>"",ROW(five),ROW()+ROWS(five))),ROW()-ROW(six)+1),COLUMN(five),4))) ->  | AH256: =IF(ROW()-ROW(sixamt)+1>ROWS(fiveamt)-COUNTBLANK(fiveamt),"",INDIRECT(ADDRESS(SMALL((IF(fiveamt<>"",ROW(fiveamt),ROW()+ROWS(fiveamt))),ROW()-ROW(sixamt)+1),COLUMN(fiveamt),4))) -> 
AE257: =IF(#REF!>0,#REF!,"") ->  | AF257: =IF(AE257<>"",#REF!,"") ->  | AG257: =IF(ROW()-ROW(six)+1>ROWS(five)-COUNTBLANK(five),"",INDIRECT(ADDRESS(SMALL((IF(five<>"",ROW(five),ROW()+ROWS(five))),ROW()-ROW(six)+1),COLUMN(five),4))) ->  | AH257: =IF(ROW()-ROW(sixamt)+1>ROWS(fiveamt)-COUNTBLANK(fiveamt),"",INDIRECT(ADDRESS(SMALL((IF(fiveamt<>"",ROW(fiveamt),ROW()+ROWS(fiveamt))),ROW()-ROW(sixamt)+1),COLUMN(fiveamt),4))) -> 
AE258: =IF(#REF!>0,#REF!,"") ->  | AF258: =IF(AE258<>"",#REF!,"") ->  | AG258: =IF(ROW()-ROW(six)+1>ROWS(five)-COUNTBLANK(five),"",INDIRECT(ADDRESS(SMALL((IF(five<>"",ROW(five),ROW()+ROWS(five))),ROW()-ROW(six)+1),COLUMN(five),4))) ->  | AH258: =IF(ROW()-ROW(sixamt)+1>ROWS(fiveamt)-COUNTBLANK(fiveamt),"",INDIRECT(ADDRESS(SMALL((IF(fiveamt<>"",ROW(fiveamt),ROW()+ROWS(fiveamt))),ROW()-ROW(sixamt)+1),COLUMN(fiveamt),4))) -> 
AE261: =IF(AND(R66<>"Nil",R67<>"Nil"),R66-R67,IF(AND(R66>0,R67="Nil"),R66,IF(AND(R67>0,R66="Nil"),(0-R67),"Nil"))) -> 0

Sheet new statement for PRINT
A1: =F5&" "& B2 -> 0 ANTICIPATORY INCOME TAX STATEMENT(NEW RATE OPTION)-FINANCIAL YEAR 2023-24 (AY 24-25) | B1: =INVEST!K3 -> 0 | C1: =INVEST!L3 -> 0 | D1: =IF(C1>B1,"Warning ! Your are in the wrong field. The New Regime option is not suitable for you. To choose the economical option, click the green button on the right side","") ->  | P1: =IF(D1="",0,1) -> 0
B2: =IF(print!P9="ANTICIPATORY TAX CALCULATOR","ANTICIPATORY INCOME TAX STATEMENT(NEW RATE OPTION)-FINANCIAL YEAR 2023-24 (AY 24-25) ","INCOME TAX STATEMENT(NEW RATE OPTION)-FINANCIAL YEAR 2023-24 (AY 24-25)") -> ANTICIPATORY INCOME TAX STATEMENT(NEW RATE OPTION)-FINANCIAL YEAR 2023-24 (AY 24-25) | R2: =CUSTOMISE!H22 -> 0 | W2: 2
B3: =PERSONAL!H10 -> SALARY | W3: 2
B5: Name | F5: =PERSONAL!H4 -> 0 | O5: PAN : | Q5: =PERSONAL!H7 -> 0 | W5: =IF(PERSONAL!H8="no","",IF('det.sal input'!AC39>'det.sal input'!AB38,"You cannot claim for benifit of living in a rental home [HRA benifit], because rent paid amount is less than 10% of your salary","")) -> 
B6: Designation | F6: =PERSONAL!H6 -> 0 | L6: =PERSONAL!H5 -> Below 60 Years | R6: NEW REGIME RATE
B7: 1 | C7: a | D7: Gross Salary (Excluding interest on arrear salary), Festival allowance, Bonus,Leave Surrender)(includes Salary, DA, HRA, CCA, Interim Relief, , DA Arrear, Pay Revision Arrear etc) | Q7: : | R7: =L96-L91-L94-'arrear det'!K13 -> 0 | AA7: ='det.sal input'!AF29 -> 1
C8: b | D8: Leave Surrender | Q8: : | R8: =L94 -> 0 | W8: medical reimb actual | X8: ='det.sal input'!W28 -> 0 | Y8: 15000 | Z8: excess= | AA8: =IF(AA7=1,0,IF((X8-Y8)>0,(X8-Y8),0)) -> 0
C9: c | D9: Festival Allowance / Bonus / Ex-gratia and incentive | Q9: : | R9: =L91 -> 0 | W9: =SUM(R7:T9) -> 0
C10: d | D10: Value of perquisites (Iincludes Employer's contribution to NPS, Medical reimb. Taxable portion) | Q10: : | T10: ='det.sal input'!W32+'det.sal input'!W33+X8 -> 0 | AA10: IF((V8-W8)>0,(V8-W8),0))
C11: e | D11: Profits in lieu of salary (S17-3) | Q11: : | T11: ='det.sal input'!W34 -> 0 | X11: =PERSONAL!H8 -> NO
C12: f | D12: Total Salary Income (a+b+c+d+e) | Q12: : | R12: =SUM(R7:T11) -> 0
B13: 2 | C13: Deduction towards rent paid | H13: Not available in New Regime option
C14: i) | D14: Actual HRA Received relating to the period | G14: : | N14: : | O14: =IF(X11="NO","",'det.sal input'!AB40) -> 
C15: ii) | D15: Actual Rent paid in excess 1/10th of the salary | M15: =IF(O15=0,"NIL","") ->  | N15: : | O15: =IF(X11="NO","",IF(Y15>AA15,Y15-AA15,0)) ->  | Y15: ='det.sal input'!AB38 -> 0 | Z15: 1/10 of sal= | AA15: ='det.sal input'!AC39 -> 0 | AB15: =IF(Y15>AA15,Y15-AA15,0) -> 0
C16: iii) | D16: 40% Salary ( For this salary means Basic + DA) | G16: : | N16: : | O16: =IF(X11="NO","",AA16) ->  | R16: =IF(W2=2,0,(IF(R17=0,"NIL",R17))) -> 0 | Z16: 40%sal = | AA16: =ROUND(('det.sal input'!AB39*0.4),0) -> 0
C17: =IF(PERSONAL!H8="no",""," (Here, Salary means Basic+DA+AGP only, but include arrear/ surrender values relating to this period.) That is "&'det.sal input'!R40&"+"&'det.sal input'!T40&"+"&'det.sal input'!W40&"") ->  | Q17: : | R17: =IF(W2=2,0,MIN(O14:P16)) -> 0
B18: 3 | C18: Balance ( 1- 2) | Q18: : | R18: =R12-R17 -> 0
B19: 4 | C19: =" Less Allowance to the extent exempt u/s10 " -> Less Allowance to the extent exempt u/s10 | K19: =INVEST!D28&" + "&INVEST!D29&" + "&INVEST!D30&" + "&INVEST!D31 -> + + + | P19: =INVEST!F28+INVEST!F29+INVEST!F30+INVEST!F31 -> 0 | R19: =IF(W2=2,0,P19) -> 0
B20: 5 | C20: Less Profession tax, Enterteainment Allow ( not eligible) | N20: ='det.sal input'!W31& " +"&'det.sal input'!W35 -> + | R20: =IF(W2=2,0,'det.sal input'!W31+'det.sal input'!W35) -> 0
B21: 6 | C21: Less Standard deduction ( maximum 50000) | R21: =IF((R18-R19-R20)>50000,50000,(R18-R19-R20)) -> 0
B22: 6a | C22: Net Salary Income [Income chargeble under the head salary] (3-4-5-6) | Q22: : | R22: =R18-R19-R20-R21 -> 0
B23: 7 | C23: 1. Income from house property (HBA interest not eligible to deduct) | O23: =IF(INVEST!F17<0,INVEST!F17*-1,IF(W2=2,0,0-MIN(W23:X23))) -> 0 | R23: =IF(ISNUMBER(#REF!),#REF!,"Nil") -> Nil | W23: 200000 | X23: =INVEST!F17 -> 0 | Y23: =X23-W23 -> -200000
C24: 2.Other sources Income INCLUDING PAY REVISION ARREAR INTEREST Interest on investment / Family pension (1/3 of family pension or 15000 whichever is less is exempted)/ Post office SB interest get exemption up to 3500 [Sec. 10(15)(i)] applicable for New regime also | O24: ='arrear det'!K13+'tds det'!D30+'tds det'!F29+'tds det'!D26+'tds det'!E26+'tds det'!D33+'tds det'!E33+'tds det'!D34+'tds det'!E34+'det.sal input'!W30-Z24 -> 0 | R24: ="Pay revision interest "&'arrear det'!K13 -> Pay revision interest 0 | S24: ="Post off SB+ other SB "&'tds det'!D30+'tds det'!F29 -> Post off SB+ other SB 0 | T24: ="Investment interest "&'tds det'!D26+'tds det'!E26+'tds det'!D33+'tds det'!E33+'tds det'!D34+'tds det'!E34 -> Investment interest 0 | V24: ="Family Pension "&AB24-Z24 -> Family Pension 0 | W24: 1/3 family pension | X24: =ROUND('det.sal input'!W30/3,0) -> 0 | Y24: 15000 | Z24: =MIN(X24:Y24) -> 0 | AA24: taxable portion of family pen | AB24: =IF(W2=2,'det.sal input'!W30-'new statement for PRINT'!Z24+Z24,'det.sal input'!W30-'new statement for PRINT'!Z24) -> 0
C25: 3. Income from profession | O25: ='tds det'!F42 -> 0
C26: 4.Captal gain income | O26: ='tds det'!F38 -> 0 | Q26: Total | R26: =SUM(O23:P26) -> 0
B27: 8 | C27: Gross Total Income (6+7) | Q27: : | R27: =R22+R26 -> 0
B28: 9 | C28: Deduction under chapter VI-A | O28: Amount spent | R28: Eligible amount
C29: A - Deduction under section 80C
C30: a) | D30: Providend fund contribution | N30: : | O30: =M96 -> 0
C31: c) | D31: State Life Insurance Policy (SLI) | N31: : | O31: =N96 -> 0
C32: c) | D32: Group Insurance Scheme (GIS) | N32: : | O32: =O96 -> 0
C33: d) | D33: Tax saving Fixed deposits (Available at all banks) /Sukanya samrudhi | N33: : | O33: =INVEST!F8 -> 0
C34: e) | D34: Life Insurence salary deduction | O34: =P96 -> 0
C35: f) | D35: Life Insurence other than salary deduction | N35: : | O35: =INVEST!F5 -> 0
C36: g) | D36: ='det.sal input'!R6&" + "&'det.sal input'!T6 -> ? + ? | O36: =R96 -> 0
C37: h) | D37: NSC VIII th issue (Nationional Savings certificate from post offices) | N37: : | O37: =INVEST!F7 -> 0
C38: i) | D38: Public Provident Fund (PPF) (Available at Post offfices) | N38: : | O38: =INVEST!F9 -> 0
D39: ULIP/ Tax saving mutual funds | O39: =INVEST!F10 -> 0 | W39: nps allowed amt | AB39: NEW taxab inc | AC39: TAX new
C40: j) | D40: Tuition Fees ( Paid for full time education to any two children -only the tuition fee portion-donations should be excluded) | N40: : | O40: =INVEST!F11 -> 0 | W40: =O44 -> 0 | X40: =IF(O44=0,"",(O45-O44-150000)*-1) ->  | AB40: =R59 -> 0 | AC40: =IF(AB40<300001,0,IF(AB40<600001,(AB40-300000)*5/100,IF(AB40<900001,(15000+(AB40-600000)*10/100),IF(AB40<1200001,(45000+(AB40-900000)*15/100),IF(AB40<1500001,90000+(AB40-1200000)*20/100,IF(AB40>1500000,150000+(AB40-1500000)*30/100)))))) -> 0
C41: k) | D41: Housing Loan Repayment (PRINCIPAL PORTION ONLY) for construction loan only. Not for addition / repair loan etc. Stamp duty paid for purchase of property can be included | N41: : | O41: =INVEST!F12 -> 0 | W41: OVER 1.5 | X41: =IF(O45<=150000,0,(O45)-150000) -> 0 | Y41: MAX 80CC-1B= | Z41: 50000 | AA41: TOT NPS= | AB41: =X46 -> 0 | AC41: MIN AMT = | AD41: =MIN(X41,Z41,AB41) -> 0
C42: l) | D42: =INVEST!E13 -> 0 | O42: =INVEST!F13 -> 0 | W42: Tot VIA excl nps= | X42: =SUM(O30:P43) -> 0 | Y42: ALLOED VIA = | Z42: 150000
C43: B- Contribution to Pension Fund (80CCC) | O43: =INVEST!F6 -> 0
C44: C-Contrubution to National Pension Scheme - NPS (80CCD) | N44: : | O44: =X46 -> 0 | R44: =MIN(W40:X40) -> 0 | W44: nps sal ded | X44: ='det.sal input'!U26 -> 0
C45: D- Total investment under Sec. 80C, 80CCC, 80CCD, eligible amt. limited to 1.5 lakh | O45: =SUM(O30:P44) -> 0 | R45: =IF(W2=2,0,IF(O45<=150000,O45,150000)) -> 0 | W45: nps direct pay | X45: =INVEST!F15 -> 0
B46: 10 | C46: a. | D46: Contrubution to National Pension Scheme - NPS Section 80CCD(1B) Investment upto 50000 can be made additionally | N46: : | O46: =AD41 -> 0 | W46: total NPS | X46: =X44+X45 -> 0
C47: b. | D47: Employer's contribution to NPS [Up to 10% Pay+Da+AGPgets excemption u/s Section 80CCD(2)] | O47: =IF(Z47<X47,Z47,X47) -> 0 | W47: total pay+da+agp 10% = | X47: =ROUND(AA47*0.1,0) -> 0 | Y47: Empr contri = | Z47: ='det.sal input'!W32 -> 0 | AA47: ='det.sal input'!C26+'det.sal input'!D26+'det.sal input'!F26-'det.sal input'!C20 -> 0
C48: c. | D48: Investment in Rajiv Gandhi Equity Savings Scheme 80CCG (50% of investment gets exemption.Maximum 25000)
C49: c) | D49: Mediclaim ( Maximum of Rs.25,000 for self, spouse, children and Rs.25000 for Parents. if Parents are senior citizens Rs.50,000)(80 D) | N49: : | O49: =Z49 -> 0 | W49: max 80 D= | X49: 55000 | Y49: Actual 80d = | Z49: =INVEST!F18 -> 0
C50: d) | D50: Expenditure on Medical treatment of mentally or physically handicapped dependents (including Specified investments there on). ( Max. Rs.75,000/- in case of severe disability max. Rs.1,25,000) (80DD) | N50: : | O50: =IF(Z50<X50,Z50,X50) -> 0 | W50: max 80dd= | X50: 125000 | Y50: Actual 80dd = | Z50: =INVEST!F21 -> 0
C51: e) | D51: For medical treatment of specified diseases of self/dependent . Actual exp. Or Rs. 40000/60000/ 80000 which ever is less gets excemption depending on age. Should submit Form-10-I. (80 DDB) | O51: =INVEST!F22 -> 0
C52: f) | D52: Any amount of interest paid for Educational Loan for higher education of the employee's dependent children [u/s 80E] | N52: : | O52: =INVEST!F20 -> 0
C53: g) | D53: Additional deduction on housing loan interest (maximum 50000) if the following conditions are satisfied. 1. loan amount is not above Rs. 35 lakhs, 2. Loan sanctioned in 2016-17, 3. He is a first time home buyer, 4. cost of house does not exceed Rs. 50 lakhs (80EE) | O53: =IF(W53<0,0,W53) -> 0 | W53: =IF(PERSONAL!H20="YES",'new statement for PRINT'!X23-'new statement for PRINT'!W23,0) -> 0
C54: h) | D54: ='new statement'!D54:M54 -> Electric vehicle loan interest repayment (up to 1.5 Lakh) (80EEB) | O54: ='new statement'!O54:P54 -> 0
C55: i) | D55: Donation to special funds only PM's National Relief Fund, Earth quake fund Etc (80G) | N55: : | O55: =INVEST!F19+S96 -> 0
C56: j) | D56: Dedution for differently abled Employees( 80U)For blindness,Hearing impaired, Mental retradation, Mental illness, low vision, Locomotors disability. Fixed deduction of 75000 (For disability not less than 40%) / 1.25 Lakh, for severe disability over 80% | N56: : | O56: =INVEST!F23 -> 0
D57: Total of 10 | O57: =SUM(O46:P56) -> 0
B58: 11 | C58: Total Deduction (9+10) | R58: =IF(W2=2,O47,R45+O57) -> 0
B59: 12 | C59: Total Income or Taxable Income (rounded off to the nearest multiple of ten (8-11) | O59: Before rounding | Q59: =R27-R58 -> 0 | R59: =IF(R27-R58>0,ROUND(((R27-R58)/10),0)*10,0) -> 0
B60: 13 | C60: Tax on Total Income (New rate option) First 3 Lakh, Nil, next 3 Lakh 5%, next 3 Lakh 10%, next 3 Lakh 15%, next 3 Lakh 20%, Remaining income 30% | Q60: : | R60: =IF(W2=2,AC40,'new form 16'!J81) -> 0
B61: 14 | C61: Less 87 A Rebate, upto maximum of Rs.25000, available if Taxable income is less than 700001 (Rebate u/s 87A) Marginal relief under Sec115 BAC (1A) is applicable if taxable income is above 7 Lakhs | R61: =taxplanning!S290 -> 0 | U61: =IF('new statement (2)'!R61='new statement for PRINT'!R61,"","Sec115 BAC (1A) Marginal relief applicable") -> 
B62: 15 | C62: Balance of Tax after 87A rebate | R62: =R60-R61 -> 0
B63: 16 | C63: Education Cess @ 4% of tax | Q63: : | R63: =ROUND(R62*0.04,0) -> 0
B64: 17 | C64: Total Tax Payable (13-14+16) | Q64: : | R64: =R62+R63 -> 0 | W64: =R64 -> 0
B65: 18 | C65: Less : Relief for Arrears of Salary u/s 89(1) attach 10 E set of forms and previous years tax statements | Q65: : | R65: ='ARR MONH SPLIT'!I107 -> 0 | V65: =IF('Form 10E NEW REG'!B2="","","ERROR") ->  | W65: =IF(INVEST!F24>R64,R64,'Form 10E'!H40) -> 0
B66: 19 | C66: Balance Tax Payable (17-18) rounded to 10 rupees. | L66: ="( before rounding "&ROUND(R64-R65,0)&") " -> ( before rounding 0) | Q66: : | R66: =ROUND((R64-R65),-1) -> 0
B67: 20 | C67: Amount of Tax already deducted from salary (TDS) | Q67: : | R67: ='det.sal input'!Q26 -> 0
B68: 21 | C68: Amount of Tax deducted from interest on deposits (FD,RD etc ), Capital Gain, Profession Income | R68: ='tds det'!I37 -> 0 | W68: =R66-R68-R69 -> 0 | X68: =ROUND(W68,-1) -> 0
B69: 22 | C69: Advance tax/ other TDS paid (Challan pay) details : | N69: ='tds det'!D18&", "&'tds det'!E47 -> 0, | R69: ='tds det'!I38 -> 0
B70: 23 | C70: =IF(R70>=0,"Balance of Tax to be deducted now (19-20-21-22) ","Excess TDS payment made, can apply for refund during e-filing") -> Balance of Tax to be deducted now (19-20-21-22) | N70: ="Before rounding "&R64-R65-R67-R68-R69 -> Before rounding 0 | R70: =ROUND((R66-R67-R68-R69),0) -> 0 | W70: =ROUND(R70,-1) -> 0
B71: 24 | C71: ="Monthly TDS amount required in the next "&PERSONAL!H21&" month(s)" -> Monthly TDS amount required in the next 3 month(s) | T71: =IF(R70<1,0,R70/PERSONAL!H21) -> 0
B72: =FACE!D1&" version" -> 2023 December 21 version
B73: ="True copy, Counter signed by "&CUSTOMISE!H24&", "&CUSTOMISE!H26 -> True copy, Counter signed by , | V73: =PERSONAL!H4&", "&PERSONAL!H6 -> , | W73: 10 ലേക്ക് ROUND ചെയ്ത നികുതി സംഖ്യയാണ് ശരിയായ നികുതി.
B74: ="Place: "&PERSONAL!H11 -> Place: 0 | O74: http://babuvadukkumchery.blogspot.com | W74: ROUND ചെയ്യാത്ത തുക ഇവിടെ വെറുതെ അറിവിലേക്കായി നല്‍കീ എന്നേ കരുതേണ്ടൂ
B75: Date : | D75: =TEXT(TODAY(),"dd/mm/yyyy") -> 05/02/2024
B76: =IF(print!P9="ANTICIPATORY TAX CALCULATOR","DETAILS OF EXPECTED SALARY AND DEDUCTIONS FOR THE FINANCIAL YEAR 2023-24","DETAILS OF SALARY AND DEDUCTIONS FOR THE FINANCIAL YEAR 2023-24") -> DETAILS OF EXPECTED SALARY AND DEDUCTIONS FOR THE FINANCIAL YEAR 2023-24
D77: =IF('det.sal input'!$B$6="pension","PENSION RECEIPTS","SALARY RECEIPTS") -> SALARY RECEIPTS | M77: DEDUCTIONS FROM OFFICE
B78: For the Month | D78: Pay /Pension | E78: AGP | F78: DA | G78: HRA | H78: =UPPER('det.sal input'!H6) -> ? | I78: =UPPER('det.sal input'!I6) -> ? | J78: =UPPER('det.sal input'!J6) -> ? | K78: =UPPER('det.sal input'!K6) -> ? | L78: Total | M78: ='det.sal input'!M6 -> PF | N78: ='det.sal input'!N6 -> SLI | O78: ='det.sal input'!O6 -> GI | P78: LIC/PLI | Q78: TDS | R78: =UPPER('det.sal input'!R6&"+ "&'det.sal input'!T6) -> ?+ ? | S78: ='new statement'!S78 -> Donation - Office deduction only 80 G | T78: ='det.sal input'!U6 -> (NPS) | U78: ='new statement'!U78 -> MEDISEP (S-80 D) | V78: ='det.sal input'!W6 -> TOTAL DEDUCTIONS
B79: =IF('det.sal input'!$B$6="pension","April-23","March-23") -> March-23 | D79: ='det.sal input'!C8 -> 0 | E79: ='det.sal input'!D8 -> 0 | F79: ='det.sal input'!F8 -> 0 | G79: ='det.sal input'!G8 -> 0 | H79: ='det.sal input'!H8 -> 0 | I79: ='det.sal input'!I8 -> 0 | J79: ='det.sal input'!J8 -> 0 | K79: ='det.sal input'!K8 -> 0 | L79: ='det.sal input'!L8 -> 0 | M79: ='det.sal input'!M8 -> 0 | N79: ='det.sal input'!N8 -> 0 | O79: ='det.sal input'!O8 -> 0 | P79: ='det.sal input'!P8 -> 0 | Q79: ='det.sal input'!Q8 -> 0 | R79: ='det.sal input'!R8+'det.sal input'!T8 -> 0 | S79: ='det.sal input'!S8 -> 0 | T79: ='det.sal input'!U8 -> 0 | U79: ='new statement'!U79 -> 0 | V79: ='det.sal input'!W8 -> 0
B80: =IF('det.sal input'!$B$6="pension","May","April") -> April | D80: ='det.sal input'!C9 -> 0 | E80: ='det.sal input'!D9 -> 0 | F80: ='det.sal input'!F9 -> 0 | G80: ='det.sal input'!G9 -> 0 | H80: ='det.sal input'!H9 -> 0 | I80: ='det.sal input'!I9 -> 0 | J80: ='det.sal input'!J9 -> 0 | K80: ='det.sal input'!K9 -> 0 | L80: ='det.sal input'!L9 -> 0 | M80: ='det.sal input'!M9 -> 0 | N80: ='det.sal input'!N9 -> 0 | O80: ='det.sal input'!O9 -> 0 | P80: ='det.sal input'!P9 -> 0 | Q80: ='det.sal input'!Q9 -> 0 | R80: ='det.sal input'!R9+'det.sal input'!T9 -> 0 | S80: ='det.sal input'!S9 -> 0 | T80: ='det.sal input'!U9 -> 0 | U80: ='new statement'!U80 -> 0 | V80: ='det.sal input'!W9 -> 0
B81: ='det.sal input'!B10 -> May | D81: ='det.sal input'!C10 -> 0 | E81: ='det.sal input'!D10 -> 0 | F81: ='det.sal input'!F10 -> 0 | G81: ='det.sal input'!G10 -> 0 | H81: ='det.sal input'!H10 -> 0 | I81: ='det.sal input'!I10 -> 0 | J81: ='det.sal input'!J10 -> 0 | K81: ='det.sal input'!K10 -> 0 | L81: ='det.sal input'!L10 -> 0 | M81: ='det.sal input'!M10 -> 0 | N81: ='det.sal input'!N10 -> 0 | O81: ='det.sal input'!O10 -> 0 | P81: ='det.sal input'!P10 -> 0 | Q81: ='det.sal input'!Q10 -> 0 | R81: ='det.sal input'!R10+'det.sal input'!T10 -> 0 | S81: ='det.sal input'!S10 -> 0 | T81: ='det.sal input'!U10 -> 0 | U81: ='new statement'!U81 -> 0 | V81: ='det.sal input'!W10 -> 0
B82: ='det.sal input'!B11 -> June | D82: ='det.sal input'!C11 -> 0 | E82: ='det.sal input'!D11 -> 0 | F82: ='det.sal input'!F11 -> 0 | G82: ='det.sal input'!G11 -> 0 | H82: ='det.sal input'!H11 -> 0 | I82: ='det.sal input'!I11 -> 0 | J82: ='det.sal input'!J11 -> 0 | K82: ='det.sal input'!K11 -> 0 | L82: ='det.sal input'!L11 -> 0 | M82: ='det.sal input'!M11 -> 0 | N82: ='det.sal input'!N11 -> 0 | O82: ='det.sal input'!O11 -> 0 | P82: ='det.sal input'!P11 -> 0 | Q82: ='det.sal input'!Q11 -> 0 | R82: ='det.sal input'!R11+'det.sal input'!T11 -> 0 | S82: ='det.sal input'!S11 -> 0 | T82: ='det.sal input'!U11 -> 0 | U82: ='new statement'!U82 -> 0 | V82: ='det.sal input'!W11 -> 0
B83: ='det.sal input'!B12 -> July | D83: ='det.sal input'!C12 -> 0 | E83: ='det.sal input'!D12 -> 0 | F83: ='det.sal input'!F12 -> 0 | G83: ='det.sal input'!G12 -> 0 | H83: ='det.sal input'!H12 -> 0 | I83: ='det.sal input'!I12 -> 0 | J83: ='det.sal input'!J12 -> 0 | K83: ='det.sal input'!K12 -> 0 | L83: ='det.sal input'!L12 -> 0 | M83: ='det.sal input'!M12 -> 0 | N83: ='det.sal input'!N12 -> 0 | O83: ='det.sal input'!O12 -> 0 | P83: ='det.sal input'!P12 -> 0 | Q83: ='det.sal input'!Q12 -> 0 | R83: ='det.sal input'!R12+'det.sal input'!T12 -> 0 | S83: ='det.sal input'!S12 -> 0 | T83: ='det.sal input'!U12 -> 0 | U83: ='new statement'!U83 -> 0 | V83: ='det.sal input'!W12 -> 0
B84: ='det.sal input'!B13 -> August | D84: ='det.sal input'!C13 -> 0 | E84: ='det.sal input'!D13 -> 0 | F84: ='det.sal input'!F13 -> 0 | G84: ='det.sal input'!G13 -> 0 | H84: ='det.sal input'!H13 -> 0 | I84: ='det.sal input'!I13 -> 0 | J84: ='det.sal input'!J13 -> 0 | K84: ='det.sal input'!K13 -> 0 | L84: ='det.sal input'!L13 -> 0 | M84: ='det.sal input'!M13 -> 0 | N84: ='det.sal input'!N13 -> 0 | O84: ='det.sal input'!O13 -> 0 | P84: ='det.sal input'!P13 -> 0 | Q84: ='det.sal input'!Q13 -> 0 | R84: ='det.sal input'!R13+'det.sal input'!T13 -> 0 | S84: ='det.sal input'!S13 -> 0 | T84: ='det.sal input'!U13 -> 0 | U84: ='new statement'!U84 -> 0 | V84: ='det.sal input'!W13 -> 0
B85: ='det.sal input'!B14 -> September | D85: ='det.sal input'!C14 -> 0 | E85: ='det.sal input'!D14 -> 0 | F85: ='det.sal input'!F14 -> 0 | G85: ='det.sal input'!G14 -> 0 | H85: ='det.sal input'!H14 -> 0 | I85: ='det.sal input'!I14 -> 0 | J85: ='det.sal input'!J14 -> 0 | K85: ='det.sal input'!K14 -> 0 | L85: ='det.sal input'!L14 -> 0 | M85: ='det.sal input'!M14 -> 0 | N85: ='det.sal input'!N14 -> 0 | O85: ='det.sal input'!O14 -> 0 | P85: ='det.sal input'!P14 -> 0 | Q85: ='det.sal input'!Q14 -> 0 | R85: ='det.sal input'!R14+'det.sal input'!T14 -> 0 | S85: ='det.sal input'!S14 -> 0 | T85: ='det.sal input'!U14 -> 0 | U85: ='new statement'!U85 -> 0 | V85: ='det.sal input'!W14 -> 0
A86: =FACE!D1 -> 2023 December 21 | B86: ='det.sal input'!B15 -> October | D86: ='det.sal input'!C15 -> 0 | E86: ='det.sal input'!D15 -> 0 | F86: ='det.sal input'!F15 -> 0 | G86: ='det.sal input'!G15 -> 0 | H86: ='det.sal input'!H15 -> 0 | I86: ='det.sal input'!I15 -> 0 | J86: ='det.sal input'!J15 -> 0 | K86: ='det.sal input'!K15 -> 0 | L86: ='det.sal input'!L15 -> 0 | M86: ='det.sal input'!M15 -> 0 | N86: ='det.sal input'!N15 -> 0 | O86: ='det.sal input'!O15 -> 0 | P86: ='det.sal input'!P15 -> 0 | Q86: ='det.sal input'!Q15 -> 0 | R86: ='det.sal input'!R15+'det.sal input'!T15 -> 0 | S86: ='det.sal input'!S15 -> 0 | T86: ='det.sal input'!U15 -> 0 | U86: ='new statement'!U86 -> 0 | V86: ='det.sal input'!W15 -> 0
B87: ='det.sal input'!B16 -> November | D87: ='det.sal input'!C16 -> 0 | E87: ='det.sal input'!D16 -> 0 | F87: ='det.sal input'!F16 -> 0 | G87: ='det.sal input'!G16 -> 0 | H87: ='det.sal input'!H16 -> 0 | I87: ='det.sal input'!I16 -> 0 | J87: ='det.sal input'!J16 -> 0 | K87: ='det.sal input'!K16 -> 0 | L87: ='det.sal input'!L16 -> 0 | M87: ='det.sal input'!M16 -> 0 | N87: ='det.sal input'!N16 -> 0 | O87: ='det.sal input'!O16 -> 0 | P87: ='det.sal input'!P16 -> 0 | Q87: ='det.sal input'!Q16 -> 0 | R87: ='det.sal input'!R16+'det.sal input'!T16 -> 0 | S87: ='det.sal input'!S16 -> 0 | T87: ='det.sal input'!U16 -> 0 | U87: ='new statement'!U87 -> 0 | V87: ='det.sal input'!W16 -> 0
B88: ='det.sal input'!B17 -> December | D88: ='det.sal input'!C17 -> 0 | E88: ='det.sal input'!D17 -> 0 | F88: ='det.sal input'!F17 -> 0 | G88: ='det.sal input'!G17 -> 0 | H88: ='det.sal input'!H17 -> 0 | I88: ='det.sal input'!I17 -> 0 | J88: ='det.sal input'!J17 -> 0 | K88: ='det.sal input'!K17 -> 0 | L88: ='det.sal input'!L17 -> 0 | M88: ='det.sal input'!M17 -> 0 | N88: ='det.sal input'!N17 -> 0 | O88: ='det.sal input'!O17 -> 0 | P88: ='det.sal input'!P17 -> 0 | Q88: ='det.sal input'!Q17 -> 0 | R88: ='det.sal input'!R17+'det.sal input'!T17 -> 0 | S88: ='det.sal input'!S17 -> 0 | T88: ='det.sal input'!U17 -> 0 | U88: ='new statement'!U88 -> 0 | V88: ='det.sal input'!W17 -> 0
B89: ='det.sal input'!B18 -> Jan- 2024 | D89: ='det.sal input'!C18 -> 0 | E89: ='det.sal input'!D18 -> 0 | F89: ='det.sal input'!F18 -> 0 | G89: ='det.sal input'!G18 -> 0 | H89: ='det.sal input'!H18 -> 0 | I89: ='det.sal input'!I18 -> 0 | J89: ='det.sal input'!J18 -> 0 | K89: ='det.sal input'!K18 -> 0 | L89: ='det.sal input'!L18 -> 0 | M89: ='det.sal input'!M18 -> 0 | N89: ='det.sal input'!N18 -> 0 | O89: ='det.sal input'!O18 -> 0 | P89: ='det.sal input'!P18 -> 0 | Q89: ='det.sal input'!Q18 -> 0 | R89: ='det.sal input'!R18+'det.sal input'!T18 -> 0 | S89: ='det.sal input'!S18 -> 0 | T89: ='det.sal input'!U18 -> 0 | U89: ='new statement'!U89 -> 0 | V89: ='det.sal input'!W18 -> 0
B90: ='det.sal input'!B19 -> Feb-2024 | D90: ='det.sal input'!C19 -> 0 | E90: ='det.sal input'!D19 -> 0 | F90: ='det.sal input'!F19 -> 0 | G90: ='det.sal input'!G19 -> 0 | H90: ='det.sal input'!H19 -> 0 | I90: ='det.sal input'!I19 -> 0 | J90: ='det.sal input'!J19 -> 0 | K90: ='det.sal input'!K19 -> 0 | L90: ='det.sal input'!L19 -> 0 | M90: ='det.sal input'!M19 -> 0 | N90: ='det.sal input'!N19 -> 0 | O90: ='det.sal input'!O19 -> 0 | P90: ='det.sal input'!P19 -> 0 | Q90: ='det.sal input'!Q19+R70 -> 0 | R90: ='det.sal input'!R19+'det.sal input'!T19 -> 0 | S90: ='det.sal input'!S19 -> 0 | T90: ='det.sal input'!U19 -> 0 | U90: ='new statement'!U90 -> 0 | V90: ='det.sal input'!W19 -> 0
B91: Fest. All | D91: ='det.sal input'!C20 -> 0 | L91: ='det.sal input'!L20 -> 0 | S91: ='det.sal input'!S20 -> 0
B92: Arrear | C92: PF | D92: ='det.sal input'!C21 -> 0 | E92: ='det.sal input'!D21 -> 0 | F92: ='det.sal input'!F21 -> 0 | G92: ='det.sal input'!G21 -> 0 | H92: ='det.sal input'!H21 -> 0 | I92: ='det.sal input'!I21 -> 0 | J92: ='det.sal input'!J21 -> 0 | K92: ='det.sal input'!K21 -> 0 | L92: ='det.sal input'!L21 -> 0 | M92: ='det.sal input'!M21 -> 0 | N92: ='det.sal input'!N21 -> 0 | O92: ='det.sal input'!O21 -> 0 | P92: ='det.sal input'!P21 -> 0 | Q92: ='det.sal input'!Q21 -> 0 | R92: ='det.sal input'!R21+'det.sal input'!T21 -> 0 | S92: ='det.sal input'!S21 -> 0 | T92: ='det.sal input'!U21 -> 0 | V92: ='det.sal input'!W21 -> 0
C93: CASH/NPS | D93: ='det.sal input'!C22 -> 0 | E93: ='det.sal input'!D22 -> 0 | F93: ='det.sal input'!F22 -> 0 | G93: ='det.sal input'!G22 -> 0 | H93: ='det.sal input'!H22 -> 0 | I93: ='det.sal input'!I22 -> 0 | J93: ='det.sal input'!J22 -> 0 | K93: ='det.sal input'!K22 -> 0 | L93: ='det.sal input'!L22 -> 0 | M93: ='det.sal input'!M22 -> 0 | N93: ='det.sal input'!N22 -> 0 | O93: ='det.sal input'!O22 -> 0 | P93: ='det.sal input'!P22 -> 0 | Q93: ='det.sal input'!Q22 -> 0 | R93: ='det.sal input'!R22+'det.sal input'!T22 -> 0 | S93: ='det.sal input'!S22 -> 0 | T93: ='det.sal input'!U22 -> 0 | V93: ='det.sal input'!W22 -> 0
B94: Leave surrender | D94: ='det.sal input'!C23 -> 0 | E94: ='det.sal input'!D23 -> 0 | F94: ='det.sal input'!F23 -> 0 | G94: ='det.sal input'!G23 -> 0 | H94: ='det.sal input'!H23 -> 0 | I94: ='det.sal input'!I23 -> 0 | J94: ='det.sal input'!J23 -> 0 | K94: ='det.sal input'!K23 -> 0 | L94: ='det.sal input'!L23 -> 0 | M94: ='det.sal input'!M23 -> 0 | N94: ='det.sal input'!N23 -> 0 | O94: ='det.sal input'!O23 -> 0 | P94: ='det.sal input'!P23 -> 0 | Q94: ='det.sal input'!Q23 -> 0 | R94: ='det.sal input'!R23+'det.sal input'!T23 -> 0 | S94: ='det.sal input'!S23 -> 0 | T94: ='det.sal input'!U23 -> 0 | V94: ='det.sal input'!W23 -> 0
B95: Deferred Salary Arrear | D95: ='det.sal input'!C25 -> 0 | E95: ='det.sal input'!D24 -> 0 | F95: ='det.sal input'!F24 -> 0 | G95: ='det.sal input'!G24 -> 0 | H95: ='det.sal input'!H24 -> 0 | I95: ='det.sal input'!I24 -> 0 | J95: ='det.sal input'!J24 -> 0 | K95: ='det.sal input'!K24 -> 0 | L95: ='det.sal input'!L25 -> 0 | M95: ='det.sal input'!M24 -> 0 | N95: ='det.sal input'!N24 -> 0 | O95: ='det.sal input'!O24 -> 0 | P95: ='det.sal input'!P24 -> 0 | Q95: ='det.sal input'!Q24 -> 0 | R95: ='det.sal input'!R24+'det.sal input'!T24 -> 0 | S95: ='det.sal input'!S24 -> 0 | T95: ='det.sal input'!U24 -> 0 | V95: ='det.sal input'!W24 -> 0
B96: Total * | D96: ='det.sal input'!C26 -> 0 | E96: ='det.sal input'!D26 -> 0 | F96: ='det.sal input'!F26 -> 0 | G96: ='det.sal input'!G26 -> 0 | H96: ='det.sal input'!H26 -> 0 | I96: ='det.sal input'!I26 -> 0 | J96: ='det.sal input'!J26 -> 0 | K96: ='det.sal input'!K26 -> 0 | L96: ='det.sal input'!L26 -> 0 | M96: ='det.sal input'!M26 -> 0 | N96: ='det.sal input'!N26 -> 0 | O96: ='det.sal input'!O26 -> 0 | P96: ='det.sal input'!P26 -> 0 | Q96: =SUM(Q79:Q89)+SUM(Q91:Q95)+Q90 -> 0 | R96: ='det.sal input'!R26+'det.sal input'!T26 -> 0 | S96: ='det.sal input'!S26 -> 0 | T96: ='det.sal input'!U26 -> 0 | U96: =SUM(U79:U95) -> 0 | V96: =SUM(V79:V95) -> 0
B97: =IF('det.sal input'!C24="","","* Total includes other office receipts or refunds") -> 
D98: =IF(#REF!<0,"Refund of salary","Other receipts from office") ->  | R98: =ROUND(W69,-1) -> 0
AE222: Male | AF222: =IF(AND(R59>200000,R59<=500000),(R59-200000)*0.1,IF(AND(R59>500000,R59<=1000000),30000+(R59-500000)*0.2,IF(R59>1000000,130000+(R59-1000000)*0.3,"Nil"))) -> Nil
AE223: Female | AF223: =IF(AND(R59>200000,R59<=500000),(R59-200000)*0.1,IF(AND(R59>500000,R59<=1000000),30000+(R59-500000)*0.2,IF(R59>1000000,130000+(R59-1000000)*0.3,"Nil"))) -> Nil
AE224: Senior | AF224: =IF(AND(R59>250000,R59<=500000),(R59-250000)*0.1,IF(AND(R59>500000,R59<=1000000),25000+(R59-500000)*0.2,IF(R59>1000000,125000+(R59-1000000)*0.3,"Nil"))) -> Nil
AE225: Senior2 | AF225: =IF(AND(R59>500000,R59<=1000000),(R59-500000)*0.2,IF(R59>1000000,100000+(R59-1000000)*0.3,"Nil")) -> Nil
AE229: =IF(O30<>"Nil","Life Insurance Premum","") -> Life Insurance Premum | AF229: =IF(O30<>"Nil",O30,"") -> 0 | AG229: =IF(ROW()-ROW(two)+1>ROWS(one)-COUNTBLANK(one),"",INDIRECT(ADDRESS(SMALL((IF(one<>"",ROW(one),ROW()+ROWS(one))),ROW()-ROW(two)+1),COLUMN(one),4))) ->  | AH229: =IF(AG229<>"",VLOOKUP(AG229,AE229:AF242,2,FALSE),"") -> 
AE230: =IF(#REF!<>"Nil","Purchase of NSC","") ->  | AF230: =IF(#REF!<>"Nil",#REF!,"") ->  | AG230: =IF(ROW()-ROW(two)+1>ROWS(one)-COUNTBLANK(one),"",INDIRECT(ADDRESS(SMALL((IF(one<>"",ROW(one),ROW()+ROWS(one))),ROW()-ROW(two)+1),COLUMN(one),4))) ->  | AH230: =IF(AG230<>"",VLOOKUP(AG230,AE230:AF245,2,FALSE),"") -> 
AE231: =IF(O32<>"Nil","State Life Insurance (SLI)","") -> State Life Insurance (SLI) | AF231: =IF(O32<>"Nil",O32,"") -> 0 | AG231: =IF(ROW()-ROW(two)+1>ROWS(one)-COUNTBLANK(one),"",INDIRECT(ADDRESS(SMALL((IF(one<>"",ROW(one),ROW()+ROWS(one))),ROW()-ROW(two)+1),COLUMN(one),4))) ->  | AH231: =IF(AG231<>"",VLOOKUP(AG231,AE231:AF246,2,FALSE),"") -> 
AE232: =IF(O33<>"Nil","Group Insurance Scheme (GIS)","") -> Group Insurance Scheme (GIS) | AF232: =IF(O33<>"Nil",O33,"") -> 0 | AG232: =IF(ROW()-ROW(two)+1>ROWS(one)-COUNTBLANK(one),"",INDIRECT(ADDRESS(SMALL((IF(one<>"",ROW(one),ROW()+ROWS(one))),ROW()-ROW(two)+1),COLUMN(one),4))) ->  | AH232: =IF(AG232<>"",VLOOKUP(AG232,AE232:AF247,2,FALSE),"") -> 
AE233: =IF(#REF!<>"Nil","Group Personal Accident Insurance (GPAIS)","") ->  | AF233: =IF(#REF!<>"Nil",#REF!,"") ->  | AG233: =IF(ROW()-ROW(two)+1>ROWS(one)-COUNTBLANK(one),"",INDIRECT(ADDRESS(SMALL((IF(one<>"",ROW(one),ROW()+ROWS(one))),ROW()-ROW(two)+1),COLUMN(one),4))) ->  | AH233: =IF(AG233<>"",VLOOKUP(AG233,AE233:AF248,2,FALSE),"") -> 
AE234: =IF(O34<>"Nil",D34,"") -> Life Insurence salary deduction | AF234: =IF(O34<>"Nil",O34,"") -> 0 | AG234: =IF(ROW()-ROW(two)+1>ROWS(one)-COUNTBLANK(one),"",INDIRECT(ADDRESS(SMALL((IF(one<>"",ROW(one),ROW()+ROWS(one))),ROW()-ROW(two)+1),COLUMN(one),4))) ->  | AH234: =IF(AG234<>"",VLOOKUP(AG234,AE234:AF249,2,FALSE),"") -> 
AE235: =IF(O35<>"Nil","Provident Fund","") -> Provident Fund | AF235: =IF(O35<>"Nil",O35,"") -> 0 | AG235: =IF(ROW()-ROW(two)+1>ROWS(one)-COUNTBLANK(one),"",INDIRECT(ADDRESS(SMALL((IF(one<>"",ROW(one),ROW()+ROWS(one))),ROW()-ROW(two)+1),COLUMN(one),4))) ->  | AH235: =IF(AG235<>"",VLOOKUP(AG235,AE235:AF249,2,FALSE),"") -> 
AE236: =IF(O38<>"Nil","Unit Linked Insurance","") -> Unit Linked Insurance | AF236: =IF(O38<>"Nil",O38,"") -> 0 | AG236: =IF(ROW()-ROW(two)+1>ROWS(one)-COUNTBLANK(one),"",INDIRECT(ADDRESS(SMALL((IF(one<>"",ROW(one),ROW()+ROWS(one))),ROW()-ROW(two)+1),COLUMN(one),4))) ->  | AH236: =IF(AG236<>"",VLOOKUP(AG236,AE236:AF250,2,FALSE),"") -> 
AE237: =IF(#REF!<>"Nil","Tax Saving Mutual Fund","") ->  | AF237: =IF(#REF!<>"Nil",#REF!,"") ->  | AG237: =IF(ROW()-ROW(two)+1>ROWS(one)-COUNTBLANK(one),"",INDIRECT(ADDRESS(SMALL((IF(one<>"",ROW(one),ROW()+ROWS(one))),ROW()-ROW(two)+1),COLUMN(one),4))) ->  | AH237: =IF(AG237<>"",VLOOKUP(AG237,AE237:AF251,2,FALSE),"") -> 
AE238: =IF(O40<>"Nil","Tuition Fees","") -> Tuition Fees | AF238: =IF(O40<>"Nil",O40,"") -> 0 | AG238: =IF(ROW()-ROW(two)+1>ROWS(one)-COUNTBLANK(one),"",INDIRECT(ADDRESS(SMALL((IF(one<>"",ROW(one),ROW()+ROWS(one))),ROW()-ROW(two)+1),COLUMN(one),4))) ->  | AH238: =IF(AG238<>"",VLOOKUP(AG238,AE237:AF252,2,FALSE),"") -> 
AE239: =IF(O41<>"Nil","Housing Loan Repayment","") -> Housing Loan Repayment | AF239: =IF(O41<>"Nil",O41,"") -> 0 | AG239: =IF(ROW()-ROW(two)+1>ROWS(one)-COUNTBLANK(one),"",INDIRECT(ADDRESS(SMALL((IF(one<>"",ROW(one),ROW()+ROWS(one))),ROW()-ROW(two)+1),COLUMN(one),4))) ->  | AH239: =IF(AG239<>"",VLOOKUP(AG239,AE238:AF252,2,FALSE),"") -> 
AE240: =IF(#REF!<>"Nil","Eligibleshares & debentures","") ->  | AF240: =IF(#REF!<>"Nil",#REF!,"") ->  | AG240: =IF(ROW()-ROW(two)+1>ROWS(one)-COUNTBLANK(one),"",INDIRECT(ADDRESS(SMALL((IF(one<>"",ROW(one),ROW()+ROWS(one))),ROW()-ROW(two)+1),COLUMN(one),4))) ->  | AH240: =IF(AG240<>"",VLOOKUP(AG240,AE238:AF252,2,FALSE),"") -> 
AE241: =IF(#REF!<>"Nil","Mutual Fund","") ->  | AF241: =IF(#REF!<>"Nil",#REF!,"") ->  | AG241: =IF(ROW()-ROW(two)+1>ROWS(one)-COUNTBLANK(one),"",INDIRECT(ADDRESS(SMALL((IF(one<>"",ROW(one),ROW()+ROWS(one))),ROW()-ROW(two)+1),COLUMN(one),4))) ->  | AH241: =IF(AG241<>"",VLOOKUP(AG241,AE239:AF252,2,FALSE),"") -> 
AE242: =IF(#REF!<>"Nil",#REF!,"") ->  | AF242: =IF(#REF!<>"Nil",#REF!,"") ->  | AG242: =IF(ROW()-ROW(two)+1>ROWS(one)-COUNTBLANK(one),"",INDIRECT(ADDRESS(SMALL((IF(one<>"",ROW(one),ROW()+ROWS(one))),ROW()-ROW(two)+1),COLUMN(one),4))) ->  | AH242: =IF(AG242<>"",VLOOKUP(AG242,AE240:AF252,2,FALSE),"") -> 
AG243: =IF(ROW()-ROW(two)+1>ROWS(one)-COUNTBLANK(one),"",INDIRECT(ADDRESS(SMALL((IF(one<>"",ROW(one),ROW()+ROWS(one))),ROW()-ROW(two)+1),COLUMN(one),4))) ->  | AH243: =IF(AG243<>"",VLOOKUP(AG243,AE241:AF252,2,FALSE),"") -> 
AG244: =IF(ROW()-ROW(two)+1>ROWS(one)-COUNTBLANK(one),"",INDIRECT(ADDRESS(SMALL((IF(one<>"",ROW(one),ROW()+ROWS(one))),ROW()-ROW(two)+1),COLUMN(one),4))) ->  | AH244: =IF(AG244<>"",VLOOKUP(AG244,AE242:AF253,2,FALSE),"") -> 
AE247: =IF('new statement for PRINT'!O49<>"Nil","Mediclaim Policies (Sec 80D)","") -> Mediclaim Policies (Sec 80D) | AF247: =IF(AE247<>"",O49,"") -> 0 | AG247: =IF(ROW()-ROW(four)+1>ROWS(three)-COUNTBLANK(three),"",INDIRECT(ADDRESS(SMALL((IF(three<>"",ROW(three),ROW()+ROWS(three))),ROW()-ROW(four)+1),COLUMN(three),4))) ->  | AH247: =IF(ROW()-ROW(fouramt)+1>ROWS(threeamt)-COUNTBLANK(threeamt),"",INDIRECT(ADDRESS(SMALL((IF(threeamt<>"",ROW(threeamt),ROW()+ROWS(threeamt))),ROW()-ROW(fouramt)+1),COLUMN(threeamt),4))) -> 
AE248: =IF('new statement for PRINT'!O50<>"Nil","Medical Treatment Mentally or Physically handicapped (Sec-80DD)","") -> Medical Treatment Mentally or Physically handicapped (Sec-80DD) | AF248: =IF(AE248<>"",O50,"") -> 0 | AG248: =IF(ROW()-ROW(four)+1>ROWS(three)-COUNTBLANK(three),"",INDIRECT(ADDRESS(SMALL((IF(three<>"",ROW(three),ROW()+ROWS(three))),ROW()-ROW(four)+1),COLUMN(three),4))) ->  | AH248: =IF(ROW()-ROW(fouramt)+1>ROWS(threeamt)-COUNTBLANK(threeamt),"",INDIRECT(ADDRESS(SMALL((IF(threeamt<>"",ROW(threeamt),ROW()+ROWS(threeamt))),ROW()-ROW(fouramt)+1),COLUMN(threeamt),4))) -> 
AE249: =IF('new statement for PRINT'!#REF!<>"Nil","Expenditure on Medical Treatment(Sec-80DDB)","") ->  | AF249: =IF(AE249<>"",#REF!,"") ->  | AG249: =IF(ROW()-ROW(four)+1>ROWS(three)-COUNTBLANK(three),"",INDIRECT(ADDRESS(SMALL((IF(three<>"",ROW(three),ROW()+ROWS(three))),ROW()-ROW(four)+1),COLUMN(three),4))) ->  | AH249: =IF(ROW()-ROW(fouramt)+1>ROWS(threeamt)-COUNTBLANK(threeamt),"",INDIRECT(ADDRESS(SMALL((IF(threeamt<>"",ROW(threeamt),ROW()+ROWS(threeamt))),ROW()-ROW(fouramt)+1),COLUMN(threeamt),4))) -> 
AE250: =IF('new statement for PRINT'!O52<>"Nil","Interest on Educational Loan (Sec-80 E)","") -> Interest on Educational Loan (Sec-80 E) | AF250: =IF(AE250<>"",O52,"") -> 0 | AG250: =IF(ROW()-ROW(four)+1>ROWS(three)-COUNTBLANK(three),"",INDIRECT(ADDRESS(SMALL((IF(three<>"",ROW(three),ROW()+ROWS(three))),ROW()-ROW(four)+1),COLUMN(three),4))) ->  | AH250: =IF(ROW()-ROW(fouramt)+1>ROWS(threeamt)-COUNTBLANK(threeamt),"",INDIRECT(ADDRESS(SMALL((IF(threeamt<>"",ROW(threeamt),ROW()+ROWS(threeamt))),ROW()-ROW(fouramt)+1),COLUMN(threeamt),4))) -> 
AE251: =IF('new statement for PRINT'!O55<>"Nil","Donation to Charitable Institutions (Sec-80 G)","") -> Donation to Charitable Institutions (Sec-80 G) | AF251: =IF(AE251<>"",O55,"") -> 0 | AG251: =IF(ROW()-ROW(four)+1>ROWS(three)-COUNTBLANK(three),"",INDIRECT(ADDRESS(SMALL((IF(three<>"",ROW(three),ROW()+ROWS(three))),ROW()-ROW(four)+1),COLUMN(three),4))) ->  | AH251: =IF(ROW()-ROW(fouramt)+1>ROWS(threeamt)-COUNTBLANK(threeamt),"",INDIRECT(ADDRESS(SMALL((IF(threeamt<>"",ROW(threeamt),ROW()+ROWS(threeamt))),ROW()-ROW(fouramt)+1),COLUMN(threeamt),4))) -> 
AE252: =IF('new statement for PRINT'!#REF!<>"Nil","Contribution to Political Parties (Sec-80 GGC)","") ->  | AF252: =IF(AE252<>"",#REF!,"") ->  | AG252: =IF(ROW()-ROW(four)+1>ROWS(three)-COUNTBLANK(three),"",INDIRECT(ADDRESS(SMALL((IF(three<>"",ROW(three),ROW()+ROWS(three))),ROW()-ROW(four)+1),COLUMN(three),4))) ->  | AH252: =IF(ROW()-ROW(fouramt)+1>ROWS(threeamt)-COUNTBLANK(threeamt),"",INDIRECT(ADDRESS(SMALL((IF(threeamt<>"",ROW(threeamt),ROW()+ROWS(threeamt))),ROW()-ROW(fouramt)+1),COLUMN(threeamt),4))) -> 
AE253: =IF('new statement for PRINT'!O56<>"Nil","Deduction for Handicapped Employees (u/s 80U)","") -> Deduction for Handicapped Employees (u/s 80U) | AF253: =IF(AE253<>"",O56,"") -> 0 | AG253: =IF(ROW()-ROW(four)+1>ROWS(three)-COUNTBLANK(three),"",INDIRECT(ADDRESS(SMALL((IF(three<>"",ROW(three),ROW()+ROWS(three))),ROW()-ROW(four)+1),COLUMN(three),4))) ->  | AH253: =IF(ROW()-ROW(fouramt)+1>ROWS(threeamt)-COUNTBLANK(threeamt),"",INDIRECT(ADDRESS(SMALL((IF(threeamt<>"",ROW(threeamt),ROW()+ROWS(threeamt))),ROW()-ROW(fouramt)+1),COLUMN(threeamt),4))) -> 
AE255: =IF(ISNUMBER(#REF!),"Income From House Property","") ->  | AF255: =IF(AE255<>"",#REF!,"") ->  | AG255: =IF(ROW()-ROW(six)+1>ROWS(five)-COUNTBLANK(five),"",INDIRECT(ADDRESS(SMALL((IF(five<>"",ROW(five),ROW()+ROWS(five))),ROW()-ROW(six)+1),COLUMN(five),4))) ->  | AH255: =IF(ROW()-ROW(sixamt)+1>ROWS(fiveamt)-COUNTBLANK(fiveamt),"",INDIRECT(ADDRESS(SMALL((IF(fiveamt<>"",ROW(fiveamt),ROW()+ROWS(fiveamt))),ROW()-ROW(sixamt)+1),COLUMN(fiveamt),4))) -> 
AE256: =IF(#REF!>0,#REF!,"") ->  | AF256: =IF(AE256<>"",#REF!,"") ->  | AG256: =IF(ROW()-ROW(six)+1>ROWS(five)-COUNTBLANK(five),"",INDIRECT(ADDRESS(SMALL((IF(five<>"",ROW(five),ROW()+ROWS(five))),ROW()-ROW(six)+1),COLUMN(five),4))) ->  | AH256: =IF(ROW()-ROW(sixamt)+1>ROWS(fiveamt)-COUNTBLANK(fiveamt),"",INDIRECT(ADDRESS(SMALL((IF(fiveamt<>"",ROW(fiveamt),ROW()+ROWS(fiveamt))),ROW()-ROW(sixamt)+1),COLUMN(fiveamt),4))) -> 
AE257: =IF(#REF!>0,#REF!,"") ->  | AF257: =IF(AE257<>"",#REF!,"") ->  | AG257: =IF(ROW()-ROW(six)+1>ROWS(five)-COUNTBLANK(five),"",INDIRECT(ADDRESS(SMALL((IF(five<>"",ROW(five),ROW()+ROWS(five))),ROW()-ROW(six)+1),COLUMN(five),4))) ->  | AH257: =IF(ROW()-ROW(sixamt)+1>ROWS(fiveamt)-COUNTBLANK(fiveamt),"",INDIRECT(ADDRESS(SMALL((IF(fiveamt<>"",ROW(fiveamt),ROW()+ROWS(fiveamt))),ROW()-ROW(sixamt)+1),COLUMN(fiveamt),4))) -> 
AE258: =IF(#REF!>0,#REF!,"") ->  | AF258: =IF(AE258<>"",#REF!,"") ->  | AG258: =IF(ROW()-ROW(six)+1>ROWS(five)-COUNTBLANK(five),"",INDIRECT(ADDRESS(SMALL((IF(five<>"",ROW(five),ROW()+ROWS(five))),ROW()-ROW(six)+1),COLUMN(five),4))) ->  | AH258: =IF(ROW()-ROW(sixamt)+1>ROWS(fiveamt)-COUNTBLANK(fiveamt),"",INDIRECT(ADDRESS(SMALL((IF(fiveamt<>"",ROW(fiveamt),ROW()+ROWS(fiveamt))),ROW()-ROW(sixamt)+1),COLUMN(fiveamt),4))) -> 
AE261: =IF(AND(R66<>"Nil",R67<>"Nil"),R66-R67,IF(AND(R66>0,R67="Nil"),R66,IF(AND(R67>0,R66="Nil"),(0-R67),"Nil"))) -> 0

Sheet new statement (2)
A1: =F5&" "& B2 -> 0 ANTICIPATORY INCOME TAX STATEMENT(NEW RATE OPTION)-FINANCIAL YEAR 2023-24 (AY 24-25) | B1: =INVEST!K3 -> 0 | C1: =INVEST!L3 -> 0 | D1: =IF(C1>B1,"Warning ! Your are in the wrong field. The New Regime option is not suitable for you. To choose the economical option, click the green button on the right side","") ->  | P1: =IF(D1="",0,1) -> 0
B2: =IF(print!P9="ANTICIPATORY TAX CALCULATOR","ANTICIPATORY INCOME TAX STATEMENT(NEW RATE OPTION)-FINANCIAL YEAR 2023-24 (AY 24-25) ","INCOME TAX STATEMENT(NEW RATE OPTION)-FINANCIAL YEAR 2023-24 (AY 24-25)") -> ANTICIPATORY INCOME TAX STATEMENT(NEW RATE OPTION)-FINANCIAL YEAR 2023-24 (AY 24-25) | R2: =CUSTOMISE!H22 -> 0 | W2: 2
B3: =PERSONAL!H10 -> SALARY | W3: 2
B5: Name | F5: =PERSONAL!H4 -> 0 | O5: PAN : | Q5: =PERSONAL!H7 -> 0 | W5: =IF(PERSONAL!H8="no","",IF('det.sal input'!AC39>'det.sal input'!AB38,"You cannot claim for benifit of living in a rental home [HRA benifit], because rent paid amount is less than 10% of your salary","")) -> 
B6: Designation | F6: =PERSONAL!H6 -> 0 | L6: =PERSONAL!H5 -> Below 60 Years | R6: NEW REGIME RATE
B7: 1 | C7: a | D7: Gross Salary (Excluding interest on arrear salary), Festival allowance, Bonus,Leave Surrender)(includes Salary, DA, HRA, CCA, Interim Relief, , DA Arrear, Pay Revision Arrear etc) | Q7: : | R7: =L96-L91-L94-'arrear det'!K13 -> 0 | AA7: ='det.sal input'!AF29 -> 1
C8: b | D8: Leave Surrender | Q8: : | R8: =L94 -> 0 | W8: medical reimb actual | X8: ='det.sal input'!W28 -> 0 | Y8: 15000 | Z8: excess= | AA8: =IF(AA7=1,0,IF((X8-Y8)>0,(X8-Y8),0)) -> 0
C9: c | D9: Festival Allowance / Bonus / Ex-gratia and incentive | Q9: : | R9: =L91 -> 0 | W9: =SUM(R7:T9) -> 0
C10: d | D10: Value of perquisites (Iincludes Employer's contribution to NPS, Medical reimb. Taxable portion) | Q10: : | T10: ='det.sal input'!W32+'det.sal input'!W33+X8 -> 0 | AA10: IF((V8-W8)>0,(V8-W8),0))
C11: e | D11: Profits in lieu of salary (S17-3) | Q11: : | T11: ='det.sal input'!W34 -> 0 | X11: =PERSONAL!H8 -> NO
C12: f | D12: Total Salary Income (a+b+c+d+e) | Q12: : | R12: =SUM(R7:T11) -> 0
B13: 2 | C13: Deduction towards rent paid | H13: Not available in New Regime option
C14: i) | D14: Actual HRA Received relating to the period | G14: : | N14: : | O14: =IF(X11="NO","",'det.sal input'!AB40) -> 
C15: ii) | D15: Actual Rent paid in excess 1/10th of the salary | M15: =IF(O15=0,"NIL","") ->  | N15: : | O15: =IF(X11="NO","",IF(Y15>AA15,Y15-AA15,0)) ->  | Y15: ='det.sal input'!AB38 -> 0 | Z15: 1/10 of sal= | AA15: ='det.sal input'!AC39 -> 0 | AB15: =IF(Y15>AA15,Y15-AA15,0) -> 0
C16: iii) | D16: 40% Salary ( For this salary means Basic + DA) | G16: : | N16: : | O16: =IF(X11="NO","",AA16) ->  | R16: =IF(W2=2,0,(IF(R17=0,"NIL",R17))) -> 0 | Z16: 40%sal = | AA16: =ROUND(('det.sal input'!AB39*0.4),0) -> 0
C17: =IF(PERSONAL!H8="no",""," (Here, Salary means Basic+DA+AGP only, but include arrear/ surrender values relating to this period.) That is "&'det.sal input'!R40&"+"&'det.sal input'!T40&"+"&'det.sal input'!W40&"") ->  | Q17: : | R17: =IF(W2=2,0,MIN(O14:P16)) -> 0
B18: 3 | C18: Balance ( 1- 2) | Q18: : | R18: =R12-R17 -> 0
B19: 4 | C19: =" Less Allowance to the extent exempt u/s10 " -> Less Allowance to the extent exempt u/s10 | K19: =INVEST!D28&" + "&INVEST!D29&" + "&INVEST!D30&" + "&INVEST!D31 -> + + + | P19: =INVEST!F28+INVEST!F29+INVEST!F30+INVEST!F31 -> 0 | R19: =IF(W2=2,0,P19) -> 0
B20: 5 | C20: Less Profession tax, Enterteainment Allow ( not eligible) | N20: ='det.sal input'!W31& " +"&'det.sal input'!W35 -> + | R20: =IF(W2=2,0,'det.sal input'!W31+'det.sal input'!W35) -> 0
B21: 6 | C21: Less Standard deduction ( maximum 50000) | R21: =IF((R18-R19-R20)>50000,50000,(R18-R19-R20)) -> 0
B22: 6a | C22: Net Salary Income [Income chargeble under the head salary] (3-4-5-6) | Q22: : | R22: =R18-R19-R20-R21 -> 0
B23: 7 | C23: 1. Income from house property (HBA interest not eligible to deduct) | O23: =IF(INVEST!F17<0,INVEST!F17*-1,IF(W2=2,0,0-MIN(W23:X23))) -> 0 | R23: =IF(ISNUMBER(#REF!),#REF!,"Nil") -> Nil | W23: 200000 | X23: =INVEST!F17 -> 0 | Y23: =X23-W23 -> -200000
C24: 2.Other sources Income INCLUDING PAY REVISION ARREAR INTEREST Interest on investment / Family pension (1/3 of family pension or 15000 whichever is less is exempted)/ Post office SB interest get exemption up to 3500 [Sec. 10(15)(i)] applicable for New regime also | O24: ='arrear det'!K13+'tds det'!D30+'tds det'!F29+'tds det'!D26+'tds det'!E26+'tds det'!D33+'tds det'!E33+'tds det'!D34+'tds det'!E34+'det.sal input'!W30-Z24 -> 0 | R24: ="Pay revision interest "&'arrear det'!K13 -> Pay revision interest 0 | S24: ="Post off SB+ other SB "&'tds det'!D30+'tds det'!F29 -> Post off SB+ other SB 0 | T24: ="Investment interest "&'tds det'!D26+'tds det'!E26+'tds det'!D33+'tds det'!E33+'tds det'!D34+'tds det'!E34 -> Investment interest 0 | V24: ="Family Pension "&AB24-Z24 -> Family Pension 0 | W24: 1/3 family pension | X24: =ROUND('det.sal input'!W30/3,0) -> 0 | Y24: 15000 | Z24: =MIN(X24:Y24) -> 0 | AA24: taxable portion of family pen | AB24: =IF(W2=2,'det.sal input'!W30-'new statement (2)'!Z24+Z24,'det.sal input'!W30-'new statement (2)'!Z24) -> 0
C25: 3. Income from profession | O25: ='tds det'!F42 -> 0
C26: 4.Captal gain income | O26: ='tds det'!F38 -> 0 | Q26: Total | R26: =SUM(O23:P26) -> 0
B27: 8 | C27: Gross Total Income (6+7) | Q27: : | R27: =R22+R26 -> 0
B28: 9 | C28: Deduction under chapter VI-A | O28: Amount spent | R28: Eligible amount
C29: A - Deduction under section 80C
C30: a) | D30: Providend fund contribution | N30: : | O30: =M96 -> 0
C31: c) | D31: State Life Insurance Policy (SLI) | N31: : | O31: =N96 -> 0
C32: c) | D32: Group Insurance Scheme (GIS) | N32: : | O32: =O96 -> 0
C33: d) | D33: Tax saving Fixed deposits (Available at all banks) /Sukanya samrudhi | N33: : | O33: =INVEST!F8 -> 0
C34: e) | D34: Life Insurence salary deduction | O34: =P96 -> 0
C35: f) | D35: Life Insurence other than salary deduction | N35: : | O35: =INVEST!F5 -> 0
C36: g) | D36: ='det.sal input'!R6&" + "&'det.sal input'!T6 -> ? + ? | O36: =R96 -> 0
C37: h) | D37: NSC VIII th issue (Nationional Savings certificate from post offices) | N37: : | O37: =INVEST!F7 -> 0
C38: i) | D38: Public Provident Fund (PPF) (Available at Post offfices) | N38: : | O38: =INVEST!F9 -> 0
D39: ULIP/ Tax saving mutual funds | O39: =INVEST!F10 -> 0 | W39: nps allowed amt | AB39: NEW taxab inc | AC39: TAX new
C40: j) | D40: Tuition Fees ( Paid for full time education to any two children -only the tuition fee portion-donations should be excluded) | N40: : | O40: =INVEST!F11 -> 0 | W40: =O44 -> 0 | X40: =IF(O44=0,"",(O45-O44-150000)*-1) ->  | AB40: =R59 -> 0 | AC40: =IF(AB40<300001,0,IF(AB40<600001,(AB40-300000)*5/100,IF(AB40<900001,(15000+(AB40-600000)*10/100),IF(AB40<1200001,(45000+(AB40-900000)*15/100),IF(AB40<1500001,90000+(AB40-1200000)*20/100,IF(AB40>1500000,150000+(AB40-1500000)*30/100)))))) -> 0
C41: k) | D41: Housing Loan Repayment (PRINCIPAL PORTION ONLY) for construction loan only. Not for addition / repair loan etc. Stamp duty paid for purchase of property can be included | N41: : | O41: =INVEST!F12 -> 0 | W41: OVER 1.5 | X41: =IF(O45<=150000,0,(O45)-150000) -> 0 | Y41: MAX 80CC-1B= | Z41: 50000 | AA41: TOT NPS= | AB41: =X46 -> 0 | AC41: MIN AMT = | AD41: =MIN(X41,Z41,AB41) -> 0
C42: l) | D42: =INVEST!E13 -> 0 | O42: =INVEST!F13 -> 0 | W42: Tot VIA excl nps= | X42: =SUM(O30:P43) -> 0 | Y42: ALLOED VIA = | Z42: 150000
C43: B- Contribution to Pension Fund (80CCC) | O43: =INVEST!F6 -> 0
C44: C-Contrubution to National Pension Scheme - NPS (80CCD) | N44: : | O44: =X46 -> 0 | R44: =MIN(W40:X40) -> 0 | W44: nps sal ded | X44: ='det.sal input'!U26 -> 0
C45: D- Total investment under Sec. 80C, 80CCC, 80CCD, eligible amt. limited to 1.5 lakh | O45: =SUM(O30:P44) -> 0 | R45: =IF(W2=2,0,IF(O45<=150000,O45,150000)) -> 0 | W45: nps direct pay | X45: =INVEST!F15 -> 0
B46: 10 | C46: a. | D46: Contrubution to National Pension Scheme - NPS Section 80CCD(1B) Investment upto 50000 can be made additionally | N46: : | O46: =AD41 -> 0 | W46: total NPS | X46: =X44+X45 -> 0
C47: b. | D47: Employer's contribution to NPS [Up to 10% Pay+Da+AGPgets excemption u/s Section 80CCD(2)] | O47: =IF(Z47<X47,Z47,X47) -> 0 | W47: total pay+da+agp 10% = | X47: =ROUND(AA47*0.1,0) -> 0 | Y47: Empr contri = | Z47: ='det.sal input'!W32 -> 0 | AA47: ='det.sal input'!C26+'det.sal input'!D26+'det.sal input'!F26-'det.sal input'!C20 -> 0
C48: c. | D48: Investment in Rajiv Gandhi Equity Savings Scheme 80CCG (50% of investment gets exemption.Maximum 25000)
C49: c) | D49: Mediclaim ( Maximum of Rs.25,000 for self, spouse, children and Rs.25000 for Parents. if Parents are senior citizens Rs. 30,000)(80 D) | N49: : | O49: =IF(Z49<X49,Z49,X49) -> 0 | W49: max 80 D= | X49: 55000 | Y49: Actual 80d = | Z49: =INVEST!F18 -> 0
C50: d) | D50: Expenditure on Medical treatment of mentally or physically handicapped dependents (including Specified investments there on). ( Max. Rs.75,000/- in case of severe disability max. Rs.1,25,000) (80DD) | N50: : | O50: =IF(Z50<X50,Z50,X50) -> 0 | W50: max 80dd= | X50: 125000 | Y50: Actual 80dd = | Z50: =INVEST!F21 -> 0
C51: e) | D51: For medical treatment of specified diseases of self/dependent . Actual exp. Or Rs. 40000/60000/ 80000 which ever is less gets excemption depending on age. Should submit Form-10-I. (80 DDB) | O51: =INVEST!F22 -> 0
C52: f) | D52: Any amount of interest paid for Educational Loan for higher education of the employee's dependent children [u/s 80E] | N52: : | O52: =INVEST!F20 -> 0
C53: g) | D53: Additional deduction on housing loan interest (maximum 50000) if the following conditions are satisfied. 1. loan amount is not above Rs. 35 lakhs, 2. Loan sanctioned in 2016-17, 3. He is a first time home buyer, 4. cost of house does not exceed Rs. 50 lakhs (80EE) | O53: =IF(W53<0,0,W53) -> 0 | W53: =IF(PERSONAL!H20="YES",'new statement (2)'!X23-'new statement (2)'!W23,0) -> 0
C54: h) | D54: ='new statement'!D54:M54 -> Electric vehicle loan interest repayment (up to 1.5 Lakh) (80EEB) | O54: ='new statement'!O54:P54 -> 0
C55: i) | D55: Donation to special funds only PM's National Relief Fund, Earth quake fund Etc (80G) | N55: : | O55: =INVEST!F19+S96 -> 0
C56: j) | D56: Dedution for differently abled Employees( 80U)For blindness,Hearing impaired, Mental retradation, Mental illness, low vision, Locomotors disability. Fixed deduction of 75000 (For disability not less than 40%) / 1.25 Lakh, for severe disability over 80% | N56: : | O56: =INVEST!F23 -> 0
D57: Total of 10 | O57: =SUM(O46:P56) -> 0
B58: 11 | C58: Total Deduction (9+10) | R58: =IF(W2=2,O47,R45+O57) -> 0
B59: 12 | C59: Total Income or Taxable Income (rounded off to the nearest multiple of ten (8-11) | O59: Before rounding | Q59: =R27-R58 -> 0 | R59: =IF(R27-R58>0,ROUND(((R27-R58)/10),0)*10,0) -> 0
B60: 13 | C60: Tax on Total Income (New rate option) First 3 Lakh, Nil, next 3 Lakh 5%, next 3 Lakh 10%, next 3 Lakh 15%, next 3 Lakh 20%, Remaining income 30% | Q60: : | R60: =IF(W2=2,AC40,'new form 16'!J81) -> 0
B61: 14 | C61: Less 87 A Rebate, upto a maximum of Rs.25000, available only if Taxable income is less than 700001 (Rebate u/s 87A) | R61: =IF(R60=0,0,IF(R59>700000,0,IF(25000>R60,R60,25000))) -> 0
B62: 15 | C62: Balance of Tax after 87A rebate | R62: =R60-R61 -> 0
B63: 16 | C63: Education Cess @ 4% of tax | Q63: : | R63: =ROUND(R62*0.04,0) -> 0
B64: 17 | C64: Total Tax Payable (13-14+16) | Q64: : | R64: =R62+R63 -> 0 | W64: =R64 -> 0
B65: 18 | C65: Less : Relief for Arrears of Salary u/s 89(1) attach 10 E set of forms and previous years tax statements | Q65: : | R65: ='ARR MONH SPLIT'!I107 -> 0 | V65: =IF('Form 10E NEW REG'!B2="","","ERROR") ->  | W65: =IF(INVEST!F24>R64,R64,'Form 10E'!H40) -> 0
B66: 19 | C66: Balance Tax Payable (17-18) rounded to 10 rupees. | L66: ="( before rounding "&ROUND(R64-R65,0)&") " -> ( before rounding 0) | Q66: : | R66: =ROUND((R64-R65),-1) -> 0
B67: 20 | C67: Amount of Tax already deducted from salary (TDS) | Q67: : | R67: ='det.sal input'!Q26 -> 0
B68: 21 | C68: Amount of Tax deducted from interest on deposits (FD,RD etc ), Capital Gain, Profession Income | R68: ='tds det'!I37 -> 0 | W68: =R66-R68-R69 -> 0 | X68: =ROUND(W68,-1) -> 0
B69: 22 | C69: Advance tax/ other TDS paid (Challan pay) details : | N69: ='tds det'!D18&", "&'tds det'!E47 -> 0, | R69: ='tds det'!I38 -> 0
B70: 23 | C70: =IF(R70>=0,"Balance of Tax to be deducted now (19-20-21-22) ","Excess TDS payment made, can apply for refund during e-filing") -> Balance of Tax to be deducted now (19-20-21-22) | N70: ="Before rounding "&R64-R65-R67-R68-R69 -> Before rounding 0 | R70: =ROUND((R66-R67-R68-R69),0) -> 0 | W70: =ROUND(R70,-1) -> 0
B71: 24 | C71: ="Monthly TDS amount required in the next "&PERSONAL!H21&" month(s)" -> Monthly TDS amount required in the next 3 month(s) | T71: =IF(R70<1,0,R70/PERSONAL!H21) -> 0
B72: =FACE!D1&" version" -> 2023 December 21 version
B73: ="True copy, Counter signed by "&CUSTOMISE!H24&", "&CUSTOMISE!H26 -> True copy, Counter signed by , | V73: =PERSONAL!H4&", "&PERSONAL!H6 -> , | W73: 10 ലേക്ക് ROUND ചെയ്ത നികുതി സംഖ്യയാണ് ശരിയായ നികുതി.
B74: ="Place: "&PERSONAL!H11 -> Place: 0 | O74: http://babuvadukkumchery.blogspot.com | W74: ROUND ചെയ്യാത്ത തുക ഇവിടെ വെറുതെ അറിവിലേക്കായി നല്‍കീ എന്നേ കരുതേണ്ടൂ
B75: Date : | D75: =TEXT(TODAY(),"dd/mm/yyyy") -> 05/02/2024
B76: =IF(print!P9="ANTICIPATORY TAX CALCULATOR","DETAILS OF EXPECTED SALARY AND DEDUCTIONS FOR THE FINANCIAL YEAR 2023-24","DETAILS OF SALARY AND DEDUCTIONS FOR THE FINANCIAL YEAR 2023-24") -> DETAILS OF EXPECTED SALARY AND DEDUCTIONS FOR THE FINANCIAL YEAR 2023-24
D77: =IF('det.sal input'!$B$6="pension","PENSION RECEIPTS","SALARY RECEIPTS") -> SALARY RECEIPTS | M77: DEDUCTIONS FROM OFFICE
B78: For the Month | D78: Pay /Pension | E78: AGP | F78: DA | G78: HRA | H78: =UPPER('det.sal input'!H6) -> ? | I78: =UPPER('det.sal input'!I6) -> ? | J78: =UPPER('det.sal input'!J6) -> ? | K78: =UPPER('det.sal input'!K6) -> ? | L78: Total | M78: ='det.sal input'!M6 -> PF | N78: ='det.sal input'!N6 -> SLI | O78: ='det.sal input'!O6 -> GI | P78: LIC/PLI | Q78: TDS | R78: =UPPER('det.sal input'!R6&"+ "&'det.sal input'!T6) -> ?+ ? | S78: ='new statement'!S78 -> Donation - Office deduction only 80 G | T78: ='det.sal input'!U6 -> (NPS) | U78: ='new statement'!U78 -> MEDISEP (S-80 D) | V78: ='det.sal input'!W6 -> TOTAL DEDUCTIONS
B79: =IF('det.sal input'!$B$6="pension","April-23","March-23") -> March-23 | D79: ='det.sal input'!C8 -> 0 | E79: ='det.sal input'!D8 -> 0 | F79: ='det.sal input'!F8 -> 0 | G79: ='det.sal input'!G8 -> 0 | H79: ='det.sal input'!H8 -> 0 | I79: ='det.sal input'!I8 -> 0 | J79: ='det.sal input'!J8 -> 0 | K79: ='det.sal input'!K8 -> 0 | L79: ='det.sal input'!L8 -> 0 | M79: ='det.sal input'!M8 -> 0 | N79: ='det.sal input'!N8 -> 0 | O79: ='det.sal input'!O8 -> 0 | P79: ='det.sal input'!P8 -> 0 | Q79: ='det.sal input'!Q8 -> 0 | R79: ='det.sal input'!R8+'det.sal input'!T8 -> 0 | S79: ='det.sal input'!S8 -> 0 | T79: ='det.sal input'!U8 -> 0 | U79: ='new statement'!U79 -> 0 | V79: ='det.sal input'!W8 -> 0
B80: =IF('det.sal input'!$B$6="pension","May","April") -> April | D80: ='det.sal input'!C9 -> 0 | E80: ='det.sal input'!D9 -> 0 | F80: ='det.sal input'!F9 -> 0 | G80: ='det.sal input'!G9 -> 0 | H80: ='det.sal input'!H9 -> 0 | I80: ='det.sal input'!I9 -> 0 | J80: ='det.sal input'!J9 -> 0 | K80: ='det.sal input'!K9 -> 0 | L80: ='det.sal input'!L9 -> 0 | M80: ='det.sal input'!M9 -> 0 | N80: ='det.sal input'!N9 -> 0 | O80: ='det.sal input'!O9 -> 0 | P80: ='det.sal input'!P9 -> 0 | Q80: ='det.sal input'!Q9 -> 0 | R80: ='det.sal input'!R9+'det.sal input'!T9 -> 0 | S80: ='det.sal input'!S9 -> 0 | T80: ='det.sal input'!U9 -> 0 | U80: ='new statement'!U80 -> 0 | V80: ='det.sal input'!W9 -> 0
B81: ='det.sal input'!B10 -> May | D81: ='det.sal input'!C10 -> 0 | E81: ='det.sal input'!D10 -> 0 | F81: ='det.sal input'!F10 -> 0 | G81: ='det.sal input'!G10 -> 0 | H81: ='det.sal input'!H10 -> 0 | I81: ='det.sal input'!I10 -> 0 | J81: ='det.sal input'!J10 -> 0 | K81: ='det.sal input'!K10 -> 0 | L81: ='det.sal input'!L10 -> 0 | M81: ='det.sal input'!M10 -> 0 | N81: ='det.sal input'!N10 -> 0 | O81: ='det.sal input'!O10 -> 0 | P81: ='det.sal input'!P10 -> 0 | Q81: ='det.sal input'!Q10 -> 0 | R81: ='det.sal input'!R10+'det.sal input'!T10 -> 0 | S81: ='det.sal input'!S10 -> 0 | T81: ='det.sal input'!U10 -> 0 | U81: ='new statement'!U81 -> 0 | V81: ='det.sal input'!W10 -> 0
B82: ='det.sal input'!B11 -> June | D82: ='det.sal input'!C11 -> 0 | E82: ='det.sal input'!D11 -> 0 | F82: ='det.sal input'!F11 -> 0 | G82: ='det.sal input'!G11 -> 0 | H82: ='det.sal input'!H11 -> 0 | I82: ='det.sal input'!I11 -> 0 | J82: ='det.sal input'!J11 -> 0 | K82: ='det.sal input'!K11 -> 0 | L82: ='det.sal input'!L11 -> 0 | M82: ='det.sal input'!M11 -> 0 | N82: ='det.sal input'!N11 -> 0 | O82: ='det.sal input'!O11 -> 0 | P82: ='det.sal input'!P11 -> 0 | Q82: ='det.sal input'!Q11 -> 0 | R82: ='det.sal input'!R11+'det.sal input'!T11 -> 0 | S82: ='det.sal input'!S11 -> 0 | T82: ='det.sal input'!U11 -> 0 | U82: ='new statement'!U82 -> 0 | V82: ='det.sal input'!W11 -> 0
B83: ='det.sal input'!B12 -> July | D83: ='det.sal input'!C12 -> 0 | E83: ='det.sal input'!D12 -> 0 | F83: ='det.sal input'!F12 -> 0 | G83: ='det.sal input'!G12 -> 0 | H83: ='det.sal input'!H12 -> 0 | I83: ='det.sal input'!I12 -> 0 | J83: ='det.sal input'!J12 -> 0 | K83: ='det.sal input'!K12 -> 0 | L83: ='det.sal input'!L12 -> 0 | M83: ='det.sal input'!M12 -> 0 | N83: ='det.sal input'!N12 -> 0 | O83: ='det.sal input'!O12 -> 0 | P83: ='det.sal input'!P12 -> 0 | Q83: ='det.sal input'!Q12 -> 0 | R83: ='det.sal input'!R12+'det.sal input'!T12 -> 0 | S83: ='det.sal input'!S12 -> 0 | T83: ='det.sal input'!U12 -> 0 | U83: ='new statement'!U83 -> 0 | V83: ='det.sal input'!W12 -> 0
B84: ='det.sal input'!B13 -> August | D84: ='det.sal input'!C13 -> 0 | E84: ='det.sal input'!D13 -> 0 | F84: ='det.sal input'!F13 -> 0 | G84: ='det.sal input'!G13 -> 0 | H84: ='det.sal input'!H13 -> 0 | I84: ='det.sal input'!I13 -> 0 | J84: ='det.sal input'!J13 -> 0 | K84: ='det.sal input'!K13 -> 0 | L84: ='det.sal input'!L13 -> 0 | M84: ='det.sal input'!M13 -> 0 | N84: ='det.sal input'!N13 -> 0 | O84: ='det.sal input'!O13 -> 0 | P84: ='det.sal input'!P13 -> 0 | Q84: ='det.sal input'!Q13 -> 0 | R84: ='det.sal input'!R13+'det.sal input'!T13 -> 0 | S84: ='det.sal input'!S13 -> 0 | T84: ='det.sal input'!U13 -> 0 | U84: ='new statement'!U84 -> 0 | V84: ='det.sal input'!W13 -> 0
B85: ='det.sal input'!B14 -> September | D85: ='det.sal input'!C14 -> 0 | E85: ='det.sal input'!D14 -> 0 | F85: ='det.sal input'!F14 -> 0 | G85: ='det.sal input'!G14 -> 0 | H85: ='det.sal input'!H14 -> 0 | I85: ='det.sal input'!I14 -> 0 | J85: ='det.sal input'!J14 -> 0 | K85: ='det.sal input'!K14 -> 0 | L85: ='det.sal input'!L14 -> 0 | M85: ='det.sal input'!M14 -> 0 | N85: ='det.sal input'!N14 -> 0 | O85: ='det.sal input'!O14 -> 0 | P85: ='det.sal input'!P14 -> 0 | Q85: ='det.sal input'!Q14 -> 0 | R85: ='det.sal input'!R14+'det.sal input'!T14 -> 0 | S85: ='det.sal input'!S14 -> 0 | T85: ='det.sal input'!U14 -> 0 | U85: ='new statement'!U85 -> 0 | V85: ='det.sal input'!W14 -> 0
A86: =FACE!D1 -> 2023 December 21 | B86: ='det.sal input'!B15 -> October | D86: ='det.sal input'!C15 -> 0 | E86: ='det.sal input'!D15 -> 0 | F86: ='det.sal input'!F15 -> 0 | G86: ='det.sal input'!G15 -> 0 | H86: ='det.sal input'!H15 -> 0 | I86: ='det.sal input'!I15 -> 0 | J86: ='det.sal input'!J15 -> 0 | K86: ='det.sal input'!K15 -> 0 | L86: ='det.sal input'!L15 -> 0 | M86: ='det.sal input'!M15 -> 0 | N86: ='det.sal input'!N15 -> 0 | O86: ='det.sal input'!O15 -> 0 | P86: ='det.sal input'!P15 -> 0 | Q86: ='det.sal input'!Q15 -> 0 | R86: ='det.sal input'!R15+'det.sal input'!T15 -> 0 | S86: ='det.sal input'!S15 -> 0 | T86: ='det.sal input'!U15 -> 0 | U86: ='new statement'!U86 -> 0 | V86: ='det.sal input'!W15 -> 0
B87: ='det.sal input'!B16 -> November | D87: ='det.sal input'!C16 -> 0 | E87: ='det.sal input'!D16 -> 0 | F87: ='det.sal input'!F16 -> 0 | G87: ='det.sal input'!G16 -> 0 | H87: ='det.sal input'!H16 -> 0 | I87: ='det.sal input'!I16 -> 0 | J87: ='det.sal input'!J16 -> 0 | K87: ='det.sal input'!K16 -> 0 | L87: ='det.sal input'!L16 -> 0 | M87: ='det.sal input'!M16 -> 0 | N87: ='det.sal input'!N16 -> 0 | O87: ='det.sal input'!O16 -> 0 | P87: ='det.sal input'!P16 -> 0 | Q87: ='det.sal input'!Q16 -> 0 | R87: ='det.sal input'!R16+'det.sal input'!T16 -> 0 | S87: ='det.sal input'!S16 -> 0 | T87: ='det.sal input'!U16 -> 0 | U87: ='new statement'!U87 -> 0 | V87: ='det.sal input'!W16 -> 0
B88: ='det.sal input'!B17 -> December | D88: ='det.sal input'!C17 -> 0 | E88: ='det.sal input'!D17 -> 0 | F88: ='det.sal input'!F17 -> 0 | G88: ='det.sal input'!G17 -> 0 | H88: ='det.sal input'!H17 -> 0 | I88: ='det.sal input'!I17 -> 0 | J88: ='det.sal input'!J17 -> 0 | K88: ='det.sal input'!K17 -> 0 | L88: ='det.sal input'!L17 -> 0 | M88: ='det.sal input'!M17 -> 0 | N88: ='det.sal input'!N17 -> 0 | O88: ='det.sal input'!O17 -> 0 | P88: ='det.sal input'!P17 -> 0 | Q88: ='det.sal input'!Q17 -> 0 | R88: ='det.sal input'!R17+'det.sal input'!T17 -> 0 | S88: ='det.sal input'!S17 -> 0 | T88: ='det.sal input'!U17 -> 0 | U88: ='new statement'!U88 -> 0 | V88: ='det.sal input'!W17 -> 0
B89: ='det.sal input'!B18 -> Jan- 2024 | D89: ='det.sal input'!C18 -> 0 | E89: ='det.sal input'!D18 -> 0 | F89: ='det.sal input'!F18 -> 0 | G89: ='det.sal input'!G18 -> 0 | H89: ='det.sal input'!H18 -> 0 | I89: ='det.sal input'!I18 -> 0 | J89: ='det.sal input'!J18 -> 0 | K89: ='det.sal input'!K18 -> 0 | L89: ='det.sal input'!L18 -> 0 | M89: ='det.sal input'!M18 -> 0 | N89: ='det.sal input'!N18 -> 0 | O89: ='det.sal input'!O18 -> 0 | P89: ='det.sal input'!P18 -> 0 | Q89: ='det.sal input'!Q18 -> 0 | R89: ='det.sal input'!R18+'det.sal input'!T18 -> 0 | S89: ='det.sal input'!S18 -> 0 | T89: ='det.sal input'!U18 -> 0 | U89: ='new statement'!U89 -> 0 | V89: ='det.sal input'!W18 -> 0
B90: ='det.sal input'!B19 -> Feb-2024 | D90: ='det.sal input'!C19 -> 0 | E90: ='det.sal input'!D19 -> 0 | F90: ='det.sal input'!F19 -> 0 | G90: ='det.sal input'!G19 -> 0 | H90: ='det.sal input'!H19 -> 0 | I90: ='det.sal input'!I19 -> 0 | J90: ='det.sal input'!J19 -> 0 | K90: ='det.sal input'!K19 -> 0 | L90: ='det.sal input'!L19 -> 0 | M90: ='det.sal input'!M19 -> 0 | N90: ='det.sal input'!N19 -> 0 | O90: ='det.sal input'!O19 -> 0 | P90: ='det.sal input'!P19 -> 0 | Q90: ='det.sal input'!Q19+R70 -> 0 | R90: ='det.sal input'!R19+'det.sal input'!T19 -> 0 | S90: ='det.sal input'!S19 -> 0 | T90: ='det.sal input'!U19 -> 0 | U90: ='new statement'!U90 -> 0 | V90: ='det.sal input'!W19 -> 0
B91: Fest. All | D91: ='det.sal input'!C20 -> 0 | L91: ='det.sal input'!L20 -> 0 | S91: ='det.sal input'!S20 -> 0
B92: Arrear | C92: PF | D92: ='det.sal input'!C21 -> 0 | E92: ='det.sal input'!D21 -> 0 | F92: ='det.sal input'!F21 -> 0 | G92: ='det.sal input'!G21 -> 0 | H92: ='det.sal input'!H21 -> 0 | I92: ='det.sal input'!I21 -> 0 | J92: ='det.sal input'!J21 -> 0 | K92: ='det.sal input'!K21 -> 0 | L92: ='det.sal input'!L21 -> 0 | M92: ='det.sal input'!M21 -> 0 | N92: ='det.sal input'!N21 -> 0 | O92: ='det.sal input'!O21 -> 0 | P92: ='det.sal input'!P21 -> 0 | Q92: ='det.sal input'!Q21 -> 0 | R92: ='det.sal input'!R21+'det.sal input'!T21 -> 0 | S92: ='det.sal input'!S21 -> 0 | T92: ='det.sal input'!U21 -> 0 | V92: ='det.sal input'!W21 -> 0
C93: CASH/NPS | D93: ='det.sal input'!C22 -> 0 | E93: ='det.sal input'!D22 -> 0 | F93: ='det.sal input'!F22 -> 0 | G93: ='det.sal input'!G22 -> 0 | H93: ='det.sal input'!H22 -> 0 | I93: ='det.sal input'!I22 -> 0 | J93: ='det.sal input'!J22 -> 0 | K93: ='det.sal input'!K22 -> 0 | L93: ='det.sal input'!L22 -> 0 | M93: ='det.sal input'!M22 -> 0 | N93: ='det.sal input'!N22 -> 0 | O93: ='det.sal input'!O22 -> 0 | P93: ='det.sal input'!P22 -> 0 | Q93: ='det.sal input'!Q22 -> 0 | R93: ='det.sal input'!R22+'det.sal input'!T22 -> 0 | S93: ='det.sal input'!S22 -> 0 | T93: ='det.sal input'!U22 -> 0 | V93: ='det.sal input'!W22 -> 0
B94: Leave surrender | D94: ='det.sal input'!C23 -> 0 | E94: ='det.sal input'!D23 -> 0 | F94: ='det.sal input'!F23 -> 0 | G94: ='det.sal input'!G23 -> 0 | H94: ='det.sal input'!H23 -> 0 | I94: ='det.sal input'!I23 -> 0 | J94: ='det.sal input'!J23 -> 0 | K94: ='det.sal input'!K23 -> 0 | L94: ='det.sal input'!L23 -> 0 | M94: ='det.sal input'!M23 -> 0 | N94: ='det.sal input'!N23 -> 0 | O94: ='det.sal input'!O23 -> 0 | P94: ='det.sal input'!P23 -> 0 | Q94: ='det.sal input'!Q23 -> 0 | R94: ='det.sal input'!R23+'det.sal input'!T23 -> 0 | S94: ='det.sal input'!S23 -> 0 | T94: ='det.sal input'!U23 -> 0 | V94: ='det.sal input'!W23 -> 0
B95: Deferred Salary Arrear | D95: ='det.sal input'!C25 -> 0 | E95: ='det.sal input'!D24 -> 0 | F95: ='det.sal input'!F24 -> 0 | G95: ='det.sal input'!G24 -> 0 | H95: ='det.sal input'!H24 -> 0 | I95: ='det.sal input'!I24 -> 0 | J95: ='det.sal input'!J24 -> 0 | K95: ='det.sal input'!K24 -> 0 | L95: ='det.sal input'!L25 -> 0 | M95: ='det.sal input'!M24 -> 0 | N95: ='det.sal input'!N24 -> 0 | O95: ='det.sal input'!O24 -> 0 | P95: ='det.sal input'!P24 -> 0 | Q95: ='det.sal input'!Q24 -> 0 | R95: ='det.sal input'!R24+'det.sal input'!T24 -> 0 | S95: ='det.sal input'!S24 -> 0 | T95: ='det.sal input'!U24 -> 0 | V95: ='det.sal input'!W24 -> 0
B96: Total * | D96: ='det.sal input'!C26 -> 0 | E96: ='det.sal input'!D26 -> 0 | F96: ='det.sal input'!F26 -> 0 | G96: ='det.sal input'!G26 -> 0 | H96: ='det.sal input'!H26 -> 0 | I96: ='det.sal input'!I26 -> 0 | J96: ='det.sal input'!J26 -> 0 | K96: ='det.sal input'!K26 -> 0 | L96: ='det.sal input'!L26 -> 0 | M96: ='det.sal input'!M26 -> 0 | N96: ='det.sal input'!N26 -> 0 | O96: ='det.sal input'!O26 -> 0 | P96: ='det.sal input'!P26 -> 0 | Q96: =SUM(Q79:Q89)+SUM(Q91:Q95)+Q90 -> 0 | R96: ='det.sal input'!R26+'det.sal input'!T26 -> 0 | S96: ='det.sal input'!S26 -> 0 | T96: ='det.sal input'!U26 -> 0 | U96: =SUM(U79:U95) -> 0 | V96: =SUM(V79:V95) -> 0
B97: =IF('det.sal input'!C24="","","* Total includes other office receipts or refunds") -> 
D98: =IF(#REF!<0,"Refund of salary","Other receipts from office") ->  | R98: =ROUND(W69,-1) -> 0
AE222: Male | AF222: =IF(AND(R59>200000,R59<=500000),(R59-200000)*0.1,IF(AND(R59>500000,R59<=1000000),30000+(R59-500000)*0.2,IF(R59>1000000,130000+(R59-1000000)*0.3,"Nil"))) -> Nil
AE223: Female | AF223: =IF(AND(R59>200000,R59<=500000),(R59-200000)*0.1,IF(AND(R59>500000,R59<=1000000),30000+(R59-500000)*0.2,IF(R59>1000000,130000+(R59-1000000)*0.3,"Nil"))) -> Nil
AE224: Senior | AF224: =IF(AND(R59>250000,R59<=500000),(R59-250000)*0.1,IF(AND(R59>500000,R59<=1000000),25000+(R59-500000)*0.2,IF(R59>1000000,125000+(R59-1000000)*0.3,"Nil"))) -> Nil
AE225: Senior2 | AF225: =IF(AND(R59>500000,R59<=1000000),(R59-500000)*0.2,IF(R59>1000000,100000+(R59-1000000)*0.3,"Nil")) -> Nil
AE229: =IF(O30<>"Nil","Life Insurance Premum","") -> Life Insurance Premum | AF229: =IF(O30<>"Nil",O30,"") -> 0 | AG229: =IF(ROW()-ROW(two)+1>ROWS(one)-COUNTBLANK(one),"",INDIRECT(ADDRESS(SMALL((IF(one<>"",ROW(one),ROW()+ROWS(one))),ROW()-ROW(two)+1),COLUMN(one),4))) ->  | AH229: =IF(AG229<>"",VLOOKUP(AG229,AE229:AF242,2,FALSE),"") -> 
AE230: =IF(#REF!<>"Nil","Purchase of NSC","") ->  | AF230: =IF(#REF!<>"Nil",#REF!,"") ->  | AG230: =IF(ROW()-ROW(two)+1>ROWS(one)-COUNTBLANK(one),"",INDIRECT(ADDRESS(SMALL((IF(one<>"",ROW(one),ROW()+ROWS(one))),ROW()-ROW(two)+1),COLUMN(one),4))) ->  | AH230: =IF(AG230<>"",VLOOKUP(AG230,AE230:AF245,2,FALSE),"") -> 
AE231: =IF(O32<>"Nil","State Life Insurance (SLI)","") -> State Life Insurance (SLI) | AF231: =IF(O32<>"Nil",O32,"") -> 0 | AG231: =IF(ROW()-ROW(two)+1>ROWS(one)-COUNTBLANK(one),"",INDIRECT(ADDRESS(SMALL((IF(one<>"",ROW(one),ROW()+ROWS(one))),ROW()-ROW(two)+1),COLUMN(one),4))) ->  | AH231: =IF(AG231<>"",VLOOKUP(AG231,AE231:AF246,2,FALSE),"") -> 
AE232: =IF(O33<>"Nil","Group Insurance Scheme (GIS)","") -> Group Insurance Scheme (GIS) | AF232: =IF(O33<>"Nil",O33,"") -> 0 | AG232: =IF(ROW()-ROW(two)+1>ROWS(one)-COUNTBLANK(one),"",INDIRECT(ADDRESS(SMALL((IF(one<>"",ROW(one),ROW()+ROWS(one))),ROW()-ROW(two)+1),COLUMN(one),4))) ->  | AH232: =IF(AG232<>"",VLOOKUP(AG232,AE232:AF247,2,FALSE),"") -> 
AE233: =IF(#REF!<>"Nil","Group Personal Accident Insurance (GPAIS)","") ->  | AF233: =IF(#REF!<>"Nil",#REF!,"") ->  | AG233: =IF(ROW()-ROW(two)+1>ROWS(one)-COUNTBLANK(one),"",INDIRECT(ADDRESS(SMALL((IF(one<>"",ROW(one),ROW()+ROWS(one))),ROW()-ROW(two)+1),COLUMN(one),4))) ->  | AH233: =IF(AG233<>"",VLOOKUP(AG233,AE233:AF248,2,FALSE),"") -> 
AE234: =IF(O34<>"Nil",D34,"") -> Life Insurence salary deduction | AF234: =IF(O34<>"Nil",O34,"") -> 0 | AG234: =IF(ROW()-ROW(two)+1>ROWS(one)-COUNTBLANK(one),"",INDIRECT(ADDRESS(SMALL((IF(one<>"",ROW(one),ROW()+ROWS(one))),ROW()-ROW(two)+1),COLUMN(one),4))) ->  | AH234: =IF(AG234<>"",VLOOKUP(AG234,AE234:AF249,2,FALSE),"") -> 
AE235: =IF(O35<>"Nil","Provident Fund","") -> Provident Fund | AF235: =IF(O35<>"Nil",O35,"") -> 0 | AG235: =IF(ROW()-ROW(two)+1>ROWS(one)-COUNTBLANK(one),"",INDIRECT(ADDRESS(SMALL((IF(one<>"",ROW(one),ROW()+ROWS(one))),ROW()-ROW(two)+1),COLUMN(one),4))) ->  | AH235: =IF(AG235<>"",VLOOKUP(AG235,AE235:AF249,2,FALSE),"") -> 
AE236: =IF(O38<>"Nil","Unit Linked Insurance","") -> Unit Linked Insurance | AF236: =IF(O38<>"Nil",O38,"") -> 0 | AG236: =IF(ROW()-ROW(two)+1>ROWS(one)-COUNTBLANK(one),"",INDIRECT(ADDRESS(SMALL((IF(one<>"",ROW(one),ROW()+ROWS(one))),ROW()-ROW(two)+1),COLUMN(one),4))) ->  | AH236: =IF(AG236<>"",VLOOKUP(AG236,AE236:AF250,2,FALSE),"") -> 
AE237: =IF(#REF!<>"Nil","Tax Saving Mutual Fund","") ->  | AF237: =IF(#REF!<>"Nil",#REF!,"") ->  | AG237: =IF(ROW()-ROW(two)+1>ROWS(one)-COUNTBLANK(one),"",INDIRECT(ADDRESS(SMALL((IF(one<>"",ROW(one),ROW()+ROWS(one))),ROW()-ROW(two)+1),COLUMN(one),4))) ->  | AH237: =IF(AG237<>"",VLOOKUP(AG237,AE237:AF251,2,FALSE),"") -> 
AE238: =IF(O40<>"Nil","Tuition Fees","") -> Tuition Fees | AF238: =IF(O40<>"Nil",O40,"") -> 0 | AG238: =IF(ROW()-ROW(two)+1>ROWS(one)-COUNTBLANK(one),"",INDIRECT(ADDRESS(SMALL((IF(one<>"",ROW(one),ROW()+ROWS(one))),ROW()-ROW(two)+1),COLUMN(one),4))) ->  | AH238: =IF(AG238<>"",VLOOKUP(AG238,AE237:AF252,2,FALSE),"") -> 
AE239: =IF(O41<>"Nil","Housing Loan Repayment","") -> Housing Loan Repayment | AF239: =IF(O41<>"Nil",O41,"") -> 0 | AG239: =IF(ROW()-ROW(two)+1>ROWS(one)-COUNTBLANK(one),"",INDIRECT(ADDRESS(SMALL((IF(one<>"",ROW(one),ROW()+ROWS(one))),ROW()-ROW(two)+1),COLUMN(one),4))) ->  | AH239: =IF(AG239<>"",VLOOKUP(AG239,AE238:AF252,2,FALSE),"") -> 
AE240: =IF(#REF!<>"Nil","Eligibleshares & debentures","") ->  | AF240: =IF(#REF!<>"Nil",#REF!,"") ->  | AG240: =IF(ROW()-ROW(two)+1>ROWS(one)-COUNTBLANK(one),"",INDIRECT(ADDRESS(SMALL((IF(one<>"",ROW(one),ROW()+ROWS(one))),ROW()-ROW(two)+1),COLUMN(one),4))) ->  | AH240: =IF(AG240<>"",VLOOKUP(AG240,AE238:AF252,2,FALSE),"") -> 
AE241: =IF(#REF!<>"Nil","Mutual Fund","") ->  | AF241: =IF(#REF!<>"Nil",#REF!,"") ->  | AG241: =IF(ROW()-ROW(two)+1>ROWS(one)-COUNTBLANK(one),"",INDIRECT(ADDRESS(SMALL((IF(one<>"",ROW(one),ROW()+ROWS(one))),ROW()-ROW(two)+1),COLUMN(one),4))) ->  | AH241: =IF(AG241<>"",VLOOKUP(AG241,AE239:AF252,2,FALSE),"") -> 
AE242: =IF(#REF!<>"Nil",#REF!,"") ->  | AF242: =IF(#REF!<>"Nil",#REF!,"") ->  | AG242: =IF(ROW()-ROW(two)+1>ROWS(one)-COUNTBLANK(one),"",INDIRECT(ADDRESS(SMALL((IF(one<>"",ROW(one),ROW()+ROWS(one))),ROW()-ROW(two)+1),COLUMN(one),4))) ->  | AH242: =IF(AG242<>"",VLOOKUP(AG242,AE240:AF252,2,FALSE),"") -> 
AG243: =IF(ROW()-ROW(two)+1>ROWS(one)-COUNTBLANK(one),"",INDIRECT(ADDRESS(SMALL((IF(one<>"",ROW(one),ROW()+ROWS(one))),ROW()-ROW(two)+1),COLUMN(one),4))) ->  | AH243: =IF(AG243<>"",VLOOKUP(AG243,AE241:AF252,2,FALSE),"") -> 
AG244: =IF(ROW()-ROW(two)+1>ROWS(one)-COUNTBLANK(one),"",INDIRECT(ADDRESS(SMALL((IF(one<>"",ROW(one),ROW()+ROWS(one))),ROW()-ROW(two)+1),COLUMN(one),4))) ->  | AH244: =IF(AG244<>"",VLOOKUP(AG244,AE242:AF253,2,FALSE),"") -> 
AE247: =IF('new statement (2)'!O49<>"Nil","Mediclaim Policies (Sec 80D)","") -> Mediclaim Policies (Sec 80D) | AF247: =IF(AE247<>"",O49,"") -> 0 | AG247: =IF(ROW()-ROW(four)+1>ROWS(three)-COUNTBLANK(three),"",INDIRECT(ADDRESS(SMALL((IF(three<>"",ROW(three),ROW()+ROWS(three))),ROW()-ROW(four)+1),COLUMN(three),4))) ->  | AH247: =IF(ROW()-ROW(fouramt)+1>ROWS(threeamt)-COUNTBLANK(threeamt),"",INDIRECT(ADDRESS(SMALL((IF(threeamt<>"",ROW(threeamt),ROW()+ROWS(threeamt))),ROW()-ROW(fouramt)+1),COLUMN(threeamt),4))) -> 
AE248: =IF('new statement (2)'!O50<>"Nil","Medical Treatment Mentally or Physically handicapped (Sec-80DD)","") -> Medical Treatment Mentally or Physically handicapped (Sec-80DD) | AF248: =IF(AE248<>"",O50,"") -> 0 | AG248: =IF(ROW()-ROW(four)+1>ROWS(three)-COUNTBLANK(three),"",INDIRECT(ADDRESS(SMALL((IF(three<>"",ROW(three),ROW()+ROWS(three))),ROW()-ROW(four)+1),COLUMN(three),4))) ->  | AH248: =IF(ROW()-ROW(fouramt)+1>ROWS(threeamt)-COUNTBLANK(threeamt),"",INDIRECT(ADDRESS(SMALL((IF(threeamt<>"",ROW(threeamt),ROW()+ROWS(threeamt))),ROW()-ROW(fouramt)+1),COLUMN(threeamt),4))) -> 
AE249: =IF('new statement (2)'!#REF!<>"Nil","Expenditure on Medical Treatment(Sec-80DDB)","") ->  | AF249: =IF(AE249<>"",#REF!,"") ->  | AG249: =IF(ROW()-ROW(four)+1>ROWS(three)-COUNTBLANK(three),"",INDIRECT(ADDRESS(SMALL((IF(three<>"",ROW(three),ROW()+ROWS(three))),ROW()-ROW(four)+1),COLUMN(three),4))) ->  | AH249: =IF(ROW()-ROW(fouramt)+1>ROWS(threeamt)-COUNTBLANK(threeamt),"",INDIRECT(ADDRESS(SMALL((IF(threeamt<>"",ROW(threeamt),ROW()+ROWS(threeamt))),ROW()-ROW(fouramt)+1),COLUMN(threeamt),4))) -> 
AE250: =IF('new statement (2)'!O52<>"Nil","Interest on Educational Loan (Sec-80 E)","") -> Interest on Educational Loan (Sec-80 E) | AF250: =IF(AE250<>"",O52,"") -> 0 | AG250: =IF(ROW()-ROW(four)+1>ROWS(three)-COUNTBLANK(three),"",INDIRECT(ADDRESS(SMALL((IF(three<>"",ROW(three),ROW()+ROWS(three))),ROW()-ROW(four)+1),COLUMN(three),4))) ->  | AH250: =IF(ROW()-ROW(fouramt)+1>ROWS(threeamt)-COUNTBLANK(threeamt),"",INDIRECT(ADDRESS(SMALL((IF(threeamt<>"",ROW(threeamt),ROW()+ROWS(threeamt))),ROW()-ROW(fouramt)+1),COLUMN(threeamt),4))) -> 
AE251: =IF('new statement (2)'!O55<>"Nil","Donation to Charitable Institutions (Sec-80 G)","") -> Donation to Charitable Institutions (Sec-80 G) | AF251: =IF(AE251<>"",O55,"") -> 0 | AG251: =IF(ROW()-ROW(four)+1>ROWS(three)-COUNTBLANK(three),"",INDIRECT(ADDRESS(SMALL((IF(three<>"",ROW(three),ROW()+ROWS(three))),ROW()-ROW(four)+1),COLUMN(three),4))) ->  | AH251: =IF(ROW()-ROW(fouramt)+1>ROWS(threeamt)-COUNTBLANK(threeamt),"",INDIRECT(ADDRESS(SMALL((IF(threeamt<>"",ROW(threeamt),ROW()+ROWS(threeamt))),ROW()-ROW(fouramt)+1),COLUMN(threeamt),4))) -> 
AE252: =IF('new statement (2)'!#REF!<>"Nil","Contribution to Political Parties (Sec-80 GGC)","") ->  | AF252: =IF(AE252<>"",#REF!,"") ->  | AG252: =IF(ROW()-ROW(four)+1>ROWS(three)-COUNTBLANK(three),"",INDIRECT(ADDRESS(SMALL((IF(three<>"",ROW(three),ROW()+ROWS(three))),ROW()-ROW(four)+1),COLUMN(three),4))) ->  | AH252: =IF(ROW()-ROW(fouramt)+1>ROWS(threeamt)-COUNTBLANK(threeamt),"",INDIRECT(ADDRESS(SMALL((IF(threeamt<>"",ROW(threeamt),ROW()+ROWS(threeamt))),ROW()-ROW(fouramt)+1),COLUMN(threeamt),4))) -> 
AE253: =IF('new statement (2)'!O56<>"Nil","Deduction for Handicapped Employees (u/s 80U)","") -> Deduction for Handicapped Employees (u/s 80U) | AF253: =IF(AE253<>"",O56,"") -> 0 | AG253: =IF(ROW()-ROW(four)+1>ROWS(three)-COUNTBLANK(three),"",INDIRECT(ADDRESS(SMALL((IF(three<>"",ROW(three),ROW()+ROWS(three))),ROW()-ROW(four)+1),COLUMN(three),4))) ->  | AH253: =IF(ROW()-ROW(fouramt)+1>ROWS(threeamt)-COUNTBLANK(threeamt),"",INDIRECT(ADDRESS(SMALL((IF(threeamt<>"",ROW(threeamt),ROW()+ROWS(threeamt))),ROW()-ROW(fouramt)+1),COLUMN(threeamt),4))) -> 
AE255: =IF(ISNUMBER(#REF!),"Income From House Property","") ->  | AF255: =IF(AE255<>"",#REF!,"") ->  | AG255: =IF(ROW()-ROW(six)+1>ROWS(five)-COUNTBLANK(five),"",INDIRECT(ADDRESS(SMALL((IF(five<>"",ROW(five),ROW()+ROWS(five))),ROW()-ROW(six)+1),COLUMN(five),4))) ->  | AH255: =IF(ROW()-ROW(sixamt)+1>ROWS(fiveamt)-COUNTBLANK(fiveamt),"",INDIRECT(ADDRESS(SMALL((IF(fiveamt<>"",ROW(fiveamt),ROW()+ROWS(fiveamt))),ROW()-ROW(sixamt)+1),COLUMN(fiveamt),4))) -> 
AE256: =IF(#REF!>0,#REF!,"") ->  | AF256: =IF(AE256<>"",#REF!,"") ->  | AG256: =IF(ROW()-ROW(six)+1>ROWS(five)-COUNTBLANK(five),"",INDIRECT(ADDRESS(SMALL((IF(five<>"",ROW(five),ROW()+ROWS(five))),ROW()-ROW(six)+1),COLUMN(five),4))) ->  | AH256: =IF(ROW()-ROW(sixamt)+1>ROWS(fiveamt)-COUNTBLANK(fiveamt),"",INDIRECT(ADDRESS(SMALL((IF(fiveamt<>"",ROW(fiveamt),ROW()+ROWS(fiveamt))),ROW()-ROW(sixamt)+1),COLUMN(fiveamt),4))) -> 
AE257: =IF(#REF!>0,#REF!,"") ->  | AF257: =IF(AE257<>"",#REF!,"") ->  | AG257: =IF(ROW()-ROW(six)+1>ROWS(five)-COUNTBLANK(five),"",INDIRECT(ADDRESS(SMALL((IF(five<>"",ROW(five),ROW()+ROWS(five))),ROW()-ROW(six)+1),COLUMN(five),4))) ->  | AH257: =IF(ROW()-ROW(sixamt)+1>ROWS(fiveamt)-COUNTBLANK(fiveamt),"",INDIRECT(ADDRESS(SMALL((IF(fiveamt<>"",ROW(fiveamt),ROW()+ROWS(fiveamt))),ROW()-ROW(sixamt)+1),COLUMN(fiveamt),4))) -> 
AE258: =IF(#REF!>0,#REF!,"") ->  | AF258: =IF(AE258<>"",#REF!,"") ->  | AG258: =IF(ROW()-ROW(six)+1>ROWS(five)-COUNTBLANK(five),"",INDIRECT(ADDRESS(SMALL((IF(five<>"",ROW(five),ROW()+ROWS(five))),ROW()-ROW(six)+1),COLUMN(five),4))) ->  | AH258: =IF(ROW()-ROW(sixamt)+1>ROWS(fiveamt)-COUNTBLANK(fiveamt),"",INDIRECT(ADDRESS(SMALL((IF(fiveamt<>"",ROW(fiveamt),ROW()+ROWS(fiveamt))),ROW()-ROW(sixamt)+1),COLUMN(fiveamt),4))) -> 
AE261: =IF(AND(R66<>"Nil",R67<>"Nil"),R66-R67,IF(AND(R66>0,R67="Nil"),R66,IF(AND(R67>0,R66="Nil"),(0-R67),"Nil"))) -> 0

Sheet Form 10E NEW REG
A1: =F6 -> 0 | B1: ചുവടെ Annexure 1 (page 2) statement ല്‍ ക്രമനമ്പര്‍ 8 പ്രകാരം കാണുന്ന തുകയാണ് ഈ വകുപ്പ് പ്രകാരം ഇളവു ലഭിക്കുക. അത് പൂജ്യം ആണെങ്കില്‍ ഇളവുകള്‍ ഒന്നും ലഭിക്കില്ല എന്നര്‍ത്ഥം | N1: Print P-1 | O1: Print P- 2 | P1: Print P- 3 | Q1: =IF('ARR MONH SPLIT'!AA65="Caution ! Your data entry process in this field not completed or there may be errors in typing. Don't click CONTINUE BUTTON below, please check", "Warning ! Your data entry in the monthly arrear split up field not completed, or there may be errors. This 10 E statement is not valid","") -> 
A2: =B3 -> FORM NO.10 E | B2: =IF('ARREAR SPLIT'!N22>'ARREAR SPLIT'!N5,"തെറ്റായ രീതിയില്‍ 10 E ഫോം പൂരിപ്പിച്ചതായി കാണുന്നു. 10 E പൂരിപ്പിക്കുന്ന മേഖലയില്‍ എത്തി warning നിര്‍ദ്ദേശങ്ങള്‍ നോക്കുക","") -> 
B3: FORM NO.10 E
B4: [See rule 21AA]
